Workbook

Sheet Cover sheet
E9: Tool for COST vs EADS % Trading
C12: Contact: Dr. John Ahmet Erkoyuncu
C14: E: j.a.erkoyuncu@cranfield.ac.uk
C16: T: (0) 1234 75 0111

Sheet Tool Description (hidden)

Sheet CostEADS
A1: TradeRateAndRequirement
B2: Defining the Cost EADS % level
B4: This sheet aims to capture the Cost EADS % level. The Benefit ratio assists with chosing these figures. The green shaded cells highlight an input requirement.
B7: People
B8: Capturing the cost and EADS % | AP8: Current cost position | AQ8: Constrain1 | AR8: Constrained 1 Max
AP9: =E14 -> 78.5 | AQ9: =Constrained!W19 -> 23.20768662 | AR9: =Constrained!V19 -> 23.57354028
B10: Name of Lever: | D10: People: Level 1
B12: Thresholds for levers | C12: Step 1: Insert the lever cost at different thresholds | D12: Step 2: EADS % value for different thresholds | E12: Step 3: Insert the target cost figure | F12: Step 4. Evaluate the outcome in EADS % | G12: Step 5. EVALUATE THE BENEFIT OF CHANGE
B13: Threshold | C13: COST in £'000 | D13: EADS % | E13: PLANNED COST | F13: EADS % EQUIVALENT of the planned cost | G13: BENEFIT RATIO | AI13: % change in EADS from current point
B14: 1 | C14: 80 | D14: 1 | E14: 78.5 | F14: =AG31 -> 1.75 | G14: =AP18 -> 0.1428571429 | AG14: CURRENT POSITION EADS % POSITION
B15: 2 | C15: 75 | D15: 3.5 | G15: 0.1388888889
B16: 3 | C16: 72 | D16: 6 | G16: 0.07142857143 | AF16: Slope | AH16: cost change from current position | AJ16: Benefit ratio | AU16: Constrained analysis | AZ16: current position
B17: 4 | C17: 70 | D17: 7 | G17: 0.1111111111 | AF17: =IF(AP9>=AK18,AS18,"") ->  | AG17: =(AP9-AK18)*AF17+AL18 ->  | AH17: =AP9-AK18 -> -1.5 | AI17: =(AL18-AG17)/AL18 ->  | AJ17: =AI17/AH17 ->  | AK17: COST | AL17: EADS % | AM17: Line | AN17: Cost change at different points | AO17: % change in EADS at different points | AP17: Benefit Ratio | AQ17: Points | AS17: Slope options | AT17: EADS CALCULATION FOR GIVEN CURRENT POSITION | AU17: MAX | AV17: ML | AW17: MIN | AX17: constrained 1 | AY17: EADS Calculation | AZ17: Cost - min value | BA17: EADS - min value | BB17: EADS Max value | BF17: benefit ratio For figure | BH17: current position
B18: 5 | C18: 68 | D18: 9 | G18: 0.03623188406 | N18: 9 | AD18: =IF(ISNUMBER(AJ17),AK18,"") ->  | AE18: =IF(ISNUMBER(AJ17),AL18,"") ->  | AF18: =IF(AP9>=AK19,AS18,"") -> -0.5 | AG18: =(AP9-AK19)*AF18+AL19 -> 1.75 | AH18: =AP9-AK18 -> -1.5 | AI18: =(AL18-AG18)/AL18 -> -0.75 | AJ18: 0.5 | AK18: =IF(ISBLANK(C14),,C14) -> 80 | AL18: =IF(ISBLANK(D14),,D14) -> 1 | AM18: Point 1-2 | AN18: =-IF(AND(ISNUMBER(AK18),ISNUMBER(AK19)),((AK19-AK18)),) -> 5 | AO18: =(AL19-AL18)/AL19 -> 0.7142857143 | AP18: =AO18/AN18 -> 0.1428571429 | AQ18: 1 | AR18: 2 | AS18: =(AL19-AL18)/(AK19-AK18) -> -0.5 | AT18: =(AP9-$AK$18)*$AS$18+$AL$18 -> 1.75 | AU18: =(AR9-$AK$18)*$AS$18+$AL$18 -> 29.21322986 | AX18: =(AQ9-$AK$18)*$AS$18+$AL$18 -> 29.39615669 | AY18: =AP18 -> 0.1428571429 | AZ18: =IF(AY18>AY19,AK19,"") -> 75 | BA18: =IF(AY18>AY19,AL18,"") -> 1 | BB18: =IF(AY18>AY19, AL19,"") -> 3.5 | BE18: Point 1-2 | BF18: =AP18 -> 0.1428571429 | BH18: =AP9 -> 78.5 | BI18: =AG31 -> 1.75
B19: 6 | C19: 62 | D19: 11.5 | G19: 0.03333333333 | AD19: 75 | AE19: 3.5 | AF19: =IF(AP9>=AK20,AS19,"") -> -0.8333333333 | AG19: =(AP9-AK19)*AF18+AL19 -> 1.75 | AH19: =AP9-AK19 -> 3.5 | AI19: 0.5 | AJ19: 0.1428571429 | AK19: 75 | AL19: 3.5 | AM19: Point 2-3 | AN19: =-IF(AND(ISNUMBER(AK19),ISNUMBER(AK20)),(AK20-AK19),) -> 3 | AO19: 0.4166666667 | AP19: 0.1388888889 | AQ19: 2 | AR19: 3 | AS19: -0.8333333333 | AT19: =(AP9-$AK$19)*$AS$19+$AL$19 -> 0.5833333333 | AX19: =(AQ9-$AK$19)*$AS$19+$AL$19 -> 46.66026115 | AY19: 0.1388888889 | AZ19: 72 | BA19: 3.5 | BB19: =IF(AY19>AY20,AL20,"") -> 6 | BE19: Point 2-3 | BF19: 0.1388888889 | BH19: 0 | BI19: =AG31 -> 1.75
B20: 7 | C20: 55 | D20: 15 | G20: 0.02083333333 | AD20: 72 | AE20: 6 | AF20: =IF(AP9>=AK21,AS20,"") -> -0.5 | AG20: =(AP9-AK20)*AF19+AL20 -> 0.5833333333 | AH20: =AP9-AK20 -> 6.5 | AI20: 0.9027777778 | AJ20: 0.1388888889 | AK20: 72 | AL20: 6 | AM20: Point 3-4 | AN20: =-IF(AND(ISNUMBER(AK20),ISNUMBER(AK21)),(AK21-AK20),) -> 2 | AO20: 0.1428571429 | AP20: 0.07142857143 | AQ20: 3 | AR20: 4 | AS20: -0.5 | AT20: =(AP9-$AK$20)*$AS$20+$AL$20 -> 2.75 | AX20: =(AQ9-$AK$20)*$AS$20+$AL$20 -> 30.39615669 | AY20: 0.07142857143 | BE20: Point 3-4 | BF20: 0.07142857143
B21: 8 | C21: 47 | D21: 18 | G21: 0.02040816327 | AD21: 70 | AE21: 7 | AF21: =IF(AP9>=AK22,AS21,"") -> -1 | AG21: =(AP9-AK21)*AF20+AL21 -> 2.75 | AH21: =AP9-AK21 -> 8.5 | AI21: 0.6071428571 | AJ21: 0.07142857143 | AK21: 70 | AL21: 7 | AM21: Point 4-5 | AN21: =-(IF(AND(ISNUMBER(AK21),ISNUMBER(AK22)),(AK22-AK21),)) -> 2 | AO21: 0.2222222222 | AP21: 0.1111111111 | AQ21: 4 | AR21: 5 | AS21: -1 | AT21: =(AP9-$AK$21)*$AS$21+$AL$21 -> -1.5 | AX21: =(AQ9-$AK$21)*$AS$21+$AL$21 -> 53.79231338 | AY21: 0.1111111111 | AZ21: 68 | BA21: 7 | BB21: 9 | BE21: Point 4-5 | BF21: 0.1111111111
B22: 9 | C22: 40 | D22: 21 | G22: 0.03125 | AD22: 68 | AE22: 9 | AF22: =IF(AP9>=AK23,AS22,"") -> -0.4166666667 | AG22: =(AP9-AK22)*AF21+AL22 -> -1.5 | AH22: =AP9-AK22 -> 10.5 | AI22: 1.166666667 | AJ22: 0.1111111111 | AK22: 68 | AL22: 9 | AM22: Point 5-6 | AN22: =-IF(AND(ISNUMBER(AK22),ISNUMBER(AK23)),(AK23-AK22),) -> 6 | AO22: 0.2173913043 | AP22: 0.03623188406 | AQ22: 5 | AR22: 6 | AS22: -0.4166666667 | AT22: =(AP9-$AK$22)*$AS$22+$AL$22 -> 4.625 | AX22: =(AQ9-$AK$22)*$AS$22+$AL$22 -> 27.66346391 | AY22: 0.03623188406 | AZ22: 62 | BA22: 9 | BB22: 11.5 | BE22: Point 5-6 | BF22: 0.03623188406
B23: 10 | C23: 36 | D23: 24 | AD23: 62 | AE23: 11.5 | AF23: =IF(AP9>=AK24,AS23,"") -> -0.5 | AG23: =(AP9-AK23)*AF22+AL23 -> 4.625 | AH23: =AP9-AK23 -> 16.5 | AI23: 0.597826087 | AJ23: 0.03623188406 | AK23: 62 | AL23: 11.5 | AM23: Point 6-7 | AN23: =-(IF(AND(ISNUMBER(AK23),ISNUMBER(AK24)),(AK24-AK23),)) -> 7 | AO23: 0.2333333333 | AP23: 0.03333333333 | AQ23: 6 | AR23: 7 | AS23: -0.5 | AT23: =(AP9-$AK$23)*$AS$23+$AL$23 -> 3.25 | AX23: =(AQ9-$AK$23)*$AS$23+$AL$23 -> 30.89615669 | AY23: 0.03333333333 | AZ23: 55 | BA23: 11.5 | BB23: 15 | BE23: Point 6-7 | BF23: 0.03333333333
C24: VALUES FOR THE MONTE CARLO SIMULATION | F24: Planned cost - change in benefit ratio by moving 1 unit | G24: =AJ31 -> 0.5 | AD24: 55 | AE24: 15 | AF24: =IF(AP9>=AK25,AS24,"") -> -0.375 | AG24: =(AP9-AK24)*AF23+AL24 -> 3.25 | AH24: =AP9-AK24 -> 23.5 | AI24: 0.7833333333 | AJ24: 0.03333333333 | AK24: 55 | AL24: 15 | AM24: Point 7-8 | AN24: =-IF(AND(ISNUMBER(AK24),ISNUMBER(AK25)),(AK25-AK24),) -> 8 | AO24: 0.1666666667 | AP24: 0.02083333333 | AQ24: 7 | AR24: 8 | AS24: -0.375 | AT24: =(AP9-$AK$24)*$AS$24+$AL$24 -> 6.1875 | AX24: =(AQ9-$AK$24)*$AS$24+$AL$24 -> 26.92211752 | AY24: 0.02083333333 | AZ24: 47 | BA24: =IF(AY24>AY25,AK24,"") -> 55 | BB24: 18 | BE24: Point 7-8 | BF24: 0.02083333333
C25: Max | D25: ML | E25: Suggested Min | AD25: 47 | AE25: 18 | AF25: =IF(AP9>=AK26,AS25,"") -> -0.4285714286 | AG25: =(AP9-AK25)*AF24+AL25 -> 6.1875 | AH25: =AP9-AK25 -> 31.5 | AI25: 0.65625 | AJ25: 0.02083333333 | AK25: 47 | AL25: 18 | AM25: Point 8-9 | AN25: =-IF(AND(ISNUMBER(AK25),ISNUMBER(AK26)),(AK26-AK25),) -> 7 | AO25: 0.1428571429 | AP25: 0.02040816327 | AQ25: 8 | AR25: 9 | AS25: -0.4285714286 | AT25: =(AP9-$AK$25)*$AS$25+$AL$25 -> 4.5 | AX25: =(AQ9-$AK$25)*$AS$25+$AL$25 -> 28.19670573 | AY25: 0.02040816327 | BA25: =IF(AY25>AY26,AL25,"") ->  | BE25: Point 8-9 | BF25: 0.02040816327
B26: COST in £'000 | C26: =MAX(C14:C23) -> 80 | D26: =E14 -> 78.5 | E26: =AZ30 -> 75 | AD26: 40 | AE26: 21 | AF26: =IF(AP9>=AK27,AS26,"") -> -0.75 | AG26: =(AP9-AK26)*AF25+AL26 -> 4.5 | AH26: =AP9-AK26 -> 38.5 | AI26: 0.7857142857 | AJ26: 0.02040816327 | AK26: 40 | AL26: 21 | AM26: Point 9-10 | AN26: =-IF(AND(ISNUMBER(AK26),ISNUMBER(AK27)),(AK27-AK26),) -> 4 | AO26: 0.125 | AP26: 0.03125 | AQ26: 9 | AR26: 10 | AS26: -0.75 | AT26: =(AP9-$AK$26)*$AS$26+$AL$26 -> -7.875 | AX26: =(AQ9-$AK$26)*$AS$26+$AL$26 -> 33.59423503 | AY26: 0.03125 | AZ26: =IF(AY26=MAX(AY18:AY26),AK27,"") ->  | BA26: =IF(AY26=MAX(AY18:AY26),AL26,"") ->  | BE26: Point 9-10 | BF26: 0.03125
B27: EADS % | C27: =BA30 -> 1 | D27: =F14 -> 1.75 | E27: =BB30 -> 3.5 | AC27: Below min | AD27: 36 | AE27: 24 | AF27: =IF(AP9<=AK27,AS26,"") ->  | AK27: 36 | AL27: 24
AY28: Min calculation 1 | AZ28: =IF(ISNUMBER(AZ18),AZ18,(IF(ISNUMBER(AZ19),AZ19,(IF(ISNUMBER(AZ20),AZ20,(IF(ISNUMBER(AZ21),AZ21,))))))) -> 75 | BA28: =IF(ISNUMBER(BA18),BA18,(IF(ISNUMBER(BA19),BA19,(IF(ISNUMBER(BA20),BA20,(IF(ISNUMBER(BA21),BA21,))))))) -> 1 | BB28: =IF(ISNUMBER(BB18),BB18,(IF(ISNUMBER(BB19),BB19,(IF(ISNUMBER(BB20),BB20,(IF(ISNUMBER(BB21),BB21,))))))) -> 3.5
AC29: Final 1 | AD29: =IF(ISNUMBER(AD17),AD17,(IF(ISNUMBER(AD18),AD18,(IF(ISNUMBER(AD19),AD19,(IF(ISNUMBER(AD20),AD20,(IF(ISNUMBER(AD21),AD21,(IF(ISNUMBER(AD22),AD22,))))))))))) -> 75 | AE29: 3.5 | AF29: -0.5 | AG29: 1.75 | AH29: -1.5 | AI29: -0.75 | AJ29: 0.5 | AY29: Min calculation 2 | AZ29: =IF(ISNUMBER(AZ22),AZ22,(IF(ISNUMBER(AZ23),AZ23,(IF(ISNUMBER(AZ24),AZ24,(IF(ISNUMBER(AZ25),AZ25,(IF(ISNUMBER(AZ26),AZ26,))))))))) -> 62 | BA29: =IF(ISNUMBER(BA22),BA22,(IF(ISNUMBER(BA23),BA23,(IF(ISNUMBER(BA24),BA24,(IF(ISNUMBER(BA25),BA25,(IF(ISNUMBER(BA26),BA26,))))))))) -> 9 | BB29: =IF(ISNUMBER(BB22),BB22,(IF(ISNUMBER(BB23),BB23,(IF(ISNUMBER(BB24),BB24,(IF(ISNUMBER(BB25),BB25,(IF(ISNUMBER(BB26),BB26,))))))))) -> 11.5
AC30: Final 2 | AD30: =IF(ISNUMBER(AD23),AD23,(IF(ISNUMBER(AD24),AD24,(IF(ISNUMBER(AD25),AD25,(IF(ISNUMBER(AD26),AD26,(IF(ISNUMBER(AD27),AD27,))))))))) -> 62 | AE30: 11.5 | AF30: -0.5 | AG30: 4.625 | AH30: 16.5 | AI30: 0.597826087 | AJ30: 0.03623188406 | AY30: Final min values | AZ30: =IF(ISNUMBER(AZ28),AZ28,(IF(ISNUMBER(AZ29),AZ29,))) -> 75 | BA30: =IF(ISNUMBER(BA28),BA28,(IF(ISNUMBER(BA29),BA29,))) -> 1 | BB30: =IF(ISNUMBER(BB28),BB28,(IF(ISNUMBER(BB29),BB29,))) -> 3.5
AC31: Final | AD31: =IF(ISNUMBER(AD29),AD29,(IF(ISNUMBER(AD30),AD30,))) -> 75 | AE31: 3.5 | AF31: -0.5 | AG31: 1.75 | AH31: -1.5 | AI31: -0.75 | AJ31: 0.5
B35: Capturing the cost and EADS % | AP35: Current cost position
AP36: =E41 -> 8
B37: Name of Lever: | D37: People: Level 2
B39: Thresholds for levers | C39: Step 1: Insert the lever cost at different thresholds | D39: Step 2: EADS % value for different thresholds | E39: Step 3: Insert the target cost figure | F39: Step 4. Evaluate the outcome in EADS % | G39: Step 5. EVALUATE THE BENEFIT OF CHANGE
B40: Threshold | C40: COST in £'000 | D40: EADS % | E40: PLANNED COST | F40: EADS % EQUIVALENT of the planned cost | G40: BENEFIT RATIO
B41: 1 | C41: 10 | D41: 5 | E41: 8 | F41: =AG58 -> 5.5 | G41: =AP45 -> 0.09090909091
B42: 2 | C42: 9 | D42: 5.5 | G42: 0.1071428571 | AU42: Constrained analysis
B43: 3 | C43: 7 | D43: 7 | G43: 0.07407407407 | AF43: Slope | AG43: CURRENT POSITION EADS POSITION | AH43: cost change from current position | AI43: % change in EADS from current point | AJ43: Benefit ratio | AU43: MAX | AV43: ML | AW43: MIN
B44: 4 | C44: 4 | D44: 9 | G44: 0.6086956522 | AF44: =IF(AP36>=AK45,AS45,"") ->  | AG44: =(AP36-AK45)*AF44+AL45 ->  | AH44: =AP36-AK45 -> -2 | AI44: =(AL45-AG44)/AL45 ->  | AJ44: =AI44/AH44 ->  | AK44: COST | AL44: EADS % | AM44: Line | AN44: Cost change at different points | AO44: % change in EADS at different points | AP44: Benefit Ratio | AQ44: Points | AS44: Slope options | AT44: EADS CALCULATION FOR GIVEN CURRENT POSITION | AY44: EADS Calculation | AZ44: Cost - min value | BA44: EADS - min value | BB44: EADS Max value | BF44: benefit ratio For figure | BH44: current position
B45: 5 | C45: 3 | D45: 23 | G45: 0.08 | AD45: =IF(ISNUMBER(AJ44),AK45,) -> 0 | AE45: =IF(ISNUMBER(AJ44),AL45,) -> 0 | AF45: =IF(AP36>=AK46,AS45,) -> 0 | AG45: =(AP36-AK46)*AF45+AL46 -> 5.5 | AH45: =AP36-AK45 -> -2 | AI45: =(AL45-AG45)/AL45 -> -0.1 | AJ45: 0.05 | AK45: =IF(ISBLANK(C41),,C41) -> 10 | AL45: =IF(ISBLANK(D41),,D41) -> 5 | AM45: Point 1-2 | AN45: =-IF(AND(ISNUMBER(AK45),ISNUMBER(AK46)),((AK46-AK45)),) -> 1 | AO45: =(AL46-AL45)/AL46 -> 0.09090909091 | AP45: =AO45/AN45 -> 0.09090909091 | AQ45: 1 | AR45: 2 | AS45: =(AL46-AL45)/(AK46-AK45) -> -0.5 | AT45: =(AP36-AK45)*AS45+AL45 -> 6 | AY45: =AP45 -> 0.09090909091 | AZ45: =IF(AY45>AY46,AK46,"") ->  | BA45: =IF(AY45>AY46,AL45,"") ->  | BB45: =IF(AY45>AY46, AL46,"") ->  | BE45: Point 1-2 | BF45: =AP45 -> 0.09090909091 | BH45: =AP36 -> 8 | BI45: =AG58 -> 5.5
B46: 6 | C46: 2 | D46: 25 | G46: 0.07407407407 | AD46: 9 | AE46: 5.5 | AF46: =IF(AP36>=AK47,AS46,) -> -0.75 | AG46: =(AP36-AK46)*AF45+AL46 -> 5.5 | AH46: =AP36-AK46 -> -1 | AI46: 0 | AJ46: 0 | AK46: 9 | AL46: 5.5 | AM46: Point 2-3 | AN46: =-IF(AND(ISNUMBER(AK46),ISNUMBER(AK47)),(AK47-AK46),) -> 2 | AO46: 0.2142857143 | AP46: 0.1071428571 | AQ46: 2 | AR46: 3 | AS46: -0.75 | AT46: =(AP36-AK46)*AS46+AL46 -> 6.25 | AY46: 0.1071428571 | AZ46: 7 | BA46: 5.5 | BB46: =IF(AY46>AY47,AL47,"") -> 7 | BE46: Point 2-3 | BF46: 0.1071428571 | BH46: 0 | BI46: =AG58 -> 5.5
B47: 7 | C47: 1 | D47: 27 | G47: 0.1785714286 | AD47: 7 | AE47: 7 | AF47: =IF(AP36>=AK48,AS47,) -> -0.6666666667 | AG47: =(AP36-AK47)*AF46+AL47 -> 6.25 | AH47: =AP36-AK47 -> 1 | AI47: 0.1071428571 | AJ47: 0.1071428571 | AK47: 7 | AL47: 7 | AM47: Point 3-4 | AN47: =-IF(AND(ISNUMBER(AK47),ISNUMBER(AK48)),(AK48-AK47),) -> 3 | AO47: 0.2222222222 | AP47: 0.07407407407 | AQ47: 3 | AR47: 4 | AS47: -0.6666666667 | AT47: =(AP36-AK47)*AS47+AL47 -> 6.333333333 | AY47: 0.07407407407 | BE47: Point 3-4 | BF47: 0.07407407407
B48: 8 | C48: 0.8 | D48: 28 | G48: 0.3333333333 | AD48: 4 | AE48: 9 | AF48: =IF(AP36>=AK49,AS48,) -> -14 | AG48: =(AP36-AK48)*AF47+AL48 -> 6.333333333 | AH48: =AP36-AK48 -> 4 | AI48: 0.2962962963 | AJ48: 0.07407407407 | AK48: 4 | AL48: 9 | AM48: Point 4-5 | AN48: =-(IF(AND(ISNUMBER(AK48),ISNUMBER(AK49)),(AK49-AK48),)) -> 1 | AO48: 0.6086956522 | AP48: 0.6086956522 | AQ48: 4 | AR48: 5 | AS48: -14 | AT48: =(AP36-AK48)*AS48+AL48 -> -47 | AY48: 0.6086956522 | AZ48: 3 | BA48: 9 | BB48: 23 | BE48: Point 4-5 | BF48: 0.6086956522
B49: 9 | C49: 0.6 | D49: 30 | G49: 0.5882352941 | AD49: 3 | AE49: 23 | AF49: =IF(AP36>=AK50,AS49,) -> -2 | AG49: =(AP36-AK49)*AF48+AL49 -> -47 | AH49: =AP36-AK49 -> 5 | AI49: 3.043478261 | AJ49: 0.6086956522 | AK49: 3 | AL49: 23 | AM49: Point 5-6 | AN49: =-IF(AND(ISNUMBER(AK49),ISNUMBER(AK50)),(AK50-AK49),) -> 1 | AO49: 0.08 | AP49: 0.08 | AQ49: 5 | AR49: 6 | AS49: -2 | AT49: =(AP36-AK49)*AS49+AL49 -> 13 | AY49: 0.08 | AZ49: 2 | BA49: 23 | BB49: 25 | BE49: Point 5-6 | BF49: 0.08
B50: 10 | C50: 0.4 | D50: 34 | AD50: 2 | AE50: 25 | AF50: =IF(AP36>=AK51,AS50,) -> -2 | AG50: =(AP36-AK50)*AF49+AL50 -> 13 | AH50: =AP36-AK50 -> 6 | AI50: 0.48 | AJ50: 0.08 | AK50: 2 | AL50: 25 | AM50: Point 6-7 | AN50: =-(IF(AND(ISNUMBER(AK50),ISNUMBER(AK51)),(AK51-AK50),)) -> 1 | AO50: 0.07407407407 | AP50: 0.07407407407 | AQ50: 6 | AR50: 7 | AS50: -2 | AT50: =(AP36-AK50)*AS50+AL50 -> 13 | AY50: 0.07407407407 | BE50: Point 6-7 | BF50: 0.07407407407
C51: VALUES FOR THE MONTE CARLO SIMULATION | F51: Planned cost - change in benefit ratio by moving 1 unit | G51: =AJ58 -> 0.05 | AD51: 1 | AE51: 27 | AF51: =IF(AP36>=AK52,AS51,) -> -5 | AG51: =(AP36-AK51)*AF50+AL51 -> 13 | AH51: =AP36-AK51 -> 7 | AI51: 0.5185185185 | AJ51: 0.07407407407 | AK51: 1 | AL51: 27 | AM51: Point 7-8 | AN51: =-IF(AND(ISNUMBER(AK51),ISNUMBER(AK52)),(AK52-AK51),) -> 0.2 | AO51: 0.03571428571 | AP51: 0.1785714286 | AQ51: 7 | AR51: 8 | AS51: -5 | AT51: =(AP36-AK51)*AS51+AL51 -> -8 | AY51: 0.1785714286 | BA51: =IF(AY51>AY52,AK51,"") ->  | BE51: Point 7-8 | BF51: 0.1785714286
C52: Max | D52: ML | E52: Suggested Min | AD52: 0.8 | AE52: 28 | AF52: =IF(AP36>=AK53,AS52,) -> -10 | AG52: =(AP36-AK52)*AF51+AL52 -> -8 | AH52: =AP36-AK52 -> 7.2 | AI52: 1.285714286 | AJ52: 0.1785714286 | AK52: 0.8 | AL52: 28 | AM52: Point 8-9 | AN52: =-IF(AND(ISNUMBER(AK52),ISNUMBER(AK53)),(AK53-AK52),) -> 0.2 | AO52: 0.06666666667 | AP52: 0.3333333333 | AQ52: 8 | AR52: 9 | AS52: -10 | AT52: =(AP36-AK52)*AS52+AL52 -> -44 | AY52: 0.3333333333 | BA52: =IF(AY52>AY53,AL52,"") ->  | BE52: Point 8-9 | BF52: 0.3333333333
B53: COST in £'000 | C53: =MAX(C41:C50) -> 10 | D53: =E41 -> 8 | E53: =AZ57 -> 7 | AD53: 0.6 | AE53: 30 | AF53: =IF(AP36>=AK54,AS53,) -> -20 | AG53: =(AP36-AK53)*AF52+AL53 -> -44 | AH53: =AP36-AK53 -> 7.4 | AI53: 2.466666667 | AJ53: 0.3333333333 | AK53: 0.6 | AL53: 30 | AM53: Point 9-10 | AN53: =-IF(AND(ISNUMBER(AK53),ISNUMBER(AK54)),(AK54-AK53),) -> 0.2 | AO53: 0.1176470588 | AP53: 0.5882352941 | AQ53: 9 | AR53: 10 | AS53: -20 | AT53: =(AP36-AK53)*AS53+AL53 -> -118 | AY53: 0.5882352941 | AZ53: =IF(AY53=MAX(AY45:AY53),AK54,"") ->  | BA53: =IF(AY53=MAX(AY45:AY53),AL53,"") ->  | BE53: Point 9-10 | BF53: 0.5882352941
B54: EADS % | C54: =D41 -> 5 | D54: =F41 -> 5.5 | E54: =BB57 -> 7 | AC54: Below min | AD54: 0.4 | AE54: 34 | AF54: =IF(AP36<=AK54,AS53,) -> 0 | AK54: 0.4 | AL54: 34
AY55: Min calculation 1 | AZ55: =IF(ISNUMBER(AZ45),AZ45,(IF(ISNUMBER(AZ46),AZ46,(IF(ISNUMBER(AZ47),AZ47,(IF(ISNUMBER(AZ48),AZ48,""))))))) -> 7 | BA55: =IF(ISNUMBER(BA45),BA45,(IF(ISNUMBER(BA46),BA46,(IF(ISNUMBER(BA47),BA47,(IF(ISNUMBER(BA48),BA48,))))))) -> 5.5 | BB55: =IF(ISNUMBER(BB45),BB45,(IF(ISNUMBER(BB46),BB46,(IF(ISNUMBER(BB47),BB47,(IF(ISNUMBER(BB48),BB48,))))))) -> 7
AC56: Final 1 | AD56: =IF(ISNUMBER(AD44),AD44,(IF(ISNUMBER(AD45),AD45,(IF(ISNUMBER(AD46),AD46,(IF(ISNUMBER(AD47),AD47,(IF(ISNUMBER(AD48),AD48,(IF(ISNUMBER(AD49),AD49,""))))))))))) -> 0 | AE56: 0 | AF56: 0 | AG56: 5.5 | AH56: -2 | AI56: -0.1 | AJ56: 0.05 | AY56: Min calculation 2 | AZ56: =IF(ISNUMBER(AZ49),AZ49,(IF(ISNUMBER(AZ50),AZ50,(IF(ISNUMBER(AZ51),AZ51,(IF(ISNUMBER(AZ52),AZ52,(IF(ISNUMBER(AZ53),AZ53,))))))))) -> 2 | BA56: =IF(ISNUMBER(BA49),BA49,(IF(ISNUMBER(BA50),BA50,(IF(ISNUMBER(BA51),BA51,(IF(ISNUMBER(BA52),BA52,(IF(ISNUMBER(BA53),BA53,))))))))) -> 23 | BB56: =IF(ISNUMBER(BB49),BB49,(IF(ISNUMBER(BB50),BB50,(IF(ISNUMBER(BB51),BB51,(IF(ISNUMBER(BB52),BB52,(IF(ISNUMBER(BB53),BB53,))))))))) -> 25
AC57: Final 2 | AD57: =IF(ISNUMBER(AD50),AD50,(IF(ISNUMBER(AD51),AD51,(IF(ISNUMBER(AD52),AD52,(IF(ISNUMBER(AD53),AD53,(IF(ISNUMBER(AD54),AD54,""))))))))) -> 2 | AE57: 25 | AF57: -2 | AG57: 13 | AH57: 6 | AI57: 0.48 | AJ57: 0.08 | AY57: Final min values | AZ57: =IF(ISNUMBER(AZ55),AZ55,(IF(ISNUMBER(AZ56),AZ56,))) -> 7 | BA57: =IF(ISNUMBER(BA55),BA55,(IF(ISNUMBER(BA56),BA56,""))) -> 5.5 | BB57: =IF(ISNUMBER(BB55),BB55,(IF(ISNUMBER(BB56),BB56,""))) -> 7
AC58: Final | AD58: =IF(ISNUMBER(AD56),AD56,(IF(ISNUMBER(AD57),AD57,))) -> 0 | AE58: 0 | AF58: 0 | AG58: 5.5 | AH58: -2 | AI58: -0.1 | AJ58: 0.05
B62: Capturing the cost and EADS % | AP62: Current cost position
AP63: =E68 -> 5.9
B64: Name of Lever: | D64: People: Level 3
B66: Thresholds for levers | C66: Step 1: Insert the lever cost at different thresholds | D66: Step 2: EADS % value for different thresholds | E66: Step 3: Insert the target cost figure | F66: Step 4. Evaluate the outcome in EADS % | G66: Step 5. EVALUATE THE BENEFIT OF CHANGE
B67: Threshold | C67: COST in £'000 | D67: EADS % | E67: PLANNED COST | F67: EADS % EQUIVALENT of the planned cost | G67: BENEFIT RATIO
B68: 1 | C68: 6 | D68: 1 | E68: 5.9 | F68: =AG86 -> 1.5 | G68: =AP72 -> 2.5
B69: 2 | C69: 5.8 | D69: 2 | G69: 1.111111111
B70: 3 | C70: 5.5 | D70: 3 | G70: 0.8333333333 | AF70: Slope | AG70: CURRENT POSITION EADS POSITION | AH70: cost change from current position | AI70: % change in EADS from current point | AJ70: Benefit ratio | AU70: Constrained analysis
B71: 4 | C71: 5.2 | D71: 4 | G71: 0.4761904762 | AF71: =IF(AP63>=AK72,AS72,"") ->  | AG71: =(AP63-AK72)*AF71+AL72 ->  | AH71: =AP63-AK72 -> -0.1 | AI71: =(AL72-AG71)/AL72 ->  | AJ71: =AI71/AH71 ->  | AK71: COST | AL71: EADS % | AM71: Line | AN71: Cost change at different points | AO71: % change in EADS at different points | AP71: Benefit Ratio | AQ71: Points | AS71: Slope options | AT71: EADS CALCULATION FOR GIVEN CURRENT POSITION | AU71: MAX | AV71: ML | AW71: MIN | AY71: EADS Calculation | AZ71: Cost - min value | BA71: EADS - min value | BB71: EADS Max value | BF71: benefit ratio For figure | BH71: current position
B72: 5 | C72: 5.1 | D72: 4.2 | G72: 1.145833333 | AD72: =IF(ISNUMBER(AJ71),AK72,) -> 0 | AE72: =IF(ISNUMBER(AJ71),AL72,) -> 0 | AF72: =IF(AP63>=AK73,AS72,"") -> -5 | AG72: =(AP63-AK73)*AF72+AL73 -> 1.5 | AH72: =AP63-AK72 -> -0.1 | AI72: =(AL72-AG72)/AL72 -> -0.5 | AJ72: 5 | AK72: =IF(ISBLANK(C68),,C68) -> 6 | AL72: =IF(ISBLANK(D68),,D68) -> 1 | AM72: Point 1-2 | AN72: =-IF(AND(ISNUMBER(AK72),ISNUMBER(AK73)),((AK73-AK72)),) -> 0.2 | AO72: =(AL73-AL72)/AL73 -> 0.5 | AP72: =AO72/AN72 -> 2.5 | AQ72: 1 | AR72: 2 | AS72: =(AL73-AL72)/(AK73-AK72) -> -5 | AT72: =(AP63-AK72)*AS72+AL72 -> 1.5 | AY72: =AP72 -> 2.5 | AZ72: =IF(AY72>AY73,AK73,) -> 5.8 | BA72: =IF(AY72>AY73,AL72,) -> 1 | BB72: =IF(AY72>AY73, AL73,) -> 2 | BE72: Point 1-2 | BF72: =AP72 -> 2.5 | BH72: =AP63 -> 5.9 | BI72: =AG86 -> 1.5
B73: 6 | C73: 4.8 | D73: 6.4 | G73: 0.2142857143 | AD73: 5.8 | AE73: 2 | AF73: =IF(AP63>=AK74,AS73,"") -> -3.333333333 | AG73: =(AP63-AK73)*AF72+AL73 -> 1.5 | AH73: =AP63-AK73 -> 0.1 | AI73: 0.25 | AJ73: 2.5 | AK73: 5.8 | AL73: 2 | AM73: Point 2-3 | AN73: =-IF(AND(ISNUMBER(AK73),ISNUMBER(AK74)),(AK74-AK73),) -> 0.3 | AO73: 0.3333333333 | AP73: 1.111111111 | AQ73: 2 | AR73: 3 | AS73: -3.333333333 | AT73: =(AP63-AK73)*AS73+AL73 -> 1.666666667 | AY73: 1.111111111 | AZ73: 5.5 | BA73: 2 | BB73: =IF(AY73>AY74,AL74,) -> 3 | BE73: Point 2-3 | BF73: 1.111111111 | BH73: 0 | BI73: =AG86 -> 1.5
B74: 7 | C74: 4.4 | D74: 7 | G74: 0.2564102564 | AD74: 5.5 | AE74: 3 | AF74: =IF(AP63>=AK75,AS74,"") -> -3.333333333 | AG74: =(AP63-AK74)*AF73+AL74 -> 1.666666667 | AH74: =AP63-AK74 -> 0.4 | AI74: 0.4444444444 | AJ74: 1.111111111 | AK74: 5.5 | AL74: 3 | AM74: Point 3-4 | AN74: =-IF(AND(ISNUMBER(AK74),ISNUMBER(AK75)),(AK75-AK74),) -> 0.3 | AO74: 0.25 | AP74: 0.8333333333 | AQ74: 3 | AR74: 4 | AS74: -3.333333333 | AT74: =(AP63-AK74)*AS74+AL74 -> 1.666666667 | AY74: 0.8333333333 | AZ74: 5.2 | BA74: 3 | BB74: 4 | BE74: Point 3-4 | BF74: 0.8333333333
B75: 8 | C75: 4 | D75: 7.8 | G75: 0.2666666667 | AD75: 5.2 | AE75: 4 | AF75: =IF(AP63>=AK76,AS75,"") -> -2 | AG75: =(AP63-AK75)*AF74+AL75 -> 1.666666667 | AH75: =AP63-AK75 -> 0.7 | AI75: 0.5833333333 | AJ75: 0.8333333333 | AK75: 5.2 | AL75: 4 | AM75: Point 4-5 | AN75: =-(IF(AND(ISNUMBER(AK75),ISNUMBER(AK76)),(AK76-AK75),)) -> 0.1 | AO75: 0.04761904762 | AP75: 0.4761904762 | AQ75: 4 | AR75: 5 | AS75: -2 | AT75: =(AP63-AK75)*AS75+AL75 -> 2.6 | AY75: 0.4761904762 | AZ75: 0 | BA75: 0 | BB75: 0 | BE75: Point 4-5 | BF75: 0.4761904762
B76: 9 | C76: 3.5 | D76: 9 | G76: 0.1666666667 | AD76: 5.1 | AE76: 4.2 | AF76: =IF(AP63>=AK77,AS76,"") -> -7.333333333 | AG76: =(AP63-AK76)*AF75+AL76 -> 2.6 | AH76: =AP63-AK76 -> 0.8 | AI76: 0.380952381 | AJ76: 0.4761904762 | AK76: 5.1 | AL76: 4.2 | AM76: Point 5-6 | AN76: =-IF(AND(ISNUMBER(AK76),ISNUMBER(AK77)),(AK77-AK76),) -> 0.3 | AO76: 0.34375 | AP76: 1.145833333 | AQ76: 5 | AR76: 6 | AS76: -7.333333333 | AT76: =(AP63-AK76)*AS76+AL76 -> -1.666666667 | AY76: 1.145833333 | AZ76: 4.8 | BA76: 4.2 | BB76: 6.4 | BE76: Point 5-6 | BF76: 1.145833333
B77: 10 | C77: 2 | D77: 12 | AD77: 4.8 | AE77: 6.4 | AF77: =IF(AP63>=AK78,AS77,"") -> -1.5 | AG77: =(AP63-AK77)*AF76+AL77 -> -1.666666667 | AH77: =AP63-AK77 -> 1.1 | AI77: 1.260416667 | AJ77: 1.145833333 | AK77: 4.8 | AL77: 6.4 | AM77: Point 6-7 | AN77: =-(IF(AND(ISNUMBER(AK77),ISNUMBER(AK78)),(AK78-AK77),)) -> 0.4 | AO77: 0.08571428571 | AP77: 0.2142857143 | AQ77: 6 | AR77: 7 | AS77: -1.5 | AT77: =(AP63-AK77)*AS77+AL77 -> 4.75 | AY77: 0.2142857143 | AZ77: 0 | BA77: 0 | BB77: 0 | BE77: Point 6-7 | BF77: 0.2142857143
C78: VALUES FOR THE MONTE CARLO SIMULATION | F78: Planned cost - change in benefit ratio by moving 1 unit | G78: =AJ86 -> 5 | AD78: 4.4 | AE78: 7 | AF78: =IF(AP63>=AK79,AS78,"") -> -2 | AG78: =(AP63-AK78)*AF77+AL78 -> 4.75 | AH78: =AP63-AK78 -> 1.5 | AI78: 0.3214285714 | AJ78: 0.2142857143 | AK78: 4.4 | AL78: 7 | AM78: Point 7-8 | AN78: =-IF(AND(ISNUMBER(AK78),ISNUMBER(AK79)),(AK79-AK78),) -> 0.4 | AO78: 0.1025641026 | AP78: 0.2564102564 | AQ78: 7 | AR78: 8 | AS78: -2 | AT78: =(AP63-AK78)*AS78+AL78 -> 4 | AY78: 0.2564102564 | AZ78: 0 | BA78: =IF(AY78>AY79,AK78,) -> 0 | BB78: 0 | BE78: Point 7-8 | BF78: 0.2564102564
C79: Max | D79: ML | E79: Suggested Min | AD79: 4 | AE79: 7.8 | AF79: =IF(AP63>=AK80,AS79,"") -> -2.4 | AG79: =(AP63-AK79)*AF78+AL79 -> 4 | AH79: =AP63-AK79 -> 1.9 | AI79: 0.4871794872 | AJ79: 0.2564102564 | AK79: 4 | AL79: 7.8 | AM79: Point 8-9 | AN79: =-IF(AND(ISNUMBER(AK79),ISNUMBER(AK80)),(AK80-AK79),) -> 0.5 | AO79: 0.1333333333 | AP79: 0.2666666667 | AQ79: 8 | AR79: 9 | AS79: -2.4 | AT79: =(AP63-AK79)*AS79+AL79 -> 3.24 | AY79: 0.2666666667 | AZ79: 3.5 | BA79: =IF(AY79>AY80,AL79,) -> 7.8 | BB79: 9 | BE79: Point 8-9 | BF79: 0.2666666667
B80: COST in £'000 | C80: =MAX(C68:C77) -> 6 | D80: =E68 -> 5.9 | E80: =AZ84 -> 5.8 | AD80: 3.5 | AE80: 9 | AF80: =IF(AP63>=AK81,AS80,"") -> -2 | AG80: =(AP63-AK80)*AF79+AL80 -> 3.24 | AH80: =AP63-AK80 -> 2.4 | AI80: 0.64 | AJ80: 0.2666666667 | AK80: 3.5 | AL80: 9 | AM80: Point 9-10 | AN80: =-IF(AND(ISNUMBER(AK80),ISNUMBER(AK81)),(AK81-AK80),) -> 1.5 | AO80: 0.25 | AP80: 0.1666666667 | AQ80: 9 | AR80: 10 | AS80: -2 | AT80: =(AP63-AK80)*AS80+AL80 -> 4.2 | AY80: 0.1666666667 | AZ80: =IF(AY80=MAX(AY72:AY80),AK81,) -> 0 | BA80: =IF(AY80=MAX(AY72:AY80),AL80,"") ->  | BE80: Point 9-10 | BF80: 0.1666666667
B81: EADS % | C81: =BA84 -> 1 | D81: =F68 -> 1.5 | E81: =BB84 -> 2 | AC81: Below min | AD81: 2 | AE81: 12 | AF81: =IF(AP63<=AK81,AS80,"") ->  | AK81: 2 | AL81: 12
AY82: Min calculation 1 | AZ82: =IF(ISNUMBER(AZ72),AZ72,(IF(ISNUMBER(AZ73),AZ73,(IF(ISNUMBER(AZ74),AZ74,(IF(ISNUMBER(AZ75),AZ75,))))))) -> 5.8 | BA82: =IF(ISNUMBER(BA72),BA72,(IF(ISNUMBER(BA73),BA73,(IF(ISNUMBER(BA74),BA74,(IF(ISNUMBER(BA75),BA75,))))))) -> 1 | BB82: =IF(ISNUMBER(BB72),BB72,(IF(ISNUMBER(BB73),BB73,(IF(ISNUMBER(BB74),BB74,(IF(ISNUMBER(BB75),BB75,))))))) -> 2
E83: AGGREGATED EADS% | AY83: Min calculation 2 | AZ83: =IF(ISNUMBER(AZ76),AZ76,(IF(ISNUMBER(AZ77),AZ77,(IF(ISNUMBER(AZ78),AZ78,(IF(ISNUMBER(AZ79),AZ79,(IF(ISNUMBER(AZ80),AZ80,))))))))) -> 4.8 | BA83: =IF(ISNUMBER(BA76),BA76,(IF(ISNUMBER(BA77),BA77,(IF(ISNUMBER(BA78),BA78,(IF(ISNUMBER(BA79),BA79,(IF(ISNUMBER(BA80),BA80,))))))))) -> 4.2 | BB83: =IF(ISNUMBER(BB76),BB76,(IF(ISNUMBER(BB77),BB77,(IF(ISNUMBER(BB78),BB78,(IF(ISNUMBER(BB79),BB79,(IF(ISNUMBER(BB80),BB80,))))))))) -> 6.4
C84: INPUT: Breakdown rate*time to fix | D84: Weighting | E84: Best risk | F84: Most Likely risk | G84: Worst risk | AC84: Final 1 | AD84: =IF(ISNUMBER(AD71),AD71,(IF(ISNUMBER(AD72),AD72,(IF(ISNUMBER(AD73),AD73,(IF(ISNUMBER(AD74),AD74,(IF(ISNUMBER(AD75),AD75,(IF(ISNUMBER(AD76),AD76,))))))))))) -> 0 | AE84: 0 | AF84: -5 | AG84: 1.5 | AH84: -0.1 | AI84: -0.5 | AJ84: 5 | AY84: Final min values | AZ84: =IF(ISNUMBER(AZ82),AZ82,(IF(ISNUMBER(AZ83),AZ83,))) -> 5.8 | BA84: =IF(ISNUMBER(BA82),BA82,(IF(ISNUMBER(BA83),BA83,))) -> 1 | BB84: =IF(ISNUMBER(BB82),BB82,(IF(ISNUMBER(BB83),BB83,))) -> 2
B85: Level 1 | C85: 50 | D85: =C85/SUM($C$85:$C$87) -> 0.243902439 | E85: =(C27*$D$85)+(C54*$D$86)+(C81*$D$87) -> 3.341463415 | F85: =(D27*$D$85)+(D54*$D$86)+(D81*$D$87) -> 3.902439024 | G85: =(E27*$D$85)+(E54*$D$86)+(E81*$D$87) -> 5.292682927 | AC85: Final 2 | AD85: =IF(ISNUMBER(AD77),AD77,(IF(ISNUMBER(AD78),AD78,(IF(ISNUMBER(AD79),AD79,(IF(ISNUMBER(AD80),AD80,(IF(ISNUMBER(AD81),AD81,))))))))) -> 4.8 | AE85: 6.4 | AF85: -1.5 | AG85: -1.666666667 | AH85: 1.1 | AI85: 1.260416667 | AJ85: 1.145833333
B86: Level 2 | C86: 120 | D86: =C86/SUM($C$85:$C$87) -> 0.5853658537 | AC86: Final | AD86: =IF(ISNUMBER(AD84),AD84,(IF(ISNUMBER(AD85),AD85,))) -> 0 | AE86: 0 | AF86: -5 | AG86: 1.5 | AH86: -0.1 | AI86: -0.5 | AJ86: 5
B87: Level 3 | C87: 35 | D87: 0.1707317073
B89: Spares
B90: Capturing the cost and EADS % | AP90: Current position
AP91: =E96 -> 33
B92: Name of lever: | D92: Spares: Level
AF93: Slope | AG93: CURRENT POSITION EADS POSITION | AH93: cost change from current position | AI93: % change in EADS from current point | AJ93: Benefit ratio | AU93: Constrained analysis
B94: Thresholds for levers | C94: Step 1: Insert the lever cost at different thresholds | D94: Step 2: EADS % value for different thresholds | E94: Step 3: Insert the target cost figure | F94: Step 4. Evaluate the outcome in EADS % | G94: Step 5. EVALUATE THE BENEFIT OF CHANGE | AD94: =IF(ISNUMBER(AJ94),AK95,) -> 34 | AE94: =IF(ISNUMBER(AJ94),AL95,) -> 0.5 | AF94: =IF(AP91>=AK95,AS95,) -> 0 | AG94: =(AP91-AK95)*AF94+AL95 -> 0.5 | AH94: =AP91-AK95 -> -1 | AI94: =(AL95-AG94)/AL95 -> 0 | AJ94: =AI94/AH94 -> 0 | AK94: COST | AL94: EADS % | AM94: Line | AN94: Cost change at different points | AO94: % change in EADS at different points | AP94: Benefit Ratio | AU94: MAX | AV94: ML | AW94: MIN | AY94: EADS Calculation | AZ94: Cost - min value | BA94: EADS - min value | BB94: EADS Max value | BF94: EADS % For figure | BH94: current position
B95: Threshold | C95: COST in £'000 | D95: EADS % | E95: PLANNED COST | F95: EADS EQUIVALENT of the planned cost | G95: BENEFIT RATIO | AD95: 28 | AE95: 0.8 | AF95: =IF(AP91>=AK96,AS95,) -> -0.05 | AG95: =(AP91-AK96)*AF95+AL96 -> 0.55 | AH95: =AP91-AK95 -> -1 | AI95: =(AL95-AG95)/AL95 -> -0.1 | AJ95: 0.1 | AK95: =C96 -> 34 | AL95: =D96 -> 0.5 | AM95: Point 1-2 | AN95: =IF(AND(ISNUMBER(AK95),ISNUMBER(AK96)),(-(AK96-AK95)),) -> 6 | AO95: =(AL96-AL95)/AL96 -> 0.375 | AP95: =AO95/AN95 -> 0.0625 | AQ95: 1 | AR95: 2 | AS95: =(AL96-AL95)/(AK96-AK95) -> -0.05 | AT95: =(AP91-AK95)*AS95+AL95 -> 0.55 | AY95: =AP95 -> 0.0625 | AZ95: =IF(AY95>AY96,AK96,"") ->  | BA95: =IF(AY95>AY96,AL95,"") ->  | BB95: =IF(AY95>AY96, AL96,"") ->  | BE95: Point 1-2 | BF95: =AP95 -> 0.0625 | BH95: =AP91 -> 33 | BI95: =F96 -> 0.55
B96: 1 | C96: 34 | D96: 0.5 | E96: 33 | F96: =D109 -> 0.55 | G96: =AP95 -> 0.0625 | AD96: 27 | AE96: 0.9 | AF96: =IF(AP91>=AK97,AS96,) -> -0.1 | AG96: =(AP91-AK96)*AF95+AL96 -> 0.55 | AH96: =AP91-AK96 -> 5 | AI96: 0.3125 | AJ96: 0.0625 | AK96: 28 | AL96: 0.8 | AM96: Point 2-3 | AN96: =IF(AND(ISNUMBER(AK96),ISNUMBER(AK97)),-(AK97-AK96),) -> 1 | AO96: 0.1111111111 | AP96: 0.1111111111 | AQ96: 2 | AR96: 3 | AS96: -0.1 | AT96: =(AP91-AK96)*AS96+AL96 -> 0.3 | AY96: 0.1111111111 | AZ96: 27 | BA96: 0.8 | BB96: =IF(AY96>AY97,AL97,"") -> 0.9 | BE96: Point 2-3 | BF96: =AP96 -> 0.1111111111 | BH96: 0 | BI96: =F96 -> 0.55
B97: 2 | C97: 28 | D97: 0.8 | G97: 0.1111111111 | AD97: 24 | AE97: 1.2 | AF97: =IF(AP91>=AK98,AS97,) -> -0.1 | AG97: =(AP91-AK97)*AF96+AL97 -> 0.3 | AH97: =AP91-AK97 -> 6 | AI97: 0.6666666667 | AJ97: 0.1111111111 | AK97: 27 | AL97: 0.9 | AM97: Point 3-4 | AN97: =IF(AND(ISNUMBER(AK97),ISNUMBER(AK98)),-(AK98-AK97),) -> 3 | AO97: 0.25 | AP97: 0.08333333333 | AQ97: 3 | AR97: 4 | AS97: -0.1 | AT97: =(AP91-AK97)*AS97+AL97 -> 0.3 | AY97: 0.08333333333 | BE97: Point 3-4 | BF97: 0.08333333333
B98: 3 | C98: 27 | D98: 0.9 | G98: 0.08333333333 | AD98: 22 | AE98: 1.8 | AF98: =IF(AP91>=AK99,AS98,) -> -0.3 | AG98: =(AP91-AK98)*AF97+AL98 -> 0.3 | AH98: =AP91-AK98 -> 9 | AI98: 0.75 | AJ98: 0.08333333333 | AK98: 24 | AL98: 1.2 | AM98: Point 4-5 | AN98: =(IF(AND(ISNUMBER(AK98),ISNUMBER(AK99)),-(AK99-AK98),)) -> 2 | AO98: 0.3333333333 | AP98: 0.1666666667 | AQ98: 4 | AR98: 5 | AS98: -0.3 | AT98: =(AP91-AK98)*AS98+AL98 -> -1.5 | AY98: 0.1666666667 | BE98: Point 4-5 | BF98: 0.1666666667
B99: 4 | C99: 24 | D99: 1.2 | G99: 0.1666666667 | AD99: 21 | AE99: 2.8 | AF99: =IF(AP91>=AK100,AS99,) -> -1 | AG99: =(AP91-AK99)*AF98+AL99 -> -1.5 | AH99: =AP91-AK99 -> 11 | AI99: 1.833333333 | AJ99: 0.1666666667 | AK99: 22 | AL99: 1.8 | AM99: Point 5-6 | AN99: =IF(AND(ISNUMBER(AK99),ISNUMBER(AK100)),-(AK100-AK99),) -> 1 | AO99: 0.3571428571 | AP99: 0.3571428571 | AQ99: 5 | AR99: 6 | AS99: -1 | AT99: =(AP91-AK99)*AS99+AL99 -> -9.2 | AY99: 0.3571428571 | BE99: Point 5-6 | BF99: 0.3571428571
B100: 5 | C100: 22 | D100: 1.8 | G100: 0.3571428571 | AD100: 20 | AE100: 4.6 | AF100: =IF(AP91>=AK101,AS100,) -> -1.8 | AG100: =(AP91-AK100)*AF99+AL100 -> -9.2 | AH100: =AP91-AK100 -> 12 | AI100: 4.285714286 | AJ100: 0.3571428571 | AK100: 21 | AL100: 2.8 | AM100: Point 6-7 | AN100: =(IF(AND(ISNUMBER(AK100),ISNUMBER(AK101)),-(AK101-AK100),)) -> 1 | AO100: 0.3913043478 | AP100: 0.3913043478 | AQ100: 6 | AR100: 7 | AS100: -1.8 | AT100: =(AP91-AK100)*AS100+AL100 -> -18.8 | AY100: 0.3913043478 | AZ100: 20 | BA100: 2.8 | BB100: 4.6 | BE100: Point 6-7 | BF100: 0.3913043478
B101: 6 | C101: 21 | D101: 2.8 | G101: 0.3913043478 | AD101: 18 | AE101: 7.5 | AF101: =IF(AP91>=AK102,AS101,) -> -1.45 | AG101: =(AP91-AK101)*AF100+AL101 -> -18.8 | AH101: =AP91-AK101 -> 13 | AI101: 5.086956522 | AJ101: 0.3913043478 | AK101: 20 | AL101: 4.6 | AM101: Point 7-8 | AN101: =IF(AND(ISNUMBER(AK101),ISNUMBER(AK102)),-(AK102-AK101),) -> 2 | AO101: 0.3866666667 | AP101: 0.1933333333 | AQ101: 7 | AR101: 8 | AS101: -1.45 | AT101: =(AP91-AK101)*AS101+AL101 -> -14.25 | AY101: 0.1933333333 | AZ101: 18 | BA101: =IF(AY101>AY102,AK101,"") -> 20 | BB101: 7.5 | BE101: Point 7-8 | BF101: 0.1933333333
B102: 7 | C102: 20 | D102: 4.6 | G102: 0.1933333333 | AD102: 14 | AE102: 11.8 | AF102: =IF(AP91>=AK103,AS102,"") -> -1.075 | AG102: =(AP91-AK102)*AF101+AL102 -> -14.25 | AH102: =AP91-AK102 -> 15 | AI102: 2.9 | AJ102: 0.1933333333 | AK102: 18 | AL102: 7.5 | AM102: Point 8-9 | AN102: =IF(AND(ISNUMBER(AK102),ISNUMBER(AK103)),-(AK103-AK102),) -> 4 | AO102: 0.3644067797 | AP102: 0.09110169492 | AQ102: 8 | AR102: 9 | AS102: -1.075 | AT102: =(AP91-AK102)*AS102+AL102 -> -8.625 | AY102: 0.09110169492 | AZ102: 14 | BA102: =IF(AY102>AY103,AL102,"") -> 7.5 | BB102: 11.8 | BE102: Point 8-9 | BF102: 0.09110169492
B103: 8 | C103: 18 | D103: 7.5 | G103: 0.09110169492 | AD103: 10 | AE103: 14.5 | AF103: =IF(AP91>=AK104,AS103,"") -> -0.675 | AG103: =(AP91-AK103)*AF102+AL103 -> -8.625 | AH103: =AP91-AK103 -> 19 | AI103: 1.730932203 | AJ103: 0.09110169492 | AK103: 14 | AL103: 11.8 | AM103: Point 9-10 | AN103: =IF(AND(ISNUMBER(AK103),ISNUMBER(AK104)),-(AK104-AK103),) -> 4 | AO103: 0.1862068966 | AP103: 0.04655172414 | AQ103: 9 | AR103: 10 | AS103: -0.675 | AT103: =(AP91-AK103)*AS103+AL103 -> -1.025 | AY103: 0.04655172414 | AZ103: =IF(AY103=MAX(AY95:AY103),AK104,"") ->  | BA103: =IF(AY103=MAX(AY95:AY103),AL103,"") ->  | BE103: Point 9-10 | BF103: 0.04655172414
B104: 9 | C104: 14 | D104: 11.8 | G104: 0.04655172414 | AF104: =IF(AP91<=AK104,AS103,"") ->  | AK104: 10 | AL104: 14.5
B105: 10 | C105: 10 | D105: 14.5 | AY105: Min calculation 1 | AZ105: =IF(ISNUMBER(AZ95),AZ95,(IF(ISNUMBER(AZ96),AZ96,(IF(ISNUMBER(AZ97),AZ97,(IF(ISNUMBER(AZ98),AZ98,""))))))) -> 27 | BA105: =IF(ISNUMBER(BA95),BA95,(IF(ISNUMBER(BA96),BA96,(IF(ISNUMBER(BA97),BA97,(IF(ISNUMBER(BA98),BA98,""))))))) -> 0.8 | BB105: =IF(ISNUMBER(BB95),BB95,(IF(ISNUMBER(BB96),BB96,(IF(ISNUMBER(BB97),BB97,(IF(ISNUMBER(BB98),BB98,""))))))) -> 0.9
C106: VALUES FOR THE MONTE CARLO SIMULATION | F106: Planned cost - change in benefit ratio by moving 1 unit | G106: =AJ108 -> 0 | AC106: Final 1 | AD106: =IF(ISNUMBER(AD94),AD94,(IF(ISNUMBER(AD95),AD95,(IF(ISNUMBER(AD96),AD96,(IF(ISNUMBER(AD97),AD97,(IF(ISNUMBER(AD98),AD98,(IF(ISNUMBER(AD99),AD99,))))))))))) -> 34 | AE106: 0.5 | AF106: 0 | AG106: 0.5 | AH106: -1 | AI106: 0 | AJ106: 0 | AY106: Min calculation 2 | AZ106: =IF(ISNUMBER(AZ99),AZ99,(IF(ISNUMBER(AZ100),AZ100,(IF(ISNUMBER(AZ101),AZ101,(IF(ISNUMBER(AZ102),AZ102,(IF(ISNUMBER(AZ103),AZ103,""))))))))) -> 20 | BA106: =IF(ISNUMBER(BA99),BA99,(IF(ISNUMBER(BA100),BA100,(IF(ISNUMBER(BA101),BA101,(IF(ISNUMBER(BA102),BA102,(IF(ISNUMBER(BA103),BA103,""))))))))) -> 2.8 | BB106: =IF(ISNUMBER(BB99),BB99,(IF(ISNUMBER(BB100),BB100,(IF(ISNUMBER(BB101),BB101,(IF(ISNUMBER(BB102),BB102,(IF(ISNUMBER(BB103),BB103,""))))))))) -> 4.6
C107: Max | D107: ML | E107: Suggested Min | AC107: Final 2 | AD107: =IF(ISNUMBER(AD100),AD100,(IF(ISNUMBER(AD101),AD101,(IF(ISNUMBER(AD102),AD102,(IF(ISNUMBER(AD103),AD103,(IF(ISNUMBER(AD104),AD104,))))))))) -> 20 | AE107: 4.6 | AF107: -1.8 | AG107: -9.2 | AH107: 12 | AI107: 4.285714286 | AJ107: 0.3571428571 | AY107: Final min values | AZ107: =IF(ISNUMBER(AZ105),AZ105,(IF(ISNUMBER(AZ106),AZ106,""))) -> 27 | BA107: =IF(ISNUMBER(BA105),BA105,(IF(ISNUMBER(BA106),BA106,""))) -> 0.8 | BB107: =IF(ISNUMBER(BB105),BB105,(IF(ISNUMBER(BB106),BB106,""))) -> 0.9
B108: COST in £'000 | C108: =MAX(C96:C105) -> 34 | D108: =E96 -> 33 | E108: =AZ107 -> 27 | AC108: Final | AD108: =IF(ISNUMBER(AD106),AD106,(IF(ISNUMBER(AD107),AD107,))) -> 34 | AE108: 0.5 | AF108: 0 | AG108: 0.5 | AH108: -1 | AI108: 0 | AJ108: 0
B109: EADS % | C109: =D96 -> 0.5 | D109: =0.55 -> 0.55 | E109: =D98 -> 0.9
B117: Capturing the cost and EADS % | AP117: Current position
AP118: =E123 -> 7.5
B119: Name of lever: | D119: Spares: Level 2
B121: Thresholds for levers | C121: Step 1: Insert the lever cost at different thresholds | D121: Step 2: EADS % value for different thresholds | E121: Step 3: Insert the target cost figure | F121: Step 4. Evaluate the outcome in EADS % | G121: Step 5. EVALUATE THE BENEFIT OF CHANGE
B122: Threshold | C122: COST in £'000 | D122: EADS % | E122: PLANNED COST | F122: EADS EQUIVALENT of the planned cost | G122: BENEFIT RATIO
B123: 1 | C123: 8 | D123: 5 | E123: 7.5 | F123: =AG140 -> 5.5 | G123: =AP127 -> 0.1666666667
B124: 2 | C124: 7 | D124: 6 | G124: =AP128 -> 0.04761904762
B125: 3 | C125: 4 | D125: 7 | G125: 0.625 | AF125: Slope | AG125: CURRENT POSITION EADS POSITION | AH125: cost change from current position | AI125: % change in EADS from current point | AJ125: Benefit ratio | AU125: Constrained analysis
B126: 4 | C126: 3.8 | D126: 8 | G126: 0.2777777778 | AF126: =IF(AP118>=AK127,AS127,"") ->  | AG126: =(AP118-AK127)*AF126+AL127 ->  | AH126: =AP118-AK127 -> -0.5 | AI126: =(AL127-AG126)/AL127 ->  | AJ126: =AI126/AH126 ->  | AK126: COST | AL126: EADS % | AM126: Line | AN126: Cost change at different points | AO126: % change in EADS at different points | AP126: Benefit Ratio | AQ126: Points | AS126: Slope options | AT126: EADS CALCULATION FOR GIVEN CURRENT POSITION | AU126: MAX | AV126: ML | AW126: MIN | AY126: EADS Calculation | AZ126: Cost - min value | BA126: EADS - min value | BB126: EADS Max value | BF126: benefit ratio For figure | BH126: current position
B127: 5 | C127: 3.4 | D127: 9 | G127: 0.3125 | AD127: =IF(ISNUMBER(AJ126),AK127,) -> 0 | AE127: =IF(ISNUMBER(AJ126),AL127,) -> 0 | AF127: =IF(AP118>=AK128,AS127,"") -> -1 | AG127: =(AP118-AK128)*AF127+AL128 -> 5.5 | AH127: =AP118-AK127 -> -0.5 | AI127: =(AL127-AG127)/AL127 -> -0.1 | AJ127: 0.2 | AK127: =IF(ISBLANK(C123),"",C123) -> 8 | AL127: =IF(ISBLANK(D123),"",D123) -> 5 | AM127: Point 1-2 | AN127: =-IF(AND(ISNUMBER(AK127),ISNUMBER(AK128)),((AK128-AK127)),) -> 1 | AO127: =(AL128-AL127)/AL128 -> 0.1666666667 | AP127: =AO127/AN127 -> 0.1666666667 | AQ127: 1 | AR127: 2 | AS127: =(AL128-AL127)/(AK128-AK127) -> -1 | AT127: =(AP118-AK127)*AS127+AL127 -> 5.5 | AY127: =AP127 -> 0.1666666667 | AZ127: =IF(AY127>AY128,AK128,"") -> 7 | BA127: =IF(AY127>AY128,AL127,"") -> 5 | BB127: =IF(AY127>AY128, AL128,"") -> 6 | BE127: Point 1-2 | BF127: =AP127 -> 0.1666666667 | BH127: =AP118 -> 7.5 | BI127: =AG140 -> 5.5
B128: 6 | C128: 2.6 | D128: 12 | G128: 0.7142857143 | AD128: 7 | AE128: 6 | AF128: =IF(AP118>=AK129,AS128,"") -> -0.3333333333 | AG128: =(AP118-AK128)*AF127+AL128 -> 5.5 | AH128: =AP118-AK128 -> 0.5 | AI128: 0.08333333333 | AJ128: 0.1666666667 | AK128: 7 | AL128: 6 | AM128: Point 2-3 | AN128: =-IF(AND(ISNUMBER(AK128),ISNUMBER(AK129)),(AK129-AK128),) -> 3 | AO128: 0.1428571429 | AP128: 0.04761904762 | AQ128: 2 | AR128: 3 | AS128: -0.3333333333 | AT128: =(AP118-AK128)*AS128+AL128 -> 5.833333333 | AY128: 0.04761904762 | BB128: =IF(AY128>AY129,AL129,"") ->  | BE128: Point 2-3 | BF128: 0.04761904762 | BH128: 0 | BI128: =AG140 -> 5.5
B129: 7 | C129: 2.4 | D129: 14 | G129: 0.5555555556 | AD129: 4 | AE129: 7 | AF129: =IF(AP118>=AK130,AS129,"") -> -5 | AG129: =(AP118-AK129)*AF128+AL129 -> 5.833333333 | AH129: =AP118-AK129 -> 3.5 | AI129: 0.1666666667 | AJ129: 0.04761904762 | AK129: 4 | AL129: 7 | AM129: Point 3-4 | AN129: =-IF(AND(ISNUMBER(AK129),ISNUMBER(AK130)),(AK130-AK129),) -> 0.2 | AO129: 0.125 | AP129: 0.625 | AQ129: 3 | AR129: 4 | AS129: -5 | AT129: =(AP118-AK129)*AS129+AL129 -> -10.5 | AY129: 0.625 | AZ129: 3.8 | BA129: 7 | BB129: 8 | BE129: Point 3-4 | BF129: 0.625
B130: 8 | C130: 2 | D130: 18 | G130: 0.2631578947 | AD130: 3.8 | AE130: 8 | AF130: =IF(AP118>=AK131,AS130,"") -> -2.5 | AG130: =(AP118-AK130)*AF129+AL130 -> -10.5 | AH130: =AP118-AK130 -> 3.7 | AI130: 2.3125 | AJ130: 0.625 | AK130: 3.8 | AL130: 8 | AM130: Point 4-5 | AN130: =-(IF(AND(ISNUMBER(AK130),ISNUMBER(AK131)),(AK131-AK130),)) -> 0.4 | AO130: 0.1111111111 | AP130: 0.2777777778 | AQ130: 4 | AR130: 5 | AS130: -2.5 | AT130: =(AP118-AK130)*AS130+AL130 -> -1.25 | AY130: 0.2777777778 | BE130: Point 4-5 | BF130: 0.2777777778
B131: 9 | C131: 1.8 | D131: 19 | G131: 0.125 | AD131: 3.4 | AE131: 9 | AF131: =IF(AP118>=AK132,AS131,"") -> -3.75 | AG131: =(AP118-AK131)*AF130+AL131 -> -1.25 | AH131: =AP118-AK131 -> 4.1 | AI131: 1.138888889 | AJ131: 0.2777777778 | AK131: 3.4 | AL131: 9 | AM131: Point 5-6 | AN131: =-IF(AND(ISNUMBER(AK131),ISNUMBER(AK132)),(AK132-AK131),) -> 0.8 | AO131: 0.25 | AP131: 0.3125 | AQ131: 5 | AR131: 6 | AS131: -3.75 | AT131: =(AP118-AK131)*AS131+AL131 -> -6.375 | AY131: 0.3125 | BE131: Point 5-6 | BF131: 0.3125
B132: 10 | C132: 1.4 | D132: 20 | AD132: 2.6 | AE132: 12 | AF132: =IF(AP118>=AK133,AS132,"") -> -10 | AG132: =(AP118-AK132)*AF131+AL132 -> -6.375 | AH132: =AP118-AK132 -> 4.9 | AI132: 1.53125 | AJ132: 0.3125 | AK132: 2.6 | AL132: 12 | AM132: Point 6-7 | AN132: =-(IF(AND(ISNUMBER(AK132),ISNUMBER(AK133)),(AK133-AK132),)) -> 0.2 | AO132: 0.1428571429 | AP132: 0.7142857143 | AQ132: 6 | AR132: 7 | AS132: -10 | AT132: =(AP118-AK132)*AS132+AL132 -> -37 | AY132: 0.7142857143 | AZ132: 2.4 | BA132: 12 | BB132: 14 | BE132: Point 6-7 | BF132: 0.7142857143
C133: VALUES FOR THE MONTE CARLO SIMULATION | F133: Planned cost - change in benefit ratio by moving 1 unit | G133: =AJ140 -> 0.2 | AD133: 2.4 | AE133: 14 | AF133: =IF(AP118>=AK134,AS133,"") -> -10 | AG133: =(AP118-AK133)*AF132+AL133 -> -37 | AH133: =AP118-AK133 -> 5.1 | AI133: 3.642857143 | AJ133: 0.7142857143 | AK133: 2.4 | AL133: 14 | AM133: Point 7-8 | AN133: =-IF(AND(ISNUMBER(AK133),ISNUMBER(AK134)),(AK134-AK133),) -> 0.4 | AO133: 0.2222222222 | AP133: 0.5555555556 | AQ133: 7 | AR133: 8 | AS133: -10 | AT133: =(AP118-AK133)*AS133+AL133 -> -37 | AY133: 0.5555555556 | AZ133: 2 | BA133: =IF(AY133>AY134,AK133,"") -> 2.4 | BB133: 18 | BE133: Point 7-8 | BF133: 0.5555555556
C134: Max | D134: ML | E134: Suggested Min | AD134: 2 | AE134: 18 | AF134: =IF(AP118>=AK135,AS134,"") -> -5 | AG134: =(AP118-AK134)*AF133+AL134 -> -37 | AH134: =AP118-AK134 -> 5.5 | AI134: 3.055555556 | AJ134: 0.5555555556 | AK134: 2 | AL134: 18 | AM134: Point 8-9 | AN134: =-IF(AND(ISNUMBER(AK134),ISNUMBER(AK135)),(AK135-AK134),) -> 0.2 | AO134: 0.05263157895 | AP134: 0.2631578947 | AQ134: 8 | AR134: 9 | AS134: -5 | AT134: =(AP118-AK134)*AS134+AL134 -> -9.5 | AY134: 0.2631578947 | AZ134: 1.8 | BA134: =IF(AY134>AY135,AL134,"") -> 18 | BB134: 19 | BE134: Point 8-9 | BF134: 0.2631578947
B135: COST in £'000 | C135: =MAX(C123:C132) -> 8 | D135: =E123 -> 7.5 | E135: =AZ139 -> 7 | AD135: 1.8 | AE135: 19 | AF135: =IF(AP118>=AK136,AS135,"") -> -2.5 | AG135: =(AP118-AK135)*AF134+AL135 -> -9.5 | AH135: =AP118-AK135 -> 5.7 | AI135: 1.5 | AJ135: 0.2631578947 | AK135: 1.8 | AL135: 19 | AM135: Point 9-10 | AN135: =-IF(AND(ISNUMBER(AK135),ISNUMBER(AK136)),(AK136-AK135),) -> 0.4 | AO135: 0.05 | AP135: 0.125 | AQ135: 9 | AR135: 10 | AS135: -2.5 | AT135: =(AP118-AK135)*AS135+AL135 -> 4.75 | AY135: 0.125 | AZ135: =IF(AY135=MAX(AY127:AY135),AK136,"") ->  | BA135: =IF(AY135=MAX(AY127:AY135),AL135,"") ->  | BE135: Point 9-10 | BF135: 0.125
B136: EADS % | C136: =BA139 -> 5 | D136: =F123 -> 5.5 | E136: =BB139 -> 6 | AC136: Below min | AD136: 1.4 | AE136: 20 | AF136: =IF(AP118<=AK136,AS135,"") ->  | AK136: 1.4 | AL136: 20
AY137: Min calculation 1 | AZ137: =IF(ISNUMBER(AZ127),AZ127,(IF(ISNUMBER(AZ128),AZ128,(IF(ISNUMBER(AZ129),AZ129,(IF(ISNUMBER(AZ130),AZ130,""))))))) -> 7 | BA137: =IF(ISNUMBER(BA127),BA127,(IF(ISNUMBER(BA128),BA128,(IF(ISNUMBER(BA129),BA129,(IF(ISNUMBER(BA130),BA130,""))))))) -> 5 | BB137: =IF(ISNUMBER(BB127),BB127,(IF(ISNUMBER(BB128),BB128,(IF(ISNUMBER(BB129),BB129,(IF(ISNUMBER(BB130),BB130,""))))))) -> 6
AC138: Final 1 | AD138: =IF(ISNUMBER(AD126),AD126,(IF(ISNUMBER(AD127),AD127,(IF(ISNUMBER(AD128),AD128,(IF(ISNUMBER(AD129),AD129,(IF(ISNUMBER(AD130),AD130,(IF(ISNUMBER(AD131),AD131,))))))))))) -> 0 | AE138: 0 | AF138: -1 | AG138: 5.5 | AH138: -0.5 | AI138: -0.1 | AJ138: 0.2 | AY138: Min calculation 2 | AZ138: =IF(ISNUMBER(AZ131),AZ131,(IF(ISNUMBER(AZ132),AZ132,(IF(ISNUMBER(AZ133),AZ133,(IF(ISNUMBER(AZ134),AZ134,(IF(ISNUMBER(AZ135),AZ135,""))))))))) -> 2.4 | BA138: =IF(ISNUMBER(BA131),BA131,(IF(ISNUMBER(BA132),BA132,(IF(ISNUMBER(BA133),BA133,(IF(ISNUMBER(BA134),BA134,(IF(ISNUMBER(BA135),BA135,""))))))))) -> 12 | BB138: =IF(ISNUMBER(BB131),BB131,(IF(ISNUMBER(BB132),BB132,(IF(ISNUMBER(BB133),BB133,(IF(ISNUMBER(BB134),BB134,(IF(ISNUMBER(BB135),BB135,""))))))))) -> 14
AC139: Final 2 | AD139: =IF(ISNUMBER(AD132),AD132,(IF(ISNUMBER(AD133),AD133,(IF(ISNUMBER(AD134),AD134,(IF(ISNUMBER(AD135),AD135,(IF(ISNUMBER(AD136),AD136,))))))))) -> 2.6 | AE139: =IF(ISNUMBER(AE132),AE132,(IF(ISNUMBER(AE133),AE133,(IF(ISNUMBER(AE134),AE134,(IF(ISNUMBER(AE135),AE135,(IF(ISNUMBER(AE136),AE136,AP125))))))))) -> 12 | AF139: =IF(ISNUMBER(AF132),AF132,(IF(ISNUMBER(AF133),AF133,(IF(ISNUMBER(AF134),AF134,(IF(ISNUMBER(AF135),AF135,(IF(ISNUMBER(AF136),AF136,))))))))) -> -10 | AG139: =IF(ISNUMBER(AG132),AG132,(IF(ISNUMBER(AG133),AG133,(IF(ISNUMBER(AG134),AG134,(IF(ISNUMBER(AG135),AG135,(IF(ISNUMBER(AG136),AG136,))))))))) -> -6.375 | AH139: =IF(ISNUMBER(AH132),AH132,(IF(ISNUMBER(AH133),AH133,(IF(ISNUMBER(AH134),AH134,(IF(ISNUMBER(AH135),AH135,(IF(ISNUMBER(AH136),AH136,))))))))) -> 4.9 | AI139: =IF(ISNUMBER(AI132),AI132,(IF(ISNUMBER(AI133),AI133,(IF(ISNUMBER(AI134),AI134,(IF(ISNUMBER(AI135),AI135,(IF(ISNUMBER(AI136),AI136,))))))))) -> 1.53125 | AJ139: =IF(ISNUMBER(AJ132),AJ132,(IF(ISNUMBER(AJ133),AJ133,(IF(ISNUMBER(AJ134),AJ134,(IF(ISNUMBER(AJ135),AJ135,(IF(ISNUMBER(AJ136),AJ136,))))))))) -> 0.3125 | AY139: Final min values | AZ139: =IF(ISNUMBER(AZ137),AZ137,(IF(ISNUMBER(AZ138),AZ138,""))) -> 7 | BA139: =IF(ISNUMBER(BA137),BA137,(IF(ISNUMBER(BA138),BA138,""))) -> 5 | BB139: =IF(ISNUMBER(BB137),BB137,(IF(ISNUMBER(BB138),BB138,""))) -> 6
AC140: Final | AD140: =IF(ISNUMBER(AD138),AD138,(IF(ISNUMBER(AD139),AD139,))) -> 0 | AE140: 0 | AF140: -1 | AG140: 5.5 | AH140: -0.5 | AI140: -0.1 | AJ140: 0.2
B144: Capturing the cost and EADS % | AP144: Current position
AP145: =E150 -> 12.8
B146: Name of lever: | D146: Spares: Level 3
B148: Thresholds for levers | C148: Step 1: Insert the lever cost at different thresholds | D148: Step 2: EADS % value for different thresholds | E148: Step 3: Insert the target cost figure | F148: Step 4. Evaluate the outcome in EADS % | G148: Step 5. EVALUATE THE BENEFIT OF CHANGE
B149: Threshold | C149: COST in £'000 | D149: EADS % | E149: PLANNED COST | F149: EADS EQUIVALENT of the planned cost | G149: BENEFIT RATIO
B150: 1 | C150: 15 | D150: 6 | E150: 12.8 | F150: =AG169 -> 6 | G150: =AP154 -> 0.07142857143
B151: 2 | C151: 13 | D151: 7 | G151: =AP155 -> 0.125
B152: 3 | C152: 12 | D152: 8 | G152: 0.05555555556 | AF152: Slope | AG152: CURRENT POSITION EADS POSITION | AH152: cost change from current position | AI152: % change in EADS from current point | AJ152: Benefit ratio | AU152: Constrained analysis
B153: 4 | C153: 10 | D153: 9 | G153: 0.25 | AF153: =IF(AP145>=AK154,AS154,) -> 0 | AG153: =(AP145-AK154)*AF153+AL154 -> 6 | AH153: =AP145-AK154 -> -2.2 | AI153: =(AL154-AG153)/AL154 -> 0 | AJ153: =AI153/AH153 -> 0 | AK153: COST | AL153: EADS % | AM153: Line | AN153: Cost change at different points | AO153: % change in EADS at different points | AP153: Benefit Ratio | AQ153: Points | AS153: Slope options | AT153: EADS CALCULATION FOR GIVEN CURRENT POSITION | AU153: MAX | AV153: ML | AW153: MIN | AY153: EADS Calculation | AZ153: Cost - min value | BA153: EADS - min value | BB153: EADS Max value | BF153: benefit ratio For figure | BH153: current position
B154: 5 | C154: 9 | D154: 12 | G154: 0.09523809524 | AD154: =IF(ISNUMBER(AJ153),AK154,) -> 15 | AE154: =IF(ISNUMBER(AJ153),AL154,) -> 6 | AF154: =IF(AP145>=AK155,AS154,) -> 0 | AG154: =(AP145-AK155)*AF154+AL155 -> 7 | AH154: =AP145-AK154 -> -2.2 | AI154: =(AL154-AG154)/AL154 -> -0.1666666667 | AJ154: 0.07575757576 | AK154: =IF(ISBLANK(C150),"",C150) -> 15 | AL154: =IF(ISBLANK(D150),"",D150) -> 6 | AM154: Point 1-2 | AN154: =-IF(AND(ISNUMBER(AK154),ISNUMBER(AK155)),((AK155-AK154)),) -> 2 | AO154: =(AL155-AL154)/AL155 -> 0.1428571429 | AP154: =AO154/AN154 -> 0.07142857143 | AQ154: 1 | AR154: 2 | AS154: =(AL155-AL154)/(AK155-AK154) -> -0.5 | AT154: =(AP145-AK154)*AS154+AL154 -> 7.1 | AY154: =AP154 -> 0.07142857143 | AZ154: =IF(AY154>AY155,AK155,"") ->  | BA154: =IF(AY154>AY155,AL155,"") ->  | BB154: =IF(AY154>AY155, AL155,"") ->  | BE154: Point 1-2 | BF154: =AP154 -> 0.07142857143 | BH154: =AP145 -> 12.8 | BI154: =AG169 -> 6 | BJ154: =AH169 -> -2.2
B155: 6 | C155: 7.5 | D155: 14 | G155: 0.08333333333 | AD155: 13 | AE155: 7 | AF155: =IF(AP145>=AK156,AS155,) -> -1 | AG155: =(AP145-AK155)*AF154+AL155 -> 7 | AH155: =AP145-AK155 -> -0.2 | AI155: 0 | AJ155: 0 | AK155: 13 | AL155: 7 | AM155: Point 2-3 | AN155: =-IF(AND(ISNUMBER(AK155),ISNUMBER(AK156)),(AK156-AK155),) -> 1 | AO155: 0.125 | AP155: 0.125 | AQ155: 2 | AR155: 3 | AS155: -1 | AT155: =(AP145-AK155)*AS155+AL155 -> 7.2 | AY155: 0.125 | AZ155: 12 | BA155: 8 | BB155: =IF(AY155>AY156,AL156,"") -> 8 | BE155: Point 2-3 | BF155: 0.125 | BH155: 0 | BI155: =AG169 -> 6 | BJ155: =AH169 -> -2.2
B156: 7 | C156: 6 | D156: 16 | G156: 0.05555555556 | AD156: 12 | AE156: 8 | AF156: =IF(AP145>=AK157,AS156,) -> -0.5 | AG156: =(AP145-AK156)*AF155+AL156 -> 7.2 | AH156: =AP145-AK156 -> 0.8 | AI156: 0.1 | AJ156: 0.125 | AK156: 12 | AL156: 8 | AM156: Point 3-4 | AN156: =-IF(AND(ISNUMBER(AK156),ISNUMBER(AK157)),(AK157-AK156),) -> 2 | AO156: 0.1111111111 | AP156: 0.05555555556 | AQ156: 3 | AR156: 4 | AS156: -0.5 | AT156: =(AP145-AK156)*AS156+AL156 -> 7.6 | AY156: 0.05555555556 | BE156: Point 3-4 | BF156: 0.05555555556
B157: 8 | C157: 4 | D157: 18 | G157: 0.1052631579 | AD157: 10 | AE157: 9 | AF157: =IF(AP145>=AK158,AS157,) -> -3 | AG157: =(AP145-AK157)*AF156+AL157 -> 7.6 | AH157: =AP145-AK157 -> 2.8 | AI157: 0.1555555556 | AJ157: 0.05555555556 | AK157: 10 | AL157: 9 | AM157: Point 4-5 | AN157: =-(IF(AND(ISNUMBER(AK157),ISNUMBER(AK158)),(AK158-AK157),)) -> 1 | AO157: 0.25 | AP157: 0.25 | AQ157: 4 | AR157: 5 | AS157: -3 | AT157: =(AP145-AK157)*AS157+AL157 -> 0.6 | AY157: 0.25 | AZ157: 9 | BA157: 12 | BB157: 12 | BE157: Point 4-5 | BF157: 0.25
B158: 9 | C158: 3.5 | D158: 19 | G158: 0.06349206349 | AD158: 9 | AE158: 12 | AF158: =IF(AP145>=AK159,AS158,) -> -1.333333333 | AG158: =(AP145-AK158)*AF157+AL158 -> 0.6 | AH158: =AP145-AK158 -> 3.8 | AI158: 0.95 | AJ158: 0.25 | AK158: 9 | AL158: 12 | AM158: Point 5-6 | AN158: =-IF(AND(ISNUMBER(AK158),ISNUMBER(AK159)),(AK159-AK158),) -> 1.5 | AO158: 0.1428571429 | AP158: 0.09523809524 | AQ158: 5 | AR158: 6 | AS158: -1.333333333 | AT158: =(AP145-AK158)*AS158+AL158 -> 6.933333333 | AY158: 0.09523809524 | AZ158: 7.5 | BA158: 14 | BB158: 14 | BE158: Point 5-6 | BF158: 0.09523809524
B159: 10 | C159: 2 | D159: 21 | AD159: 7.5 | AE159: 14 | AF159: =IF(AP145>=AK160,AS159,) -> -1.333333333 | AG159: =(AP145-AK159)*AF158+AL159 -> 6.933333333 | AH159: =AP145-AK159 -> 5.3 | AI159: 0.5047619048 | AJ159: 0.09523809524 | AK159: 7.5 | AL159: 14 | AM159: Point 6-7 | AN159: =-(IF(AND(ISNUMBER(AK159),ISNUMBER(AK160)),(AK160-AK159),)) -> 1.5 | AO159: 0.125 | AP159: 0.08333333333 | AQ159: 6 | AR159: 7 | AS159: -1.333333333 | AT159: =(AP145-AK159)*AS159+AL159 -> 6.933333333 | AY159: 0.08333333333 | AZ159: 6 | BA159: 16 | BB159: 16 | BE159: Point 6-7 | BF159: 0.08333333333
C160: VALUES FOR THE MONTE CARLO SIMULATION | F160: Planned cost - change in benefit ratio by moving 1 unit | G160: =AJ169 -> 0 | AD160: 6 | AE160: 16 | AF160: =IF(AP145>=AK161,AS160,) -> -1 | AG160: =(AP145-AK160)*AF159+AL160 -> 6.933333333 | AH160: =AP145-AK160 -> 6.8 | AI160: 0.5666666667 | AJ160: 0.08333333333 | AK160: 6 | AL160: 16 | AM160: Point 7-8 | AN160: =-IF(AND(ISNUMBER(AK160),ISNUMBER(AK161)),(AK161-AK160),) -> 2 | AO160: 0.1111111111 | AP160: 0.05555555556 | AQ160: 7 | AR160: 8 | AS160: -1 | AT160: =(AP145-AK160)*AS160+AL160 -> 9.2 | AY160: 0.05555555556 | BA160: =IF(AY160>AY161,AK161,"") ->  | BE160: Point 7-8 | BF160: 0.05555555556
C161: Max | D161: ML | E161: Suggested Min | AD161: 4 | AE161: 18 | AF161: =IF(AP145>=AK162,AS161,) -> -2 | AG161: =(AP145-AK161)*AF160+AL161 -> 9.2 | AH161: =AP145-AK161 -> 8.8 | AI161: 0.4888888889 | AJ161: 0.05555555556 | AK161: 4 | AL161: 18 | AM161: Point 8-9 | AN161: =-IF(AND(ISNUMBER(AK161),ISNUMBER(AK162)),(AK162-AK161),) -> 0.5 | AO161: 0.05263157895 | AP161: 0.1052631579 | AQ161: 8 | AR161: 9 | AS161: -2 | AT161: =(AP145-AK161)*AS161+AL161 -> 0.4 | AY161: 0.1052631579 | AZ161: 3.5 | BA161: =IF(AY161>AY162,AL162,"") -> 19 | BB161: 19 | BE161: Point 8-9 | BF161: 0.1052631579
B162: COST in £'000 | C162: =MAX(C150:C159) -> 15 | D162: =E150 -> 12.8 | E162: =AZ166 -> 12 | AD162: 3.5 | AE162: 19 | AF162: =IF(AP145>=AK163,AS162,) -> -1.333333333 | AG162: =(AP145-AK162)*AF161+AL162 -> 0.4 | AH162: =AP145-AK162 -> 9.3 | AI162: 0.9789473684 | AJ162: 0.1052631579 | AK162: 3.5 | AL162: 19 | AM162: Point 9-10 | AN162: =-IF(AND(ISNUMBER(AK162),ISNUMBER(AK163)),(AK163-AK162),) -> 1.5 | AO162: 0.09523809524 | AP162: 0.06349206349 | AQ162: 9 | AR162: 10 | AS162: -1.333333333 | AT162: =(AP145-AK162)*AS162+AL162 -> 6.6 | AY162: 0.06349206349 | AZ162: =IF(AY162=MAX(AY154:AY162),AK163,"") ->  | BA162: =IF(AY162=MAX(AY154:AY162),AL162,"") ->  | BE162: Point 9-10 | BF162: 0.06349206349
B163: EADS % | C163: =MIN(D150:D159) -> 6 | D163: =F150 -> 6 | E163: =BB166 -> 8 | AC163: Below min | AD163: 2 | AE163: 21 | AF163: =IF(AP145<=AK163,AS162,) -> 0 | AK163: 2 | AL163: 21
AY164: Min calculation 1 | AZ164: =IF(ISNUMBER(AZ154),AZ154,(IF(ISNUMBER(AZ155),AZ155,(IF(ISNUMBER(AZ156),AZ156,(IF(ISNUMBER(AZ157),AZ157,""))))))) -> 12 | BA164: =IF(ISNUMBER(BA154),BA154,(IF(ISNUMBER(BA155),BA155,(IF(ISNUMBER(BA156),BA156,(IF(ISNUMBER(BA157),BA157,""))))))) -> 8 | BB164: =IF(ISNUMBER(BB154),BB154,(IF(ISNUMBER(BB155),BB155,(IF(ISNUMBER(BB156),BB156,(IF(ISNUMBER(BB157),BB157,""))))))) -> 8
B165: EADS % AGGREGATION ACROSS 3 LEVELS | AY165: Min calculation 2 | AZ165: =IF(ISNUMBER(AZ158),AZ158,(IF(ISNUMBER(AZ159),AZ159,(IF(ISNUMBER(AZ160),AZ160,(IF(ISNUMBER(AZ161),AZ161,(IF(ISNUMBER(AZ162),AZ162,""))))))))) -> 7.5 | BA165: =IF(ISNUMBER(BA158),BA158,(IF(ISNUMBER(BA159),BA159,(IF(ISNUMBER(BA160),BA160,(IF(ISNUMBER(BA161),BA161,(IF(ISNUMBER(BA162),BA162,""))))))))) -> 14 | BB165: =IF(ISNUMBER(BB158),BB158,(IF(ISNUMBER(BB159),BB159,(IF(ISNUMBER(BB160),BB160,(IF(ISNUMBER(BB161),BB161,(IF(ISNUMBER(BB162),BB162,""))))))))) -> 14
E166: OUTPUT; Lever LEVEL EADS % | AY166: Final min values | AZ166: =IF(ISNUMBER(AZ164),AZ164,(IF(ISNUMBER(AZ165),AZ165,""))) -> 12 | BA166: =IF(ISNUMBER(BA164),BA164,(IF(ISNUMBER(BA165),BA165,""))) -> 8 | BB166: =IF(ISNUMBER(BB164),BB164,(IF(ISNUMBER(BB165),BB165,""))) -> 8
C167: INPUT: Breakdown rate*time to fix | D167: Weighting | E167: Min | F167: Most likely | G167: Max | AC167: Final 1 | AD167: =IF(ISNUMBER(AD153),AD153,(IF(ISNUMBER(AD154),AD154,(IF(ISNUMBER(AD155),AD155,(IF(ISNUMBER(AD156),AD156,(IF(ISNUMBER(AD157),AD157,(IF(ISNUMBER(AD158),AD158,))))))))))) -> 15 | AE167: 6 | AF167: 0 | AG167: 6 | AH167: -2.2 | AI167: 0 | AJ167: 0
B168: Level 1 | C168: 100 | D168: =C168/SUM($C$168:$C$170) -> 0.5263157895 | E168: =MAX(E163,E136,E109) -> 8 | F168: =(D168*D109)+(D136*D169)+(D170*D163) -> 3 | G168: =MIN(C163,C136,C109) -> 0.5 | AC168: Final 2 | AD168: =IF(ISNUMBER(AD159),AD159,(IF(ISNUMBER(AD160),AD160,(IF(ISNUMBER(AD161),AD161,(IF(ISNUMBER(AD162),AD162,(IF(ISNUMBER(AD163),AD163,))))))))) -> 7.5 | AE168: 14 | AF168: -1.333333333 | AG168: 6.933333333 | AH168: 5.3 | AI168: 0.5047619048 | AJ168: 0.09523809524
B169: Level 2 | C169: 50 | D169: =C169/SUM($C$168:$C$170) -> 0.2631578947 | AC169: Final | AD169: =IF(ISNUMBER(AD167),AD167,(IF(ISNUMBER(AD168),AD168,))) -> 15 | AE169: 6 | AF169: 0 | AG169: 6 | AH169: -2.2 | AI169: 0 | AJ169: 0
B170: Level 3 | C170: 40 | D170: 0.2105263158
B172: Information
B173: Capturing the cost and EADS %
AP174: Current position
B175: Name of lever: | D175: Information: Level 1 | AP175: =E180 -> 8
AF176: Slope | AG176: CURRENT POSITION EADS POSITION | AH176: cost change from current position | AI176: % change in EADS from current point | AJ176: Benefit ratio | AU176: Constrained analysis | BH176: current position
AD177: =IF(ISNUMBER(AJ177),AK178,) -> 15 | AE177: =IF(ISNUMBER(AJ177),AL178,) -> 5 | AF177: =IF(AP175>=AK178,AS178,) -> 0 | AG177: =(AP175-AK178)*AF177+AL178 -> 5 | AH177: =AP175-AK178 -> -7 | AI177: =(AL178-AG177)/AL178 -> 0 | AJ177: =AI177/AH177 -> 0 | AK177: COST | AL177: EADS % | AM177: Line | AN177: Cost change at different points | AO177: % change in EADS at different points | AP177: Benefit Ratio | AU177: MAX | AV177: ML | AW177: MIN | AY177: EADS Calculation | AZ177: Cost - min value | BA177: EADS - min value | BB177: EADS Max value | BF177: EADS % For figure | BH177: Y Axis | BI177: X axis
B178: Thresholds for levers | C178: Step 1: Insert the lever cost at different thresholds | D178: Step 2: EADS % value for different thresholds | E178: Step 3: Insert the target cost figure | F178: Step 4. Evaluate the outcome in EADS % | G178: Step 5. EVALUATE THE BENEFIT OF CHANGE | AD178: 13 | AE178: 6 | AF178: =IF(AP175>=AK179,AS178,) -> 0 | AG178: =(AP175-AK179)*AF178+AL179 -> 6 | AH178: =AP175-AK178 -> -7 | AI178: =(AL178-AG178)/AL178 -> -0.2 | AJ178: 0.02857142857 | AK178: =C180 -> 15 | AL178: =D180 -> 5 | AM178: Point 1-2 | AN178: =IF(AND(ISNUMBER(AK178),ISNUMBER(AK179)),(-(AK179-AK178)),) -> 2 | AO178: =(AL179-AL178)/AL179 -> 0.1666666667 | AP178: =AO178/AN178 -> 0.08333333333 | AQ178: 1 | AR178: 2 | AS178: =(AL179-AL178)/(AK179-AK178) -> -0.5 | AT178: =(AP175-AK178)*AS178+AL178 -> 8.5 | AY178: =AP178 -> 0.08333333333 | AZ178: =IF(AY178>AY179,AK179,"") ->  | BA178: =IF(AY178>AY179,AL178,"") ->  | BB178: =IF(AY178>AY179, AL179,"") ->  | BE178: Point 1-2 | BF178: =AP178 -> 0.08333333333 | BH178: =AP175 -> 8 | BI178: =F180 -> 5
B179: Threshold | C179: COST in £'000 | D179: EADS % | E179: PLANNED COST | F179: EADS EQUIVALENT of the planned cost | G179: BENEFIT RATIO | AD179: 10 | AE179: 8 | AF179: =IF(AP175>=AK180,AS179,) -> 0 | AG179: =(AP175-AK179)*AF178+AL179 -> 6 | AH179: =AP175-AK179 -> -5 | AI179: 0 | AJ179: 0 | AK179: 13 | AL179: 6 | AM179: Point 2-3 | AN179: =IF(AND(ISNUMBER(AK179),ISNUMBER(AK180)),-(AK180-AK179),) -> 3 | AO179: 0.25 | AP179: 0.08333333333 | AQ179: 2 | AR179: 3 | AS179: -0.6666666667 | AT179: =(AP175-AK179)*AS179+AL179 -> 9.333333333 | AY179: 0.08333333333 | BB179: =IF(AY179>AY180,AL180,"") ->  | BE179: Point 2-3 | BF179: =AP179 -> 0.08333333333 | BH179: 0 | BI179: =F180 -> 5
B180: 1 | C180: 15 | D180: 5 | E180: 8 | F180: =AG191 -> 5 | G180: =AP178 -> 0.08333333333 | AD180: 8 | AE180: 12 | AF180: =IF(AP175>=AK181,AS180,) -> -2 | AG180: =(AP175-AK180)*AF179+AL180 -> 8 | AH180: =AP175-AK180 -> -2 | AI180: 0 | AJ180: 0 | AK180: 10 | AL180: 8 | AM180: Point 3-4 | AN180: =IF(AND(ISNUMBER(AK180),ISNUMBER(AK181)),-(AK181-AK180),) -> 2 | AO180: 0.3333333333 | AP180: 0.1666666667 | AQ180: 3 | AR180: 4 | AS180: -2 | AT180: =(AP175-AK180)*AS180+AL180 -> 12 | AY180: 0.1666666667 | AZ180: 8 | BA180: 8 | BB180: 12 | BE180: Point 3-4 | BF180: 0.1666666667
B181: 2 | C181: 13 | D181: 6 | G181: =AP179 -> 0.08333333333 | H181: 107 | AD181: 0 | AE181: 0 | AF181: =IF(AP175>=AK182,AS181,) -> -1 | AG181: =(AP175-AK181)*AF180+AL181 -> 12 | AH181: =AP175-AK181 -> 0 | AI181: 0 | AK181: 8 | AL181: 12 | AM181: Point 4-5 | AN181: =(IF(AND(ISNUMBER(AK181),ISNUMBER(AK182)),-(AK182-AK181),)) -> 3 | AO181: 0.2 | AP181: 0.06666666667 | AQ181: 4 | AR181: 5 | AS181: -1 | AT181: =(AP175-AK181)*AS181+AL181 -> 12 | AY181: 0.06666666667 | BE181: Point 4-5 | BF181: 0.06666666667
B182: 3 | C182: 10 | D182: 8 | G182: 0.1666666667 | AD182: 4.2 | AE182: 18 | AF182: =IF(AP175>=AK183,AS182,) -> -3.75 | AG182: =(AP175-AK182)*AF181+AL182 -> 12 | AH182: =AP175-AK182 -> 3 | AI182: 0.2 | AJ182: 0.06666666667 | AK182: 5 | AL182: 15 | AM182: Point 5-6 | AN182: =IF(AND(ISNUMBER(AK182),ISNUMBER(AK183)),-(AK183-AK182),) -> 0.8 | AO182: 0.1666666667 | AP182: 0.2083333333 | AQ182: 5 | AR182: 6 | AS182: -3.75 | AT182: =(AP175-AK182)*AS182+AL182 -> 3.75 | AY182: 0.2083333333 | BE182: Point 5-6 | BF182: 0.2083333333
B183: 4 | C183: 8 | D183: 12 | G183: 0.06666666667 | AD183: 4 | AE183: 22 | AF183: =IF(AP175>=AK184,AS183,) -> -20 | AG183: =(AP175-AK183)*AF182+AL183 -> 3.75 | AH183: =AP175-AK183 -> 3.8 | AI183: 0.7916666667 | AJ183: 0.2083333333 | AK183: 4.2 | AL183: 18 | AM183: Point 6-7 | AN183: =(IF(AND(ISNUMBER(AK183),ISNUMBER(AK184)),-(AK184-AK183),)) -> 0.2 | AO183: 0.1818181818 | AP183: 0.9090909091 | AQ183: 6 | AR183: 7 | AS183: -20 | AT183: =(AP175-AK183)*AS183+AL183 -> -58 | AY183: 0.9090909091 | AZ183: 4 | BA183: 18 | BB183: 22 | BE183: Point 6-7 | BF183: 0.9090909091
B184: 5 | C184: 5 | D184: 15 | G184: 0.2083333333 | AD184: 2.8 | AE184: 24 | AF184: =IF(AP175>=AK185,AS184,) -> -1.666666667 | AG184: =(AP175-AK184)*AF183+AL184 -> -58 | AH184: =AP175-AK184 -> 4 | AI184: 3.636363636 | AJ184: 0.9090909091 | AK184: 4 | AL184: 22 | AM184: Point 7-8 | AN184: =IF(AND(ISNUMBER(AK184),ISNUMBER(AK185)),-(AK185-AK184),) -> 1.2 | AO184: 0.08333333333 | AP184: 0.06944444444 | AQ184: 7 | AR184: 8 | AS184: -1.666666667 | AT184: =(AP175-AK184)*AS184+AL184 -> 15.33333333 | AY184: 0.06944444444 | AZ184: 2.8 | BA184: =IF(AY184>AY185,AK184,"") -> 4 | BB184: 24 | BE184: Point 7-8 | BF184: 0.06944444444
B185: 6 | C185: 4.2 | D185: 18 | G185: 0.9090909091 | AD185: 1.6 | AE185: 26 | AF185: =IF(AP175>=AK186,AS185,) -> -1.666666667 | AG185: =(AP175-AK185)*AF184+AL185 -> 15.33333333 | AH185: =AP175-AK185 -> 5.2 | AI185: 0.3611111111 | AJ185: 0.06944444444 | AK185: 2.8 | AL185: 24 | AM185: Point 8-9 | AN185: =IF(AND(ISNUMBER(AK185),ISNUMBER(AK186)),-(AK186-AK185),) -> 1.2 | AO185: 0.07692307692 | AP185: 0.0641025641 | AQ185: 8 | AR185: 9 | AS185: -1.666666667 | AT185: =(AP175-AK185)*AS185+AL185 -> 15.33333333 | AY185: 0.0641025641 | BA185: =IF(AY185>AY186,AL185,"") ->  | BE185: Point 8-9 | BF185: 0.0641025641
B186: 7 | C186: 4 | D186: 22 | G186: 0.06944444444 | AD186: 1.4 | AE186: 28 | AF186: =IF(AP175>=AK187,AS186,) -> -10 | AG186: =(AP175-AK186)*AF185+AL186 -> 15.33333333 | AH186: =AP175-AK186 -> 6.4 | AI186: 0.4102564103 | AJ186: 0.0641025641 | AK186: 1.6 | AL186: 26 | AM186: Point 9-10 | AN186: =IF(AND(ISNUMBER(AK186),ISNUMBER(AK187)),-(AK187-AK186),) -> 0.2 | AO186: 0.07142857143 | AP186: 0.3571428571 | AQ186: 9 | AR186: 10 | AS186: -10 | AT186: =(AP175-AK186)*AS186+AL186 -> -38 | AY186: 0.3571428571 | AZ186: =IF(AY186=MAX(AY178:AY186),AK187,"") ->  | BA186: =IF(AY186=MAX(AY178:AY186),AL186,"") ->  | BE186: Point 9-10 | BF186: 0.3571428571
B187: 8 | C187: 2.8 | D187: 24 | G187: 0.0641025641 | AK187: 1.4 | AL187: 28
B188: 9 | C188: 1.6 | D188: 26 | G188: 0.3571428571 | AY188: Min calculation 1 | AZ188: =IF(ISNUMBER(AZ178),AZ178,(IF(ISNUMBER(AZ179),AZ179,(IF(ISNUMBER(AZ180),AZ180,(IF(ISNUMBER(AZ181),AZ181,""))))))) -> 8 | BA188: =IF(ISNUMBER(BA178),BA178,(IF(ISNUMBER(BA179),BA179,(IF(ISNUMBER(BA180),BA180,(IF(ISNUMBER(BA181),BA181,""))))))) -> 8 | BB188: =IF(ISNUMBER(BB178),BB178,(IF(ISNUMBER(BB179),BB179,(IF(ISNUMBER(BB180),BB180,(IF(ISNUMBER(BB181),BB181,""))))))) -> 12
B189: 10 | C189: 1.4 | D189: 28 | AC189: Final 1 | AD189: =IF(ISNUMBER(AD177),AD177,(IF(ISNUMBER(AD178),AD178,(IF(ISNUMBER(AD179),AD179,(IF(ISNUMBER(AD180),AD180,(IF(ISNUMBER(AD181),AD181,(IF(ISNUMBER(AD182),AD182,))))))))))) -> 15 | AE189: 5 | AF189: 0 | AG189: 5 | AH189: -7 | AI189: 0 | AJ189: 0 | AY189: Min calculation 2 | AZ189: =IF(ISNUMBER(AZ182),AZ182,(IF(ISNUMBER(AZ183),AZ183,(IF(ISNUMBER(AZ184),AZ184,(IF(ISNUMBER(AZ185),AZ185,(IF(ISNUMBER(AZ186),AZ186,""))))))))) -> 4 | BA189: =IF(ISNUMBER(BA182),BA182,(IF(ISNUMBER(BA183),BA183,(IF(ISNUMBER(BA184),BA184,(IF(ISNUMBER(BA185),BA185,(IF(ISNUMBER(BA186),BA186,""))))))))) -> 18 | BB189: =IF(ISNUMBER(BB182),BB182,(IF(ISNUMBER(BB183),BB183,(IF(ISNUMBER(BB184),BB184,(IF(ISNUMBER(BB185),BB185,(IF(ISNUMBER(BB186),BB186,""))))))))) -> 22
C190: VALUES FOR THE MONTE CARLO SIMULATION | F190: Planned cost - change in benefit ratio by moving 1 unit | G190: =AJ191 -> 0 | AC190: Final 2 | AD190: =IF(ISNUMBER(AD183),AD183,(IF(ISNUMBER(AD184),AD184,(IF(ISNUMBER(AD185),AD185,(IF(ISNUMBER(AD186),AD186,(IF(ISNUMBER(AD187),AD187,))))))))) -> 4 | AE190: 22 | AF190: -20 | AG190: 3.75 | AH190: 3.8 | AI190: 0.7916666667 | AJ190: 0.2083333333 | AY190: Final min values | AZ190: =IF(ISNUMBER(AZ188),AZ188,(IF(ISNUMBER(AZ189),AZ189,""))) -> 8 | BA190: =IF(ISNUMBER(BA188),BA188,(IF(ISNUMBER(BA189),BA189,""))) -> 8 | BB190: =IF(ISNUMBER(BB188),BB188,(IF(ISNUMBER(BB189),BB189,""))) -> 12
C191: Max | D191: ML | E191: Suggested Min | AC191: Final | AD191: =IF(ISNUMBER(AD189),AD189,(IF(ISNUMBER(AD190),AD190,))) -> 15 | AE191: 5 | AF191: 0 | AG191: 5 | AH191: -7 | AI191: 0 | AJ191: 0
B192: COST in £'000 | C192: =MAX(C180:C189) -> 15 | D192: =E180 -> 8 | E192: =AZ190 -> 8
B193: EADS % | C193: =MIN(D180:D189) -> 5 | D193: =F180 -> 5 | E193: =BB190 -> 12
B196: level
B197: scale
B198: location
B201: Capturing the cost and EADS % | AP201: Current position
AP202: =E207 -> 19
B203: Name of lever: | D203: Information: Level 2
B205: Thresholds for levers | C205: Step 1: Insert the lever cost at different thresholds | D205: Step 2: EADS % value for different thresholds | E205: Step 3: Insert the target cost figure | F205: Step 4. Evaluate the outcome in EADS % | G205: Step 5. EVALUATE THE BENEFIT OF CHANGE
B206: Threshold | C206: COST in £'000 | D206: EADS % | E206: PLANNED COST | F206: EADS EQUIVALENT of the planned cost | G206: BENEFIT RATIO
B207: 1 | C207: 20 | D207: 3 | E207: 19 | F207: =AG224 -> 4 | G207: =AP211 -> 0.25
B208: 2 | C208: 19 | D208: 4 | G208: =AP212 -> 0.1111111111 | AU208: Constrained analysis
B209: 3 | C209: 16 | D209: 6 | G209: 0.125 | AF209: Slope | AG209: CURRENT POSITION EADS POSITION | AH209: cost change from current position | AI209: % change in EADS from current point | AJ209: Benefit ratio | AU209: MAX | AV209: ML | AW209: MIN
B210: 4 | C210: 14 | D210: 8 | G210: 0.1111111111 | AF210: =IF(AP202>=AK211,AS211,"") ->  | AG210: =(AP202-AK211)*AF210+AL211 ->  | AH210: =AP202-AK211 -> -1 | AI210: =(AL211-AG210)/AL211 ->  | AJ210: =AI210/AH210 ->  | AK210: COST | AL210: EADS % | AM210: Line | AN210: Cost change at different points | AO210: % change in EADS at different points | AP210: Benefit Ratio | AQ210: Points | AS210: Slope options | AT210: EADS CALCULATION FOR GIVEN CURRENT POSITION | AY210: EADS Calculation | AZ210: Cost - min value | BA210: EADS - min value | BB210: EADS Max value | BF210: benefit ratio For figure | BH210: current position
B211: 5 | C211: 13 | D211: 9 | G211: 0.09090909091 | AD211: =IF(ISNUMBER(AJ210),AK211,) -> 0 | AE211: =IF(ISNUMBER(AJ210),AL211,) -> 0 | AF211: =IF(AP202>=AK212,AS211,"") -> -1 | AG211: =(AP202-AK212)*AF211+AL212 -> 4 | AH211: =AP202-AK211 -> -1 | AI211: =(AL211-AG211)/AL211 -> -0.3333333333 | AJ211: 0.3333333333 | AK211: =IF(ISBLANK(C207),"",C207) -> 20 | AL211: =IF(ISBLANK(D207),"",D207) -> 3 | AM211: Point 1-2 | AN211: =-IF(AND(ISNUMBER(AK211),ISNUMBER(AK212)),((AK212-AK211)),) -> 1 | AO211: =(AL212-AL211)/AL212 -> 0.25 | AP211: =AO211/AN211 -> 0.25 | AQ211: 1 | AR211: 2 | AS211: =(AL212-AL211)/(AK212-AK211) -> -1 | AT211: =(AP202-AK211)*AS211+AL211 -> 4 | AY211: =AP211 -> 0.25 | AZ211: =IF(AY211>AY212,AK212,"") -> 19 | BA211: =IF(AY211>AY212,AL211,"") -> 3 | BB211: =IF(AY211>AY212, AL212,"") -> 4 | BE211: Point 1-2 | BF211: =AP211 -> 0.25 | BH211: =AP202 -> 19 | BI211: =AG224 -> 4 | BJ211: =AH224 -> -1
B212: 6 | C212: 11 | D212: 11 | G212: 0.04166666667 | AD212: 19 | AE212: 4 | AF212: =IF(AP202>=AK213,AS212,"") -> -0.6666666667 | AG212: =(AP202-AK212)*AF211+AL212 -> 4 | AH212: =AP202-AK212 -> 0 | AI212: 0 | AK212: 19 | AL212: 4 | AM212: Point 2-3 | AN212: =-IF(AND(ISNUMBER(AK212),ISNUMBER(AK213)),(AK213-AK212),) -> 3 | AO212: 0.3333333333 | AP212: 0.1111111111 | AQ212: 2 | AR212: 3 | AS212: -0.6666666667 | AT212: =(AP202-AK212)*AS212+AL212 -> 4 | AY212: 0.1111111111 | BB212: =IF(AY212>AY213,AL213,"") ->  | BE212: Point 2-3 | BF212: 0.1111111111 | BH212: 0 | BI212: =AG224 -> 4 | BJ212: =AH224 -> -1
B213: 7 | C213: 9 | D213: 12 | G213: 0.03846153846 | AD213: 0 | AE213: 0 | AF213: =IF(AP202>=AK214,AS213,"") -> -1 | AG213: =(AP202-AK213)*AF212+AL213 -> 4 | AH213: =AP202-AK213 -> 3 | AI213: 0.3333333333 | AJ213: 0.1111111111 | AK213: 16 | AL213: 6 | AM213: Point 3-4 | AN213: =-IF(AND(ISNUMBER(AK213),ISNUMBER(AK214)),(AK214-AK213),) -> 2 | AO213: 0.25 | AP213: 0.125 | AQ213: 3 | AR213: 4 | AS213: -1 | AT213: =(AP202-AK213)*AS213+AL213 -> 3 | AY213: 0.125 | AZ213: 14 | BA213: 6 | BB213: 8 | BE213: Point 3-4 | BF213: 0.125
B214: 8 | C214: 7 | D214: 13 | G214: 0.06666666667 | AD214: 14 | AE214: 8 | AF214: =IF(AP202>=AK215,AS214,"") -> -1 | AG214: =(AP202-AK214)*AF213+AL214 -> 3 | AH214: =AP202-AK214 -> 5 | AI214: 0.625 | AJ214: 0.125 | AK214: 14 | AL214: 8 | AM214: Point 4-5 | AN214: =-(IF(AND(ISNUMBER(AK214),ISNUMBER(AK215)),(AK215-AK214),)) -> 1 | AO214: 0.1111111111 | AP214: 0.1111111111 | AQ214: 4 | AR214: 5 | AS214: -1 | AT214: =(AP202-AK214)*AS214+AL214 -> 3 | AY214: 0.1111111111 | AZ214: 13 | BA214: 8 | BB214: 9 | BE214: Point 4-5 | BF214: 0.1111111111
B215: 9 | C215: 5 | D215: 15 | G215: 0.0625 | AD215: 13 | AE215: 9 | AF215: =IF(AP202>=AK216,AS215,"") -> -1 | AG215: =(AP202-AK215)*AF214+AL215 -> 3 | AH215: =AP202-AK215 -> 6 | AI215: 0.6666666667 | AJ215: 0.1111111111 | AK215: 13 | AL215: 9 | AM215: Point 5-6 | AN215: =-IF(AND(ISNUMBER(AK215),ISNUMBER(AK216)),(AK216-AK215),) -> 2 | AO215: 0.1818181818 | AP215: 0.09090909091 | AQ215: 5 | AR215: 6 | AS215: -1 | AT215: =(AP202-AK215)*AS215+AL215 -> 3 | AY215: 0.09090909091 | AZ215: 11 | BA215: 9 | BB215: 11 | BE215: Point 5-6 | BF215: 0.09090909091
B216: 10 | C216: 4 | D216: 16 | AD216: 11 | AE216: 11 | AF216: =IF(AP202>=AK217,AS216,"") -> -0.5 | AG216: =(AP202-AK216)*AF215+AL216 -> 3 | AH216: =AP202-AK216 -> 8 | AI216: 0.7272727273 | AJ216: 0.09090909091 | AK216: 11 | AL216: 11 | AM216: Point 6-7 | AN216: =-(IF(AND(ISNUMBER(AK216),ISNUMBER(AK217)),(AK217-AK216),)) -> 2 | AO216: 0.08333333333 | AP216: 0.04166666667 | AQ216: 6 | AR216: 7 | AS216: -0.5 | AT216: =(AP202-AK216)*AS216+AL216 -> 7 | AY216: 0.04166666667 | AZ216: 9 | BA216: 11 | BB216: 12 | BE216: Point 6-7 | BF216: 0.04166666667
C217: VALUES FOR THE MONTE CARLO SIMULATION | F217: Planned cost - change in benefit ratio by moving 1 unit | G217: =AJ224 -> 0.3333333333 | AD217: 9 | AE217: 12 | AF217: =IF(AP202>=AK218,AS217,"") -> -0.5 | AG217: =(AP202-AK217)*AF216+AL217 -> 7 | AH217: =AP202-AK217 -> 10 | AI217: 0.4166666667 | AJ217: 0.04166666667 | AK217: 9 | AL217: 12 | AM217: Point 7-8 | AN217: =-IF(AND(ISNUMBER(AK217),ISNUMBER(AK218)),(AK218-AK217),) -> 2 | AO217: 0.07692307692 | AP217: 0.03846153846 | AQ217: 7 | AR217: 8 | AS217: -0.5 | AT217: =(AP202-AK217)*AS217+AL217 -> 7 | AY217: 0.03846153846 | BA217: =IF(AY217>AY218,AK217,"") ->  | BE217: Point 7-8 | BF217: 0.03846153846
C218: Max | D218: ML | E218: Suggested Min | AD218: 7 | AE218: 13 | AF218: =IF(AP202>=AK219,AS218,"") -> -1 | AG218: =(AP202-AK218)*AF217+AL218 -> 7 | AH218: =AP202-AK218 -> 12 | AI218: 0.4615384615 | AJ218: 0.03846153846 | AK218: 7 | AL218: 13 | AM218: Point 8-9 | AN218: =-IF(AND(ISNUMBER(AK218),ISNUMBER(AK219)),(AK219-AK218),) -> 2 | AO218: 0.1333333333 | AP218: 0.06666666667 | AQ218: 8 | AR218: 9 | AS218: -1 | AT218: =(AP202-AK218)*AS218+AL218 -> 1 | AY218: 0.06666666667 | AZ218: 5 | BA218: =IF(AY218>AY219,AL218,"") -> 13 | BB218: 15 | BE218: Point 8-9 | BF218: 0.06666666667
B219: COST in £'000 | C219: =MAX(C207:C216) -> 20 | D219: =E207 -> 19 | E219: =AZ223 -> 19 | AD219: 5 | AE219: 15 | AF219: =IF(AP202>=AK220,AS219,"") -> -1 | AG219: =(AP202-AK219)*AF218+AL219 -> 1 | AH219: =AP202-AK219 -> 14 | AI219: 0.9333333333 | AJ219: 0.06666666667 | AK219: 5 | AL219: 15 | AM219: Point 9-10 | AN219: =-IF(AND(ISNUMBER(AK219),ISNUMBER(AK220)),(AK220-AK219),) -> 1 | AO219: 0.0625 | AP219: 0.0625 | AQ219: 9 | AR219: 10 | AS219: -1 | AT219: =(AP202-AK219)*AS219+AL219 -> 1 | AY219: 0.0625 | AZ219: =IF(AY219=MAX(AY211:AY219),AK220,"") ->  | BA219: =IF(AY219=MAX(AY211:AY219),AL219,"") ->  | BE219: Point 9-10 | BF219: 0.0625
B220: EADS % | C220: =BA223 -> 3 | D220: =F207 -> 4 | E220: =BB223 -> 4 | AC220: Below min | AD220: 4 | AE220: 16 | AF220: =IF(AP202<=AK220,AS219,"") ->  | AK220: 4 | AL220: 16
AY221: Min calculation 1 | AZ221: =IF(ISNUMBER(AZ211),AZ211,(IF(ISNUMBER(AZ212),AZ212,(IF(ISNUMBER(AZ213),AZ213,(IF(ISNUMBER(AZ214),AZ214,""))))))) -> 19 | BA221: =IF(ISNUMBER(BA211),BA211,(IF(ISNUMBER(BA212),BA212,(IF(ISNUMBER(BA213),BA213,(IF(ISNUMBER(BA214),BA214,""))))))) -> 3 | BB221: =IF(ISNUMBER(BB211),BB211,(IF(ISNUMBER(BB212),BB212,(IF(ISNUMBER(BB213),BB213,(IF(ISNUMBER(BB214),BB214,""))))))) -> 4
AC222: Final 1 | AD222: =IF(ISNUMBER(AD210),AD210,(IF(ISNUMBER(AD211),AD211,(IF(ISNUMBER(AD212),AD212,(IF(ISNUMBER(AD213),AD213,(IF(ISNUMBER(AD214),AD214,(IF(ISNUMBER(AD215),AD215,))))))))))) -> 0 | AE222: 0 | AF222: -1 | AG222: 4 | AH222: -1 | AI222: -0.3333333333 | AJ222: 0.3333333333 | AY222: Min calculation 2 | AZ222: =IF(ISNUMBER(AZ215),AZ215,(IF(ISNUMBER(AZ216),AZ216,(IF(ISNUMBER(AZ217),AZ217,(IF(ISNUMBER(AZ218),AZ218,(IF(ISNUMBER(AZ219),AZ219,""))))))))) -> 11 | BA222: =IF(ISNUMBER(BA215),BA215,(IF(ISNUMBER(BA216),BA216,(IF(ISNUMBER(BA217),BA217,(IF(ISNUMBER(BA218),BA218,(IF(ISNUMBER(BA219),BA219,""))))))))) -> 9 | BB222: =IF(ISNUMBER(BB215),BB215,(IF(ISNUMBER(BB216),BB216,(IF(ISNUMBER(BB217),BB217,(IF(ISNUMBER(BB218),BB218,(IF(ISNUMBER(BB219),BB219,""))))))))) -> 11
AC223: Final 2 | AD223: =IF(ISNUMBER(AD216),AD216,(IF(ISNUMBER(AD217),AD217,(IF(ISNUMBER(AD218),AD218,(IF(ISNUMBER(AD219),AD219,(IF(ISNUMBER(AD220),AD220,))))))))) -> 11 | AE223: 11 | AF223: -0.5 | AG223: 3 | AH223: 8 | AI223: 0.7272727273 | AJ223: 0.09090909091 | AY223: Final min values | AZ223: =IF(ISNUMBER(AZ221),AZ221,(IF(ISNUMBER(AZ222),AZ222,""))) -> 19 | BA223: =IF(ISNUMBER(BA221),BA221,(IF(ISNUMBER(BA222),BA222,""))) -> 3 | BB223: =IF(ISNUMBER(BB221),BB221,(IF(ISNUMBER(BB222),BB222,""))) -> 4
AC224: Final | AD224: =IF(ISNUMBER(AD222),AD222,(IF(ISNUMBER(AD223),AD223,))) -> 0 | AE224: 0 | AF224: -1 | AG224: 4 | AH224: -1 | AI224: -0.3333333333 | AJ224: 0.3333333333
B228: Capturing the cost and EADS % | AP228: Current position
AP229: =E234 -> 8.4
B230: Name of lever: | D230: Information: Level 3
B232: Thresholds for levers | C232: Step 1: Insert the lever cost at different thresholds | D232: Step 2: EADS % value for different thresholds | E232: Step 3: Insert the target cost figure | F232: Step 4. Evaluate the outcome in EADS % | G232: Step 5. EVALUATE THE BENEFIT OF CHANGE
B233: Threshold | C233: COST in £'000 | D233: EADS % | E233: PLANNED COST | F233: EADS EQUIVALENT of the planned cost | G233: BENEFIT RATIO
B234: 1 | C234: 9 | D234: 3 | E234: 8.4 | F234: =AG252 -> 6 | G234: =AP238 -> 0.5
B235: 2 | C235: 8.5 | D235: 4 | G235: =AP239 -> 3.333333333
... 202 more rows

Sheet Lever-AHP (hidden)
B9: This sheet aims to assess the significance of the levers. The user is requested to assign values to define the
B10: significance of the levers under the "Input significance" tab following the guidance provided in the blue box below. The values under "Percentage significance"
B11: reflects the percentage contribution of each lever.
D22: Cost | E22: Suggested contribution | F22: Input Significance | G22: Percentage significance | H22: Comments | J22: EADS % | K22: Input Significance | L22: Percentage Significance | M22: Comments
D23: =CostEADS!D10 -> People: Level 1 | E23: ='Monte Carlo'!C18 -> 0.3439964943 | F23: 4 | G23: =F23/SUM($F$23:$F$27) -> 0.2105263158 | J23: =D23 -> People: Level 1 | K23: 9 | L23: =K23/SUM($K$23:$K$27) -> 0.375
D24: =CostEADS!D92 -> Spares: Level | F24: 2 | G24: =F24/SUM($F$23:$F$27) -> 0.1052631579 | J24: =D24 -> Spares: Level | K24: 5 | L24: =K24/SUM($K$23:$K$27) -> 0.2083333333
D25: =CostEADS!D175 -> Information: Level 1 | F25: 3 | G25: =F25/SUM($F$23:$F$27) -> 0.1578947368 | J25: =D25 -> Information: Level 1 | K25: 3 | L25: =K25/SUM($K$23:$K$27) -> 0.125
D26: =CostEADS!D258 -> Test equipment: Level 1 | F26: 1 | G26: =F26/SUM($F$23:$F$27) -> 0.05263157895 | J26: =D26 -> Test equipment: Level 1 | K26: 6 | L26: =K26/SUM($K$23:$K$27) -> 0.25
D27: =CostEADS!D342 -> Facilities: Level 1 | F27: 9 | G27: =F27/SUM($F$23:$F27) -> 0.4736842105 | J27: =D27 -> Facilities: Level 1 | K27: 1 | L27: =K27/SUM($K$23:$K$27) -> 0.04166666667
D29: =D23 -> People: Level 1 | F29: Input Significance | G29: Percentage significance | H29: Comments | J29: =J23 -> People: Level 1 | K29: Input Significance | L29: Percentage Significance | M29: Comments
D30: Lever 1.2 | F30: 5 | G30: =F30/SUM($F$30:$F$31) -> 0.4545454545 | J30: Lever 1.2 | K30: 5 | L30: =K30/SUM($K$30:$K$31) -> 0.3846153846
D31: Lever 1.3 | F31: 6 | G31: =F31/SUM($F$30:$F$31) -> 0.5454545455 | J31: Lever 1.3 | K31: 8 | L31: =K31/SUM($K$30:$K$31) -> 0.6153846154
D33: =D24 -> Spares: Level | F33: Input Significance | G33: Percentage significance | H33: Comments | J33: =J24 -> Spares: Level | K33: Input Significance | L33: Percentage Significance | M33: Comments
D34: Lever 2.2 | F34: 9 | G34: =F34/SUM($F$34:$F$35) -> 0.75 | J34: Lever 2.2 | K34: 5 | L34: =K34/SUM($K$34:$K$35) -> 0.3846153846
D35: Lever 2.3 | F35: 3 | G35: =F35/SUM($F$34:$F$35) -> 0.25 | J35: Lever 2.3 | K35: 8 | L35: =K35/SUM($K$34:$K$35) -> 0.6153846154
D37: =D25 -> Information: Level 1 | F37: Input Significance | G37: Percentage significance | H37: Comments | J37: =J25 -> Information: Level 1 | K37: Input Significance | L37: Percentage significance | M37: Comments
D38: Lever 3.2 | F38: 8 | G38: =F38/SUM($F$38:$F$39) -> 0.6666666667 | J38: Lever 3.2 | K38: 4 | L38: =K38/SUM(K38:K39) -> 0.3636363636
D39: Lever 3.3 | F39: 4 | G39: =F39/SUM($F$38:$F$39) -> 0.3333333333 | J39: Lever 3.3 | K39: 7 | L39: =K39/SUM(K38:K39) -> 0.6363636364
D41: =D26 -> Test equipment: Level 1 | F41: Input Significance | G41: Percentage significance | H41: Comments | J41: =J26 -> Test equipment: Level 1 | K41: Input Significance | L41: Percentage significance | M41: Comments
D42: Lever 4.2 | F42: 5 | G42: =F42/SUM($F$42:$F$43) -> 0.5555555556 | J42: Lever 4.2 | K42: 6 | L42: =K42/SUM(K42:K43) -> 0.75
D43: Lever 4.3 | F43: 4 | G43: =F43/SUM($F$42:$F$43) -> 0.4444444444 | J43: Lever 4.3 | K43: 2 | L43: =K43/SUM(K42:K43) -> 0.25
D45: =D27 -> Facilities: Level 1 | F45: Input Significance | G45: Percentage significance | H45: Comments | J45: =J27 -> Facilities: Level 1 | K45: Input Significance | L45: Percentage significance | M45: Comments
D46: Lever 5.2 | F46: 5 | G46: =F46/SUM($F$46:$F$47) -> 0.4166666667 | J46: Lever 5.2 | K46: 6 | L46: =K46/SUM(K46:K47) -> 0.6666666667
D47: Lever 5.3 | F47: 7 | G47: =F47/SUM($F$46:$F$47) -> 0.5833333333 | J47: Lever 5.3 | K47: 3 | L47: =K47/SUM(K46:K47) -> 0.3333333333
F53: =D23 -> People: Level 1 | G53: =D24 -> Spares: Level | H53: =D25 -> Information: Level 1 | I53: =D26 -> Test equipment: Level 1 | J53: =D27 -> Facilities: Level 1 | K53: =J22 -> EADS % | L53: =J23 -> People: Level 1 | M53: =J24 -> Spares: Level | N53: =J25 -> Information: Level 1 | O53: =J26 -> Test equipment: Level 1 | P53: =J27 -> Facilities: Level 1 | Q53: =D30 -> Lever 1.2 | R53: =D31 -> Lever 1.3 | S53: =D34 -> Lever 2.2 | T53: =D35 -> Lever 2.3 | U53: =D38 -> Lever 3.2 | V53: =D39 -> Lever 3.3 | W53: =D42 -> Lever 4.2 | X53: =D43 -> Lever 4.3 | Y53: =D46 -> Lever 5.2 | Z53: =D47 -> Lever 5.3 | AA53: =J30 -> Lever 1.2 | AB53: =J31 -> Lever 1.3
D55: =D23 -> People: Level 1 | F55: =IF('Input-Facilities'!O34=FALSE,0,1) -> 1 | G55: =IF(OR('Input-Facilities'!$O$34=FALSE,'Input-Facilities'!$O35=FALSE),0,IF($F$23-$F24<0,IF($F$23-$F24>=-3,1/3,IF($F$23-$F24>=-5,1/5,IF($F$23-$F24>=-7,1/7,1/9))),IF($F$23=$F24,1,IF($F$23-$F24<=3,3,IF($F$23-$F24<=5,5,IF($F$23-$F24<=7,7,9)))))) -> 3 | H55: =IF(OR('Input-Facilities'!O34=FALSE,'Input-Facilities'!$O$36=FALSE),0,IF(F23-$F$25<0,IF(F23-$F$25>=-3,1/3,IF(F23-$F$25>=-5,1/5,IF(F23-$F$25>=-7,1/7,1/9))),IF(F23=$F$25,1,IF(F23-$F$25<=3,3,IF(F23-$F$25<=5,5,IF(F23-$F$25<=7,7,9)))))) -> 3 | I55: =IF(OR('Input-Facilities'!O34=FALSE,'Input-Facilities'!$O$37=FALSE),0,IF(F23-$F$26<0,IF(F23-$F$26>=-3,1/3,IF(F23-$F$26>=-5,1/5,IF(F23-$F$26>=-7,1/7,1/9))),IF(F23=$F$26,1,IF(F23-$F$26<=3,3,IF(F23-$F$26<=5,5,IF(F23-$F$26<=7,7,9)))))) -> 0 | J55: =IF(OR('Input-Facilities'!O34=FALSE,'Input-Facilities'!$O$38=FALSE),0,IF(F23-$F$27<0,IF(F23-$F$27>=-3,1/3,IF(F23-$F$27>=-5,1/5,IF(F23-$F$27>=-7,1/7,1/9))),IF(F23=$F$27,1,IF(F23-$F$27<=3,3,IF(F23-$F$27<=5,5,IF(F23-$F$27<=7,7,9)))))) -> 0 | K55: =IF(OR('Input-Facilities'!O34=FALSE,'Input-Facilities'!$O$39=FALSE),0,IF(F23-$K$22<0,IF(F23-$K$22>=-3,1/3,IF(F23-$K$22>=-5,1/5,IF(F23-$K$22>=-7,1/7,1/9))),IF(F23=$K$22,1,IF(F23-$K$22<=3,3,IF(F23-$K$22<=5,5,IF(F23-$K$22<=7,7,9)))))) -> 0 | L55: =IF(OR('Input-Facilities'!O34=FALSE,'Input-Facilities'!$O$40=FALSE),0,IF(F23-$K$23<0,IF(F23-$K$23>=-3,1/3,IF(F23-$K$23>=-5,1/5,IF(F23-$K$23>=-7,1/7,1/9))),IF(F23=$K$23,1,IF(F23-$K$23<=3,3,IF(F23-$K$23<=5,5,IF(F23-$K$23<=7,7,9)))))) -> 0 | M55: =IF(OR('Input-Facilities'!O34=FALSE,'Input-Facilities'!$O$41=FALSE),0,IF(F23-$K$24<0,IF(F23-$K$24>=-3,1/3,IF(F23-$K$24>=-5,1/5,IF(F23-$K$24>=-7,1/7,1/9))),IF(F23=$K$24,1,IF(F23-$K$24<=3,3,IF(F23-$K$24<=5,5,IF(F23-$K$24<=7,7,9)))))) -> 0 | N55: =IF(OR('Input-Facilities'!O34=FALSE,'Input-Facilities'!$O$42=FALSE),0,IF(F23-$K$25<0,IF(F23-$K$25>=-3,1/3,IF(F23-$K$25>=-5,1/5,IF(F23-$K$25>=-7,1/7,1/9))),IF(F23=$K$25,1,IF(F23-$K$25<=3,3,IF(F23-$K$25<=5,5,IF(F23-$K$25<=7,7,9)))))) -> 0 | O55: =IF(OR('Input-Facilities'!O34=FALSE,'Input-Facilities'!$O$43=FALSE),0,IF(F23-$K$26<0,IF(F23-$K$26>=-3,1/3,IF(F23-$K$26>=-5,1/5,IF(F23-$K$26>=-7,1/7,1/9))),IF(F23=$K$26,1,IF(F23-$K$26<=3,3,IF(F23-$K$26<=5,5,IF(F23-$K$26<=7,7,9)))))) -> 0 | P55: =IF(OR('Input-Facilities'!O34=FALSE,'Input-Facilities'!$O$44=FALSE),0,IF(F23-$K$27<0,IF(F23-$K$27>=-3,1/3,IF(F23-$K$27>=-5,1/5,IF(F23-$K$27>=-7,1/7,1/9))),IF(F23=$K$27,1,IF(F23-$K$27<=3,3,IF(F23-$K$27<=5,5,IF(F23-$K$27<=7,7,9)))))) -> 0 | Q55: =IF(OR('Input-Facilities'!O34=FALSE,'Input-Facilities'!$O$45=FALSE),0,IF(F23-$F$30<0,IF(F23-$F$30>=-3,1/3,IF(F23-$F$30>=-5,1/5,IF(F23-$F$30>=-7,1/7,1/9))),IF(F23=$F$30,1,IF(F23-$F$30<=3,3,IF(F23-$F$30<=5,5,IF(F23-$F$30<=7,7,9)))))) -> 0 | R55: =IF(OR('Input-Facilities'!O34=FALSE,'Input-Facilities'!$O$46=FALSE),0,IF(F23-$F$31<0,IF(F23-$F$31>=-3,1/3,IF(F23-$F$31>=-5,1/5,IF(F23-$F$31>=-7,1/7,1/9))),IF(F23=$F$31,1,IF(F23-$F$31<=3,3,IF(F23-$F$31<=5,5,IF(F23-$F$31<=7,7,9)))))) -> 0 | S55: =IF(OR('Input-Facilities'!O34=FALSE,'Input-Facilities'!$O$47=FALSE),0,IF(F23-$F$34<0,IF(F23-$F$34>=-3,1/3,IF(F23-$F$34>=-5,1/5,IF(F23-$F$34>=-7,1/7,1/9))),IF(F23=$F$34,1,IF(F23-$F$34<=3,3,IF(F23-$F$34<=5,5,IF(F23-$F$34<=7,7,9)))))) -> 0 | T55: =IF(OR('Input-Facilities'!O34=FALSE,'Input-Facilities'!$O$48=FALSE),0,IF(F23-$F$35<0,IF(F23-$F$35>=-3,1/3,IF(F23-$F$35>=-5,1/5,IF(F23-$F$35>=-7,1/7,1/9))),IF(F23=$F$35,1,IF(F23-$F$35<=3,3,IF(F23-$F$35<=5,5,IF(F23-$F$35<=7,7,9)))))) -> 0 | U55: =IF(OR('Input-Facilities'!O34=FALSE,'Input-Facilities'!$O$49=FALSE),0,IF(F23-$F$38<0,IF(F23-$F$38>=-3,1/3,IF(F23-$F$38>=-5,1/5,IF(F23-$F$38>=-7,1/7,1/9))),IF(F23=$F$38,1,IF(F23-$F$38<=3,3,IF(F23-$F$38<=5,5,IF(F23-$F$38<=7,7,9)))))) -> 0 | V55: =IF(OR('Input-Facilities'!O34=FALSE,'Input-Facilities'!$O$50=FALSE),0,IF(F23-$F$39<0,IF(F23-$F$39>=-3,1/3,IF(F23-$F$39>=-5,1/5,IF(F23-$F$39>=-7,1/7,1/9))),IF(F23=$F$39,1,IF(F23-$F$39<=3,3,IF(F23-$F$39<=5,5,IF(F23-$F$39<=7,7,9)))))) -> 0 | W55: =IF(OR('Input-Facilities'!O34=FALSE,'Input-Facilities'!$O$51=FALSE),0,IF(F23-$F$42<0,IF(F23-$F$42>=-3,1/3,IF(F23-$F$42>=-5,1/5,IF(F23-$F$42>=-7,1/7,1/9))),IF(F23=$F$42,1,IF(F23-$F$42<=3,3,IF(F23-$F$42<=5,5,IF(F23-$F$42<=7,7,9)))))) -> 0 | X55: =IF(OR('Input-Facilities'!O34=FALSE,'Input-Facilities'!$O$52=FALSE),0,IF(F23-$F$43<0,IF(F23-$F$43>=-3,1/3,IF(F23-$F$43>=-5,1/5,IF(F23-$F$43>=-7,1/7,1/9))),IF(F23=$F$43,1,IF(F23-$F$43<=3,3,IF(F23-$F$43<=5,5,IF(F23-$F$43<=7,7,9)))))) -> 0 | Y55: =IF(OR('Input-Facilities'!O34=FALSE,'Input-Facilities'!$O$53=FALSE),0,IF(F23-$F$46<0,IF(F23-$F$46>=-3,1/3,IF(F23-$F$46>=-5,1/5,IF(F23-$F$46>=-7,1/7,1/9))),IF(F23=$F$46,1,IF(F23-$F$46<=3,3,IF(F23-$F$46<=5,5,IF(F23-$F$46<=7,7,9)))))) -> 0 | Z55: =IF(OR('Input-Facilities'!O34=FALSE,'Input-Facilities'!$O$54=FALSE),0,IF(F23-$F$47<0,IF(F23-$F$47>=-3,1/3,IF(F23-$F$47>=-5,1/5,IF(F23-$F$47>=-7,1/7,1/9))),IF(F23=$F$47,1,IF(F23-$F$47<=3,3,IF(F23-$F$47<=5,5,IF(F23-$F$47<=7,7,9)))))) -> 0 | AA55: =IF(OR('Input-Facilities'!$O$34=FALSE,'Input-Facilities'!$O55=FALSE),0,IF($F$23-$K30<0,IF($F$23-$K30>=-3,1/3,IF($F$23-$K30>=-5,1/5,IF($F$23-$K30>=-7,1/7,1/9))),IF($F$23=$K30,1,IF($F$23-$K30<=3,3,IF($F$23-$K30<=5,5,IF($F$23-$K30<=7,7,9)))))) -> 0 | AB55: =IF(OR('Input-Facilities'!O34=FALSE,'Input-Facilities'!$O$61=FALSE),0,IF(F23-$K$31<0,IF(F23-$K$31>=-3,1/3,IF(F23-$K$31>=-5,1/5,IF(F23-$K$31>=-7,1/7,1/9))),IF(F23=$K$31,1,IF(F23-$K$31<=3,3,IF(F23-$K$31<=5,5,IF(F23-$K$31<=7,7,9)))))) -> 0
D56: =D24 -> Spares: Level | F56: =IF(ISERROR(1/G$55),0,IF(OR('Input-Facilities'!$O$34=FALSE,'Input-Facilities'!$O35=FALSE),0,1/G$55)) -> 0.3333333333 | G56: =IF('Input-Facilities'!O35=FALSE,0,1) -> 1 | H56: =IF(OR('Input-Facilities'!O35=FALSE,'Input-Facilities'!$O$36=FALSE),0,IF(F24-$F$25<0,IF(F24-$F$25>=-3,1/3,IF(F24-$F$25>=-5,1/5,IF(F24-$F$25>=-7,1/7,1/9))),IF(F24=$F$25,1,IF(F24-$F$25<=3,3,IF(F24-$F$25<=5,5,IF(F24-$F$25<=7,7,9)))))) -> 0.3333333333 | I56: =IF(OR('Input-Facilities'!O35=FALSE,'Input-Facilities'!$O$37=FALSE),0,IF(F24-$F$26<0,IF(F24-$F$26>=-3,1/3,IF(F24-$F$26>=-5,1/5,IF(F24-$F$26>=-7,1/7,1/9))),IF(F24=$F$26,1,IF(F24-$F$26<=3,3,IF(F24-$F$26<=5,5,IF(F24-$F$26<=7,7,9)))))) -> 0 | J56: =IF(OR('Input-Facilities'!O35=FALSE,'Input-Facilities'!$O$38=FALSE),0,IF(F24-$F$27<0,IF(F24-$F$27>=-3,1/3,IF(F24-$F$27>=-5,1/5,IF(F24-$F$27>=-7,1/7,1/9))),IF(F24=$F$27,1,IF(F24-$F$27<=3,3,IF(F24-$F$27<=5,5,IF(F24-$F$27<=7,7,9)))))) -> 0 | K56: =IF(OR('Input-Facilities'!O35=FALSE,'Input-Facilities'!$O$39=FALSE),0,IF(F24-$K$22<0,IF(F24-$K$22>=-3,1/3,IF(F24-$K$22>=-5,1/5,IF(F24-$K$22>=-7,1/7,1/9))),IF(F24=$K$22,1,IF(F24-$K$22<=3,3,IF(F24-$K$22<=5,5,IF(F24-$K$22<=7,7,9)))))) -> 0 | L56: =IF(OR('Input-Facilities'!O35=FALSE,'Input-Facilities'!$O$40=FALSE),0,IF(F24-$K$23<0,IF(F24-$K$23>=-3,1/3,IF(F24-$K$23>=-5,1/5,IF(F24-$K$23>=-7,1/7,1/9))),IF(F24=$K$23,1,IF(F24-$K$23<=3,3,IF(F24-$K$23<=5,5,IF(F24-$K$23<=7,7,9)))))) -> 0 | M56: =IF(OR('Input-Facilities'!O35=FALSE,'Input-Facilities'!$O$41=FALSE),0,IF(F24-$K$24<0,IF(F24-$K$24>=-3,1/3,IF(F24-$K$24>=-5,1/5,IF(F24-$K$24>=-7,1/7,1/9))),IF(F24=$K$24,1,IF(F24-$K$24<=3,3,IF(F24-$K$24<=5,5,IF(F24-$K$24<=7,7,9)))))) -> 0 | N56: =IF(OR('Input-Facilities'!O35=FALSE,'Input-Facilities'!$O$42=FALSE),0,IF(F24-$K$25<0,IF(F24-$K$25>=-3,1/3,IF(F24-$K$25>=-5,1/5,IF(F24-$K$25>=-7,1/7,1/9))),IF(F24=$K$25,1,IF(F24-$K$25<=3,3,IF(F24-$K$25<=5,5,IF(F24-$K$25<=7,7,9)))))) -> 0 | O56: =IF(OR('Input-Facilities'!O35=FALSE,'Input-Facilities'!$O$43=FALSE),0,IF(F24-$K$26<0,IF(F24-$K$26>=-3,1/3,IF(F24-$K$26>=-5,1/5,IF(F24-$K$26>=-7,1/7,1/9))),IF(F24=$K$26,1,IF(F24-$K$26<=3,3,IF(F24-$K$26<=5,5,IF(F24-$K$26<=7,7,9)))))) -> 0 | P56: =IF(OR('Input-Facilities'!O35=FALSE,'Input-Facilities'!$O$44=FALSE),0,IF(F24-$K$27<0,IF(F24-$K$27>=-3,1/3,IF(F24-$K$27>=-5,1/5,IF(F24-$K$27>=-7,1/7,1/9))),IF(F24=$K$27,1,IF(F24-$K$27<=3,3,IF(F24-$K$27<=5,5,IF(F24-$K$27<=7,7,9)))))) -> 0 | Q56: =IF(OR('Input-Facilities'!O35=FALSE,'Input-Facilities'!$O$45=FALSE),0,IF(F24-$F$30<0,IF(F24-$F$30>=-3,1/3,IF(F24-$F$30>=-5,1/5,IF(F24-$F$30>=-7,1/7,1/9))),IF(F24=$F$30,1,IF(F24-$F$30<=3,3,IF(F24-$F$30<=5,5,IF(F24-$F$30<=7,7,9)))))) -> 0 | R56: =IF(OR('Input-Facilities'!O35=FALSE,'Input-Facilities'!$O$46=FALSE),0,IF(F24-$F$31<0,IF(F24-$F$31>=-3,1/3,IF(F24-$F$31>=-5,1/5,IF(F24-$F$31>=-7,1/7,1/9))),IF(F24=$F$31,1,IF(F24-$F$31<=3,3,IF(F24-$F$31<=5,5,IF(F24-$F$31<=7,7,9)))))) -> 0 | S56: =IF(OR('Input-Facilities'!O35=FALSE,'Input-Facilities'!$O$47=FALSE),0,IF(F24-$F$34<0,IF(F24-$F$34>=-3,1/3,IF(F24-$F$34>=-5,1/5,IF(F24-$F$34>=-7,1/7,1/9))),IF(F24=$F$34,1,IF(F24-$F$34<=3,3,IF(F24-$F$34<=5,5,IF(F24-$F$34<=7,7,9)))))) -> 0 | T56: =IF(OR('Input-Facilities'!O35=FALSE,'Input-Facilities'!$O$48=FALSE),0,IF(F24-$F$35<0,IF(F24-$F$35>=-3,1/3,IF(F24-$F$35>=-5,1/5,IF(F24-$F$35>=-7,1/7,1/9))),IF(F24=$F$35,1,IF(F24-$F$35<=3,3,IF(F24-$F$35<=5,5,IF(F24-$F$35<=7,7,9)))))) -> 0 | U56: =IF(OR('Input-Facilities'!O35=FALSE,'Input-Facilities'!$O$49=FALSE),0,IF(F24-$F$38<0,IF(F24-$F$38>=-3,1/3,IF(F24-$F$38>=-5,1/5,IF(F24-$F$38>=-7,1/7,1/9))),IF(F24=$F$38,1,IF(F24-$F$38<=3,3,IF(F24-$F$38<=5,5,IF(F24-$F$38<=7,7,9)))))) -> 0 | V56: =IF(OR('Input-Facilities'!O35=FALSE,'Input-Facilities'!$O$50=FALSE),0,IF(F24-$F$39<0,IF(F24-$F$39>=-3,1/3,IF(F24-$F$39>=-5,1/5,IF(F24-$F$39>=-7,1/7,1/9))),IF(F24=$F$39,1,IF(F24-$F$39<=3,3,IF(F24-$F$39<=5,5,IF(F24-$F$39<=7,7,9)))))) -> 0 | W56: =IF(OR('Input-Facilities'!O35=FALSE,'Input-Facilities'!$O$51=FALSE),0,IF(F24-$F$42<0,IF(F24-$F$42>=-3,1/3,IF(F24-$F$42>=-5,1/5,IF(F24-$F$42>=-7,1/7,1/9))),IF(F24=$F$42,1,IF(F24-$F$42<=3,3,IF(F24-$F$42<=5,5,IF(F24-$F$42<=7,7,9)))))) -> 0 | X56: =IF(OR('Input-Facilities'!O35=FALSE,'Input-Facilities'!$O$52=FALSE),0,IF(F24-$F$43<0,IF(F24-$F$43>=-3,1/3,IF(F24-$F$43>=-5,1/5,IF(F24-$F$43>=-7,1/7,1/9))),IF(F24=$F$43,1,IF(F24-$F$43<=3,3,IF(F24-$F$43<=5,5,IF(F24-$F$43<=7,7,9)))))) -> 0 | Y56: =IF(OR('Input-Facilities'!O35=FALSE,'Input-Facilities'!$O$53=FALSE),0,IF(F24-$F$46<0,IF(F24-$F$46>=-3,1/3,IF(F24-$F$46>=-5,1/5,IF(F24-$F$46>=-7,1/7,1/9))),IF(F24=$F$46,1,IF(F24-$F$46<=3,3,IF(F24-$F$46<=5,5,IF(F24-$F$46<=7,7,9)))))) -> 0 | Z56: =IF(OR('Input-Facilities'!O35=FALSE,'Input-Facilities'!$O$54=FALSE),0,IF(F24-$F$47<0,IF(F24-$F$47>=-3,1/3,IF(F24-$F$47>=-5,1/5,IF(F24-$F$47>=-7,1/7,1/9))),IF(F24=$F$47,1,IF(F24-$F$47<=3,3,IF(F24-$F$47<=5,5,IF(F24-$F$47<=7,7,9)))))) -> 0 | AA56: =IF(OR('Input-Facilities'!O35=FALSE,'Input-Facilities'!$O$55=FALSE),0,IF(F24-$K$30<0,IF(F24-$K$30>=-3,1/3,IF(F24-$K$30>=-5,1/5,IF(F24-$K$30>=-7,1/7,1/9))),IF(F24=$K$30,1,IF(F24-$K$30<=3,3,IF(F24-$K$30<=5,5,IF(F24-$K$30<=7,7,9)))))) -> 0 | AB56: =IF(OR('Input-Facilities'!O35=FALSE,'Input-Facilities'!$O$61=FALSE),0,IF(F24-$K$31<0,IF(F24-$K$31>=-3,1/3,IF(F24-$K$31>=-5,1/5,IF(F24-$K$31>=-7,1/7,1/9))),IF(F24=$K$31,1,IF(F24-$K$31<=3,3,IF(F24-$K$31<=5,5,IF(F24-$K$31<=7,7,9)))))) -> 0
D57: =D25 -> Information: Level 1 | F57: =IF(ISERROR(1/H$55),0,IF(OR('Input-Facilities'!$O$34=FALSE,'Input-Facilities'!$O36=FALSE),0,1/H$55)) -> 0.3333333333 | G57: =IF(ISERROR(1/H$56),0,IF(OR('Input-Facilities'!$O$35=FALSE,'Input-Facilities'!$O36=FALSE),0,1/H$56)) -> 3 | H57: =IF('Input-Facilities'!O36=FALSE,0,1) -> 1 | I57: =IF(OR('Input-Facilities'!O36=FALSE,'Input-Facilities'!$O$37=FALSE),0,IF(F25-$F$26<0,IF(F25-$F$26>=-3,1/3,IF(F25-$F$26>=-5,1/5,IF(F25-$F$26>=-7,1/7,1/9))),IF(F25=$F$26,1,IF(F25-$F$26<=3,3,IF(F25-$F$26<=5,5,IF(F25-$F$26<=7,7,9)))))) -> 0 | J57: =IF(OR('Input-Facilities'!O36=FALSE,'Input-Facilities'!$O$38=FALSE),0,IF(F25-$F$27<0,IF(F25-$F$27>=-3,1/3,IF(F25-$F$27>=-5,1/5,IF(F25-$F$27>=-7,1/7,1/9))),IF(F25=$F$27,1,IF(F25-$F$27<=3,3,IF(F25-$F$27<=5,5,IF(F25-$F$27<=7,7,9)))))) -> 0 | K57: =IF(OR('Input-Facilities'!O36=FALSE,'Input-Facilities'!$O$39=FALSE),0,IF(F25-$K$22<0,IF(F25-$K$22>=-3,1/3,IF(F25-$K$22>=-5,1/5,IF(F25-$K$22>=-7,1/7,1/9))),IF(F25=$K$22,1,IF(F25-$K$22<=3,3,IF(F25-$K$22<=5,5,IF(F25-$K$22<=7,7,9)))))) -> 0 | L57: =IF(OR('Input-Facilities'!O36=FALSE,'Input-Facilities'!$O$40=FALSE),0,IF(F25-$K$23<0,IF(F25-$K$23>=-3,1/3,IF(F25-$K$23>=-5,1/5,IF(F25-$K$23>=-7,1/7,1/9))),IF(F25=$K$23,1,IF(F25-$K$23<=3,3,IF(F25-$K$23<=5,5,IF(F25-$K$23<=7,7,9)))))) -> 0 | M57: =IF(OR('Input-Facilities'!O36=FALSE,'Input-Facilities'!$O$41=FALSE),0,IF(F25-$K$24<0,IF(F25-$K$24>=-3,1/3,IF(F25-$K$24>=-5,1/5,IF(F25-$K$24>=-7,1/7,1/9))),IF(F25=$K$24,1,IF(F25-$K$24<=3,3,IF(F25-$K$24<=5,5,IF(F25-$K$24<=7,7,9)))))) -> 0 | N57: =IF(OR('Input-Facilities'!O36=FALSE,'Input-Facilities'!$O$42=FALSE),0,IF(F25-$K$25<0,IF(F25-$K$25>=-3,1/3,IF(F25-$K$25>=-5,1/5,IF(F25-$K$25>=-7,1/7,1/9))),IF(F25=$K$25,1,IF(F25-$K$25<=3,3,IF(F25-$K$25<=5,5,IF(F25-$K$25<=7,7,9)))))) -> 0 | O57: =IF(OR('Input-Facilities'!O36=FALSE,'Input-Facilities'!$O$43=FALSE),0,IF(F25-$K$26<0,IF(F25-$K$26>=-3,1/3,IF(F25-$K$26>=-5,1/5,IF(F25-$K$26>=-7,1/7,1/9))),IF(F25=$K$26,1,IF(F25-$K$26<=3,3,IF(F25-$K$26<=5,5,IF(F25-$K$26<=7,7,9)))))) -> 0 | P57: =IF(OR('Input-Facilities'!O36=FALSE,'Input-Facilities'!$O$44=FALSE),0,IF(F25-$K$27<0,IF(F25-$K$27>=-3,1/3,IF(F25-$K$27>=-5,1/5,IF(F25-$K$27>=-7,1/7,1/9))),IF(F25=$K$27,1,IF(F25-$K$27<=3,3,IF(F25-$K$27<=5,5,IF(F25-$K$27<=7,7,9)))))) -> 0 | Q57: =IF(OR('Input-Facilities'!O36=FALSE,'Input-Facilities'!$O$45=FALSE),0,IF(F25-$F$30<0,IF(F25-$F$30>=-3,1/3,IF(F25-$F$30>=-5,1/5,IF(F25-$F$30>=-7,1/7,1/9))),IF(F25=$F$30,1,IF(F25-$F$30<=3,3,IF(F25-$F$30<=5,5,IF(F25-$F$30<=7,7,9)))))) -> 0 | R57: =IF(OR('Input-Facilities'!O36=FALSE,'Input-Facilities'!$O$46=FALSE),0,IF(F25-$F$31<0,IF(F25-$F$31>=-3,1/3,IF(F25-$F$31>=-5,1/5,IF(F25-$F$31>=-7,1/7,1/9))),IF(F25=$F$31,1,IF(F25-$F$31<=3,3,IF(F25-$F$31<=5,5,IF(F25-$F$31<=7,7,9)))))) -> 0 | S57: =IF(OR('Input-Facilities'!O36=FALSE,'Input-Facilities'!$O$47=FALSE),0,IF(F25-$F$34<0,IF(F25-$F$34>=-3,1/3,IF(F25-$F$34>=-5,1/5,IF(F25-$F$34>=-7,1/7,1/9))),IF(F25=$F$34,1,IF(F25-$F$34<=3,3,IF(F25-$F$34<=5,5,IF(F25-$F$34<=7,7,9)))))) -> 0 | T57: =IF(OR('Input-Facilities'!O36=FALSE,'Input-Facilities'!$O$48=FALSE),0,IF(F25-$F$35<0,IF(F25-$F$35>-3,1/3,IF(F25-$F$35>-5,1/5,IF(F25-$F$35>-7,1/7,1/9))),IF(F25=$F$35,1,IF(F25-$F$35<3,3,IF(F25-$F$35<5,5,IF(F25-$F$35<7,7,9)))))) -> 0 | U57: =IF(OR('Input-Facilities'!O36=FALSE,'Input-Facilities'!$O$49=FALSE),0,IF(F25-$F$38<0,IF(F25-$F$38>-3,1/3,IF(F25-$F$38>-5,1/5,IF(F25-$F$38>-7,1/7,1/9))),IF(F25=$F$38,1,IF(F25-$F$38<3,3,IF(F25-$F$38<5,5,IF(F25-$F$38<7,7,9)))))) -> 0 | V57: =IF(OR('Input-Facilities'!O36=FALSE,'Input-Facilities'!$O$50=FALSE),0,IF(F25-$F$39<0,IF(F25-$F$39>-3,1/3,IF(F25-$F$39>-5,1/5,IF(F25-$F$39>-7,1/7,1/9))),IF(F25=$F$39,1,IF(F25-$F$39<3,3,IF(F25-$F$39<5,5,IF(F25-$F$39<7,7,9)))))) -> 0 | W57: =IF(OR('Input-Facilities'!O36=FALSE,'Input-Facilities'!$O$51=FALSE),0,IF(F25-$F$42<0,IF(F25-$F$42>-3,1/3,IF(F25-$F$42>-5,1/5,IF(F25-$F$42>-7,1/7,1/9))),IF(F25=$F$42,1,IF(F25-$F$42<3,3,IF(F25-$F$42<5,5,IF(F25-$F$42<7,7,9)))))) -> 0 | X57: =IF(OR('Input-Facilities'!O36=FALSE,'Input-Facilities'!$O$52=FALSE),0,IF(F25-$F$43<0,IF(F25-$F$43>=-3,1/3,IF(F25-$F$43>=-5,1/5,IF(F25-$F$43>=-7,1/7,1/9))),IF(F25=$F$43,1,IF(F25-$F$43<=3,3,IF(F25-$F$43<=5,5,IF(F25-$F$43<=7,7,9)))))) -> 0 | Y57: =IF(OR('Input-Facilities'!O36=FALSE,'Input-Facilities'!$O$53=FALSE),0,IF(F25-$F$46<0,IF(F25-$F$46>-3,1/3,IF(F25-$F$46>-5,1/5,IF(F25-$F$46>-7,1/7,1/9))),IF(F25=$F$46,1,IF(F25-$F$46<3,3,IF(F25-$F$46<5,5,IF(F25-$F$46<7,7,9)))))) -> 0 | Z57: =IF(OR('Input-Facilities'!O36=FALSE,'Input-Facilities'!$O$54=FALSE),0,IF(F25-$F$47<0,IF(F25-$F$47>-3,1/3,IF(F25-$F$47>-5,1/5,IF(F25-$F$47>-7,1/7,1/9))),IF(F25=$F$47,1,IF(F25-$F$47<3,3,IF(F25-$F$47<5,5,IF(F25-$F$47<7,7,9)))))) -> 0 | AA57: =IF(OR('Input-Facilities'!O36=FALSE,'Input-Facilities'!$O$55=FALSE),0,IF(F25-$K$30<0,IF(F25-$K$30>-3,1/3,IF(F25-$K$30>-5,1/5,IF(F25-$K$30>-7,1/7,1/9))),IF(F25=$K$30,1,IF(F25-$K$30<3,3,IF(F25-$K$30<5,5,IF(F25-$K$30<7,7,9)))))) -> 0 | AB57: =IF(OR('Input-Facilities'!O36=FALSE,'Input-Facilities'!$O$61=FALSE),0,IF(F25-$K$31<0,IF(F25-$K$31>=-3,1/3,IF(F25-$K$31>=-5,1/5,IF(F25-$K$31>=-7,1/7,1/9))),IF(F25=$K$31,1,IF(F25-$K$31<=3,3,IF(F25-$K$31<=5,5,IF(F25-$K$31<=7,7,9)))))) -> 0
D58: =D26 -> Test equipment: Level 1 | F58: =IF(ISERROR(1/I$55),0,IF(OR('Input-Facilities'!$N$34=FALSE,'Input-Facilities'!$N37=FALSE),0,1/I$55)) -> 0 | G58: =IF(ISERROR(1/I$56),0,IF(OR('Input-Facilities'!$O$35=FALSE,'Input-Facilities'!$O37=FALSE),0,1/I$56)) -> 0 | H58: =IF(ISERROR(1/I$57),0,IF(OR('Input-Facilities'!$O$36=FALSE,'Input-Facilities'!$O37=FALSE),0,1/I$57)) -> 0 | I58: =IF('Input-Facilities'!O37=FALSE,0,1) -> 0 | J58: =IF(OR('Input-Facilities'!O37=FALSE,'Input-Facilities'!$O$38=FALSE),0,IF(F26-$F$27<0,IF(F26-$F$27>-3,1/3,IF(F26-$F$27>-5,1/5,IF(F26-$F$27>-7,1/7,1/9))),IF(F26=$F$27,1,IF(F26-$F$27<3,3,IF(F26-$F$27<5,5,IF(F26-$F$27<7,7,9)))))) -> 0 | K58: =IF(OR('Input-Facilities'!O37=FALSE,'Input-Facilities'!$O$39=FALSE),0,IF(F26-$K$22<0,IF(F26-$K$22>-3,1/3,IF(F26-$K$22>-5,1/5,IF(F26-$K$22>-7,1/7,1/9))),IF(F26=$K$22,1,IF(F26-$K$22<3,3,IF(F26-$K$22<5,5,IF(F26-$K$22<7,7,9)))))) -> 0 | L58: =IF(OR('Input-Facilities'!O37=FALSE,'Input-Facilities'!$O$40=FALSE),0,IF(F26-$K$23<0,IF(F26-$K$23>-3,1/3,IF(F26-$K$23>-5,1/5,IF(F26-$K$23>-7,1/7,1/9))),IF(F26=$K$23,1,IF(F26-$K$23<3,3,IF(F26-$K$23<5,5,IF(F26-$K$23<7,7,9)))))) -> 0 | M58: =IF(OR('Input-Facilities'!O37=FALSE,'Input-Facilities'!$O$41=FALSE),0,IF(F26-$K$24<0,IF(F26-$K$24>=-3,1/3,IF(F26-$K$24>=-5,1/5,IF(F26-$K$24>=-7,1/7,1/9))),IF(F26=$K$24,1,IF(F26-$K$24<=3,3,IF(F26-$K$24<=5,5,IF(F26-$K$24<=7,7,9)))))) -> 0 | N58: =IF(OR('Input-Facilities'!O37=FALSE,'Input-Facilities'!$O$42=FALSE),0,IF(F26-$K$25<0,IF(F26-$K$25>=-3,1/3,IF(F26-$K$25>=-5,1/5,IF(F26-$K$25>=-7,1/7,1/9))),IF(F26=$K$25,1,IF(F26-$K$25<=3,3,IF(F26-$K$25<=5,5,IF(F26-$K$25<=7,7,9)))))) -> 0 | O58: =IF(OR('Input-Facilities'!O37=FALSE,'Input-Facilities'!$O$43=FALSE),0,IF(F26-$K$26<0,IF(F26-$K$26>=-3,1/3,IF(F26-$K$26>=-5,1/5,IF(F26-$K$26>=-7,1/7,1/9))),IF(F26=$K$26,1,IF(F26-$K$26<=3,3,IF(F26-$K$26<=5,5,IF(F26-$K$26<=7,7,9)))))) -> 0 | P58: =IF(OR('Input-Facilities'!O37=FALSE,'Input-Facilities'!$O$44=FALSE),0,IF(F26-$K$27<0,IF(F26-$K$27>=-3,1/3,IF(F26-$K$27>=-5,1/5,IF(F26-$K$27>=-7,1/7,1/9))),IF(F26=$K$27,1,IF(F26-$K$27<=3,3,IF(F26-$K$27<=5,5,IF(F26-$K$27<=7,7,9)))))) -> 0 | Q58: =IF(OR('Input-Facilities'!O37=FALSE,'Input-Facilities'!$O$45=FALSE),0,IF(F26-$F$30<0,IF(F26-$F$30>=-3,1/3,IF(F26-$F$30>=-5,1/5,IF(F26-$F$30>=-7,1/7,1/9))),IF(F26=$F$30,1,IF(F26-$F$30<=3,3,IF(F26-$F$30<=5,5,IF(F26-$F$30<=7,7,9)))))) -> 0 | R58: =IF(OR('Input-Facilities'!O37=FALSE,'Input-Facilities'!$O$46=FALSE),0,IF(F26-$F$31<0,IF(F26-$F$31>=-3,1/3,IF(F26-$F$31>=-5,1/5,IF(F26-$F$31>=-7,1/7,1/9))),IF(F26=$F$31,1,IF(F26-$F$31<=3,3,IF(F26-$F$31<=5,5,IF(F26-$F$31<=7,7,9)))))) -> 0 | S58: =IF(OR('Input-Facilities'!O37=FALSE,'Input-Facilities'!$O$47=FALSE),0,IF(F26-$F$34<0,IF(F26-$F$34>=-3,1/3,IF(F26-$F$34>=-5,1/5,IF(F26-$F$34>=-7,1/7,1/9))),IF(F26=$F$34,1,IF(F26-$F$34<=3,3,IF(F26-$F$34<=5,5,IF(F26-$F$34<=7,7,9)))))) -> 0 | T58: =IF(OR('Input-Facilities'!O37=FALSE,'Input-Facilities'!$O$48=FALSE),0,IF(F26-$F$35<0,IF(F26-$F$35>=-3,1/3,IF(F26-$F$35>=-5,1/5,IF(F26-$F$35>=-7,1/7,1/9))),IF(F26=$F$35,1,IF(F26-$F$35<=3,3,IF(F26-$F$35<=5,5,IF(F26-$F$35<=7,7,9)))))) -> 0 | U58: =IF(OR('Input-Facilities'!O37=FALSE,'Input-Facilities'!$O$49=FALSE),0,IF(F26-$F$38<0,IF(F26-$F$38>=-3,1/3,IF(F26-$F$38>=-5,1/5,IF(F26-$F$38>=-7,1/7,1/9))),IF(F26=$F$38,1,IF(F26-$F$38<=3,3,IF(F26-$F$38<=5,5,IF(F26-$F$38<=7,7,9)))))) -> 0 | V58: =IF(OR('Input-Facilities'!O37=FALSE,'Input-Facilities'!$O$50=FALSE),0,IF(F26-$F$39<0,IF(F26-$F$39>=-3,1/3,IF(F26-$F$39>=-5,1/5,IF(F26-$F$39>=-7,1/7,1/9))),IF(F26=$F$39,1,IF(F26-$F$39<=3,3,IF(F26-$F$39<=5,5,IF(F26-$F$39<=7,7,9)))))) -> 0 | W58: =IF(OR('Input-Facilities'!O37=FALSE,'Input-Facilities'!$O$51=FALSE),0,IF(F26-$F$42<0,IF(F26-$F$42>=-3,1/3,IF(F26-$F$42>=-5,1/5,IF(F26-$F$42>=-7,1/7,1/9))),IF(F26=$F$42,1,IF(F26-$F$42<=3,3,IF(F26-$F$42<=5,5,IF(F26-$F$42<=7,7,9)))))) -> 0 | X58: =IF(OR('Input-Facilities'!O37=FALSE,'Input-Facilities'!$O$52=FALSE),0,IF(F26-$F$43<0,IF(F26-$F$43>=-3,1/3,IF(F26-$F$43>=-5,1/5,IF(F26-$F$43>=-7,1/7,1/9))),IF(F26=$F$43,1,IF(F26-$F$43<=3,3,IF(F26-$F$43<=5,5,IF(F26-$F$43<=7,7,9)))))) -> 0 | Y58: =IF(OR('Input-Facilities'!O37=FALSE,'Input-Facilities'!$O$53=FALSE),0,IF(F26-$F$46<0,IF(F26-$F$46>=-3,1/3,IF(F26-$F$46>=-5,1/5,IF(F26-$F$46>=-7,1/7,1/9))),IF(F26=$F$46,1,IF(F26-$F$46<=3,3,IF(F26-$F$46<=5,5,IF(F26-$F$46<=7,7,9)))))) -> 0 | Z58: =IF(OR('Input-Facilities'!O37=FALSE,'Input-Facilities'!$O$54=FALSE),0,IF(F26-$F$47<0,IF(F26-$F$47>=-3,1/3,IF(F26-$F$47>=-5,1/5,IF(F26-$F$47>=-7,1/7,1/9))),IF(F26=$F$47,1,IF(F26-$F$47<=3,3,IF(F26-$F$47<=5,5,IF(F26-$F$47<=7,7,9)))))) -> 0 | AA58: =IF(OR('Input-Facilities'!O37=FALSE,'Input-Facilities'!$O$55=FALSE),0,IF(F26-$K$30<0,IF(F26-$K$30>=-3,1/3,IF(F26-$K$30>=-5,1/5,IF(F26-$K$30>=-7,1/7,1/9))),IF(F26=$K$30,1,IF(F26-$K$30<=3,3,IF(F26-$K$30<=5,5,IF(F26-$K$30<=7,7,9)))))) -> 0 | AB58: =IF(OR('Input-Facilities'!O37=FALSE,'Input-Facilities'!$O$61=FALSE),0,IF(F26-$K$31<0,IF(F26-$K$31>=-3,1/3,IF(F26-$K$31>=-5,1/5,IF(F26-$K$31>=-7,1/7,1/9))),IF(F26=$K$31,1,IF(F26-$K$31<=3,3,IF(F26-$K$31<=5,5,IF(F26-$K$31<=7,7,9)))))) -> 0
D59: =D27 -> Facilities: Level 1 | F59: =IF(ISERROR(1/J$55),0,IF(OR('Input-Facilities'!$O$34=FALSE,'Input-Facilities'!$O38=FALSE),0,1/J$55)) -> 0 | G59: =IF(ISERROR(1/J$56),0,IF(OR('Input-Facilities'!$O$35=FALSE,'Input-Facilities'!$O38=FALSE),0,1/J$56)) -> 0 | H59: =IF(ISERROR(1/J$57),0,IF(OR('Input-Facilities'!$O$36=FALSE,'Input-Facilities'!$O38=FALSE),0,1/J$57)) -> 0 | I59: =IF(ISERROR(1/J$58),0,IF(OR('Input-Facilities'!$O$37=FALSE,'Input-Facilities'!$O38=FALSE),0,1/J$58)) -> 0 | J59: =IF('Input-Facilities'!O38=FALSE,0,1) -> 0 | K59: =IF(OR('Input-Facilities'!O38=FALSE,'Input-Facilities'!$O$39=FALSE),0,IF(F27-$K$22<0,IF(F27-$K$22>=-3,1/3,IF(F27-$K$22>=-5,1/5,IF(F27-$K$22>=-7,1/7,1/9))),IF(F27=$K$22,1,IF(F27-$K$22<=3,3,IF(F27-$K$22<=5,5,IF(F27-$K$22<=7,7,9)))))) -> 0 | L59: =IF(OR('Input-Facilities'!O38=FALSE,'Input-Facilities'!$O$40=FALSE),0,IF(F27-$K$23<0,IF(F27-$K$23>=-3,1/3,IF(F27-$K$23>=-5,1/5,IF(F27-$K$23>=-7,1/7,1/9))),IF(F27=$K$23,1,IF(F27-$K$23<=3,3,IF(F27-$K$23<=5,5,IF(F27-$K$23<=7,7,9)))))) -> 0 | M59: =IF(OR('Input-Facilities'!O38=FALSE,'Input-Facilities'!$O$41=FALSE),0,IF(F27-$K$24<0,IF(F27-$K$24>=-3,1/3,IF(F27-$K$24>=-5,1/5,IF(F27-$K$24>=-7,1/7,1/9))),IF(F27=$K$24,1,IF(F27-$K$24<=3,3,IF(F27-$K$24<=5,5,IF(F27-$K$24<=7,7,9)))))) -> 0 | N59: =IF(OR('Input-Facilities'!O38=FALSE,'Input-Facilities'!$O$42=FALSE),0,IF(F27-$K$25<0,IF(F27-$K$25>=-3,1/3,IF(F27-$K$25>=-5,1/5,IF(F27-$K$25>=-7,1/7,1/9))),IF(F27=$K$25,1,IF(F27-$K$25<=3,3,IF(F27-$K$25<=5,5,IF(F27-$K$25<=7,7,9)))))) -> 0 | O59: =IF(OR('Input-Facilities'!O38=FALSE,'Input-Facilities'!$O$43=FALSE),0,IF(F27-$K$26<0,IF(F27-$K$26>=-3,1/3,IF(F27-$K$26>=-5,1/5,IF(F27-$K$26>=-7,1/7,1/9))),IF(F27=$K$26,1,IF(F27-$K$26<=3,3,IF(F27-$K$26<=5,5,IF(F27-$K$26<=7,7,9)))))) -> 0 | P59: =IF(OR('Input-Facilities'!O38=FALSE,'Input-Facilities'!$O$44=FALSE),0,IF(F27-$K$27<0,IF(F27-$K$27>=-3,1/3,IF(F27-$K$27>=-5,1/5,IF(F27-$K$27>=-7,1/7,1/9))),IF(F27=$K$27,1,IF(F27-$K$27<=3,3,IF(F27-$K$27<=5,5,IF(F27-$K$27<=7,7,9)))))) -> 0 | Q59: =IF(OR('Input-Facilities'!O38=FALSE,'Input-Facilities'!$O$45=FALSE),0,IF(F27-$F$30<0,IF(F27-$F$30>=-3,1/3,IF(F27-$F$30>=-5,1/5,IF(F27-$F$30>=-7,1/7,1/9))),IF(F27=$F$30,1,IF(F27-$F$30<=3,3,IF(F27-$F$30<=5,5,IF(F27-$F$30<=7,7,9)))))) -> 0 | R59: =IF(OR('Input-Facilities'!O38=FALSE,'Input-Facilities'!$O$46=FALSE),0,IF(F27-$F$31<0,IF(F27-$F$31>=-3,1/3,IF(F27-$F$31>=-5,1/5,IF(F27-$F$31>=-7,1/7,1/9))),IF(F27=$F$31,1,IF(F27-$F$31<=3,3,IF(F27-$F$31<=5,5,IF(F27-$F$31<=7,7,9)))))) -> 0 | S59: =IF(OR('Input-Facilities'!O38=FALSE,'Input-Facilities'!$O$47=FALSE),0,IF(F27-$F$34<0,IF(F27-$F$34>=-3,1/3,IF(F27-$F$34>=-5,1/5,IF(F27-$F$34>=-7,1/7,1/9))),IF(F27=$F$34,1,IF(F27-$F$34<=3,3,IF(F27-$F$34<=5,5,IF(F27-$F$34<=7,7,9)))))) -> 0 | T59: =IF(OR('Input-Facilities'!O38=FALSE,'Input-Facilities'!$O$48=FALSE),0,IF(F27-$F$35<0,IF(F27-$F$35>=-3,1/3,IF(F27-$F$35>=-5,1/5,IF(F27-$F$35>=-7,1/7,1/9))),IF(F27=$F$35,1,IF(F27-$F$35<=3,3,IF(F27-$F$35<=5,5,IF(F27-$F$35<=7,7,9)))))) -> 0 | U59: =IF(OR('Input-Facilities'!O38=FALSE,'Input-Facilities'!$O$49=FALSE),0,IF(F27-$F$38<0,IF(F27-$F$38>=-3,1/3,IF(F27-$F$38>=-5,1/5,IF(F27-$F$38>=-7,1/7,1/9))),IF(F27=$F$38,1,IF(F27-$F$38<=3,3,IF(F27-$F$38<=5,5,IF(F27-$F$38<=7,7,9)))))) -> 0 | V59: =IF(OR('Input-Facilities'!O38=FALSE,'Input-Facilities'!$O$50=FALSE),0,IF(F27-$F$39<0,IF(F27-$F$39>=-3,1/3,IF(F27-$F$39>=-5,1/5,IF(F27-$F$39>=-7,1/7,1/9))),IF(F27=$F$39,1,IF(F27-$F$39<=3,3,IF(F27-$F$39<=5,5,IF(F27-$F$39<=7,7,9)))))) -> 0 | W59: =IF(OR('Input-Facilities'!O38=FALSE,'Input-Facilities'!$O$51=FALSE),0,IF(F27-$F$42<0,IF(F27-$F$42>=-3,1/3,IF(F27-$F$42>=-5,1/5,IF(F27-$F$42>=-7,1/7,1/9))),IF(F27=$F$42,1,IF(F27-$F$42<=3,3,IF(F27-$F$42<=5,5,IF(F27-$F$42<=7,7,9)))))) -> 0 | X59: =IF(OR('Input-Facilities'!O38=FALSE,'Input-Facilities'!$O$52=FALSE),0,IF(F27-$F$43<0,IF(F27-$F$43>=-3,1/3,IF(F27-$F$43>=-5,1/5,IF(F27-$F$43>=-7,1/7,1/9))),IF(F27=$F$43,1,IF(F27-$F$43<=3,3,IF(F27-$F$43<=5,5,IF(F27-$F$43<=7,7,9)))))) -> 0 | Y59: =IF(OR('Input-Facilities'!O38=FALSE,'Input-Facilities'!$O$53=FALSE),0,IF(F27-$F$46<0,IF(F27-$F$46>=-3,1/3,IF(F27-$F$46>=-5,1/5,IF(F27-$F$46>=-7,1/7,1/9))),IF(F27=$F$46,1,IF(F27-$F$46<=3,3,IF(F27-$F$46<=5,5,IF(F27-$F$46<=7,7,9)))))) -> 0 | Z59: =IF(OR('Input-Facilities'!O38=FALSE,'Input-Facilities'!$O$54=FALSE),0,IF(F27-$F$47<0,IF(F27-$F$47>=-3,1/3,IF(F27-$F$47>=-5,1/5,IF(F27-$F$47>=-7,1/7,1/9))),IF(F27=$F$47,1,IF(F27-$F$47<=3,3,IF(F27-$F$47<=5,5,IF(F27-$F$47<=7,7,9)))))) -> 0 | AA59: =IF(OR('Input-Facilities'!O38=FALSE,'Input-Facilities'!$O$55=FALSE),0,IF(F27-$K$30<0,IF(F27-$K$30>=-3,1/3,IF(F27-$K$30>=-5,1/5,IF(F27-$K$30>=-7,1/7,1/9))),IF(F27=$K$30,1,IF(F27-$K$30<=3,3,IF(F27-$K$30<=5,5,IF(F27-$K$30<=7,7,9)))))) -> 0 | AB59: =IF(OR('Input-Facilities'!O38=FALSE,'Input-Facilities'!$O$61=FALSE),0,IF(F27-$K$31<0,IF(F27-$K$31>=-3,1/3,IF(F27-$K$31>=-5,1/5,IF(F27-$K$31>=-7,1/7,1/9))),IF(F27=$K$31,1,IF(F27-$K$31<=3,3,IF(F27-$K$31<=5,5,IF(F27-$K$31<=7,7,9)))))) -> 0
D60: =J22 -> EADS % | F60: =IF(ISERROR(1/K$55),0,IF(OR('Input-Facilities'!$O$34=FALSE,'Input-Facilities'!$O39=FALSE),0,1/K$55)) -> 0 | G60: =IF(ISERROR(1/K$56),0,IF(OR('Input-Facilities'!$O$35=FALSE,'Input-Facilities'!$O39=FALSE),0,1/K$56)) -> 0 | H60: =IF(ISERROR(1/K$57),0,IF(OR('Input-Facilities'!$O$36=FALSE,'Input-Facilities'!$O39=FALSE),0,1/K$57)) -> 0 | I60: =IF(ISERROR(1/K$58),0,IF(OR('Input-Facilities'!$O$37=FALSE,'Input-Facilities'!$O39=FALSE),0,1/K$58)) -> 0 | J60: =IF(ISERROR(1/K$59),0,IF(OR('Input-Facilities'!$O$38=FALSE,'Input-Facilities'!$O39=FALSE),0,1/K$59)) -> 0 | K60: =IF('Input-Facilities'!O39=FALSE,0,1) -> 0 | L60: =IF(OR('Input-Facilities'!O39=FALSE,'Input-Facilities'!$O$40=FALSE),0,IF(K22-$K$23<0,IF(K22-$K$23>=-3,1/3,IF(K22-$K$23>=-5,1/5,IF(K22-$K$23>=-7,1/7,1/9))),IF(K22=$K$23,1,IF(K22-$K$23<=3,3,IF(K22-$K$23<=5,5,IF(K22-$K$23<=7,7,9)))))) -> 0 | M60: =IF(OR('Input-Facilities'!O39=FALSE,'Input-Facilities'!$O$41=FALSE),0,IF(K22-$K$24<0,IF(K22-$K$24>=-3,1/3,IF(K22-$K$24>=-5,1/5,IF(K22-$K$24>=-7,1/7,1/9))),IF(K22=$K$24,1,IF(K22-$K$24<=3,3,IF(K22-$K$24<=5,5,IF(K22-$K$24<=7,7,9)))))) -> 0 | N60: =IF(OR('Input-Facilities'!O39=FALSE,'Input-Facilities'!$O$42=FALSE),0,IF(K22-$K$25<0,IF(K22-$K$25>=-3,1/3,IF(K22-$K$25>=-5,1/5,IF(K22-$K$25>=-7,1/7,1/9))),IF(K22=$K$25,1,IF(K22-$K$25<=3,3,IF(K22-$K$25<=5,5,IF(K22-$K$25<=7,7,9)))))) -> 0 | O60: =IF(OR('Input-Facilities'!O39=FALSE,'Input-Facilities'!$O$43=FALSE),0,IF(K22-$K$26<0,IF(K22-$K$26>=-3,1/3,IF(K22-$K$26>=-5,1/5,IF(K22-$K$26>=-7,1/7,1/9))),IF(K22=$K$26,1,IF(K22-$K$26<=3,3,IF(K22-$K$26<=5,5,IF(K22-$K$26<=7,7,9)))))) -> 0 | P60: =IF(OR('Input-Facilities'!O39=FALSE,'Input-Facilities'!$O$44=FALSE),0,IF(K22-$K$27<0,IF(K22-$K$27>=-3,1/3,IF(K22-$K$27>=-5,1/5,IF(K22-$K$27>=-7,1/7,1/9))),IF(K22=$K$27,1,IF(K22-$K$27<=3,3,IF(K22-$K$27<=5,5,IF(K22-$K$27<=7,7,9)))))) -> 0 | Q60: =IF(OR('Input-Facilities'!O39=FALSE,'Input-Facilities'!$O$45=FALSE),0,IF(K22-$F$30<0,IF(K22-$F$30>=-3,1/3,IF(K22-$F$30>=-5,1/5,IF(K22-$F$30>=-7,1/7,1/9))),IF(K22=$F$30,1,IF(K22-$F$30<=3,3,IF(K22-$F$30<=5,5,IF(K22-$F$30<=7,7,9)))))) -> 0 | R60: =IF(OR('Input-Facilities'!O39=FALSE,'Input-Facilities'!$O$46=FALSE),0,IF(K22-$F$31<0,IF(K22-$F$31>=-3,1/3,IF(K22-$F$31>=-5,1/5,IF(K22-$F$31>=-7,1/7,1/9))),IF(K22=$F$31,1,IF(K22-$F$31<=3,3,IF(K22-$F$31<=5,5,IF(K22-$F$31<=7,7,9)))))) -> 0 | S60: =IF(OR('Input-Facilities'!O39=FALSE,'Input-Facilities'!$O$47=FALSE),0,IF(K22-$F$34<0,IF(K22-$F$34>=-3,1/3,IF(K22-$F$34>=-5,1/5,IF(K22-$F$34>=-7,1/7,1/9))),IF(K22=$F$34,1,IF(K22-$F$34<=3,3,IF(K22-$F$34<=5,5,IF(K22-$F$34<=7,7,9)))))) -> 0 | T60: =IF(OR('Input-Facilities'!O39=FALSE,'Input-Facilities'!$O$48=FALSE),0,IF(K22-$F$35<0,IF(K22-$F$35>=-3,1/3,IF(K22-$F$35>=-5,1/5,IF(K22-$F$35>=-7,1/7,1/9))),IF(K22=$F$35,1,IF(K22-$F$35<=3,3,IF(K22-$F$35<=5,5,IF(K22-$F$35<=7,7,9)))))) -> 0 | U60: =IF(OR('Input-Facilities'!O39=FALSE,'Input-Facilities'!$O$49=FALSE),0,IF(K22-$F$38<0,IF(K22-$F$38>=-3,1/3,IF(K22-$F$38>=-5,1/5,IF(K22-$F$38>=-7,1/7,1/9))),IF(K22=$F$38,1,IF(K22-$F$38<=3,3,IF(K22-$F$38<=5,5,IF(K22-$F$38<=7,7,9)))))) -> 0 | V60: =IF(OR('Input-Facilities'!O39=FALSE,'Input-Facilities'!$O$50=FALSE),0,IF(K22-$F$39<0,IF(K22-$F$39>=-3,1/3,IF(K22-$F$39>=-5,1/5,IF(K22-$F$39>=-7,1/7,1/9))),IF(K22=$F$39,1,IF(K22-$F$39<=3,3,IF(K22-$F$39<=5,5,IF(K22-$F$39<=7,7,9)))))) -> 0 | W60: =IF(OR('Input-Facilities'!O39=FALSE,'Input-Facilities'!$O$51=FALSE),0,IF(K22-$F$42<0,IF(K22-$F$42>=-3,1/3,IF(K22-$F$42>=-5,1/5,IF(K22-$F$42>=-7,1/7,1/9))),IF(K22=$F$42,1,IF(K22-$F$42<=3,3,IF(K22-$F$42<=5,5,IF(K22-$F$42<=7,7,9)))))) -> 0 | X60: =IF(OR('Input-Facilities'!O39=FALSE,'Input-Facilities'!$O$52=FALSE),0,IF(K22-$F$43<0,IF(K22-$F$43>=-3,1/3,IF(K22-$F$43>=-5,1/5,IF(K22-$F$43>=-7,1/7,1/9))),IF(K22=$F$43,1,IF(K22-$F$43<=3,3,IF(K22-$F$43<=5,5,IF(K22-$F$43<=7,7,9)))))) -> 0 | Y60: =IF(OR('Input-Facilities'!O39=FALSE,'Input-Facilities'!$O$53=FALSE),0,IF(K22-$F$46<0,IF(K22-$F$46>=-3,1/3,IF(K22-$F$46>=-5,1/5,IF(K22-$F$46>=-7,1/7,1/9))),IF(K22=$F$46,1,IF(K22-$F$46<=3,3,IF(K22-$F$46<=5,5,IF(K22-$F$46<=7,7,9)))))) -> 0 | Z60: =IF(OR('Input-Facilities'!O39=FALSE,'Input-Facilities'!$O$54=FALSE),0,IF(K22-$F$47<0,IF(K22-$F$47>=-3,1/3,IF(K22-$F$47>=-5,1/5,IF(K22-$F$47>=-7,1/7,1/9))),IF(K22=$F$47,1,IF(K22-$F$47<=3,3,IF(K22-$F$47<=5,5,IF(K22-$F$47<=7,7,9)))))) -> 0 | AA60: =IF(OR('Input-Facilities'!O39=FALSE,'Input-Facilities'!$O$55=FALSE),0,IF(K22-$K$30<0,IF(K22-$K$30>=-3,1/3,IF(K22-$K$30>=-5,1/5,IF(K22-$K$30>=-7,1/7,1/9))),IF(K22=$K$30,1,IF(K22-$K$30<=3,3,IF(K22-$K$30<=5,5,IF(K22-$K$30<=7,7,9)))))) -> 0 | AB60: =IF(OR('Input-Facilities'!O39=FALSE,'Input-Facilities'!$O$61=FALSE),0,IF(K22-$K$31<0,IF(K22-$K$31>=-3,1/3,IF(K22-$K$31>=-5,1/5,IF(K22-$K$31>=-7,1/7,1/9))),IF(K22=$K$31,1,IF(K22-$K$31<=3,3,IF(K22-$K$31<=5,5,IF(K22-$K$31<=7,7,9)))))) -> 0
D61: People: Level 1 | F61: =IF(ISERROR(1/L$55),0,IF(OR('Input-Facilities'!$O$34=FALSE,'Input-Facilities'!$O40=FALSE),0,1/L$55)) -> 0 | G61: =IF(ISERROR(1/L$56),0,IF(OR('Input-Facilities'!$O$35=FALSE,'Input-Facilities'!$O40=FALSE),0,1/L$56)) -> 0 | H61: =IF(ISERROR(1/L$57),0,IF(OR('Input-Facilities'!$O$36=FALSE,'Input-Facilities'!$O40=FALSE),0,1/L$57)) -> 0 | I61: =IF(ISERROR(1/L$58),0,IF(OR('Input-Facilities'!$O$37=FALSE,'Input-Facilities'!$O40=FALSE),0,1/L$58)) -> 0 | J61: =IF(ISERROR(1/L$59),0,IF(OR('Input-Facilities'!$O$38=FALSE,'Input-Facilities'!$O40=FALSE),0,1/L$59)) -> 0 | K61: =IF(ISERROR(1/L$60),0,IF(OR('Input-Facilities'!$O$39=FALSE,'Input-Facilities'!$O40=FALSE),0,1/L$60)) -> 0 | L61: =IF('Input-Facilities'!O40=FALSE,0,1) -> 0 | M61: =IF(OR('Input-Facilities'!O40=FALSE,'Input-Facilities'!$O$41=FALSE),0,IF(K23-$K$24<0,IF(K23-$K$24>=-3,1/3,IF(K23-$K$24>=-5,1/5,IF(K23-$K$24>=-7,1/7,1/9))),IF(K23=$K$24,1,IF(K23-$K$24<=3,3,IF(K23-$K$24<=5,5,IF(K23-$K$24<=7,7,9)))))) -> 0 | N61: =IF(OR('Input-Facilities'!O40=FALSE,'Input-Facilities'!$O$42=FALSE),0,IF(K23-$K$25<0,IF(K23-$K$25>=-3,1/3,IF(K23-$K$25>=-5,1/5,IF(K23-$K$25>=-7,1/7,1/9))),IF(K23=$K$25,1,IF(K23-$K$25<=3,3,IF(K23-$K$25<=5,5,IF(K23-$K$25<=7,7,9)))))) -> 0 | O61: =IF(OR('Input-Facilities'!O40=FALSE,'Input-Facilities'!$O$43=FALSE),0,IF(K23-$K$26<0,IF(K23-$K$26>=-3,1/3,IF(K23-$K$26>=-5,1/5,IF(K23-$K$26>=-7,1/7,1/9))),IF(K23=$K$26,1,IF(K23-$K$26<=3,3,IF(K23-$K$26<=5,5,IF(K23-$K$26<=7,7,9)))))) -> 0 | P61: =IF(OR('Input-Facilities'!O40=FALSE,'Input-Facilities'!$O$44=FALSE),0,IF(K23-$K$27<0,IF(K23-$K$27>=-3,1/3,IF(K23-$K$27>=-5,1/5,IF(K23-$K$27>=-7,1/7,1/9))),IF(K23=$K$27,1,IF(K23-$K$27<=3,3,IF(K23-$K$27<=5,5,IF(K23-$K$27<=7,7,9)))))) -> 0 | Q61: =IF(OR('Input-Facilities'!O40=FALSE,'Input-Facilities'!$O$45=FALSE),0,IF(K23-$F$30<0,IF(K23-$F$30>=-3,1/3,IF(K23-$F$30>=-5,1/5,IF(K23-$F$30>=-7,1/7,1/9))),IF(K23=$F$30,1,IF(K23-$F$30<=3,3,IF(K23-$F$30<=5,5,IF(K23-$F$30<=7,7,9)))))) -> 0 | R61: =IF(OR('Input-Facilities'!O40=FALSE,'Input-Facilities'!$O$46=FALSE),0,IF(K23-$F$31<0,IF(K23-$F$31>=-3,1/3,IF(K23-$F$31>=-5,1/5,IF(K23-$F$31>=-7,1/7,1/9))),IF(K23=$F$31,1,IF(K23-$F$31<=3,3,IF(K23-$F$31<=5,5,IF(K23-$F$31<=7,7,9)))))) -> 0 | S61: =IF(OR('Input-Facilities'!O40=FALSE,'Input-Facilities'!$O$47=FALSE),0,IF(K23-$F$34<0,IF(K23-$F$34>=-3,1/3,IF(K23-$F$34>=-5,1/5,IF(K23-$F$34>=-7,1/7,1/9))),IF(K23=$F$34,1,IF(K23-$F$34<=3,3,IF(K23-$F$34<=5,5,IF(K23-$F$34<=7,7,9)))))) -> 0 | T61: =IF(OR('Input-Facilities'!O40=FALSE,'Input-Facilities'!$O$48=FALSE),0,IF(K23-$F$35<0,IF(K23-$F$35>=-3,1/3,IF(K23-$F$35>=-5,1/5,IF(K23-$F$35>=-7,1/7,1/9))),IF(K23=$F$35,1,IF(K23-$F$35<=3,3,IF(K23-$F$35<=5,5,IF(K23-$F$35<=7,7,9)))))) -> 0 | U61: =IF(OR('Input-Facilities'!O40=FALSE,'Input-Facilities'!$O$49=FALSE),0,IF(K23-$F$38<0,IF(K23-$F$38>=-3,1/3,IF(K23-$F$38>=-5,1/5,IF(K23-$F$38>=-7,1/7,1/9))),IF(K23=$F$38,1,IF(K23-$F$38<=3,3,IF(K23-$F$38<=5,5,IF(K23-$F$38<=7,7,9)))))) -> 0 | V61: =IF(OR('Input-Facilities'!O40=FALSE,'Input-Facilities'!$O$50=FALSE),0,IF(K23-$F$39<0,IF(K23-$F$39>=-3,1/3,IF(K23-$F$39>=-5,1/5,IF(K23-$F$39>=-7,1/7,1/9))),IF(K23=$F$39,1,IF(K23-$F$39<=3,3,IF(K23-$F$39<=5,5,IF(K23-$F$39<=7,7,9)))))) -> 0 | W61: =IF(OR('Input-Facilities'!O40=FALSE,'Input-Facilities'!$O$51=FALSE),0,IF(K23-$F$42<0,IF(K23-$F$42>=-3,1/3,IF(K23-$F$42>=-5,1/5,IF(K23-$F$42>=-7,1/7,1/9))),IF(K23=$F$42,1,IF(K23-$F$42<=3,3,IF(K23-$F$42<=5,5,IF(K23-$F$42<=7,7,9)))))) -> 0 | X61: =IF(OR('Input-Facilities'!O40=FALSE,'Input-Facilities'!$O$52=FALSE),0,IF(K23-$F$43<0,IF(K23-$F$43>=-3,1/3,IF(K23-$F$43>=-5,1/5,IF(K23-$F$43>=-7,1/7,1/9))),IF(K23=$F$43,1,IF(K23-$F$43<=3,3,IF(K23-$F$43<=5,5,IF(K23-$F$43<=7,7,9)))))) -> 0 | Y61: =IF(OR('Input-Facilities'!O40=FALSE,'Input-Facilities'!$O$53=FALSE),0,IF(K23-$F$46<0,IF(K23-$F$46>=-3,1/3,IF(K23-$F$46>=-5,1/5,IF(K23-$F$46>=-7,1/7,1/9))),IF(K23=$F$46,1,IF(K23-$F$46<=3,3,IF(K23-$F$46<=5,5,IF(K23-$F$46<=7,7,9)))))) -> 0 | Z61: =IF(OR('Input-Facilities'!O40=FALSE,'Input-Facilities'!$O$54=FALSE),0,IF(K23-$F$47<0,IF(K23-$F$47>=-3,1/3,IF(K23-$F$47>=-5,1/5,IF(K23-$F$47>=-7,1/7,1/9))),IF(K23=$F$47,1,IF(K23-$F$47<=3,3,IF(K23-$F$47<=5,5,IF(K23-$F$47<=7,7,9)))))) -> 0 | AA61: =IF(OR('Input-Facilities'!O40=FALSE,'Input-Facilities'!$O$55=FALSE),0,IF(K23-$K$30<0,IF(K23-$K$30>=-3,1/3,IF(K23-$K$30>=-5,1/5,IF(K23-$K$30>=-7,1/7,1/9))),IF(K23=$K$30,1,IF(K23-$K$30<=3,3,IF(K23-$K$30<=5,5,IF(K23-$K$30<=7,7,9)))))) -> 0 | AB61: =IF(OR('Input-Facilities'!O40=FALSE,'Input-Facilities'!$O$61=FALSE),0,IF(K23-$K$31<0,IF(K23-$K$31>=-3,1/3,IF(K23-$K$31>=-5,1/5,IF(K23-$K$31>=-7,1/7,1/9))),IF(K23=$K$31,1,IF(K23-$K$31<=3,3,IF(K23-$K$31<=5,5,IF(K23-$K$31<=7,7,9)))))) -> 0
D62: Spares: Level | F62: =IF(ISERROR(1/M$55),0,IF(OR('Input-Facilities'!$O$34=FALSE,'Input-Facilities'!$O41=FALSE),0,1/M$55)) -> 0 | G62: =IF(ISERROR(1/M$56),0,IF(OR('Input-Facilities'!$O$35=FALSE,'Input-Facilities'!$O41=FALSE),0,1/M$56)) -> 0 | H62: =IF(ISERROR(1/M$57),0,IF(OR('Input-Facilities'!$O$36=FALSE,'Input-Facilities'!$O41=FALSE),0,1/M$57)) -> 0 | I62: =IF(ISERROR(1/M$58),0,IF(OR('Input-Facilities'!$O$37=FALSE,'Input-Facilities'!$O41=FALSE),0,1/M$58)) -> 0 | J62: =IF(ISERROR(1/M$59),0,IF(OR('Input-Facilities'!$O$38=FALSE,'Input-Facilities'!$O41=FALSE),0,1/M$59)) -> 0 | K62: =IF(ISERROR(1/M$60),0,IF(OR('Input-Facilities'!$O$39=FALSE,'Input-Facilities'!$O41=FALSE),0,1/M$60)) -> 0 | L62: =IF(ISERROR(1/M$61),0,IF(OR('Input-Facilities'!$O$40=FALSE,'Input-Facilities'!$O41=FALSE),0,1/M$61)) -> 0 | M62: =IF('Input-Facilities'!O41=FALSE,0,1) -> 0 | N62: =IF(OR('Input-Facilities'!O41=FALSE,'Input-Facilities'!$O$42=FALSE),0,IF(K24-$K$25<0,IF(K24-$K$25>=-3,1/3,IF(K24-$K$25>=-5,1/5,IF(K24-$K$25>=-7,1/7,1/9))),IF(K24=$K$25,1,IF(K24-$K$25<=3,3,IF(K24-$K$25<=5,5,IF(K24-$K$25<=7,7,9)))))) -> 0 | O62: =IF(OR('Input-Facilities'!O41=FALSE,'Input-Facilities'!$O$43=FALSE),0,IF(K24-$K$26<0,IF(K24-$K$26>=-3,1/3,IF(K24-$K$26>=-5,1/5,IF(K24-$K$26>=-7,1/7,1/9))),IF(K24=$K$26,1,IF(K24-$K$26<=3,3,IF(K24-$K$26<=5,5,IF(K24-$K$26<=7,7,9)))))) -> 0 | P62: =IF(OR('Input-Facilities'!O41=FALSE,'Input-Facilities'!$O$44=FALSE),0,IF(K24-$K$27<0,IF(K24-$K$27>=-3,1/3,IF(K24-$K$27>=-5,1/5,IF(K24-$K$27>=-7,1/7,1/9))),IF(K24=$K$27,1,IF(K24-$K$27<=3,3,IF(K24-$K$27<=5,5,IF(K24-$K$27<=7,7,9)))))) -> 0 | Q62: =IF(OR('Input-Facilities'!O41=FALSE,'Input-Facilities'!$O$45=FALSE),0,IF(K24-$F$30<0,IF(K24-$F$30>=-3,1/3,IF(K24-$F$30>-5,1/5,IF(K24-$F$30>=-7,1/7,1/9))),IF(K24=$F$30,1,IF(K24-$F$30<=3,3,IF(K24-$F$30<=5,5,IF(K24-$F$30<=7,7,9)))))) -> 0 | R62: =IF(OR('Input-Facilities'!O41=FALSE,'Input-Facilities'!$O$46=FALSE),0,IF(K24-$F$31<0,IF(K24-$F$31>=-3,1/3,IF(K24-$F$31>=-5,1/5,IF(K24-$F$31>=-7,1/7,1/9))),IF(K24=$F$31,1,IF(K24-$F$31<=3,3,IF(K24-$F$31<=5,5,IF(K24-$F$31<=7,7,9)))))) -> 0 | S62: =IF(OR('Input-Facilities'!O41=FALSE,'Input-Facilities'!$O$47=FALSE),0,IF(K24-$F$34<0,IF(K24-$F$34>=-3,1/3,IF(K24-$F$34>=-5,1/5,IF(K24-$F$34>=-7,1/7,1/9))),IF(K24=$F$34,1,IF(K24-$F$34<=3,3,IF(K24-$F$34<=5,5,IF(K24-$F$34<=7,7,9)))))) -> 0 | T62: =IF(OR('Input-Facilities'!O41=FALSE,'Input-Facilities'!$O$48=FALSE),0,IF(K24-$F$35<0,IF(K24-$F$35>=-3,1/3,IF(K24-$F$35>=-5,1/5,IF(K24-$F$35>=-7,1/7,1/9))),IF(K24=$F$35,1,IF(K24-$F$35<=3,3,IF(K24-$F$35<=5,5,IF(K24-$F$35<=7,7,9)))))) -> 0 | U62: =IF(OR('Input-Facilities'!O41=FALSE,'Input-Facilities'!$O$49=FALSE),0,IF(K24-$F$38<0,IF(K24-$F$38>=-3,1/3,IF(K24-$F$38>=-5,1/5,IF(K24-$F$38>=-7,1/7,1/9))),IF(K24=$F$38,1,IF(K24-$F$38<=3,3,IF(K24-$F$38<=5,5,IF(K24-$F$38<=7,7,9)))))) -> 0 | V62: =IF(OR('Input-Facilities'!O41=FALSE,'Input-Facilities'!$O$50=FALSE),0,IF(K24-$F$39<0,IF(K24-$F$39>=-3,1/3,IF(K24-$F$39>=-5,1/5,IF(K24-$F$39>=-7,1/7,1/9))),IF(K24=$F$39,1,IF(K24-$F$39<=3,3,IF(K24-$F$39<=5,5,IF(K24-$F$39<=7,7,9)))))) -> 0 | W62: =IF(OR('Input-Facilities'!O41=FALSE,'Input-Facilities'!$O$51=FALSE),0,IF(K24-$F$42<0,IF(K24-$F$42>=-3,1/3,IF(K24-$F$42>=-5,1/5,IF(K24-$F$42>=-7,1/7,1/9))),IF(K24=$F$42,1,IF(K24-$F$42<=3,3,IF(K24-$F$42<=5,5,IF(K24-$F$42<=7,7,9)))))) -> 0 | X62: =IF(OR('Input-Facilities'!O41=FALSE,'Input-Facilities'!$O$52=FALSE),0,IF(K24-$F$43<0,IF(K24-$F$43>=-3,1/3,IF(K24-$F$43>=-5,1/5,IF(K24-$F$43>=-7,1/7,1/9))),IF(K24=$F$43,1,IF(K24-$F$43<=3,3,IF(K24-$F$43<=5,5,IF(K24-$F$43<=7,7,9)))))) -> 0 | Y62: =IF(OR('Input-Facilities'!O41=FALSE,'Input-Facilities'!$O$53=FALSE),0,IF(K24-$F$46<0,IF(K24-$F$46>=-3,1/3,IF(K24-$F$46>=-5,1/5,IF(K24-$F$46>=-7,1/7,1/9))),IF(K24=$F$46,1,IF(K24-$F$46<=3,3,IF(K24-$F$46<=5,5,IF(K24-$F$46<=7,7,9)))))) -> 0 | Z62: =IF(OR('Input-Facilities'!O41=FALSE,'Input-Facilities'!$O$54=FALSE),0,IF(K24-$F$47<0,IF(K24-$F$47>=-3,1/3,IF(K24-$F$47>=-5,1/5,IF(K24-$F$47>=-7,1/7,1/9))),IF(K24=$F$47,1,IF(K24-$F$47<=3,3,IF(K24-$F$47<=5,5,IF(K24-$F$47<=7,7,9)))))) -> 0 | AA62: =IF(OR('Input-Facilities'!O41=FALSE,'Input-Facilities'!$O$55=FALSE),0,IF(K24-$K$30<0,IF(K24-$K$30>=-3,1/3,IF(K24-$K$30>=-5,1/5,IF(K24-$K$30>=-7,1/7,1/9))),IF(K24=$K$30,1,IF(K24-$K$30<=3,3,IF(K24-$K$30<=5,5,IF(K24-$K$30<=7,7,9)))))) -> 0 | AB62: =IF(OR('Input-Facilities'!O41=FALSE,'Input-Facilities'!$O$61=FALSE),0,IF(K24-$K$31<0,IF(K24-$K$31>=-3,1/3,IF(K24-$K$31>=-5,1/5,IF(K24-$K$31>=-7,1/7,1/9))),IF(K24=$K$31,1,IF(K24-$K$31<=3,3,IF(K24-$K$31<=5,5,IF(K24-$K$31<=7,7,9)))))) -> 0
D63: Information: Level 1 | F63: =IF(ISERROR(1/N$55),0,IF(OR('Input-Facilities'!$O$34=FALSE,'Input-Facilities'!$O42=FALSE),0,1/N$55)) -> 0 | G63: =IF(ISERROR(1/N$56),0,IF(OR('Input-Facilities'!$O$35=FALSE,'Input-Facilities'!$O42=FALSE),0,1/N$56)) -> 0 | H63: =IF(ISERROR(1/N$57),0,IF(OR('Input-Facilities'!$O$36=FALSE,'Input-Facilities'!$O42=FALSE),0,1/N$57)) -> 0 | I63: =IF(ISERROR(1/N$58),0,IF(OR('Input-Facilities'!$O$37=FALSE,'Input-Facilities'!$O42=FALSE),0,1/N$58)) -> 0 | J63: =IF(ISERROR(1/N$59),0,IF(OR('Input-Facilities'!$O$38=FALSE,'Input-Facilities'!$O42=FALSE),0,1/N$59)) -> 0 | K63: =IF(ISERROR(1/N$60),0,IF(OR('Input-Facilities'!$O$39=FALSE,'Input-Facilities'!$O42=FALSE),0,1/N$60)) -> 0 | L63: =IF(ISERROR(1/N$61),0,IF(OR('Input-Facilities'!$O$40=FALSE,'Input-Facilities'!$O42=FALSE),0,1/N$61)) -> 0 | M63: =IF(ISERROR(1/N$62),0,IF(OR('Input-Facilities'!$O$41=FALSE,'Input-Facilities'!$O42=FALSE),0,1/N$62)) -> 0 | N63: =IF('Input-Facilities'!O42=FALSE,0,1) -> 0 | O63: =IF(OR('Input-Facilities'!O42=FALSE,'Input-Facilities'!$O$43=FALSE),0,IF(K25-$K$26<0,IF(K25-$K$26>=-3,1/3,IF(K25-$K$26>=-5,1/5,IF(K25-$K$26>=-7,1/7,1/9))),IF(K25=$K$26,1,IF(K25-$K$26<=3,3,IF(K25-$K$26<=5,5,IF(K25-$K$26<=7,7,9)))))) -> 0 | P63: =IF(OR('Input-Facilities'!O42=FALSE,'Input-Facilities'!$O$44=FALSE),0,IF(K25-$K$27<0,IF(K25-$K$27>=-3,1/3,IF(K25-$K$27>=-5,1/5,IF(K25-$K$27>=-7,1/7,1/9))),IF(K25=$K$27,1,IF(K25-$K$27<=3,3,IF(K25-$K$27<=5,5,IF(K25-$K$27<=7,7,9)))))) -> 0 | Q63: =IF(OR('Input-Facilities'!O42=FALSE,'Input-Facilities'!$O$45=FALSE),0,IF(K25-$F$30<0,IF(K25-$F$30>=-3,1/3,IF(K25-$F$30>=-5,1/5,IF(K25-$F$30>=-7,1/7,1/9))),IF(K25=$F$30,1,IF(K25-$F$30<=3,3,IF(K25-$F$30<=5,5,IF(K25-$F$30<=7,7,9)))))) -> 0 | R63: =IF(OR('Input-Facilities'!O42=FALSE,'Input-Facilities'!$O$46=FALSE),0,IF(K25-$F$31<0,IF(K25-$F$31>=-3,1/3,IF(K25-$F$31>=-5,1/5,IF(K25-$F$31>=-7,1/7,1/9))),IF(K25=$F$31,1,IF(K25-$F$31<=3,3,IF(K25-$F$31<=5,5,IF(K25-$F$31<=7,7,9)))))) -> 0 | S63: =IF(OR('Input-Facilities'!O42=FALSE,'Input-Facilities'!$O$47=FALSE),0,IF(K25-$F$34<0,IF(K25-$F$34>=-3,1/3,IF(K25-$F$34>=-5,1/5,IF(K25-$F$34>=-7,1/7,1/9))),IF(K25=$F$34,1,IF(K25-$F$34<=3,3,IF(K25-$F$34<=5,5,IF(K25-$F$34<=7,7,9)))))) -> 0 | T63: =IF(OR('Input-Facilities'!O42=FALSE,'Input-Facilities'!$O$48=FALSE),0,IF(K25-$F$35<0,IF(K25-$F$35>=-3,1/3,IF(K25-$F$35>=-5,1/5,IF(K25-$F$35>=-7,1/7,1/9))),IF(K25=$F$35,1,IF(K25-$F$35<=3,3,IF(K25-$F$35<=5,5,IF(K25-$F$35<=7,7,9)))))) -> 0 | U63: =IF(OR('Input-Facilities'!O42=FALSE,'Input-Facilities'!$O$49=FALSE),0,IF(K25-$F$38<0,IF(K25-$F$38>=-3,1/3,IF(K25-$F$38>=-5,1/5,IF(K25-$F$38>=-7,1/7,1/9))),IF(K25=$F$38,1,IF(K25-$F$38<=3,3,IF(K25-$F$38<=5,5,IF(K25-$F$38<=7,7,9)))))) -> 0 | V63: =IF(OR('Input-Facilities'!O42=FALSE,'Input-Facilities'!$O$50=FALSE),0,IF(K25-$F$39<0,IF(K25-$F$39>=-3,1/3,IF(K25-$F$39>=-5,1/5,IF(K25-$F$39>=-7,1/7,1/9))),IF(K25=$F$39,1,IF(K25-$F$39<=3,3,IF(K25-$F$39<=5,5,IF(K25-$F$39<=7,7,9)))))) -> 0 | W63: =IF(OR('Input-Facilities'!O42=FALSE,'Input-Facilities'!$O$51=FALSE),0,IF(K25-$F$42<0,IF(K25-$F$42>=-3,1/3,IF(K25-$F$42>=-5,1/5,IF(K25-$F$42>=-7,1/7,1/9))),IF(K25=$F$42,1,IF(K25-$F$42<=3,3,IF(K25-$F$42<=5,5,IF(K25-$F$42<=7,7,9)))))) -> 0 | X63: =IF(OR('Input-Facilities'!O42=FALSE,'Input-Facilities'!$O$52=FALSE),0,IF(K25-$F$43<0,IF(K25-$F$43>=-3,1/3,IF(K25-$F$43>=-5,1/5,IF(K25-$F$43>=-7,1/7,1/9))),IF(K25=$F$43,1,IF(K25-$F$43<=3,3,IF(K25-$F$43<=5,5,IF(K25-$F$43<=7,7,9)))))) -> 0 | Y63: =IF(OR('Input-Facilities'!O42=FALSE,'Input-Facilities'!$O$53=FALSE),0,IF(K25-$F$46<0,IF(K25-$F$46>=-3,1/3,IF(K25-$F$46>=-5,1/5,IF(K25-$F$46>=-7,1/7,1/9))),IF(K25=$F$46,1,IF(K25-$F$46<=3,3,IF(K25-$F$46<=5,5,IF(K25-$F$46<=7,7,9)))))) -> 0 | Z63: =IF(OR('Input-Facilities'!O42=FALSE,'Input-Facilities'!$O$54=FALSE),0,IF(K25-$F$47<0,IF(K25-$F$47>=-3,1/3,IF(K25-$F$47>=-5,1/5,IF(K25-$F$47>=-7,1/7,1/9))),IF(K25=$F$47,1,IF(K25-$F$47<=3,3,IF(K25-$F$47<=5,5,IF(K25-$F$47<=7,7,9)))))) -> 0 | AA63: =IF(OR('Input-Facilities'!O42=FALSE,'Input-Facilities'!$O$55=FALSE),0,IF(K25-$K$30<0,IF(K25-$K$30>=-3,1/3,IF(K25-$K$30>=-5,1/5,IF(K25-$K$30>=-7,1/7,1/9))),IF(K25=$K$30,1,IF(K25-$K$30<=3,3,IF(K25-$K$30<=5,5,IF(K25-$K$30<=7,7,9)))))) -> 0 | AB63: =IF(OR('Input-Facilities'!O42=FALSE,'Input-Facilities'!$O$61=FALSE),0,IF(K25-$K$31<0,IF(K25-$K$31>=-3,1/3,IF(K25-$K$31>=-5,1/5,IF(K25-$K$31>=-7,1/7,1/9))),IF(K25=$K$31,1,IF(K25-$K$31<=3,3,IF(K25-$K$31<=5,5,IF(K25-$K$31<=7,7,9)))))) -> 0
D64: Test equipment: Level 1 | F64: =IF(ISERROR(1/O$55),0,IF(OR('Input-Facilities'!$O$34=FALSE,'Input-Facilities'!$O43=FALSE),0,1/O$55)) -> 0 | G64: =IF(ISERROR(1/O$56),0,IF(OR('Input-Facilities'!$O$35=FALSE,'Input-Facilities'!$O43=FALSE),0,1/O$56)) -> 0 | H64: =IF(ISERROR(1/O$57),0,IF(OR('Input-Facilities'!$O$36=FALSE,'Input-Facilities'!$O43=FALSE),0,1/O$57)) -> 0 | I64: =IF(ISERROR(1/O$58),0,IF(OR('Input-Facilities'!$O$37=FALSE,'Input-Facilities'!$O43=FALSE),0,1/O$58)) -> 0 | J64: =IF(ISERROR(1/O$59),0,IF(OR('Input-Facilities'!$O$38=FALSE,'Input-Facilities'!$O43=FALSE),0,1/O$59)) -> 0 | K64: =IF(ISERROR(1/O$60),0,IF(OR('Input-Facilities'!$O$39=FALSE,'Input-Facilities'!$O43=FALSE),0,1/O$60)) -> 0 | L64: =IF(ISERROR(1/O$61),0,IF(OR('Input-Facilities'!$O$40=FALSE,'Input-Facilities'!$O43=FALSE),0,1/O$61)) -> 0 | M64: =IF(ISERROR(1/O$62),0,IF(OR('Input-Facilities'!$O$41=FALSE,'Input-Facilities'!$O43=FALSE),0,1/O$62)) -> 0 | N64: =IF(ISERROR(1/O$63),0,IF(OR('Input-Facilities'!$O$42=FALSE,'Input-Facilities'!$O43=FALSE),0,1/O$63)) -> 0 | O64: =IF('Input-Facilities'!O43=FALSE,0,1) -> 0 | P64: =IF(OR('Input-Facilities'!O43=FALSE,'Input-Facilities'!$O$44=FALSE),0,IF(K26-$K$27<0,IF(K26-$K$27>=-3,1/3,IF(K26-$K$27>=-5,1/5,IF(K26-$K$27>=-7,1/7,1/9))),IF(K26=$K$27,1,IF(K26-$K$27<=3,3,IF(K26-$K$27<=5,5,IF(K26-$K$27<=7,7,9)))))) -> 0 | Q64: =IF(OR('Input-Facilities'!O43=FALSE,'Input-Facilities'!$O$45=FALSE),0,IF(K26-$F$30<0,IF(K26-$F$30>=-3,1/3,IF(K26-$F$30>=-5,1/5,IF(K26-$F$30>=-7,1/7,1/9))),IF(K26=$F$30,1,IF(K26-$F$30<=3,3,IF(K26-$F$30<=5,5,IF(K26-$F$30<=7,7,9)))))) -> 0 | R64: =IF(OR('Input-Facilities'!O43=FALSE,'Input-Facilities'!$O$46=FALSE),0,IF(K26-$F$31<0,IF(K26-$F$31>=-3,1/3,IF(K26-$F$31>=-5,1/5,IF(K26-$F$31>=-7,1/7,1/9))),IF(K26=$F$31,1,IF(K26-$F$31<=3,3,IF(K26-$F$31<=5,5,IF(K26-$F$31<=7,7,9)))))) -> 0 | S64: =IF(OR('Input-Facilities'!O43=FALSE,'Input-Facilities'!$O$47=FALSE),0,IF(K26-$F$34<0,IF(K26-$F$34>=-3,1/3,IF(K26-$F$34>=-5,1/5,IF(K26-$F$34>=-7,1/7,1/9))),IF(K26=$F$34,1,IF(K26-$F$34<=3,3,IF(K26-$F$34<=5,5,IF(K26-$F$34<=7,7,9)))))) -> 0 | T64: =IF(OR('Input-Facilities'!O43=FALSE,'Input-Facilities'!$O$48=FALSE),0,IF(K26-$F$35<0,IF(K26-$F$35>=-3,1/3,IF(K26-$F$35>=-5,1/5,IF(K26-$F$35>=-7,1/7,1/9))),IF(K26=$F$35,1,IF(K26-$F$35<=3,3,IF(K26-$F$35<=5,5,IF(K26-$F$35<=7,7,9)))))) -> 0 | U64: =IF(OR('Input-Facilities'!O43=FALSE,'Input-Facilities'!$O$49=FALSE),0,IF(K26-$F$38<0,IF(K26-$F$38>=-3,1/3,IF(K26-$F$38>=-5,1/5,IF(K26-$F$38>=-7,1/7,1/9))),IF(K26=$F$38,1,IF(K26-$F$38<=3,3,IF(K26-$F$38<=5,5,IF(K26-$F$38<=7,7,9)))))) -> 0 | V64: =IF(OR('Input-Facilities'!O43=FALSE,'Input-Facilities'!$O$50=FALSE),0,IF(K26-$F$39<0,IF(K26-$F$39>=-3,1/3,IF(K26-$F$39>=-5,1/5,IF(K26-$F$39>=-7,1/7,1/9))),IF(K26=$F$39,1,IF(K26-$F$39<=3,3,IF(K26-$F$39<=5,5,IF(K26-$F$39<=7,7,9)))))) -> 0 | W64: =IF(OR('Input-Facilities'!O43=FALSE,'Input-Facilities'!$O$51=FALSE),0,IF(K26-$F$42<0,IF(K26-$F$42>=-3,1/3,IF(K26-$F$42>=-5,1/5,IF(K26-$F$42>=-7,1/7,1/9))),IF(K26=$F$42,1,IF(K26-$F$42<=3,3,IF(K26-$F$42<=5,5,IF(K26-$F$42<=7,7,9)))))) -> 0 | X64: =IF(OR('Input-Facilities'!O43=FALSE,'Input-Facilities'!$O$52=FALSE),0,IF(K26-$F$43<0,IF(K26-$F$43>=-3,1/3,IF(K26-$F$43>=-5,1/5,IF(K26-$F$43>=-7,1/7,1/9))),IF(K26=$F$43,1,IF(K26-$F$43<=3,3,IF(K26-$F$43<=5,5,IF(K26-$F$43<=7,7,9)))))) -> 0 | Y64: =IF(OR('Input-Facilities'!O43=FALSE,'Input-Facilities'!$O$53=FALSE),0,IF(K26-$F$46<0,IF(K26-$F$46>=-3,1/3,IF(K26-$F$46>=-5,1/5,IF(K26-$F$46>=-7,1/7,1/9))),IF(K26=$F$46,1,IF(K26-$F$46<=3,3,IF(K26-$F$46<=5,5,IF(K26-$F$46<=7,7,9)))))) -> 0 | Z64: =IF(OR('Input-Facilities'!O43=FALSE,'Input-Facilities'!$O$54=FALSE),0,IF(K26-$F$47<0,IF(K26-$F$47>=-3,1/3,IF(K26-$F$47>=-5,1/5,IF(K26-$F$47>=-7,1/7,1/9))),IF(K26=$F$47,1,IF(K26-$F$47<=3,3,IF(K26-$F$47<=5,5,IF(K26-$F$47<=7,7,9)))))) -> 0 | AA64: =IF(OR('Input-Facilities'!O43=FALSE,'Input-Facilities'!$O$55=FALSE),0,IF(K26-$K$30<0,IF(K26-$K$30>=-3,1/3,IF(K26-$K$30>=-5,1/5,IF(K26-$K$30>=-7,1/7,1/9))),IF(K26=$K$30,1,IF(K26-$K$30<=3,3,IF(K26-$K$30<=5,5,IF(K26-$K$30<=7,7,9)))))) -> 0 | AB64: =IF(OR('Input-Facilities'!O43=FALSE,'Input-Facilities'!$O$61=FALSE),0,IF(K26-$K$31<0,IF(K26-$K$31>=-3,1/3,IF(K26-$K$31>=-5,1/5,IF(K26-$K$31>=-7,1/7,1/9))),IF(K26=$K$31,1,IF(K26-$K$31<=3,3,IF(K26-$K$31<=5,5,IF(K26-$K$31<=7,7,9)))))) -> 0
D65: Facilities: Level 1 | F65: =IF(ISERROR(1/P$55),0,IF(OR('Input-Facilities'!$O$34=FALSE,'Input-Facilities'!$O44=FALSE),0,1/P$55)) -> 0 | G65: =IF(ISERROR(1/P$56),0,IF(OR('Input-Facilities'!$O$35=FALSE,'Input-Facilities'!$O44=FALSE),0,1/P$56)) -> 0 | H65: =IF(ISERROR(1/P$57),0,IF(OR('Input-Facilities'!$O$36=FALSE,'Input-Facilities'!$O44=FALSE),0,1/P$57)) -> 0 | I65: =IF(ISERROR(1/P$58),0,IF(OR('Input-Facilities'!$O$37=FALSE,'Input-Facilities'!$O44=FALSE),0,1/P$58)) -> 0 | J65: =IF(ISERROR(1/P$59),0,IF(OR('Input-Facilities'!$O$38=FALSE,'Input-Facilities'!$O44=FALSE),0,1/P$59)) -> 0 | K65: =IF(ISERROR(1/P$60),0,IF(OR('Input-Facilities'!$O$39=FALSE,'Input-Facilities'!$O44=FALSE),0,1/P$60)) -> 0 | L65: =IF(ISERROR(1/P$61),0,IF(OR('Input-Facilities'!$O$40=FALSE,'Input-Facilities'!$O44=FALSE),0,1/P$61)) -> 0 | M65: =IF(ISERROR(1/P$62),0,IF(OR('Input-Facilities'!$O$41=FALSE,'Input-Facilities'!$O44=FALSE),0,1/P$62)) -> 0 | N65: =IF(ISERROR(1/P$63),0,IF(OR('Input-Facilities'!$O$42=FALSE,'Input-Facilities'!$O44=FALSE),0,1/P$63)) -> 0 | O65: =IF(ISERROR(1/P$64),0,IF(OR('Input-Facilities'!$O$43=FALSE,'Input-Facilities'!$O44=FALSE),0,1/P$64)) -> 0 | P65: =IF('Input-Facilities'!O44=FALSE,0,1) -> 0 | Q65: =IF(OR('Input-Facilities'!O44=FALSE,'Input-Facilities'!$O$45=FALSE),0,IF(K27-$F$30<0,IF(K27-$F$30>=-3,1/3,IF(K27-$F$30>=-5,1/5,IF(K27-$F$30>=-7,1/7,1/9))),IF(K27=$F$30,1,IF(K27-$F$30<=3,3,IF(K27-$F$30<=5,5,IF(K27-$F$30<=7,7,9)))))) -> 0 | R65: =IF(OR('Input-Facilities'!O44=FALSE,'Input-Facilities'!$O$46=FALSE),0,IF(K27-$F$31<0,IF(K27-$F$31>=-3,1/3,IF(K27-$F$31>=-5,1/5,IF(K27-$F$31>=-7,1/7,1/9))),IF(K27=$F$31,1,IF(K27-$F$31<=3,3,IF(K27-$F$31<=5,5,IF(K27-$F$31<=7,7,9)))))) -> 0 | S65: =IF(OR('Input-Facilities'!O44=FALSE,'Input-Facilities'!$O$47=FALSE),0,IF(K27-$F$34<0,IF(K27-$F$34>=-3,1/3,IF(K27-$F$34>=-5,1/5,IF(K27-$F$34>=-7,1/7,1/9))),IF(K27=$F$34,1,IF(K27-$F$34<=3,3,IF(K27-$F$34<=5,5,IF(K27-$F$34<=7,7,9)))))) -> 0 | T65: =IF(OR('Input-Facilities'!O44=FALSE,'Input-Facilities'!$O$48=FALSE),0,IF(K27-$F$35<0,IF(K27-$F$35>=-3,1/3,IF(K27-$F$35>=-5,1/5,IF(K27-$F$35>=-7,1/7,1/9))),IF(K27=$F$35,1,IF(K27-$F$35<=3,3,IF(K27-$F$35<=5,5,IF(K27-$F$35<=7,7,9)))))) -> 0 | U65: =IF(OR('Input-Facilities'!O44=FALSE,'Input-Facilities'!$O$49=FALSE),0,IF(K27-$F$38<0,IF(K27-$F$38>=-3,1/3,IF(K27-$F$38>=-5,1/5,IF(K27-$F$38>=-7,1/7,1/9))),IF(K27=$F$38,1,IF(K27-$F$38<=3,3,IF(K27-$F$38<=5,5,IF(K27-$F$38<=7,7,9)))))) -> 0 | V65: =IF(OR('Input-Facilities'!O44=FALSE,'Input-Facilities'!$O$50=FALSE),0,IF(K27-$F$39<0,IF(K27-$F$39>=-3,1/3,IF(K27-$F$39>=-5,1/5,IF(K27-$F$39>=-7,1/7,1/9))),IF(K27=$F$39,1,IF(K27-$F$39<=3,3,IF(K27-$F$39<=5,5,IF(K27-$F$39<=7,7,9)))))) -> 0 | W65: =IF(OR('Input-Facilities'!O44=FALSE,'Input-Facilities'!$O$51=FALSE),0,IF(K27-$F$42<0,IF(K27-$F$42>=-3,1/3,IF(K27-$F$42>=-5,1/5,IF(K27-$F$42>=-7,1/7,1/9))),IF(K27=$F$42,1,IF(K27-$F$42<=3,3,IF(K27-$F$42<=5,5,IF(K27-$F$42<=7,7,9)))))) -> 0 | X65: =IF(OR('Input-Facilities'!O44=FALSE,'Input-Facilities'!$O$52=FALSE),0,IF(K27-$F$43<0,IF(K27-$F$43>=-3,1/3,IF(K27-$F$43>=-5,1/5,IF(K27-$F$43>=-7,1/7,1/9))),IF(K27=$F$43,1,IF(K27-$F$43<=3,3,IF(K27-$F$43<=5,5,IF(K27-$F$43<=7,7,9)))))) -> 0 | Y65: =IF(OR('Input-Facilities'!O44=FALSE,'Input-Facilities'!$O$53=FALSE),0,IF(K27-$F$46<0,IF(K27-$F$46>=-3,1/3,IF(K27-$F$46>=-5,1/5,IF(K27-$F$46>=-7,1/7,1/9))),IF(K27=$F$46,1,IF(K27-$F$46<=3,3,IF(K27-$F$46<=5,5,IF(K27-$F$46<=7,7,9)))))) -> 0 | Z65: =IF(OR('Input-Facilities'!O44=FALSE,'Input-Facilities'!$O$54=FALSE),0,IF(K27-$F$47<0,IF(K27-$F$47>=-3,1/3,IF(K27-$F$47>=-5,1/5,IF(K27-$F$47>=-7,1/7,1/9))),IF(K27=$F$47,1,IF(K27-$F$47<=3,3,IF(K27-$F$47<=5,5,IF(K27-$F$47<=7,7,9)))))) -> 0 | AA65: =IF(OR('Input-Facilities'!O44=FALSE,'Input-Facilities'!$O$55=FALSE),0,IF(K27-$K$30<0,IF(K27-$K$30>=-3,1/3,IF(K27-$K$30>=-5,1/5,IF(K27-$K$30>=-7,1/7,1/9))),IF(K27=$K$30,1,IF(K27-$K$30<=3,3,IF(K27-$K$30<=5,5,IF(K27-$K$30<=7,7,9)))))) -> 0 | AB65: =IF(OR('Input-Facilities'!O44=FALSE,'Input-Facilities'!$O$61=FALSE),0,IF(K27-$K$31<0,IF(K27-$K$31>=-3,1/3,IF(K27-$K$31>=-5,1/5,IF(K27-$K$31>=-7,1/7,1/9))),IF(K27=$K$31,1,IF(K27-$K$31<=3,3,IF(K27-$K$31<=5,5,IF(K27-$K$31<=7,7,9)))))) -> 0
D66: =D30 -> Lever 1.2 | F66: =IF(ISERROR(1/Q$55),0,IF(OR('Input-Facilities'!$O$34=FALSE,'Input-Facilities'!$O45=FALSE),0,1/Q$55)) -> 0 | G66: =IF(ISERROR(1/Q$56),0,IF(OR('Input-Facilities'!$O$35=FALSE,'Input-Facilities'!$O45=FALSE),0,1/Q$56)) -> 0 | H66: =IF(ISERROR(1/Q$57),0,IF(OR('Input-Facilities'!$O$36=FALSE,'Input-Facilities'!$O45=FALSE),0,1/Q$57)) -> 0 | I66: =IF(ISERROR(1/Q$58),0,IF(OR('Input-Facilities'!$O$37=FALSE,'Input-Facilities'!$O45=FALSE),0,1/Q$58)) -> 0 | J66: =IF(ISERROR(1/Q$59),0,IF(OR('Input-Facilities'!$O$38=FALSE,'Input-Facilities'!$O45=FALSE),0,1/Q$59)) -> 0 | K66: =IF(ISERROR(1/Q$60),0,IF(OR('Input-Facilities'!$O$39=FALSE,'Input-Facilities'!$O45=FALSE),0,1/Q$60)) -> 0 | L66: =IF(ISERROR(1/Q$61),0,IF(OR('Input-Facilities'!$O$40=FALSE,'Input-Facilities'!$O45=FALSE),0,1/Q$61)) -> 0 | M66: =IF(ISERROR(1/Q$62),0,IF(OR('Input-Facilities'!$O$41=FALSE,'Input-Facilities'!$O45=FALSE),0,1/Q$62)) -> 0 | N66: =IF(ISERROR(1/Q$63),0,IF(OR('Input-Facilities'!$O$42=FALSE,'Input-Facilities'!$O45=FALSE),0,1/Q$63)) -> 0 | O66: =IF(ISERROR(1/Q$64),0,IF(OR('Input-Facilities'!$O$43=FALSE,'Input-Facilities'!$O45=FALSE),0,1/Q$64)) -> 0 | P66: =IF(ISERROR(1/Q$65),0,IF(OR('Input-Facilities'!$O$44=FALSE,'Input-Facilities'!$O45=FALSE),0,1/Q$65)) -> 0 | Q66: =IF('Input-Facilities'!O45=FALSE,0,1) -> 0 | R66: =IF(OR('Input-Facilities'!O45=FALSE,'Input-Facilities'!$O$46=FALSE),0,IF(F30-$F$31<0,IF(F30-$F$31>=-3,1/3,IF(F30-$F$31>=-5,1/5,IF(F30-$F$31>=-7,1/7,1/9))),IF(F30=$F$31,1,IF(F30-$F$31<=3,3,IF(F30-$F$31<=5,5,IF(F30-$F$31<=7,7,9)))))) -> 0 | S66: =IF(OR('Input-Facilities'!O45=FALSE,'Input-Facilities'!$O$47=FALSE),0,IF(F30-$F$34<0,IF(F30-$F$34>=-3,1/3,IF(F30-$F$34>=-5,1/5,IF(F30-$F$34>=-7,1/7,1/9))),IF(F30=$F$34,1,IF(F30-$F$34<=3,3,IF(F30-$F$34<=5,5,IF(F30-$F$34<=7,7,9)))))) -> 0 | T66: =IF(OR('Input-Facilities'!O45=FALSE,'Input-Facilities'!$O$48=FALSE),0,IF(F30-$F$35<0,IF(F30-$F$35>=-3,1/3,IF(F30-$F$35>=-5,1/5,IF(F30-$F$35>=-7,1/7,1/9))),IF(F30=$F$35,1,IF(F30-$F$35<=3,3,IF(F30-$F$35<=5,5,IF(F30-$F$35<=7,7,9)))))) -> 0 | U66: =IF(OR('Input-Facilities'!O45=FALSE,'Input-Facilities'!$O$49=FALSE),0,IF(F30-$F$38<0,IF(F30-$F$38>=-3,1/3,IF(F30-$F$38>=-5,1/5,IF(F30-$F$38>=-7,1/7,1/9))),IF(F30=$F$38,1,IF(F30-$F$38<=3,3,IF(F30-$F$38<=5,5,IF(F30-$F$38<=7,7,9)))))) -> 0 | V66: =IF(OR('Input-Facilities'!O45=FALSE,'Input-Facilities'!$O$50=FALSE),0,IF(F30-$F$39<0,IF(F30-$F$39>=-3,1/3,IF(F30-$F$39>=-5,1/5,IF(F30-$F$39>=-7,1/7,1/9))),IF(F30=$F$39,1,IF(F30-$F$39<=3,3,IF(F30-$F$39<=5,5,IF(F30-$F$39<=7,7,9)))))) -> 0 | W66: =IF(OR('Input-Facilities'!O45=FALSE,'Input-Facilities'!$O$51=FALSE),0,IF(F30-$F$42<0,IF(F30-$F$42>=-3,1/3,IF(F30-$F$42>=-5,1/5,IF(F30-$F$42>=-7,1/7,1/9))),IF(F30=$F$42,1,IF(F30-$F$42<=3,3,IF(F30-$F$42<=5,5,IF(F30-$F$42<=7,7,9)))))) -> 0 | X66: =IF(OR('Input-Facilities'!O45=FALSE,'Input-Facilities'!$O$52=FALSE),0,IF(F30-$F$43<0,IF(F30-$F$43>=-3,1/3,IF(F30-$F$43>=-5,1/5,IF(F30-$F$43>=-7,1/7,1/9))),IF(F30=$F$43,1,IF(F30-$F$43<=3,3,IF(F30-$F$43<=5,5,IF(F30-$F$43<=7,7,9)))))) -> 0 | Y66: =IF(OR('Input-Facilities'!O45=FALSE,'Input-Facilities'!$O$53=FALSE),0,IF(F30-$F$46<0,IF(F30-$F$46>=-3,1/3,IF(F30-$F$46>=-5,1/5,IF(F30-$F$46>=-7,1/7,1/9))),IF(F30=$F$46,1,IF(F30-$F$46<=3,3,IF(F30-$F$46<=5,5,IF(F30-$F$46<=7,7,9)))))) -> 0 | Z66: =IF(OR('Input-Facilities'!O45=FALSE,'Input-Facilities'!$O$54=FALSE),0,IF(F30-$F$47<0,IF(F30-$F$47>=-3,1/3,IF(F30-$F$47>=-5,1/5,IF(F30-$F$47>=-7,1/7,1/9))),IF(F30=$F$47,1,IF(F30-$F$47<=3,3,IF(F30-$F$47<=5,5,IF(F30-$F$47<=7,7,9)))))) -> 0 | AA66: =IF(OR('Input-Facilities'!O45=FALSE,'Input-Facilities'!$O$55=FALSE),0,IF(F30-$K$30<0,IF(F30-$K$30>=-3,1/3,IF(F30-$K$30>=-5,1/5,IF(F30-$K$30>=-7,1/7,1/9))),IF(F30=$K$30,1,IF(F30-$K$30<=3,3,IF(F30-$K$30<=5,5,IF(F30-$K$30<=7,7,9)))))) -> 0 | AB66: =IF(OR('Input-Facilities'!O45=FALSE,'Input-Facilities'!$O$61=FALSE),0,IF(F30-$K$31<0,IF(F30-$K$31>=-3,1/3,IF(F30-$K$31>=-5,1/5,IF(F30-$K$31>=-7,1/7,1/9))),IF(F30=$K$31,1,IF(F30-$K$31<=3,3,IF(F30-$K$31<=5,5,IF(F30-$K$31<=7,7,9)))))) -> 0
D67: =D31 -> Lever 1.3 | F67: =IF(ISERROR(1/R$55),0,IF(OR('Input-Facilities'!$O$34=FALSE,'Input-Facilities'!$O46=FALSE),0,1/R$55)) -> 0 | G67: =IF(ISERROR(1/R$56),0,IF(OR('Input-Facilities'!$O$35=FALSE,'Input-Facilities'!$O46=FALSE),0,1/R$56)) -> 0 | H67: =IF(ISERROR(1/R$57),0,IF(OR('Input-Facilities'!$O$36=FALSE,'Input-Facilities'!$O46=FALSE),0,1/R$57)) -> 0 | I67: =IF(ISERROR(1/R$58),0,IF(OR('Input-Facilities'!$O$37=FALSE,'Input-Facilities'!$O46=FALSE),0,1/R$58)) -> 0 | J67: =IF(ISERROR(1/R$59),0,IF(OR('Input-Facilities'!$O$38=FALSE,'Input-Facilities'!$O46=FALSE),0,1/R$59)) -> 0 | K67: =IF(ISERROR(1/R$60),0,IF(OR('Input-Facilities'!$O$39=FALSE,'Input-Facilities'!$O46=FALSE),0,1/R$60)) -> 0 | L67: =IF(ISERROR(1/R$61),0,IF(OR('Input-Facilities'!$O$40=FALSE,'Input-Facilities'!$O46=FALSE),0,1/R$61)) -> 0 | M67: =IF(ISERROR(1/R$62),0,IF(OR('Input-Facilities'!$O$41=FALSE,'Input-Facilities'!$O46=FALSE),0,1/R$62)) -> 0 | N67: =IF(ISERROR(1/R$63),0,IF(OR('Input-Facilities'!$O$42=FALSE,'Input-Facilities'!$O46=FALSE),0,1/R$63)) -> 0 | O67: =IF(ISERROR(1/R$64),0,IF(OR('Input-Facilities'!$O$39=FALSE,'Input-Facilities'!$O46=FALSE),0,1/R$64)) -> 0 | P67: =IF(ISERROR(1/R$65),0,IF(OR('Input-Facilities'!$O$39=FALSE,'Input-Facilities'!$O46=FALSE),0,1/R$65)) -> 0 | Q67: =IF(ISERROR(1/R$66),0,IF(OR('Input-Facilities'!$O$39=FALSE,'Input-Facilities'!$O46=FALSE),0,1/R$66)) -> 0 | R67: =IF('Input-Facilities'!O46=FALSE,0,1) -> 0 | S67: =IF(OR('Input-Facilities'!O46=FALSE,'Input-Facilities'!$O$47=FALSE),0,IF(F31-$F$34<0,IF(F31-$F$34>=-3,1/3,IF(F31-$F$34>=-5,1/5,IF(F31-$F$34>=-7,1/7,1/9))),IF(F31=$F$34,1,IF(F31-$F$34<=3,3,IF(F31-$F$34<=5,5,IF(F31-$F$34<=7,7,9)))))) -> 0 | T67: =IF(OR('Input-Facilities'!O46=FALSE,'Input-Facilities'!$O$48=FALSE),0,IF(F31-$F$35<0,IF(F31-$F$35>=-3,1/3,IF(F31-$F$35>=-5,1/5,IF(F31-$F$35>=-7,1/7,1/9))),IF(F31=$F$35,1,IF(F31-$F$35<=3,3,IF(F31-$F$35<=5,5,IF(F31-$F$35<=7,7,9)))))) -> 0 | U67: =IF(OR('Input-Facilities'!O46=FALSE,'Input-Facilities'!$O$49=FALSE),0,IF(F31-$F$38<0,IF(F31-$F$38>=-3,1/3,IF(F31-$F$38>=-5,1/5,IF(F31-$F$38>=-7,1/7,1/9))),IF(F31=$F$38,1,IF(F31-$F$38<=3,3,IF(F31-$F$38<=5,5,IF(F31-$F$38<=7,7,9)))))) -> 0 | V67: =IF(OR('Input-Facilities'!O46=FALSE,'Input-Facilities'!$O$50=FALSE),0,IF(F31-$F$39<0,IF(F31-$F$39>=-3,1/3,IF(F31-$F$39>=-5,1/5,IF(F31-$F$39>=-7,1/7,1/9))),IF(F31=$F$39,1,IF(F31-$F$39<=3,3,IF(F31-$F$39<=5,5,IF(F31-$F$39<=7,7,9)))))) -> 0 | W67: =IF(OR('Input-Facilities'!O46=FALSE,'Input-Facilities'!$O$51=FALSE),0,IF(F31-$F$42<0,IF(F31-$F$42>=-3,1/3,IF(F31-$F$42>=-5,1/5,IF(F31-$F$42>=-7,1/7,1/9))),IF(F31=$F$42,1,IF(F31-$F$42<=3,3,IF(F31-$F$42<=5,5,IF(F31-$F$42<=7,7,9)))))) -> 0 | X67: =IF(OR('Input-Facilities'!O46=FALSE,'Input-Facilities'!$O$52=FALSE),0,IF(F31-$F$43<0,IF(F31-$F$43>=-3,1/3,IF(F31-$F$43>=-5,1/5,IF(F31-$F$43>=-7,1/7,1/9))),IF(F31=$F$43,1,IF(F31-$F$43<=3,3,IF(F31-$F$43<=5,5,IF(F31-$F$43<=7,7,9)))))) -> 0 | Y67: =IF(OR('Input-Facilities'!O46=FALSE,'Input-Facilities'!$O$53=FALSE),0,IF(F31-$F$46<0,IF(F31-$F$46>=-3,1/3,IF(F31-$F$46>=-5,1/5,IF(F31-$F$46>=-7,1/7,1/9))),IF(F31=$F$46,1,IF(F31-$F$46<=3,3,IF(F31-$F$46<=5,5,IF(F31-$F$46<=7,7,9)))))) -> 0 | Z67: =IF(OR('Input-Facilities'!O46=FALSE,'Input-Facilities'!$O$54=FALSE),0,IF(F31-$F$47<0,IF(F31-$F$47>=-3,1/3,IF(F31-$F$47>=-5,1/5,IF(F31-$F$47>=-7,1/7,1/9))),IF(F31=$F$47,1,IF(F31-$F$47<=3,3,IF(F31-$F$47<=5,5,IF(F31-$F$47<=7,7,9)))))) -> 0 | AA67: =IF(OR('Input-Facilities'!O46=FALSE,'Input-Facilities'!$O$55=FALSE),0,IF(F31-$K$30<0,IF(F31-$K$30>=-3,1/3,IF(F31-$K$30>=-5,1/5,IF(F31-$K$30>=-7,1/7,1/9))),IF(F31=$K$30,1,IF(F31-$K$30<=3,3,IF(F31-$K$30<=5,5,IF(F31-$K$30<=7,7,9)))))) -> 0 | AB67: =IF(OR('Input-Facilities'!O46=FALSE,'Input-Facilities'!$O$61=FALSE),0,IF(F31-$K$31<0,IF(F31-$K$31>=-3,1/3,IF(F31-$K$31>=-5,1/5,IF(F31-$K$31>=-7,1/7,1/9))),IF(F31=$K$31,1,IF(F31-$K$31<=3,3,IF(F31-$K$31<=5,5,IF(F31-$K$31<=7,7,9)))))) -> 0
D68: =D34 -> Lever 2.2 | F68: =IF(ISERROR(1/S$55),0,IF(OR('Input-Facilities'!$O$34=FALSE,'Input-Facilities'!$O47=FALSE),0,1/S$55)) -> 0 | G68: =IF(ISERROR(1/S$56),0,IF(OR('Input-Facilities'!$O$35=FALSE,'Input-Facilities'!$O47=FALSE),0,1/S$56)) -> 0 | H68: =IF(ISERROR(1/S$57),0,IF(OR('Input-Facilities'!$O$36=FALSE,'Input-Facilities'!$O47=FALSE),0,1/S$57)) -> 0 | I68: =IF(ISERROR(1/S$58),0,IF(OR('Input-Facilities'!$O$37=FALSE,'Input-Facilities'!$O47=FALSE),0,1/S$58)) -> 0 | J68: =IF(ISERROR(1/S$59),0,IF(OR('Input-Facilities'!$O$38=FALSE,'Input-Facilities'!$O47=FALSE),0,1/S$59)) -> 0 | K68: =IF(ISERROR(1/S$60),0,IF(OR('Input-Facilities'!$O$39=FALSE,'Input-Facilities'!$O47=FALSE),0,1/S$60)) -> 0 | L68: =IF(ISERROR(1/S$61),0,IF(OR('Input-Facilities'!$O$40=FALSE,'Input-Facilities'!$O47=FALSE),0,1/S$61)) -> 0 | M68: =IF(ISERROR(1/S$62),0,IF(OR('Input-Facilities'!$O$41=FALSE,'Input-Facilities'!$O47=FALSE),0,1/S$62)) -> 0 | N68: =IF(ISERROR(1/S$63),0,IF(OR('Input-Facilities'!$O$42=FALSE,'Input-Facilities'!$O47=FALSE),0,1/S$63)) -> 0 | O68: =IF(ISERROR(1/S$64),0,IF(OR('Input-Facilities'!$O$43=FALSE,'Input-Facilities'!$O47=FALSE),0,1/S$64)) -> 0 | P68: =IF(ISERROR(1/S$65),0,IF(OR('Input-Facilities'!$O$44=FALSE,'Input-Facilities'!$O47=FALSE),0,1/S$65)) -> 0 | Q68: =IF(ISERROR(1/S$66),0,IF(OR('Input-Facilities'!$O$45=FALSE,'Input-Facilities'!$O47=FALSE),0,1/S$66)) -> 0 | R68: =IF(ISERROR(1/S$67),0,IF(OR('Input-Facilities'!$O$46=FALSE,'Input-Facilities'!$O47=FALSE),0,1/S$67)) -> 0 | S68: =IF('Input-Facilities'!O47=FALSE,0,1) -> 0 | T68: =IF(OR('Input-Facilities'!O47=FALSE,'Input-Facilities'!$O$48=FALSE),0,IF(F34-$F$35<0,IF(F34-$F$35>=-3,1/3,IF(F34-$F$35>=-5,1/5,IF(F34-$F$35>=-7,1/7,1/9))),IF(F34=$F$35,1,IF(F34-$F$35<=3,3,IF(F34-$F$35<=5,5,IF(F34-$F$35<=7,7,9)))))) -> 0 | U68: =IF(OR('Input-Facilities'!O47=FALSE,'Input-Facilities'!$O$49=FALSE),0,IF(F34-$F$38<0,IF(F34-$F$38>=-3,1/3,IF(F34-$F$38>=-5,1/5,IF(F34-$F$38>=-7,1/7,1/9))),IF(F34=$F$38,1,IF(F34-$F$38<=3,3,IF(F34-$F$38<=5,5,IF(F34-$F$38<=7,7,9)))))) -> 0 | V68: =IF(OR('Input-Facilities'!O47=FALSE,'Input-Facilities'!$O$50=FALSE),0,IF(F34-$F$39<0,IF(F34-$F$39>=-3,1/3,IF(F34-$F$39>=-5,1/5,IF(F34-$F$39>=-7,1/7,1/9))),IF(F34=$F$39,1,IF(F34-$F$39<=3,3,IF(F34-$F$39<=5,5,IF(F34-$F$39<=7,7,9)))))) -> 0 | W68: =IF(OR('Input-Facilities'!O47=FALSE,'Input-Facilities'!$O$51=FALSE),0,IF(F34-$F$42<0,IF(F34-$F$42>=-3,1/3,IF(F34-$F$42>=-5,1/5,IF(F34-$F$42>=-7,1/7,1/9))),IF(F34=$F$42,1,IF(F34-$F$42<=3,3,IF(F34-$F$42<=5,5,IF(F34-$F$42<=7,7,9)))))) -> 0 | X68: =IF(OR('Input-Facilities'!O47=FALSE,'Input-Facilities'!$O$52=FALSE),0,IF(F34-$F$43<0,IF(F34-$F$43>=-3,1/3,IF(F34-$F$43>=-5,1/5,IF(F34-$F$43>=-7,1/7,1/9))),IF(F34=$F$43,1,IF(F34-$F$43<=3,3,IF(F34-$F$43<=5,5,IF(F34-$F$43<=7,7,9)))))) -> 0 | Y68: =IF(OR('Input-Facilities'!O47=FALSE,'Input-Facilities'!$O$53=FALSE),0,IF(F34-$F$46<0,IF(F34-$F$46>=-3,1/3,IF(F34-$F$46>=-5,1/5,IF(F34-$F$46>=-7,1/7,1/9))),IF(F34=$F$46,1,IF(F34-$F$46<=3,3,IF(F34-$F$46<=5,5,IF(F34-$F$46<=7,7,9)))))) -> 0 | Z68: =IF(OR('Input-Facilities'!O47=FALSE,'Input-Facilities'!$O$54=FALSE),0,IF(F34-$F$47<0,IF(F34-$F$47>=-3,1/3,IF(F34-$F$47>=-5,1/5,IF(F34-$F$47>=-7,1/7,1/9))),IF(F34=$F$47,1,IF(F34-$F$47<=3,3,IF(F34-$F$47<=5,5,IF(F34-$F$47<=7,7,9)))))) -> 0 | AA68: =IF(OR('Input-Facilities'!O47=FALSE,'Input-Facilities'!$O$55=FALSE),0,IF(F34-$K$30<0,IF(F34-$K$30>=-3,1/3,IF(F34-$K$30>=-5,1/5,IF(F34-$K$30>=-7,1/7,1/9))),IF(F34=$K$30,1,IF(F34-$K$30<=3,3,IF(F34-$K$30<=5,5,IF(F34-$K$30<=7,7,9)))))) -> 0 | AB68: =IF(OR('Input-Facilities'!O47=FALSE,'Input-Facilities'!$O$61=FALSE),0,IF(F34-$K$31<0,IF(F34-$K$31>=-3,1/3,IF(F34-$K$31>=-5,1/5,IF(F34-$K$31>=-7,1/7,1/9))),IF(F34=$K$31,1,IF(F34-$K$31<=3,3,IF(F34-$K$31<=5,5,IF(F34-$K$31<=7,7,9)))))) -> 0
D69: =D35 -> Lever 2.3 | F69: =IF(ISERROR(1/T$55),0,IF(OR('Input-Facilities'!$O$34=FALSE,'Input-Facilities'!$O48=FALSE),0,1/T$55)) -> 0 | G69: =IF(ISERROR(1/T$56),0,IF(OR('Input-Facilities'!$O$35=FALSE,'Input-Facilities'!$O48=FALSE),0,1/T$56)) -> 0 | H69: =IF(ISERROR(1/T$57),0,IF(OR('Input-Facilities'!$O$36=FALSE,'Input-Facilities'!$O48=FALSE),0,1/T$57)) -> 0 | I69: =IF(ISERROR(1/T$58),0,IF(OR('Input-Facilities'!$O$37=FALSE,'Input-Facilities'!$O48=FALSE),0,1/T$58)) -> 0 | J69: =IF(ISERROR(1/T$59),0,IF(OR('Input-Facilities'!$O$38=FALSE,'Input-Facilities'!$O48=FALSE),0,1/T$59)) -> 0 | K69: =IF(ISERROR(1/T$60),0,IF(OR('Input-Facilities'!$O$39=FALSE,'Input-Facilities'!$O48=FALSE),0,1/T$60)) -> 0 | L69: =IF(ISERROR(1/T$61),0,IF(OR('Input-Facilities'!$O$40=FALSE,'Input-Facilities'!$O48=FALSE),0,1/T$61)) -> 0 | M69: =IF(ISERROR(1/T$62),0,IF(OR('Input-Facilities'!$O$41=FALSE,'Input-Facilities'!$O48=FALSE),0,1/T$62)) -> 0 | N69: =IF(ISERROR(1/T$63),0,IF(OR('Input-Facilities'!$O$42=FALSE,'Input-Facilities'!$O48=FALSE),0,1/T$63)) -> 0 | O69: =IF(ISERROR(1/T$64),0,IF(OR('Input-Facilities'!$O$43=FALSE,'Input-Facilities'!$O48=FALSE),0,1/T$64)) -> 0 | P69: =IF(ISERROR(1/T$65),0,IF(OR('Input-Facilities'!$O$44=FALSE,'Input-Facilities'!$O48=FALSE),0,1/T$65)) -> 0 | Q69: =IF(ISERROR(1/T$66),0,IF(OR('Input-Facilities'!$O$45=FALSE,'Input-Facilities'!$O48=FALSE),0,1/T$66)) -> 0 | R69: =IF(ISERROR(1/T$67),0,IF(OR('Input-Facilities'!$O$46=FALSE,'Input-Facilities'!$O48=FALSE),0,1/T$67)) -> 0 | S69: =IF(ISERROR(1/T$68),0,IF(OR('Input-Facilities'!$O$47=FALSE,'Input-Facilities'!$O48=FALSE),0,1/T$68)) -> 0 | T69: =IF('Input-Facilities'!O48=FALSE,0,1) -> 0 | U69: =IF(OR('Input-Facilities'!O48=FALSE,'Input-Facilities'!$O$49=FALSE),0,IF(F35-$F$38<0,IF(F35-$F$38>=-3,1/3,IF(F35-$F$38>=-5,1/5,IF(F35-$F$38>=-7,1/7,1/9))),IF(F35=$F$38,1,IF(F35-$F$38<=3,3,IF(F35-$F$38<=5,5,IF(F35-$F$38<=7,7,9)))))) -> 0 | V69: =IF(OR('Input-Facilities'!O48=FALSE,'Input-Facilities'!$O$50=FALSE),0,IF(F35-$F$39<0,IF(F35-$F$39>=-3,1/3,IF(F35-$F$39>=-5,1/5,IF(F35-$F$39>=-7,1/7,1/9))),IF(F35=$F$39,1,IF(F35-$F$39<=3,3,IF(F35-$F$39<=5,5,IF(F35-$F$39<=7,7,9)))))) -> 0 | W69: =IF(OR('Input-Facilities'!O48=FALSE,'Input-Facilities'!$O$51=FALSE),0,IF(F35-$F$42<0,IF(F35-$F$42>=-3,1/3,IF(F35-$F$42>=-5,1/5,IF(F35-$F$42>=-7,1/7,1/9))),IF(F35=$F$42,1,IF(F35-$F$42<=3,3,IF(F35-$F$42<=5,5,IF(F35-$F$42<=7,7,9)))))) -> 0 | X69: =IF(OR('Input-Facilities'!O48=FALSE,'Input-Facilities'!$O$52=FALSE),0,IF(F35-$F$43<0,IF(F35-$F$43>=-3,1/3,IF(F35-$F$43>=-5,1/5,IF(F35-$F$43>=-7,1/7,1/9))),IF(F35=$F$43,1,IF(F35-$F$43<=3,3,IF(F35-$F$43<=5,5,IF(F35-$F$43<=7,7,9)))))) -> 0 | Y69: =IF(OR('Input-Facilities'!O48=FALSE,'Input-Facilities'!$O$53=FALSE),0,IF(F35-$F$46<0,IF(F35-$F$46>=-3,1/3,IF(F35-$F$46>=-5,1/5,IF(F35-$F$46>=-7,1/7,1/9))),IF(F35=$F$46,1,IF(F35-$F$46<=3,3,IF(F35-$F$46<=5,5,IF(F35-$F$46<=7,7,9)))))) -> 0 | Z69: =IF(OR('Input-Facilities'!O48=FALSE,'Input-Facilities'!$O$54=FALSE),0,IF(F35-$F$47<0,IF(F35-$F$47>=-3,1/3,IF(F35-$F$47>=-5,1/5,IF(F35-$F$47>=-7,1/7,1/9))),IF(F35=$F$47,1,IF(F35-$F$47<=3,3,IF(F35-$F$47<=5,5,IF(F35-$F$47<=7,7,9)))))) -> 0 | AA69: =IF(OR('Input-Facilities'!O48=FALSE,'Input-Facilities'!$O$55=FALSE),0,IF(F35-$K$30<0,IF(F35-$K$30>=-3,1/3,IF(F35-$K$30>=-5,1/5,IF(F35-$K$30>=-7,1/7,1/9))),IF(F35=$K$30,1,IF(F35-$K$30<=3,3,IF(F35-$K$30<=5,5,IF(F35-$K$30<=7,7,9)))))) -> 0 | AB69: =IF(OR('Input-Facilities'!O48=FALSE,'Input-Facilities'!$O$61=FALSE),0,IF(F35-$K$31<0,IF(F35-$K$31>=-3,1/3,IF(F35-$K$31>=-5,1/5,IF(F35-$K$31>=-7,1/7,1/9))),IF(F35=$K$31,1,IF(F35-$K$31<=3,3,IF(F35-$K$31<=5,5,IF(F35-$K$31<=7,7,9)))))) -> 0
D70: =D38 -> Lever 3.2 | F70: =IF(ISERROR(1/U$55),0,IF(OR('Input-Facilities'!$O$34=FALSE,'Input-Facilities'!$O49=FALSE),0,1/U$55)) -> 0 | G70: =IF(ISERROR(1/U$56),0,IF(OR('Input-Facilities'!$O$35=FALSE,'Input-Facilities'!$O49=FALSE),0,1/U$56)) -> 0 | H70: =IF(ISERROR(1/U$57),0,IF(OR('Input-Facilities'!$O$36=FALSE,'Input-Facilities'!$O49=FALSE),0,1/U$57)) -> 0 | I70: =IF(ISERROR(1/U$58),0,IF(OR('Input-Facilities'!$O$37=FALSE,'Input-Facilities'!$O49=FALSE),0,1/U$58)) -> 0 | J70: =IF(ISERROR(1/U$59),0,IF(OR('Input-Facilities'!$O$38=FALSE,'Input-Facilities'!$O49=FALSE),0,1/U$59)) -> 0 | K70: =IF(ISERROR(1/U$60),0,IF(OR('Input-Facilities'!$O$39=FALSE,'Input-Facilities'!$O49=FALSE),0,1/U$60)) -> 0 | L70: =IF(ISERROR(1/U$61),0,IF(OR('Input-Facilities'!$O$40=FALSE,'Input-Facilities'!$O49=FALSE),0,1/U$61)) -> 0 | M70: =IF(ISERROR(1/U$62),0,IF(OR('Input-Facilities'!$O$41=FALSE,'Input-Facilities'!$O49=FALSE),0,1/U$62)) -> 0 | N70: =IF(ISERROR(1/U$63),0,IF(OR('Input-Facilities'!$O$42=FALSE,'Input-Facilities'!$O49=FALSE),0,1/U$63)) -> 0 | O70: =IF(ISERROR(1/U$64),0,IF(OR('Input-Facilities'!$O$43=FALSE,'Input-Facilities'!$O49=FALSE),0,1/U$64)) -> 0 | P70: =IF(ISERROR(1/U$65),0,IF(OR('Input-Facilities'!$O$44=FALSE,'Input-Facilities'!$O49=FALSE),0,1/U$65)) -> 0 | Q70: =IF(ISERROR(1/U$66),0,IF(OR('Input-Facilities'!$O$45=FALSE,'Input-Facilities'!$O49=FALSE),0,1/U$66)) -> 0 | R70: =IF(ISERROR(1/U$67),0,IF(OR('Input-Facilities'!$O$46=FALSE,'Input-Facilities'!$O49=FALSE),0,1/U$67)) -> 0 | S70: =IF(ISERROR(1/U$68),0,IF(OR('Input-Facilities'!$O$47=FALSE,'Input-Facilities'!$O49=FALSE),0,1/U$68)) -> 0 | T70: =IF(ISERROR(1/U$69),0,IF(OR('Input-Facilities'!$O$48=FALSE,'Input-Facilities'!$O49=FALSE),0,1/U$69)) -> 0 | U70: =IF('Input-Facilities'!O49=FALSE,0,1) -> 0 | V70: =IF(OR('Input-Facilities'!O49=FALSE,'Input-Facilities'!$O$50=FALSE),0,IF(F38-$F$39<0,IF(F38-$F$39>-3,1/3,IF(F38-$F$39>-5,1/5,IF(F38-$F$39>-7,1/7,1/9))),IF(F38=$F$39,1,IF(F38-$F$39<3,3,IF(F38-$F$39<5,5,IF(F38-$F$39<7,7,9)))))) -> 0 | W70: =IF(OR('Input-Facilities'!O49=FALSE,'Input-Facilities'!$O$51=FALSE),0,IF(F38-$F$42<0,IF(F38-$F$42>-3,1/3,IF(F38-$F$42>-5,1/5,IF(F38-$F$42>-7,1/7,1/9))),IF(F38=$F$42,1,IF(F38-$F$42<3,3,IF(F38-$F$42<5,5,IF(F38-$F$42<7,7,9)))))) -> 0 | X70: =IF(OR('Input-Facilities'!O49=FALSE,'Input-Facilities'!$O$52=FALSE),0,IF(F38-$F$43<0,IF(F38-$F$43>=-3,1/3,IF(F38-$F$43>=-5,1/5,IF(F38-$F$43>=-7,1/7,1/9))),IF(F38=$F$43,1,IF(F38-$F$43<=3,3,IF(F38-$F$43<=5,5,IF(F38-$F$43<=7,7,9)))))) -> 0 | Y70: =IF(OR('Input-Facilities'!O49=FALSE,'Input-Facilities'!$O$53=FALSE),0,IF(F38-$F$46<0,IF(F38-$F$46>=-3,1/3,IF(F38-$F$46>=-5,1/5,IF(F38-$F$46>=-7,1/7,1/9))),IF(F38=$F$46,1,IF(F38-$F$46<=3,3,IF(F38-$F$46<=5,5,IF(F38-$F$46<=7,7,9)))))) -> 0 | Z70: =IF(OR('Input-Facilities'!O49=FALSE,'Input-Facilities'!$O$54=FALSE),0,IF(F38-$F$47<0,IF(F38-$F$47>=-3,1/3,IF(F38-$F$47>=-5,1/5,IF(F38-$F$47>=-7,1/7,1/9))),IF(F38=$F$47,1,IF(F38-$F$47<=3,3,IF(F38-$F$47<=5,5,IF(F38-$F$47<=7,7,9)))))) -> 0 | AA70: =IF(OR('Input-Facilities'!O49=FALSE,'Input-Facilities'!$O$55=FALSE),0,IF(F38-$K$30<0,IF(F38-$K$30>=-3,1/3,IF(F38-$K$30>=-5,1/5,IF(F38-$K$30>=-7,1/7,1/9))),IF(F38=$K$30,1,IF(F38-$K$30<=3,3,IF(F38-$K$30<=5,5,IF(F38-$K$30<=7,7,9)))))) -> 0 | AB70: =IF(OR('Input-Facilities'!O49=FALSE,'Input-Facilities'!$O$61=FALSE),0,IF(F38-$K$31<0,IF(F38-$K$31>=-3,1/3,IF(F38-$K$31>=-5,1/5,IF(F38-$K$31>=-7,1/7,1/9))),IF(F38=$K$31,1,IF(F38-$K$31<=3,3,IF(F38-$K$31<=5,5,IF(F38-$K$31<=7,7,9)))))) -> 0
D71: =D39 -> Lever 3.3 | F71: =IF(ISERROR(1/V$55),0,IF(OR('Input-Facilities'!$O$34=FALSE,'Input-Facilities'!$O50=FALSE),0,1/V$55)) -> 0 | G71: =IF(ISERROR(1/V$56),0,IF(OR('Input-Facilities'!$O$35=FALSE,'Input-Facilities'!$O50=FALSE),0,1/V$56)) -> 0 | H71: =IF(ISERROR(1/V$57),0,IF(OR('Input-Facilities'!$O$36=FALSE,'Input-Facilities'!$O50=FALSE),0,1/V$57)) -> 0 | I71: =IF(ISERROR(1/V$58),0,IF(OR('Input-Facilities'!$O$37=FALSE,'Input-Facilities'!$O50=FALSE),0,1/V$58)) -> 0 | J71: =IF(ISERROR(1/V$59),0,IF(OR('Input-Facilities'!$O$38=FALSE,'Input-Facilities'!$O50=FALSE),0,1/V$59)) -> 0 | K71: =IF(ISERROR(1/V$60),0,IF(OR('Input-Facilities'!$O$39=FALSE,'Input-Facilities'!$O50=FALSE),0,1/V$60)) -> 0 | L71: =IF(ISERROR(1/V$61),0,IF(OR('Input-Facilities'!$O$40=FALSE,'Input-Facilities'!$O50=FALSE),0,1/V$61)) -> 0 | M71: =IF(ISERROR(1/V$62),0,IF(OR('Input-Facilities'!$O$41=FALSE,'Input-Facilities'!$O50=FALSE),0,1/V$62)) -> 0 | N71: =IF(ISERROR(1/V$63),0,IF(OR('Input-Facilities'!$O$42=FALSE,'Input-Facilities'!$O50=FALSE),0,1/V$63)) -> 0 | O71: =IF(ISERROR(1/V$64),0,IF(OR('Input-Facilities'!$O$43=FALSE,'Input-Facilities'!$O50=FALSE),0,1/V$64)) -> 0 | P71: =IF(ISERROR(1/V$65),0,IF(OR('Input-Facilities'!$O$44=FALSE,'Input-Facilities'!$O50=FALSE),0,1/V$65)) -> 0 | Q71: =IF(ISERROR(1/V$66),0,IF(OR('Input-Facilities'!$O$45=FALSE,'Input-Facilities'!$O50=FALSE),0,1/V$66)) -> 0 | R71: =IF(ISERROR(1/V$67),0,IF(OR('Input-Facilities'!$O$46=FALSE,'Input-Facilities'!$O50=FALSE),0,1/V$67)) -> 0 | S71: =IF(ISERROR(1/V$68),0,IF(OR('Input-Facilities'!$O$47=FALSE,'Input-Facilities'!$O50=FALSE),0,1/V$68)) -> 0 | T71: =IF(ISERROR(1/V$69),0,IF(OR('Input-Facilities'!$O$48=FALSE,'Input-Facilities'!$O50=FALSE),0,1/V$69)) -> 0 | U71: =IF(ISERROR(1/V$70),0,IF(OR('Input-Facilities'!$O$49=FALSE,'Input-Facilities'!$O50=FALSE),0,1/V$70)) -> 0 | V71: =IF('Input-Facilities'!O50=FALSE,0,1) -> 0 | W71: =IF(OR('Input-Facilities'!O50=FALSE,'Input-Facilities'!$O$51=FALSE),0,IF(F39-$F$42<0,IF(F39-$F$42>=-3,1/3,IF(F39-$F$42>=-5,1/5,IF(F39-$F$42>=-7,1/7,1/9))),IF(F39=$F$42,1,IF(F39-$F$42<=3,3,IF(F39-$F$42<=5,5,IF(F39-$F$42<=7,7,9)))))) -> 0 | X71: =IF(OR('Input-Facilities'!O50=FALSE,'Input-Facilities'!$O$52=FALSE),0,IF(F39-$F$43<0,IF(F39-$F$43>=-3,1/3,IF(F39-$F$43>=-5,1/5,IF(F39-$F$43>=-7,1/7,1/9))),IF(F39=$F$43,1,IF(F39-$F$43<=3,3,IF(F39-$F$43<=5,5,IF(F39-$F$43<=7,7,9)))))) -> 0 | Y71: =IF(OR('Input-Facilities'!O50=FALSE,'Input-Facilities'!$O$53=FALSE),0,IF(F39-$F$46<0,IF(F39-$F$46>=-3,1/3,IF(F39-$F$46>=-5,1/5,IF(F39-$F$46>=-7,1/7,1/9))),IF(F39=$F$46,1,IF(F39-$F$46<=3,3,IF(F39-$F$46<=5,5,IF(F39-$F$46<=7,7,9)))))) -> 0 | Z71: =IF(OR('Input-Facilities'!O50=FALSE,'Input-Facilities'!$O$54=FALSE),0,IF(F39-$F$47<0,IF(F39-$F$47>=-3,1/3,IF(F39-$F$47>=-5,1/5,IF(F39-$F$47>=-7,1/7,1/9))),IF(F39=$F$47,1,IF(F39-$F$47<=3,3,IF(F39-$F$47<=5,5,IF(F39-$F$47<=7,7,9)))))) -> 0 | AA71: =IF(OR('Input-Facilities'!O50=FALSE,'Input-Facilities'!$O$55=FALSE),0,IF(F39-$K$30<0,IF(F39-$K$30>=-3,1/3,IF(F39-$K$30>=-5,1/5,IF(F39-$K$30>=-7,1/7,1/9))),IF(F39=$K$30,1,IF(F39-$K$30<=3,3,IF(F39-$K$30<=5,5,IF(F39-$K$30<=7,7,9)))))) -> 0 | AB71: =IF(OR('Input-Facilities'!O50=FALSE,'Input-Facilities'!$O$61=FALSE),0,IF(F39-$K$31<0,IF(F39-$K$31>=-3,1/3,IF(F39-$K$31>=-5,1/5,IF(F39-$K$31>=-7,1/7,1/9))),IF(F39=$K$31,1,IF(F39-$K$31<=3,3,IF(F39-$K$31<=5,5,IF(F39-$K$31<=7,7,9)))))) -> 0
D72: =D42 -> Lever 4.2 | F72: =IF(ISERROR(1/W$55),0,IF(OR('Input-Facilities'!$O$34=FALSE,'Input-Facilities'!$O51=FALSE),0,1/W$55)) -> 0 | G72: =IF(ISERROR(1/W$56),0,IF(OR('Input-Facilities'!$O$35=FALSE,'Input-Facilities'!$O51=FALSE),0,1/W$56)) -> 0 | H72: =IF(ISERROR(1/W$57),0,IF(OR('Input-Facilities'!$O$36=FALSE,'Input-Facilities'!$O51=FALSE),0,1/W$57)) -> 0 | I72: =IF(ISERROR(1/W$58),0,IF(OR('Input-Facilities'!$O$37=FALSE,'Input-Facilities'!$O51=FALSE),0,1/W$58)) -> 0 | J72: =IF(ISERROR(1/W$59),0,IF(OR('Input-Facilities'!$O$38=FALSE,'Input-Facilities'!$O51=FALSE),0,1/W$59)) -> 0 | K72: =IF(ISERROR(1/W$60),0,IF(OR('Input-Facilities'!$O$39=FALSE,'Input-Facilities'!$O51=FALSE),0,1/W$60)) -> 0 | L72: =IF(ISERROR(1/W$61),0,IF(OR('Input-Facilities'!$O$40=FALSE,'Input-Facilities'!$O51=FALSE),0,1/W$61)) -> 0 | M72: =IF(ISERROR(1/W$62),0,IF(OR('Input-Facilities'!$O$41=FALSE,'Input-Facilities'!$O51=FALSE),0,1/W$62)) -> 0 | N72: =IF(ISERROR(1/W$63),0,IF(OR('Input-Facilities'!$O$42=FALSE,'Input-Facilities'!$O51=FALSE),0,1/W$63)) -> 0 | O72: =IF(ISERROR(1/W$64),0,IF(OR('Input-Facilities'!$O$43=FALSE,'Input-Facilities'!$O51=FALSE),0,1/W$64)) -> 0 | P72: =IF(ISERROR(1/W$65),0,IF(OR('Input-Facilities'!$O$44=FALSE,'Input-Facilities'!$O51=FALSE),0,1/W$65)) -> 0 | Q72: =IF(ISERROR(1/W$66),0,IF(OR('Input-Facilities'!$O$45=FALSE,'Input-Facilities'!$O51=FALSE),0,1/W$66)) -> 0 | R72: =IF(ISERROR(1/W$67),0,IF(OR('Input-Facilities'!$O$46=FALSE,'Input-Facilities'!$O51=FALSE),0,1/W$67)) -> 0 | S72: =IF(ISERROR(1/W$68),0,IF(OR('Input-Facilities'!$O$47=FALSE,'Input-Facilities'!$O51=FALSE),0,1/W$68)) -> 0 | T72: =IF(ISERROR(1/W$69),0,IF(OR('Input-Facilities'!$O$48=FALSE,'Input-Facilities'!$O51=FALSE),0,1/W$69)) -> 0 | U72: =IF(ISERROR(1/W$70),0,IF(OR('Input-Facilities'!$O$49=FALSE,'Input-Facilities'!$O51=FALSE),0,1/W$70)) -> 0 | V72: =IF(ISERROR(1/W$71),0,IF(OR('Input-Facilities'!$O$50=FALSE,'Input-Facilities'!$O51=FALSE),0,1/W$71)) -> 0 | W72: =IF('Input-Facilities'!O51=FALSE,0,1) -> 0 | X72: =IF(OR('Input-Facilities'!O51=FALSE,'Input-Facilities'!$O$52=FALSE),0,IF(F42-$F$43<0,IF(F42-$F$43>=-3,1/3,IF(F42-$F$43>=-5,1/5,IF(F42-$F$43>=-7,1/7,1/9))),IF(F42=$F$43,1,IF(F42-$F$43<=3,3,IF(F42-$F$43<=5,5,IF(F42-$F$43<=7,7,9)))))) -> 0 | Y72: =IF(OR('Input-Facilities'!O51=FALSE,'Input-Facilities'!$O$53=FALSE),0,IF(F42-$F$46<0,IF(F42-$F$46>=-3,1/3,IF(F42-$F$46>=-5,1/5,IF(F42-$F$46>=-7,1/7,1/9))),IF(F42=$F$46,1,IF(F42-$F$46<=3,3,IF(F42-$F$46<=5,5,IF(F42-$F$46<=7,7,9)))))) -> 0 | Z72: =IF(OR('Input-Facilities'!O51=FALSE,'Input-Facilities'!$O$54=FALSE),0,IF(F42-$F$47<0,IF(F42-$F$47>=-3,1/3,IF(F42-$F$47>=-5,1/5,IF(F42-$F$47>=-7,1/7,1/9))),IF(F42=$F$47,1,IF(F42-$F$47<=3,3,IF(F42-$F$47<=5,5,IF(F42-$F$47<=7,7,9)))))) -> 0 | AA72: =IF(OR('Input-Facilities'!O51=FALSE,'Input-Facilities'!$O$55=FALSE),0,IF(F42-$K$30<0,IF(F42-$K$30>=-3,1/3,IF(F42-$K$30>=-5,1/5,IF(F42-$K$30>=-7,1/7,1/9))),IF(F42=$K$30,1,IF(F42-$K$30<=3,3,IF(F42-$K$30<=5,5,IF(F42-$K$30<=7,7,9)))))) -> 0 | AB72: =IF(OR('Input-Facilities'!O51=FALSE,'Input-Facilities'!$O$61=FALSE),0,IF(F42-$K$31<0,IF(F42-$K$31>=-3,1/3,IF(F42-$K$31>=-5,1/5,IF(F42-$K$31>=-7,1/7,1/9))),IF(F42=$K$31,1,IF(F42-$K$31<=3,3,IF(F42-$K$31<=5,5,IF(F42-$K$31<=7,7,9)))))) -> 0
D73: =D43 -> Lever 4.3 | F73: =IF(ISERROR(1/X$55),0,IF(OR('Input-Facilities'!$O$34=FALSE,'Input-Facilities'!$O52=FALSE),0,1/X$55)) -> 0 | G73: =IF(ISERROR(1/X$56),0,IF(OR('Input-Facilities'!$O$35=FALSE,'Input-Facilities'!$O52=FALSE),0,1/X$56)) -> 0 | H73: =IF(ISERROR(1/X$57),0,IF(OR('Input-Facilities'!$O$36=FALSE,'Input-Facilities'!$O52=FALSE),0,1/X$57)) -> 0 | I73: =IF(ISERROR(1/X$58),0,IF(OR('Input-Facilities'!$O$37=FALSE,'Input-Facilities'!$O52=FALSE),0,1/X$58)) -> 0 | J73: =IF(ISERROR(1/X$59),0,IF(OR('Input-Facilities'!$O$38=FALSE,'Input-Facilities'!$O52=FALSE),0,1/X$59)) -> 0 | K73: =IF(ISERROR(1/X$60),0,IF(OR('Input-Facilities'!$O$39=FALSE,'Input-Facilities'!$O52=FALSE),0,1/X$60)) -> 0 | L73: =IF(ISERROR(1/X$61),0,IF(OR('Input-Facilities'!$O$40=FALSE,'Input-Facilities'!$O52=FALSE),0,1/X$61)) -> 0 | M73: =IF(ISERROR(1/X$62),0,IF(OR('Input-Facilities'!$O$41=FALSE,'Input-Facilities'!$O52=FALSE),0,1/X$62)) -> 0 | N73: =IF(ISERROR(1/X$63),0,IF(OR('Input-Facilities'!$O$42=FALSE,'Input-Facilities'!$O52=FALSE),0,1/X$63)) -> 0 | O73: =IF(ISERROR(1/X$64),0,IF(OR('Input-Facilities'!$O$43=FALSE,'Input-Facilities'!$O52=FALSE),0,1/X$64)) -> 0 | P73: =IF(ISERROR(1/X$65),0,IF(OR('Input-Facilities'!$O$44=FALSE,'Input-Facilities'!$O52=FALSE),0,1/X$65)) -> 0 | Q73: =IF(ISERROR(1/X$66),0,IF(OR('Input-Facilities'!$O$45=FALSE,'Input-Facilities'!$O52=FALSE),0,1/X$66)) -> 0 | R73: =IF(ISERROR(1/X$67),0,IF(OR('Input-Facilities'!$O$46=FALSE,'Input-Facilities'!$O52=FALSE),0,1/X$67)) -> 0 | S73: =IF(ISERROR(1/X$68),0,IF(OR('Input-Facilities'!$O$47=FALSE,'Input-Facilities'!$O52=FALSE),0,1/X$68)) -> 0 | T73: =IF(ISERROR(1/X$69),0,IF(OR('Input-Facilities'!$O$48=FALSE,'Input-Facilities'!$O52=FALSE),0,1/X$69)) -> 0 | U73: =IF(ISERROR(1/X$70),0,IF(OR('Input-Facilities'!$O$49=FALSE,'Input-Facilities'!$O52=FALSE),0,1/X$70)) -> 0 | V73: =IF(ISERROR(1/X$71),0,IF(OR('Input-Facilities'!$O$50=FALSE,'Input-Facilities'!$O52=FALSE),0,1/X$71)) -> 0 | W73: =IF(ISERROR(1/X$72),0,IF(OR('Input-Facilities'!$O$51=FALSE,'Input-Facilities'!$O52=FALSE),0,1/X$72)) -> 0 | X73: =IF('Input-Facilities'!O52=FALSE,0,1) -> 0 | Y73: =IF(OR('Input-Facilities'!O52=FALSE,'Input-Facilities'!$O$53=FALSE),0,IF(F43-$F$46<0,IF(F43-$F$46>=-3,1/3,IF(F43-$F$46>=-5,1/5,IF(F43-$F$46>=-7,1/7,1/9))),IF(F43=$F$46,1,IF(F43-$F$46<=3,3,IF(F43-$F$46<=5,5,IF(F43-$F$46<=7,7,9)))))) -> 0 | Z73: =IF(OR('Input-Facilities'!O52=FALSE,'Input-Facilities'!$O$54=FALSE),0,IF(F43-$F$47<0,IF(F43-$F$47>=-3,1/3,IF(F43-$F$47>=-5,1/5,IF(F43-$F$47>=-7,1/7,1/9))),IF(F43=$F$47,1,IF(F43-$F$47<=3,3,IF(F43-$F$47<=5,5,IF(F43-$F$47<=7,7,9)))))) -> 0 | AA73: =IF(OR('Input-Facilities'!O52=FALSE,'Input-Facilities'!$O$55=FALSE),0,IF(F43-$K$30<0,IF(F43-$K$30>=-3,1/3,IF(F43-$K$30>=-5,1/5,IF(F43-$K$30>=-7,1/7,1/9))),IF(F43=$K$30,1,IF(F43-$K$30<=3,3,IF(F43-$K$30<=5,5,IF(F43-$K$30<=7,7,9)))))) -> 0 | AB73: =IF(OR('Input-Facilities'!O52=FALSE,'Input-Facilities'!$O$61=FALSE),0,IF(F43-$K$31<0,IF(F43-$K$31>=-3,1/3,IF(F43-$K$31>=-5,1/5,IF(F43-$K$31>=-7,1/7,1/9))),IF(F43=$K$31,1,IF(F43-$K$31<=3,3,IF(F43-$K$31<=5,5,IF(F43-$K$31<=7,7,9)))))) -> 0
D74: =D46 -> Lever 5.2 | F74: =IF(ISERROR(1/Y$55),0,IF(OR('Input-Facilities'!$O$34=FALSE,'Input-Facilities'!$O53=FALSE),0,1/Y$55)) -> 0 | G74: =IF(ISERROR(1/Y$56),0,IF(OR('Input-Facilities'!$O$35=FALSE,'Input-Facilities'!$O53=FALSE),0,1/Y$56)) -> 0 | H74: =IF(ISERROR(1/Y$57),0,IF(OR('Input-Facilities'!$O$36=FALSE,'Input-Facilities'!$O53=FALSE),0,1/Y$57)) -> 0 | I74: =IF(ISERROR(1/Y$58),0,IF(OR('Input-Facilities'!$O$37=FALSE,'Input-Facilities'!$O53=FALSE),0,1/Y$58)) -> 0 | J74: =IF(ISERROR(1/Y$59),0,IF(OR('Input-Facilities'!$O$38=FALSE,'Input-Facilities'!$O53=FALSE),0,1/Y$59)) -> 0 | K74: =IF(ISERROR(1/Y$60),0,IF(OR('Input-Facilities'!$O$39=FALSE,'Input-Facilities'!$O53=FALSE),0,1/Y$60)) -> 0 | L74: =IF(ISERROR(1/Y$61),0,IF(OR('Input-Facilities'!$O$40=FALSE,'Input-Facilities'!$O53=FALSE),0,1/Y$61)) -> 0 | M74: =IF(ISERROR(1/Y$62),0,IF(OR('Input-Facilities'!$O$41=FALSE,'Input-Facilities'!$O53=FALSE),0,1/Y$62)) -> 0 | N74: =IF(ISERROR(1/Y$63),0,IF(OR('Input-Facilities'!$O$42=FALSE,'Input-Facilities'!$O53=FALSE),0,1/Y$63)) -> 0 | O74: =IF(ISERROR(1/Y$64),0,IF(OR('Input-Facilities'!$O$43=FALSE,'Input-Facilities'!$O53=FALSE),0,1/Y$64)) -> 0 | P74: =IF(ISERROR(1/Y$65),0,IF(OR('Input-Facilities'!$O$44=FALSE,'Input-Facilities'!$O53=FALSE),0,1/Y$65)) -> 0 | Q74: =IF(ISERROR(1/Y$66),0,IF(OR('Input-Facilities'!$O$45=FALSE,'Input-Facilities'!$O53=FALSE),0,1/Y$66)) -> 0 | R74: =IF(ISERROR(1/Y$67),0,IF(OR('Input-Facilities'!$O$46=FALSE,'Input-Facilities'!$O53=FALSE),0,1/Y$67)) -> 0 | S74: =IF(ISERROR(1/Y$68),0,IF(OR('Input-Facilities'!$O$47=FALSE,'Input-Facilities'!$O53=FALSE),0,1/Y$68)) -> 0 | T74: =IF(ISERROR(1/Y$69),0,IF(OR('Input-Facilities'!$O$48=FALSE,'Input-Facilities'!$O53=FALSE),0,1/Y$69)) -> 0 | U74: =IF(ISERROR(1/Y$70),0,IF(OR('Input-Facilities'!$O$49=FALSE,'Input-Facilities'!$O53=FALSE),0,1/Y$70)) -> 0 | V74: =IF(ISERROR(1/Y$71),0,IF(OR('Input-Facilities'!$O$50=FALSE,'Input-Facilities'!$O53=FALSE),0,1/Y$71)) -> 0 | W74: =IF(ISERROR(1/Y$72),0,IF(OR('Input-Facilities'!$O$51=FALSE,'Input-Facilities'!$O53=FALSE),0,1/Y$72)) -> 0 | X74: =IF(ISERROR(1/Y$73),0,IF(OR('Input-Facilities'!$O$52=FALSE,'Input-Facilities'!$O53=FALSE),0,1/Y$73)) -> 0 | Y74: =IF('Input-Facilities'!O53=FALSE,0,1) -> 0 | Z74: =IF(OR('Input-Facilities'!O53=FALSE,'Input-Facilities'!$O$54=FALSE),0,IF(F46-$F$47<0,IF(F46-$F$47>=-3,1/3,IF(F46-$F$47>=-5,1/5,IF(F46-$F$47>=-7,1/7,1/9))),IF(F46=$F$47,1,IF(F46-$F$47<=3,3,IF(F46-$F$47<=5,5,IF(F46-$F$47<=7,7,9)))))) -> 0 | AA74: =IF(OR('Input-Facilities'!O53=FALSE,'Input-Facilities'!$O$55=FALSE),0,IF(F46-$K$30<0,IF(F46-$K$30>=-3,1/3,IF(F46-$K$30>=-5,1/5,IF(F46-$K$30>=-7,1/7,1/9))),IF(F46=$K$30,1,IF(F46-$K$30<=3,3,IF(F46-$K$30<=5,5,IF(F46-$K$30<=7,7,9)))))) -> 0 | AB74: =IF(OR('Input-Facilities'!O53=FALSE,'Input-Facilities'!$O$61=FALSE),0,IF(F46-$K$31<0,IF(F46-$K$31>=-3,1/3,IF(F46-$K$31>=-5,1/5,IF(F46-$K$31>=-7,1/7,1/9))),IF(F46=$K$31,1,IF(F46-$K$31<=3,3,IF(F46-$K$31<=5,5,IF(F46-$K$31<=7,7,9)))))) -> 0
D75: Lever 5.3 | F75: =IF(ISERROR(1/Z$55),0,IF(OR('Input-Facilities'!$O$34=FALSE,'Input-Facilities'!$O54=FALSE),0,1/Z$55)) -> 0 | G75: =IF(ISERROR(1/Z$56),0,IF(OR('Input-Facilities'!$O$35=FALSE,'Input-Facilities'!$O54=FALSE),0,1/Z$56)) -> 0 | H75: =IF(ISERROR(1/Z$57),0,IF(OR('Input-Facilities'!$O$36=FALSE,'Input-Facilities'!$O54=FALSE),0,1/Z$57)) -> 0 | I75: =IF(ISERROR(1/Z$58),0,IF(OR('Input-Facilities'!$O$37=FALSE,'Input-Facilities'!$O54=FALSE),0,1/Z$58)) -> 0 | J75: =IF(ISERROR(1/Z$59),0,IF(OR('Input-Facilities'!$O$38=FALSE,'Input-Facilities'!$O54=FALSE),0,1/Z$59)) -> 0 | K75: =IF(ISERROR(1/Z$60),0,IF(OR('Input-Facilities'!$O$39=FALSE,'Input-Facilities'!$O54=FALSE),0,1/Z$60)) -> 0 | L75: =IF(ISERROR(1/Z$61),0,IF(OR('Input-Facilities'!$O$40=FALSE,'Input-Facilities'!$O54=FALSE),0,1/Z$61)) -> 0 | M75: =IF(ISERROR(1/Z$62),0,IF(OR('Input-Facilities'!$O$41=FALSE,'Input-Facilities'!$O54=FALSE),0,1/Z$62)) -> 0 | N75: =IF(ISERROR(1/Z$63),0,IF(OR('Input-Facilities'!$O$42=FALSE,'Input-Facilities'!$O54=FALSE),0,1/Z$63)) -> 0 | O75: =IF(ISERROR(1/Z$64),0,IF(OR('Input-Facilities'!$O$43=FALSE,'Input-Facilities'!$O54=FALSE),0,1/Z$64)) -> 0 | P75: =IF(ISERROR(1/Y$65),0,IF(OR('Input-Facilities'!$O$44=FALSE,'Input-Facilities'!$O54=FALSE),0,1/Y$65)) -> 0 | Q75: =IF(ISERROR(1/Z$66),0,IF(OR('Input-Facilities'!$O$45=FALSE,'Input-Facilities'!$O54=FALSE),0,1/Z$66)) -> 0 | R75: =IF(ISERROR(1/Z$67),0,IF(OR('Input-Facilities'!$O$46=FALSE,'Input-Facilities'!$O54=FALSE),0,1/Z$67)) -> 0 | S75: =IF(ISERROR(1/Z$68),0,IF(OR('Input-Facilities'!$O$47=FALSE,'Input-Facilities'!$O54=FALSE),0,1/Z$68)) -> 0 | T75: =IF(ISERROR(1/Z$69),0,IF(OR('Input-Facilities'!$O$48=FALSE,'Input-Facilities'!$O54=FALSE),0,1/Z$69)) -> 0 | U75: =IF(ISERROR(1/Z$70),0,IF(OR('Input-Facilities'!$O$49=FALSE,'Input-Facilities'!$O54=FALSE),0,1/Z$70)) -> 0 | V75: =IF(ISERROR(1/Z$71),0,IF(OR('Input-Facilities'!$O$50=FALSE,'Input-Facilities'!$O54=FALSE),0,1/Z$71)) -> 0 | W75: =IF(ISERROR(1/Z$72),0,IF(OR('Input-Facilities'!$O$51=FALSE,'Input-Facilities'!$O54=FALSE),0,1/Z$72)) -> 0 | X75: =IF(ISERROR(1/Z$73),0,IF(OR('Input-Facilities'!$O$52=FALSE,'Input-Facilities'!$O54=FALSE),0,1/Z$73)) -> 0 | Y75: =IF(ISERROR(1/Z$74),0,IF(OR('Input-Facilities'!$O$53=FALSE,'Input-Facilities'!$O54=FALSE),0,1/Z$74)) -> 0 | Z75: =IF('Input-Facilities'!O54=FALSE,0,1) -> 0 | AA75: =IF(OR('Input-Facilities'!O54=FALSE,'Input-Facilities'!$O$55=FALSE),0,IF(F47-$K$30<0,IF(F47-$K$30>=-3,1/3,IF(F47-$K$30>=-5,1/5,IF(F47-$K$30>=-7,1/7,1/9))),IF(F47=$K$30,1,IF(F47-$K$30<=3,3,IF(F47-$K$30<=5,5,IF(F47-$K$30<=7,7,9)))))) -> 0 | AB75: =IF(OR('Input-Facilities'!O54=FALSE,'Input-Facilities'!$O$61=FALSE),0,IF(F47-$K$31<0,IF(F47-$K$31>=-3,1/3,IF(F47-$K$31>=-5,1/5,IF(F47-$K$31>=-7,1/7,1/9))),IF(F47=$K$31,1,IF(F47-$K$31<=3,3,IF(F47-$K$31<=5,5,IF(F47-$K$31<=7,7,9)))))) -> 0
D76: =J30 -> Lever 1.2 | F76: =IF(ISERROR(1/AA$55),0,IF(OR('Input-Facilities'!$O$34=FALSE,'Input-Facilities'!$O55=FALSE),0,1/AA$55)) -> 0 | G76: =IF(ISERROR(1/AA$56),0,IF(OR('Input-Facilities'!$O$35=FALSE,'Input-Facilities'!$O55=FALSE),0,1/AA$56)) -> 0 | H76: =IF(ISERROR(1/AA$57),0,IF(OR('Input-Facilities'!$O$36=FALSE,'Input-Facilities'!$O55=FALSE),0,1/AA$57)) -> 0 | I76: =IF(ISERROR(1/AA$58),0,IF(OR('Input-Facilities'!$O$37=FALSE,'Input-Facilities'!$O55=FALSE),0,1/AA$58)) -> 0 | J76: =IF(ISERROR(1/AA$59),0,IF(OR('Input-Facilities'!$O$38=FALSE,'Input-Facilities'!$O55=FALSE),0,1/AA$59)) -> 0 | K76: =IF(ISERROR(1/AA$60),0,IF(OR('Input-Facilities'!$O$39=FALSE,'Input-Facilities'!$O55=FALSE),0,1/AA$60)) -> 0 | L76: =IF(ISERROR(1/AA$61),0,IF(OR('Input-Facilities'!$O$40=FALSE,'Input-Facilities'!$O55=FALSE),0,1/AA$61)) -> 0 | M76: =IF(ISERROR(1/AA$62),0,IF(OR('Input-Facilities'!$O$41=FALSE,'Input-Facilities'!$O55=FALSE),0,1/AA$62)) -> 0 | N76: =IF(ISERROR(1/AA$63),0,IF(OR('Input-Facilities'!$O$42=FALSE,'Input-Facilities'!$O55=FALSE),0,1/AA$63)) -> 0 | O76: =IF(ISERROR(1/AA$64),0,IF(OR('Input-Facilities'!$O$43=FALSE,'Input-Facilities'!$O55=FALSE),0,1/AA$64)) -> 0 | P76: =IF(ISERROR(1/AA$65),0,IF(OR('Input-Facilities'!$O$44=FALSE,'Input-Facilities'!$O55=FALSE),0,1/AA$65)) -> 0 | Q76: =IF(ISERROR(1/AA$66),0,IF(OR('Input-Facilities'!$O$45=FALSE,'Input-Facilities'!$O55=FALSE),0,1/AA$66)) -> 0 | R76: =IF(ISERROR(1/AA$67),0,IF(OR('Input-Facilities'!$O$46=FALSE,'Input-Facilities'!$O55=FALSE),0,1/AA$67)) -> 0 | S76: =IF(ISERROR(1/AA$68),0,IF(OR('Input-Facilities'!$O$47=FALSE,'Input-Facilities'!$O55=FALSE),0,1/AA$68)) -> 0 | T76: =IF(ISERROR(1/AA$69),0,IF(OR('Input-Facilities'!$O$48=FALSE,'Input-Facilities'!$O55=FALSE),0,1/AA$69)) -> 0 | U76: =IF(ISERROR(1/AA$70),0,IF(OR('Input-Facilities'!$O$49=FALSE,'Input-Facilities'!$O55=FALSE),0,1/AA$70)) -> 0 | V76: =IF(ISERROR(1/AA$71),0,IF(OR('Input-Facilities'!$O$50=FALSE,'Input-Facilities'!$O55=FALSE),0,1/AA$71)) -> 0 | W76: =IF(ISERROR(1/AA$72),0,IF(OR('Input-Facilities'!$O$51=FALSE,'Input-Facilities'!$O55=FALSE),0,1/AA$72)) -> 0 | X76: =IF(ISERROR(1/AA$73),0,IF(OR('Input-Facilities'!$O$52=FALSE,'Input-Facilities'!$O55=FALSE),0,1/AA$73)) -> 0 | Y76: =IF(ISERROR(1/AA$74),0,IF(OR('Input-Facilities'!$O$53=FALSE,'Input-Facilities'!$O55=FALSE),0,1/AA$74)) -> 0 | Z76: =IF(ISERROR(1/AA75),0,1/AA75) -> 0 | AA76: =IF('Input-Facilities'!O55=FALSE,0,1) -> 0 | AB76: =IF(OR('Input-Facilities'!O55=FALSE,'Input-Facilities'!$O$61=FALSE),0,IF(K30-$K$31<0,IF(K30-$K$31>=-3,1/3,IF(K30-$K$31>=-5,1/5,IF(K30-$K$31>=-7,1/7,1/9))),IF(K30=$K$31,1,IF(K30-$K$31<=3,3,IF(K30-$K$31<=5,5,IF(K30-$K$31<=7,7,9)))))) -> 0
D77: =J31 -> Lever 1.3 | F77: =IF(ISERROR(1/$AB$55),0,IF(OR('Input-Facilities'!$O$34=FALSE,'Input-Facilities'!$O$61=FALSE),0,1/$AB$55)) -> 0 | G77: =IF(ISERROR(1/$AB$56),0,IF(OR('Input-Facilities'!$O$35=FALSE,'Input-Facilities'!$O$61=FALSE),0,1/$AB$56)) -> 0 | H77: =IF(ISERROR(1/$AB$57),0,IF(OR('Input-Facilities'!$O$36=FALSE,'Input-Facilities'!$O$61=FALSE),0,1/$AB$57)) -> 0 | I77: =IF(ISERROR(1/$AB$58),0,IF(OR('Input-Facilities'!$O$37=FALSE,'Input-Facilities'!$O$61=FALSE),0,1/$AB$58)) -> 0 | J77: =IF(ISERROR(1/$AB$59),0,IF(OR('Input-Facilities'!$O$38=FALSE,'Input-Facilities'!$O$61=FALSE),0,1/$AB$59)) -> 0 | K77: =IF(ISERROR(1/$AB$60),0,IF(OR('Input-Facilities'!$O$39=FALSE,'Input-Facilities'!$O$61=FALSE),0,1/$AB$60)) -> 0 | L77: =IF(ISERROR(1/$AB$61),0,IF(OR('Input-Facilities'!$O$40=FALSE,'Input-Facilities'!$O$61=FALSE),0,1/$AB$61)) -> 0 | M77: =IF(ISERROR(1/$AB$62),0,IF(OR('Input-Facilities'!$O$41=FALSE,'Input-Facilities'!$O$61=FALSE),0,1/$AB$62)) -> 0 | N77: =IF(ISERROR(1/$AB$63),0,IF(OR('Input-Facilities'!$O$42=FALSE,'Input-Facilities'!$O$61=FALSE),0,1/$AB$63)) -> 0 | O77: =IF(ISERROR(1/$AB$64),0,IF(OR('Input-Facilities'!$O$43=FALSE,'Input-Facilities'!$O$61=FALSE),0,1/$AB$64)) -> 0 | P77: =IF(ISERROR(1/$AB$65),0,IF(OR('Input-Facilities'!$O$44=FALSE,'Input-Facilities'!$O$61=FALSE),0,1/$AB$65)) -> 0 | Q77: =IF(ISERROR(1/$AB$66),0,IF(OR('Input-Facilities'!$O$45=FALSE,'Input-Facilities'!$O$61=FALSE),0,1/$AB$66)) -> 0 | R77: =IF(ISERROR(1/$AB$67),0,IF(OR('Input-Facilities'!$O$46=FALSE,'Input-Facilities'!$O$61=FALSE),0,1/$AB$67)) -> 0 | S77: =IF(ISERROR(1/$AB$68),0,IF(OR('Input-Facilities'!$O$47=FALSE,'Input-Facilities'!$O$61=FALSE),0,1/$AB$68)) -> 0 | T77: =IF(ISERROR(1/$AB$69),0,IF(OR('Input-Facilities'!$O$48=FALSE,'Input-Facilities'!$O$61=FALSE),0,1/$AB$69)) -> 0 | U77: =IF(ISERROR(1/$AB$70),0,IF(OR('Input-Facilities'!$O$49=FALSE,'Input-Facilities'!$O$61=FALSE),0,1/$AB$70)) -> 0 | V77: =IF(ISERROR(1/$AB$71),0,IF(OR('Input-Facilities'!$O$50=FALSE,'Input-Facilities'!$O$61=FALSE),0,1/$AB$71)) -> 0 | W77: =IF(ISERROR(1/$AB$72),0,IF(OR('Input-Facilities'!$O$51=FALSE,'Input-Facilities'!$O$61=FALSE),0,1/$AB$72)) -> 0 | X77: =IF(ISERROR(1/$AB$73),0,IF(OR('Input-Facilities'!$O$52=FALSE,'Input-Facilities'!$O$61=FALSE),0,1/$AB$73)) -> 0 | Y77: =IF(ISERROR(1/$AB$74),0,IF(OR('Input-Facilities'!$O$53=FALSE,'Input-Facilities'!$O$61=FALSE),0,1/$AB$74)) -> 0 | Z77: =IF(ISERROR(1/$AB$75),0,IF(OR('Input-Facilities'!$O$54=FALSE,'Input-Facilities'!$O$61=FALSE),0,1/$AB$75)) -> 0 | AA77: =IF(ISERROR(1/$AB$76),0,IF(OR('Input-Facilities'!$O$55=FALSE,'Input-Facilities'!$O$61=FALSE),0,1/$AB$76)) -> 0 | AB77: =IF('Input-Facilities'!O61=FALSE,0,1) -> 0
D78: Total | F78: =SUM(F55:F77) -> 1.666666667 | G78: =SUM(G55:G77) -> 7 | H78: 4.333333333 | I78: 0 | J78: 0 | K78: 0 | L78: 0 | M78: 0 | N78: 0 | O78: 0 | P78: 0 | Q78: 0 | R78: 0 | S78: 0 | T78: 0 | U78: 0 | V78: 0 | W78: 0 | X78: 0 | Y78: 0 | Z78: 0 | AA78: 0 | AB78: 0
AG80: Weighted sum vector | AH80: Consistency vector | AI80: Lamda | AJ80: Consistency index | AK80: Random index | AL80: Consistency ratio | AM80: Consistency ratio (%)
F82: =IF(ISERROR(F55/F$78),0,IF(OR('Input-Facilities'!$O$34=FALSE,'Input-Facilities'!$O34=FALSE),0,F55/F$78)) -> 0.6 | G82: =IF(ISERROR(G55/G$78),0,IF(OR('Input-Facilities'!O34=FALSE,'Input-Facilities'!$O$35=FALSE),0,G55/G$78)) -> 0.4285714286 | H82: =IF(ISERROR(H55/H$78),0,IF(OR('Input-Facilities'!O34=FALSE,'Input-Facilities'!$O$36=FALSE),0,H55/H$78)) -> 0.6923076923 | I82: =IF(ISERROR(I55/I$78),0,IF(OR('Input-Facilities'!O34=FALSE,'Input-Facilities'!$O$37=FALSE),0,I55/I$78)) -> 0 | J82: =IF(ISERROR(J55/J$78),0,IF(OR('Input-Facilities'!O34=FALSE,'Input-Facilities'!$O$38=FALSE),0,J55/J$78)) -> 0 | K82: =IF(ISERROR(K55/K$78),0,IF(OR('Input-Facilities'!O34=FALSE,'Input-Facilities'!$O$39=FALSE),0,K55/K$78)) -> 0 | L82: =IF(ISERROR(L55/L$78),0,IF(OR('Input-Facilities'!O34=FALSE,'Input-Facilities'!$O$40=FALSE),0,L55/L$78)) -> 0 | M82: =IF(ISERROR(M55/M$78),0,IF(OR('Input-Facilities'!O34=FALSE,'Input-Facilities'!$O$41=FALSE),0,M55/M$78)) -> 0 | N82: =IF(ISERROR(N55/N$78),0,IF(OR('Input-Facilities'!O34=FALSE,'Input-Facilities'!$O$42=FALSE),0,N55/N$78)) -> 0 | O82: =IF(ISERROR(O55/O$78),0,IF(OR('Input-Facilities'!O34=FALSE,'Input-Facilities'!$O$43=FALSE),0,O55/O$78)) -> 0 | P82: =IF(ISERROR(P55/P$78),0,IF(OR('Input-Facilities'!O34=FALSE,'Input-Facilities'!$O$44=FALSE),0,P55/P$78)) -> 0 | Q82: =IF(ISERROR(Q55/$Q$78),0,IF(OR('Input-Facilities'!O34=FALSE,'Input-Facilities'!$O$45=FALSE),0,Q55/$Q$78)) -> 0 | R82: =IF(ISERROR(R55/$R$78),0,IF(OR('Input-Facilities'!O34=FALSE,'Input-Facilities'!$O$46=FALSE),0,R55/$R$78)) -> 0 | S82: =IF(ISERROR(S55/S$78),0,IF(OR('Input-Facilities'!O34=FALSE,'Input-Facilities'!$O$47=FALSE),0,S55/S$78)) -> 0 | T82: =IF(ISERROR(T55/T$78),0,IF(OR('Input-Facilities'!O34=FALSE,'Input-Facilities'!$O$48=FALSE),0,T55/T$78)) -> 0 | U82: =IF(ISERROR(U55/U$78),0,IF(OR('Input-Facilities'!O34=FALSE,'Input-Facilities'!$O$49=FALSE),0,U55/$U$78)) -> 0 | V82: =IF(ISERROR(V55/V$78),0,IF(OR('Input-Facilities'!O34=FALSE,'Input-Facilities'!$O$50=FALSE),0,V55/$V$78)) -> 0 | W82: =IF(ISERROR(W55/W$78),0,IF(OR('Input-Facilities'!O34=FALSE,'Input-Facilities'!$O$51=FALSE),0,W55/W$78)) -> 0 | X82: =IF(ISERROR(X55/X$78),0,IF(OR('Input-Facilities'!O34=FALSE,'Input-Facilities'!$O$52=FALSE),0,X55/X$78)) -> 0 | Y82: =IF(ISERROR(Y55/Y$78),0,IF(OR('Input-Facilities'!O34=FALSE,'Input-Facilities'!$O$53=FALSE),0,Y55/Y$78)) -> 0 | Z82: =IF(ISERROR(Z55/Z$78),0,IF(OR('Input-Facilities'!O34=FALSE,'Input-Facilities'!$O$54=FALSE),0,Z55/Z$78)) -> 0 | AA82: =IF(ISERROR(AA55/AA$78),0,IF(OR('Input-Facilities'!O34=FALSE,'Input-Facilities'!$O$55=FALSE),0,AA55/AA$78)) -> 0 | AB82: =AB55/$AB$78 ->  | AD82: =SUM(F82:AB82) ->  | AE82: =IF(ISERROR(AD82/$AD$105),0,AD82/$AD$105) -> 0 | AG82: =MMULT(F55:AA76,F82:AA103) -> 1.8 | AH82: =IF(ISERROR(AG82/AE82),0,AG82/AE82) -> 0 | AI82: =SUM(AH82:AH103)/AG105 ->  | AJ82: =(AI82-AG104)/(AG104-1) ->  | AK82: =VLOOKUP(AG105,AG109:AH130,2) ->  | AL82: =AJ82/AK82 ->  | AM82: =AL82*100 -> 
F83: =IF(ISERROR(F56/F$78),0,IF(OR('Input-Facilities'!$O$34=FALSE,'Input-Facilities'!$O35=FALSE),0,F56/F$78)) -> 0.2 | G83: =IF(ISERROR(G56/G$78),0,IF(OR('Input-Facilities'!O35=FALSE,'Input-Facilities'!$O$35=FALSE),0,G56/G$78)) -> 0.1428571429 | H83: =IF(ISERROR(H56/H$78),0,IF(OR('Input-Facilities'!O35=FALSE,'Input-Facilities'!$O$36=FALSE),0,H56/H$78)) -> 0.07692307692 | I83: =IF(ISERROR(I56/I$78),0,IF(OR('Input-Facilities'!O35=FALSE,'Input-Facilities'!$O$37=FALSE),0,I56/I$78)) -> 0 | J83: =IF(ISERROR(J56/J$78),0,IF(OR('Input-Facilities'!O35=FALSE,'Input-Facilities'!$O$38=FALSE),0,J56/J$78)) -> 0 | K83: =IF(ISERROR(K56/K$78),0,IF(OR('Input-Facilities'!O35=FALSE,'Input-Facilities'!$O$39=FALSE),0,K56/K$78)) -> 0 | L83: =IF(ISERROR(L56/L$78),0,IF(OR('Input-Facilities'!O35=FALSE,'Input-Facilities'!$O$40=FALSE),0,L56/L$78)) -> 0 | M83: =IF(ISERROR(M56/M$78),0,IF(OR('Input-Facilities'!O35=FALSE,'Input-Facilities'!$O$41=FALSE),0,M56/M$78)) -> 0 | N83: =IF(ISERROR(N56/N$78),0,IF(OR('Input-Facilities'!O35=FALSE,'Input-Facilities'!$O$42=FALSE),0,N56/N$78)) -> 0 | O83: =IF(ISERROR(O56/O$78),0,IF(OR('Input-Facilities'!O35=FALSE,'Input-Facilities'!$O$43=FALSE),0,O56/O$78)) -> 0 | P83: =IF(ISERROR(P56/P$78),0,IF(OR('Input-Facilities'!O35=FALSE,'Input-Facilities'!$O$44=FALSE),0,P56/P$78)) -> 0 | Q83: =IF(ISERROR(Q56/$Q$78),0,IF(OR('Input-Facilities'!O35=FALSE,'Input-Facilities'!$O$45=FALSE),0,Q56/$Q$78)) -> 0 | R83: =IF(ISERROR(R56/$R$78),0,IF(OR('Input-Facilities'!O35=FALSE,'Input-Facilities'!$O$46=FALSE),0,R56/$R$78)) -> 0 | S83: =IF(ISERROR(S56/S$78),0,IF(OR('Input-Facilities'!O35=FALSE,'Input-Facilities'!$O$47=FALSE),0,S56/S$78)) -> 0 | T83: =IF(ISERROR(T56/T$78),0,IF(OR('Input-Facilities'!O35=FALSE,'Input-Facilities'!$O$48=FALSE),0,T56/T$78)) -> 0 | U83: =IF(ISERROR(U56/U$78),0,IF(OR('Input-Facilities'!O35=FALSE,'Input-Facilities'!$O$49=FALSE),0,U56/$U$78)) -> 0 | V83: =IF(ISERROR(V56/V$78),0,IF(OR('Input-Facilities'!O35=FALSE,'Input-Facilities'!$O$50=FALSE),0,V56/$V$78)) -> 0 | W83: =IF(ISERROR(W56/W$78),0,IF(OR('Input-Facilities'!O35=FALSE,'Input-Facilities'!$O$51=FALSE),0,W56/W$78)) -> 0 | X83: =IF(ISERROR(X56/X$78),0,IF(OR('Input-Facilities'!O35=FALSE,'Input-Facilities'!$O$52=FALSE),0,X56/X$78)) -> 0 | Y83: =IF(ISERROR(Y56/Y$78),0,IF(OR('Input-Facilities'!O35=FALSE,'Input-Facilities'!$O$53=FALSE),0,Y56/Y$78)) -> 0 | Z83: =IF(ISERROR(Z56/Z$78),0,IF(OR('Input-Facilities'!O35=FALSE,'Input-Facilities'!$O$54=FALSE),0,Z56/Z$78)) -> 0 | AA83: =IF(ISERROR(AA56/AA$78),0,IF(OR('Input-Facilities'!O35=FALSE,'Input-Facilities'!$O$55=FALSE),0,AA56/AA$78)) -> 0 | AB83: =AB56/$AB$78 ->  | AD83: =SUM(F83:AB83) ->  | AE83: 0 | AG83: =MMULT(F55:AA76,F82:AA103) -> 1.8 | AH83: =IF(ISERROR(AG83/AE83),0,AG83/AE83) -> 0
F84: =IF(ISERROR(F57/F$78),0,IF(OR('Input-Facilities'!$O$34=FALSE,'Input-Facilities'!$O36=FALSE),0,F57/F$78)) -> 0.2 | G84: =IF(ISERROR(G57/G$78),0,IF(OR('Input-Facilities'!O36=FALSE,'Input-Facilities'!$O$35=FALSE),0,G57/G$78)) -> 0.4285714286 | H84: =IF(ISERROR(H57/H$78),0,IF(OR('Input-Facilities'!O36=FALSE,'Input-Facilities'!$O$36=FALSE),0,H57/H$78)) -> 0.2307692308 | I84: =IF(ISERROR(I57/I$78),0,IF(OR('Input-Facilities'!O36=FALSE,'Input-Facilities'!$O$37=FALSE),0,I57/I$78)) -> 0 | J84: =IF(ISERROR(J57/J$78),0,IF(OR('Input-Facilities'!O36=FALSE,'Input-Facilities'!$O$38=FALSE),0,J57/J$78)) -> 0 | K84: =IF(ISERROR(K57/K$78),0,IF(OR('Input-Facilities'!O36=FALSE,'Input-Facilities'!$O$39=FALSE),0,K57/K$78)) -> 0 | L84: =IF(ISERROR(L57/L$78),0,IF(OR('Input-Facilities'!O36=FALSE,'Input-Facilities'!$O$40=FALSE),0,L57/L$78)) -> 0 | M84: =IF(ISERROR(M57/M$78),0,IF(OR('Input-Facilities'!O36=FALSE,'Input-Facilities'!$O$41=FALSE),0,M57/M$78)) -> 0 | N84: =IF(ISERROR(N57/N$78),0,IF(OR('Input-Facilities'!O36=FALSE,'Input-Facilities'!$O$42=FALSE),0,N57/N$78)) -> 0 | O84: =IF(ISERROR(O57/O$78),0,IF(OR('Input-Facilities'!O36=FALSE,'Input-Facilities'!$O$43=FALSE),0,O57/O$78)) -> 0 | P84: =IF(ISERROR(P57/P$78),0,IF(OR('Input-Facilities'!O36=FALSE,'Input-Facilities'!$O$44=FALSE),0,P57/P$78)) -> 0 | Q84: =IF(ISERROR(Q57/$Q$78),0,IF(OR('Input-Facilities'!O36=FALSE,'Input-Facilities'!$O$45=FALSE),0,Q57/$Q$78)) -> 0 | R84: =IF(ISERROR(R57/$R$78),0,IF(OR('Input-Facilities'!O36=FALSE,'Input-Facilities'!$O$46=FALSE),0,R57/$R$78)) -> 0 | S84: =IF(ISERROR(S57/S$78),0,IF(OR('Input-Facilities'!O36=FALSE,'Input-Facilities'!$O$47=FALSE),0,S57/S$78)) -> 0 | T84: =IF(ISERROR(T57/T$78),0,IF(OR('Input-Facilities'!O36=FALSE,'Input-Facilities'!$O$48=FALSE),0,T57/T$78)) -> 0 | U84: =IF(ISERROR(U57/U$78),0,IF(OR('Input-Facilities'!O36=FALSE,'Input-Facilities'!$O$49=FALSE),0,U57/$U$78)) -> 0 | V84: =IF(ISERROR(V57/V$78),0,IF(OR('Input-Facilities'!O36=FALSE,'Input-Facilities'!$O$50=FALSE),0,V57/$V$78)) -> 0 | W84: =IF(ISERROR(W57/W$78),0,IF(OR('Input-Facilities'!P36=FALSE,'Input-Facilities'!$P$51=FALSE),0,W57/W$78)) -> 0 | X84: =IF(ISERROR(X57/X$78),0,IF(OR('Input-Facilities'!O36=FALSE,'Input-Facilities'!$O$52=FALSE),0,X57/X$78)) -> 0 | Y84: =IF(ISERROR(Y57/Y$78),0,IF(OR('Input-Facilities'!O36=FALSE,'Input-Facilities'!$O$53=FALSE),0,Y57/Y$78)) -> 0 | Z84: =IF(ISERROR(Z57/Z$78),0,IF(OR('Input-Facilities'!O36=FALSE,'Input-Facilities'!$O$54=FALSE),0,Z57/Z$78)) -> 0 | AA84: =IF(ISERROR(AA57/AA$78),0,IF(OR('Input-Facilities'!O36=FALSE,'Input-Facilities'!$O$55=FALSE),0,AA57/AA$78)) -> 0 | AE84: 0 | AG84: =MMULT(F55:AA76,F82:AA103) -> 1.8 | AH84: 0
F85: =IF(ISERROR(F58/F$78),0,IF(OR('Input-Facilities'!$O$34=FALSE,'Input-Facilities'!$O37=FALSE),0,F58/F$78)) -> 0 | G85: =IF(ISERROR(G58/G$78),0,IF(OR('Input-Facilities'!O37=FALSE,'Input-Facilities'!$O$35=FALSE),0,G58/G$78)) -> 0 | H85: =IF(ISERROR(H58/H$78),0,IF(OR('Input-Facilities'!O37=FALSE,'Input-Facilities'!$O$36=FALSE),0,H58/H$78)) -> 0 | I85: =IF(ISERROR(I58/I$78),0,IF(OR('Input-Facilities'!O37=FALSE,'Input-Facilities'!$O$37=FALSE),0,I58/I$78)) -> 0 | J85: =IF(ISERROR(J58/J$78),0,IF(OR('Input-Facilities'!O37=FALSE,'Input-Facilities'!$O$38=FALSE),0,J58/J$78)) -> 0 | K85: =IF(ISERROR(K58/K$78),0,IF(OR('Input-Facilities'!O37=FALSE,'Input-Facilities'!$O$39=FALSE),0,K58/K$78)) -> 0 | L85: =IF(ISERROR(L58/L$78),0,IF(OR('Input-Facilities'!O37=FALSE,'Input-Facilities'!$O$40=FALSE),0,L58/L$78)) -> 0 | M85: =IF(ISERROR(M58/M$78),0,IF(OR('Input-Facilities'!O37=FALSE,'Input-Facilities'!$O$41=FALSE),0,M58/M$78)) -> 0 | N85: =IF(ISERROR(N58/N$78),0,IF(OR('Input-Facilities'!O37=FALSE,'Input-Facilities'!$O$42=FALSE),0,N58/N$78)) -> 0 | O85: =IF(ISERROR(O58/O$78),0,IF(OR('Input-Facilities'!O37=FALSE,'Input-Facilities'!$O$43=FALSE),0,O58/O$78)) -> 0 | P85: =IF(ISERROR(P58/P$78),0,IF(OR('Input-Facilities'!O37=FALSE,'Input-Facilities'!$O$44=FALSE),0,P58/P$78)) -> 0 | Q85: =IF(ISERROR(Q58/$Q$78),0,IF(OR('Input-Facilities'!O37=FALSE,'Input-Facilities'!$O$45=FALSE),0,Q58/$Q$78)) -> 0 | R85: =IF(ISERROR(R58/$R$78),0,IF(OR('Input-Facilities'!O37=FALSE,'Input-Facilities'!$O$46=FALSE),0,R58/$R$78)) -> 0 | S85: =IF(ISERROR(S58/S$78),0,IF(OR('Input-Facilities'!O37=FALSE,'Input-Facilities'!$O$47=FALSE),0,S58/S$78)) -> 0 | T85: =IF(ISERROR(T58/T$78),0,IF(OR('Input-Facilities'!O37=FALSE,'Input-Facilities'!$O$48=FALSE),0,T58/T$78)) -> 0 | U85: =IF(ISERROR(U58/U$78),0,IF(OR('Input-Facilities'!O37=FALSE,'Input-Facilities'!$O$49=FALSE),0,U58/$U$78)) -> 0 | V85: =IF(ISERROR(V58/V$78),0,IF(OR('Input-Facilities'!O37=FALSE,'Input-Facilities'!$O$50=FALSE),0,V58/$V$78)) -> 0 | W85: =IF(ISERROR(W58/W$78),0,IF(OR('Input-Facilities'!O37=FALSE,'Input-Facilities'!$O$51=FALSE),0,W58/W$78)) -> 0 | X85: =IF(ISERROR(X58/X$78),0,IF(OR('Input-Facilities'!O37=FALSE,'Input-Facilities'!$O$52=FALSE),0,X58/X$78)) -> 0 | Y85: =IF(ISERROR(Y58/Y$78),0,IF(OR('Input-Facilities'!O37=FALSE,'Input-Facilities'!$O$53=FALSE),0,Y58/Y$78)) -> 0 | Z85: =IF(ISERROR(Z58/Z$78),0,IF(OR('Input-Facilities'!O37=FALSE,'Input-Facilities'!$O$54=FALSE),0,Z58/Z$78)) -> 0 | AA85: =IF(ISERROR(AA58/AA$78),0,IF(OR('Input-Facilities'!O37=FALSE,'Input-Facilities'!$O$55=FALSE),0,AA58/AA$78)) -> 0 | AE85: 0 | AG85: =MMULT(F55:AA76,F82:AA103) -> 1.8 | AH85: 0
F86: =IF(ISERROR(F59/F$78),0,IF(OR('Input-Facilities'!$O$34=FALSE,'Input-Facilities'!$O38=FALSE),0,F59/F$78)) -> 0 | G86: =IF(ISERROR(G59/G$78),0,IF(OR('Input-Facilities'!O38=FALSE,'Input-Facilities'!$O$35=FALSE),0,G59/G$78)) -> 0 | H86: =IF(ISERROR(H59/H$78),0,IF(OR('Input-Facilities'!O38=FALSE,'Input-Facilities'!$O$36=FALSE),0,H59/H$78)) -> 0 | I86: =IF(ISERROR(I59/I$78),0,IF(OR('Input-Facilities'!O38=FALSE,'Input-Facilities'!$O$37=FALSE),0,I59/I$78)) -> 0 | J86: =IF(ISERROR(J59/J$78),0,IF(OR('Input-Facilities'!O38=FALSE,'Input-Facilities'!$O$38=FALSE),0,J59/J$78)) -> 0 | K86: =IF(ISERROR(K59/K$78),0,IF(OR('Input-Facilities'!O38=FALSE,'Input-Facilities'!$O$39=FALSE),0,K59/K$78)) -> 0 | L86: =IF(ISERROR(L59/L$78),0,IF(OR('Input-Facilities'!O38=FALSE,'Input-Facilities'!$O$40=FALSE),0,L59/L$78)) -> 0 | M86: =IF(ISERROR(M59/M$78),0,IF(OR('Input-Facilities'!O38=FALSE,'Input-Facilities'!$O$41=FALSE),0,M59/M$78)) -> 0 | N86: =IF(ISERROR(N59/N$78),0,IF(OR('Input-Facilities'!O38=FALSE,'Input-Facilities'!$O$42=FALSE),0,N59/N$78)) -> 0 | O86: =IF(ISERROR(O59/O$78),0,IF(OR('Input-Facilities'!O38=FALSE,'Input-Facilities'!$O$43=FALSE),0,O59/O$78)) -> 0 | P86: =IF(ISERROR(P59/P$78),0,IF(OR('Input-Facilities'!O38=FALSE,'Input-Facilities'!$O$44=FALSE),0,P59/P$78)) -> 0 | Q86: =IF(ISERROR(Q59/$Q$78),0,IF(OR('Input-Facilities'!O38=FALSE,'Input-Facilities'!$O$45=FALSE),0,Q59/$Q$78)) -> 0 | R86: =IF(ISERROR(R59/$R$78),0,IF(OR('Input-Facilities'!O38=FALSE,'Input-Facilities'!$O$46=FALSE),0,R59/$R$78)) -> 0 | S86: =IF(ISERROR(S59/S$78),0,IF(OR('Input-Facilities'!O38=FALSE,'Input-Facilities'!$O$47=FALSE),0,S59/S$78)) -> 0 | T86: =IF(ISERROR(T59/T$78),0,IF(OR('Input-Facilities'!O38=FALSE,'Input-Facilities'!$O$48=FALSE),0,T59/T$78)) -> 0 | U86: =IF(ISERROR(U59/U$78),0,IF(OR('Input-Facilities'!O38=FALSE,'Input-Facilities'!$O$49=FALSE),0,U59/$U$78)) -> 0 | V86: =IF(ISERROR(V59/V$78),0,IF(OR('Input-Facilities'!O38=FALSE,'Input-Facilities'!$O$50=FALSE),0,V59/$V$78)) -> 0 | W86: =IF(ISERROR(W59/W$78),0,IF(OR('Input-Facilities'!O38=FALSE,'Input-Facilities'!$O$51=FALSE),0,W59/W$78)) -> 0 | X86: =IF(ISERROR(X59/X$78),0,IF(OR('Input-Facilities'!O38=FALSE,'Input-Facilities'!$O$52=FALSE),0,X59/X$78)) -> 0 | Y86: =IF(ISERROR(Y59/Y$78),0,IF(OR('Input-Facilities'!O38=FALSE,'Input-Facilities'!$O$53=FALSE),0,Y59/Y$78)) -> 0 | Z86: =IF(ISERROR(Z59/Z$78),0,IF(OR('Input-Facilities'!O38=FALSE,'Input-Facilities'!$O$54=FALSE),0,Z59/Z$78)) -> 0 | AA86: =IF(ISERROR(AA59/AA$78),0,IF(OR('Input-Facilities'!O38=FALSE,'Input-Facilities'!$O$55=FALSE),0,AA59/AA$78)) -> 0 | AE86: 0 | AG86: =MMULT(F55:AA76,F82:AA103) -> 1.8 | AH86: 0
F87: =IF(ISERROR(F60/F$78),0,IF(OR('Input-Facilities'!$O$34=FALSE,'Input-Facilities'!$O39=FALSE),0,F60/F$78)) -> 0 | G87: =IF(ISERROR(G60/G$78),0,IF(OR('Input-Facilities'!O39=FALSE,'Input-Facilities'!$O$35=FALSE),0,G60/G$78)) -> 0 | H87: =IF(ISERROR(H60/H$78),0,IF(OR('Input-Facilities'!O39=FALSE,'Input-Facilities'!$O$36=FALSE),0,H60/H$78)) -> 0 | I87: =IF(ISERROR(I60/I$78),0,IF(OR('Input-Facilities'!O39=FALSE,'Input-Facilities'!$O$37=FALSE),0,I60/I$78)) -> 0 | J87: =IF(ISERROR(J60/J$78),0,IF(OR('Input-Facilities'!O39=FALSE,'Input-Facilities'!$O$38=FALSE),0,J60/J$78)) -> 0 | K87: =IF(ISERROR(K60/K$78),0,IF(OR('Input-Facilities'!O39=FALSE,'Input-Facilities'!$O$39=FALSE),0,K60/K$78)) -> 0 | L87: =IF(ISERROR(L60/L$78),0,IF(OR('Input-Facilities'!O39=FALSE,'Input-Facilities'!$O$40=FALSE),0,L60/L$78)) -> 0 | M87: =IF(ISERROR(M60/M$78),0,IF(OR('Input-Facilities'!O39=FALSE,'Input-Facilities'!$O$41=FALSE),0,M60/M$78)) -> 0 | N87: =IF(ISERROR(N60/N$78),0,IF(OR('Input-Facilities'!O39=FALSE,'Input-Facilities'!$O$42=FALSE),0,N60/N$78)) -> 0 | O87: =IF(ISERROR(O60/O$78),0,IF(OR('Input-Facilities'!O39=FALSE,'Input-Facilities'!$O$43=FALSE),0,O60/O$78)) -> 0 | P87: =IF(ISERROR(P60/P$78),0,IF(OR('Input-Facilities'!O39=FALSE,'Input-Facilities'!$O$44=FALSE),0,P60/P$78)) -> 0 | Q87: =IF(ISERROR(Q60/$Q$78),0,IF(OR('Input-Facilities'!O39=FALSE,'Input-Facilities'!$O$45=FALSE),0,Q60/$Q$78)) -> 0 | R87: =IF(ISERROR(R60/$R$78),0,IF(OR('Input-Facilities'!O39=FALSE,'Input-Facilities'!$O$46=FALSE),0,R60/$R$78)) -> 0 | S87: =IF(ISERROR(S60/S$78),0,IF(OR('Input-Facilities'!O39=FALSE,'Input-Facilities'!$O$47=FALSE),0,S60/S$78)) -> 0 | T87: =IF(ISERROR(T60/T$78),0,IF(OR('Input-Facilities'!O39=FALSE,'Input-Facilities'!$O$48=FALSE),0,T60/T$78)) -> 0 | U87: =IF(ISERROR(U60/U$78),0,IF(OR('Input-Facilities'!O39=FALSE,'Input-Facilities'!$O$49=FALSE),0,U60/$U$78)) -> 0 | V87: =IF(ISERROR(V60/V$78),0,IF(OR('Input-Facilities'!O39=FALSE,'Input-Facilities'!$O$50=FALSE),0,V60/$V$78)) -> 0 | W87: =IF(ISERROR(W60/W$78),0,IF(OR('Input-Facilities'!O39=FALSE,'Input-Facilities'!$O$51=FALSE),0,W60/W$78)) -> 0 | X87: =IF(ISERROR(X60/X$78),0,IF(OR('Input-Facilities'!O39=FALSE,'Input-Facilities'!$O$52=FALSE),0,X60/X$78)) -> 0 | Y87: =IF(ISERROR(Y60/Y$78),0,IF(OR('Input-Facilities'!O39=FALSE,'Input-Facilities'!$O$53=FALSE),0,Y60/Y$78)) -> 0 | Z87: =IF(ISERROR(Z60/Z$78),0,IF(OR('Input-Facilities'!O39=FALSE,'Input-Facilities'!$O$54=FALSE),0,Z60/Z$78)) -> 0 | AA87: =IF(ISERROR(AA60/AA$78),0,IF(OR('Input-Facilities'!O39=FALSE,'Input-Facilities'!$O$55=FALSE),0,AA60/AA$78)) -> 0 | AE87: 0 | AG87: =MMULT(F55:AA76,F82:AA103) -> 1.8 | AH87: 0
F88: =IF(ISERROR(F61/F$78),0,IF(OR('Input-Facilities'!$O$34=FALSE,'Input-Facilities'!$O40=FALSE),0,F61/F$78)) -> 0 | G88: =IF(ISERROR(G61/G$78),0,IF(OR('Input-Facilities'!O40=FALSE,'Input-Facilities'!$O$35=FALSE),0,G61/G$78)) -> 0 | H88: =IF(ISERROR(H61/H$78),0,IF(OR('Input-Facilities'!O40=FALSE,'Input-Facilities'!$O$36=FALSE),0,H61/H$78)) -> 0 | I88: =IF(ISERROR(I61/I$78),0,IF(OR('Input-Facilities'!O40=FALSE,'Input-Facilities'!$O$37=FALSE),0,I61/I$78)) -> 0 | J88: =IF(ISERROR(J61/J$78),0,IF(OR('Input-Facilities'!O40=FALSE,'Input-Facilities'!$O$38=FALSE),0,J61/J$78)) -> 0 | K88: =IF(ISERROR(K61/K$78),0,IF(OR('Input-Facilities'!O40=FALSE,'Input-Facilities'!$O$39=FALSE),0,K61/K$78)) -> 0 | L88: =IF(ISERROR(L61/L$78),0,IF(OR('Input-Facilities'!O40=FALSE,'Input-Facilities'!$O$40=FALSE),0,L61/L$78)) -> 0 | M88: =IF(ISERROR(M61/M$78),0,IF(OR('Input-Facilities'!O40=FALSE,'Input-Facilities'!$O$41=FALSE),0,M61/M$78)) -> 0 | N88: =IF(ISERROR(N61/N$78),0,IF(OR('Input-Facilities'!O40=FALSE,'Input-Facilities'!$O$42=FALSE),0,N61/N$78)) -> 0 | O88: =IF(ISERROR(O61/O$78),0,IF(OR('Input-Facilities'!O40=FALSE,'Input-Facilities'!$O$43=FALSE),0,O61/O$78)) -> 0 | P88: =IF(ISERROR(P61/P$78),0,IF(OR('Input-Facilities'!O40=FALSE,'Input-Facilities'!$O$44=FALSE),0,P61/P$78)) -> 0 | Q88: =IF(ISERROR(Q61/$Q$78),0,IF(OR('Input-Facilities'!O40=FALSE,'Input-Facilities'!$O$45=FALSE),0,Q61/$Q$78)) -> 0 | R88: =IF(ISERROR(R61/$R$78),0,IF(OR('Input-Facilities'!O40=FALSE,'Input-Facilities'!$O$46=FALSE),0,R61/$R$78)) -> 0 | S88: =IF(ISERROR(S61/S$78),0,IF(OR('Input-Facilities'!O40=FALSE,'Input-Facilities'!$O$47=FALSE),0,S61/S$78)) -> 0 | T88: =IF(ISERROR(T61/T$78),0,IF(OR('Input-Facilities'!O40=FALSE,'Input-Facilities'!$O$48=FALSE),0,T61/T$78)) -> 0 | U88: =IF(ISERROR(U61/U$78),0,IF(OR('Input-Facilities'!O40=FALSE,'Input-Facilities'!$O$49=FALSE),0,U61/$U$78)) -> 0 | V88: =IF(ISERROR(V61/V$78),0,IF(OR('Input-Facilities'!O40=FALSE,'Input-Facilities'!$O$50=FALSE),0,V61/$V$78)) -> 0 | W88: =IF(ISERROR(W61/W$78),0,IF(OR('Input-Facilities'!O40=FALSE,'Input-Facilities'!$O$51=FALSE),0,W61/W$78)) -> 0 | X88: =IF(ISERROR(X61/X$78),0,IF(OR('Input-Facilities'!O40=FALSE,'Input-Facilities'!$O$52=FALSE),0,X61/X$78)) -> 0 | Y88: =IF(ISERROR(Y61/Y$78),0,IF(OR('Input-Facilities'!O40=FALSE,'Input-Facilities'!$O$53=FALSE),0,Y61/Y$78)) -> 0 | Z88: =IF(ISERROR(Z61/Z$78),0,IF(OR('Input-Facilities'!O40=FALSE,'Input-Facilities'!$O$54=FALSE),0,Z61/Z$78)) -> 0 | AA88: =IF(ISERROR(AA61/AA$78),0,IF(OR('Input-Facilities'!O40=FALSE,'Input-Facilities'!$O$55=FALSE),0,AA61/AA$78)) -> 0 | AE88: 0 | AG88: =MMULT(F55:AA76,F82:AA103) -> 1.8 | AH88: 0
F89: =IF(ISERROR(F62/F$78),0,IF(OR('Input-Facilities'!$O$34=FALSE,'Input-Facilities'!$O41=FALSE),0,F62/F$78)) -> 0 | G89: =IF(ISERROR(G62/G$78),0,IF(OR('Input-Facilities'!O41=FALSE,'Input-Facilities'!$O$35=FALSE),0,G62/G$78)) -> 0 | H89: =IF(ISERROR(H62/H$78),0,IF(OR('Input-Facilities'!O41=FALSE,'Input-Facilities'!$O$36=FALSE),0,H62/H$78)) -> 0 | I89: =IF(ISERROR(I62/I$78),0,IF(OR('Input-Facilities'!O41=FALSE,'Input-Facilities'!$O$37=FALSE),0,I62/I$78)) -> 0 | J89: =IF(ISERROR(J62/J$78),0,IF(OR('Input-Facilities'!O41=FALSE,'Input-Facilities'!$O$38=FALSE),0,J62/J$78)) -> 0 | K89: =IF(ISERROR(K62/K$78),0,IF(OR('Input-Facilities'!O41=FALSE,'Input-Facilities'!$O$39=FALSE),0,K62/K$78)) -> 0 | L89: =IF(ISERROR(L62/L$78),0,IF(OR('Input-Facilities'!O41=FALSE,'Input-Facilities'!$O$40=FALSE),0,L62/L$78)) -> 0 | M89: =IF(ISERROR(M62/M$78),0,IF(OR('Input-Facilities'!O41=FALSE,'Input-Facilities'!$O$41=FALSE),0,M62/M$78)) -> 0 | N89: =IF(ISERROR(N62/N$78),0,IF(OR('Input-Facilities'!O41=FALSE,'Input-Facilities'!$O$42=FALSE),0,N62/N$78)) -> 0 | O89: =IF(ISERROR(O62/O$78),0,IF(OR('Input-Facilities'!O41=FALSE,'Input-Facilities'!$O$43=FALSE),0,O62/O$78)) -> 0 | P89: =IF(ISERROR(P62/P$78),0,IF(OR('Input-Facilities'!O41=FALSE,'Input-Facilities'!$O$44=FALSE),0,P62/P$78)) -> 0 | Q89: =IF(ISERROR(Q62/$Q$78),0,IF(OR('Input-Facilities'!O41=FALSE,'Input-Facilities'!$O$45=FALSE),0,Q62/$Q$78)) -> 0 | R89: =IF(ISERROR(R62/$R$78),0,IF(OR('Input-Facilities'!O41=FALSE,'Input-Facilities'!$O$46=FALSE),0,R62/$R$78)) -> 0 | S89: =IF(ISERROR(S62/S$78),0,IF(OR('Input-Facilities'!O41=FALSE,'Input-Facilities'!$O$47=FALSE),0,S62/S$78)) -> 0 | T89: =IF(ISERROR(T62/T$78),0,IF(OR('Input-Facilities'!O41=FALSE,'Input-Facilities'!$O$48=FALSE),0,T62/T$78)) -> 0 | U89: =IF(ISERROR(U62/U$78),0,IF(OR('Input-Facilities'!O41=FALSE,'Input-Facilities'!$O$49=FALSE),0,U62/$U$78)) -> 0 | V89: =IF(ISERROR(V62/V$78),0,IF(OR('Input-Facilities'!O41=FALSE,'Input-Facilities'!$O$50=FALSE),0,V62/$V$78)) -> 0 | W89: =IF(ISERROR(W62/W$78),0,IF(OR('Input-Facilities'!O41=FALSE,'Input-Facilities'!$O$51=FALSE),0,W62/W$78)) -> 0 | X89: =IF(ISERROR(X62/X$78),0,IF(OR('Input-Facilities'!O41=FALSE,'Input-Facilities'!$O$52=FALSE),0,X62/X$78)) -> 0 | Y89: =IF(ISERROR(Y62/Y$78),0,IF(OR('Input-Facilities'!O41=FALSE,'Input-Facilities'!$O$53=FALSE),0,Y62/Y$78)) -> 0 | Z89: =IF(ISERROR(Z62/Z$78),0,IF(OR('Input-Facilities'!O41=FALSE,'Input-Facilities'!$O$54=FALSE),0,Z62/Z$78)) -> 0 | AA89: =IF(ISERROR(AA62/AA$78),0,IF(OR('Input-Facilities'!O41=FALSE,'Input-Facilities'!$O$55=FALSE),0,AA62/AA$78)) -> 0 | AE89: 0 | AG89: =MMULT(F55:AA76,F82:AA103) -> 1.8 | AH89: 0
F90: =IF(ISERROR(F63/F$78),0,IF(OR('Input-Facilities'!$O$34=FALSE,'Input-Facilities'!$O42=FALSE),0,F63/F$78)) -> 0 | G90: =IF(ISERROR(G63/G$78),0,IF(OR('Input-Facilities'!O42=FALSE,'Input-Facilities'!$O$35=FALSE),0,G63/G$78)) -> 0 | H90: =IF(ISERROR(H63/H$78),0,IF(OR('Input-Facilities'!O42=FALSE,'Input-Facilities'!$O$36=FALSE),0,H63/H$78)) -> 0 | I90: =IF(ISERROR(I63/I$78),0,IF(OR('Input-Facilities'!O42=FALSE,'Input-Facilities'!$O$37=FALSE),0,I63/I$78)) -> 0 | J90: =IF(ISERROR(J63/J$78),0,IF(OR('Input-Facilities'!O42=FALSE,'Input-Facilities'!$O$38=FALSE),0,J63/J$78)) -> 0 | K90: =IF(ISERROR(K63/K$78),0,IF(OR('Input-Facilities'!O42=FALSE,'Input-Facilities'!$O$39=FALSE),0,K63/K$78)) -> 0 | L90: =IF(ISERROR(L63/L$78),0,IF(OR('Input-Facilities'!O42=FALSE,'Input-Facilities'!$O$40=FALSE),0,L63/L$78)) -> 0 | M90: =IF(ISERROR(M63/M$78),0,IF(OR('Input-Facilities'!O42=FALSE,'Input-Facilities'!$O$41=FALSE),0,M63/M$78)) -> 0 | N90: =IF(ISERROR(N63/N$78),0,IF(OR('Input-Facilities'!O42=FALSE,'Input-Facilities'!$O$42=FALSE),0,N63/N$78)) -> 0 | O90: =IF(ISERROR(O63/O$78),0,IF(OR('Input-Facilities'!O42=FALSE,'Input-Facilities'!$O$43=FALSE),0,O63/O$78)) -> 0 | P90: =IF(ISERROR(P63/P$78),0,IF(OR('Input-Facilities'!O42=FALSE,'Input-Facilities'!$O$44=FALSE),0,P63/P$78)) -> 0 | Q90: =IF(ISERROR(Q63/$Q$78),0,IF(OR('Input-Facilities'!O42=FALSE,'Input-Facilities'!$O$45=FALSE),0,Q63/$Q$78)) -> 0 | R90: =IF(ISERROR(R63/$R$78),0,IF(OR('Input-Facilities'!O42=FALSE,'Input-Facilities'!$O$46=FALSE),0,R63/$R$78)) -> 0 | S90: =IF(ISERROR(S63/S$78),0,IF(OR('Input-Facilities'!O42=FALSE,'Input-Facilities'!$O$47=FALSE),0,S63/S$78)) -> 0 | T90: =IF(ISERROR(T63/T$78),0,IF(OR('Input-Facilities'!O42=FALSE,'Input-Facilities'!$O$48=FALSE),0,T63/T$78)) -> 0 | U90: =IF(ISERROR(U63/U$78),0,IF(OR('Input-Facilities'!O42=FALSE,'Input-Facilities'!$O$49=FALSE),0,U63/$U$78)) -> 0 | V90: =IF(ISERROR(V63/V$78),0,IF(OR('Input-Facilities'!O42=FALSE,'Input-Facilities'!$O$50=FALSE),0,V63/$V$78)) -> 0 | W90: =IF(ISERROR(W63/W$78),0,IF(OR('Input-Facilities'!O42=FALSE,'Input-Facilities'!$O$51=FALSE),0,W63/W$78)) -> 0 | X90: =IF(ISERROR(X63/X$78),0,IF(OR('Input-Facilities'!O42=FALSE,'Input-Facilities'!$O$52=FALSE),0,X63/X$78)) -> 0 | Y90: =IF(ISERROR(Y63/Y$78),0,IF(OR('Input-Facilities'!O42=FALSE,'Input-Facilities'!$O$53=FALSE),0,Y63/Y$78)) -> 0 | Z90: =IF(ISERROR(Z63/Z$78),0,IF(OR('Input-Facilities'!O42=FALSE,'Input-Facilities'!$O$54=FALSE),0,Z63/Z$78)) -> 0 | AA90: =IF(ISERROR(AA63/AA$78),0,IF(OR('Input-Facilities'!O42=FALSE,'Input-Facilities'!$O$55=FALSE),0,AA63/AA$78)) -> 0 | AE90: 0 | AG90: =MMULT(F55:AA76,F82:AA103) -> 1.8 | AH90: 0
F91: =IF(ISERROR(F64/F$78),0,IF(OR('Input-Facilities'!$O$34=FALSE,'Input-Facilities'!$O43=FALSE),0,F64/F$78)) -> 0 | G91: =IF(ISERROR(G64/G$78),0,IF(OR('Input-Facilities'!O43=FALSE,'Input-Facilities'!$O$35=FALSE),0,G64/G$78)) -> 0 | H91: =IF(ISERROR(H64/H$78),0,IF(OR('Input-Facilities'!O43=FALSE,'Input-Facilities'!$O$36=FALSE),0,H64/H$78)) -> 0 | I91: =IF(ISERROR(I64/I$78),0,IF(OR('Input-Facilities'!O43=FALSE,'Input-Facilities'!$O$37=FALSE),0,I64/I$78)) -> 0 | J91: =IF(ISERROR(J64/J$78),0,IF(OR('Input-Facilities'!O43=FALSE,'Input-Facilities'!$O$38=FALSE),0,J64/J$78)) -> 0 | K91: =IF(ISERROR(K64/K$78),0,IF(OR('Input-Facilities'!O43=FALSE,'Input-Facilities'!$O$39=FALSE),0,K64/K$78)) -> 0 | L91: =IF(ISERROR(L64/L$78),0,IF(OR('Input-Facilities'!O43=FALSE,'Input-Facilities'!$O$40=FALSE),0,L64/L$78)) -> 0 | M91: =IF(ISERROR(M64/M$78),0,IF(OR('Input-Facilities'!O43=FALSE,'Input-Facilities'!$O$41=FALSE),0,M64/M$78)) -> 0 | N91: =IF(ISERROR(N64/N$78),0,IF(OR('Input-Facilities'!O43=FALSE,'Input-Facilities'!$O$42=FALSE),0,N64/N$78)) -> 0 | O91: =IF(ISERROR(O64/O$78),0,IF(OR('Input-Facilities'!O43=FALSE,'Input-Facilities'!$O$43=FALSE),0,O64/O$78)) -> 0 | P91: =IF(ISERROR(P64/P$78),0,IF(OR('Input-Facilities'!O43=FALSE,'Input-Facilities'!$O$44=FALSE),0,P64/P$78)) -> 0 | Q91: =IF(ISERROR(Q64/$Q$78),0,IF(OR('Input-Facilities'!O43=FALSE,'Input-Facilities'!$O$45=FALSE),0,Q64/$Q$78)) -> 0 | R91: =IF(ISERROR(R64/$R$78),0,IF(OR('Input-Facilities'!O43=FALSE,'Input-Facilities'!$O$46=FALSE),0,R64/$R$78)) -> 0 | S91: =IF(ISERROR(S64/S$78),0,IF(OR('Input-Facilities'!O43=FALSE,'Input-Facilities'!$O$47=FALSE),0,S64/S$78)) -> 0 | T91: =IF(ISERROR(T64/T$78),0,IF(OR('Input-Facilities'!O43=FALSE,'Input-Facilities'!$O$48=FALSE),0,T64/T$78)) -> 0 | U91: =IF(ISERROR(U64/U$78),0,IF(OR('Input-Facilities'!O43=FALSE,'Input-Facilities'!$O$49=FALSE),0,U64/$U$78)) -> 0 | V91: =IF(ISERROR(V64/V$78),0,IF(OR('Input-Facilities'!O43=FALSE,'Input-Facilities'!$O$50=FALSE),0,V64/$V$78)) -> 0 | W91: =IF(ISERROR(W64/W$78),0,IF(OR('Input-Facilities'!O43=FALSE,'Input-Facilities'!$O$51=FALSE),0,W64/W$78)) -> 0 | X91: =IF(ISERROR(X64/X$78),0,IF(OR('Input-Facilities'!O43=FALSE,'Input-Facilities'!$O$52=FALSE),0,X64/X$78)) -> 0 | Y91: =IF(ISERROR(Y64/Y$78),0,IF(OR('Input-Facilities'!O43=FALSE,'Input-Facilities'!$O$53=FALSE),0,Y64/Y$78)) -> 0 | Z91: =IF(ISERROR(Z64/Z$78),0,IF(OR('Input-Facilities'!O43=FALSE,'Input-Facilities'!$O$54=FALSE),0,Z64/Z$78)) -> 0 | AA91: =IF(ISERROR(AA64/AA$78),0,IF(OR('Input-Facilities'!O43=FALSE,'Input-Facilities'!$O$55=FALSE),0,AA64/AA$78)) -> 0 | AE91: 0 | AG91: =MMULT(F55:AA76,F82:AA103) -> 1.8 | AH91: 0
F92: =IF(ISERROR(F65/F$78),0,IF(OR('Input-Facilities'!$O$34=FALSE,'Input-Facilities'!$O44=FALSE),0,F65/F$78)) -> 0 | G92: =IF(ISERROR(G65/G$78),0,IF(OR('Input-Facilities'!O44=FALSE,'Input-Facilities'!$O$35=FALSE),0,G65/G$78)) -> 0 | H92: =IF(ISERROR(H65/H$78),0,IF(OR('Input-Facilities'!O44=FALSE,'Input-Facilities'!$O$36=FALSE),0,H65/H$78)) -> 0 | I92: =IF(ISERROR(I65/I$78),0,IF(OR('Input-Facilities'!O44=FALSE,'Input-Facilities'!$O$37=FALSE),0,I65/I$78)) -> 0 | J92: =IF(ISERROR(J65/J$78),0,IF(OR('Input-Facilities'!O44=FALSE,'Input-Facilities'!$O$38=FALSE),0,J65/J$78)) -> 0 | K92: =IF(ISERROR(K65/K$78),0,IF(OR('Input-Facilities'!O44=FALSE,'Input-Facilities'!$O$39=FALSE),0,K65/K$78)) -> 0 | L92: =IF(ISERROR(L65/L$78),0,IF(OR('Input-Facilities'!O44=FALSE,'Input-Facilities'!$O$40=FALSE),0,L65/L$78)) -> 0 | M92: =IF(ISERROR(M65/M$78),0,IF(OR('Input-Facilities'!O44=FALSE,'Input-Facilities'!$O$41=FALSE),0,M65/M$78)) -> 0 | N92: =IF(ISERROR(N65/N$78),0,IF(OR('Input-Facilities'!O44=FALSE,'Input-Facilities'!$O$42=FALSE),0,N65/N$78)) -> 0 | O92: =IF(ISERROR(O65/O$78),0,IF(OR('Input-Facilities'!O44=FALSE,'Input-Facilities'!$O$43=FALSE),0,O65/O$78)) -> 0 | P92: =IF(ISERROR(P65/P$78),0,IF(OR('Input-Facilities'!O44=FALSE,'Input-Facilities'!$O$44=FALSE),0,P65/P$78)) -> 0 | Q92: =IF(ISERROR(Q65/$Q$78),0,IF(OR('Input-Facilities'!O44=FALSE,'Input-Facilities'!$O$45=FALSE),0,Q65/$Q$78)) -> 0 | R92: =IF(ISERROR(R65/$R$78),0,IF(OR('Input-Facilities'!O44=FALSE,'Input-Facilities'!$O$46=FALSE),0,R65/$R$78)) -> 0 | S92: =IF(ISERROR(S65/S$78),0,IF(OR('Input-Facilities'!O44=FALSE,'Input-Facilities'!$O$47=FALSE),0,S65/S$78)) -> 0 | T92: =IF(ISERROR(T65/T$78),0,IF(OR('Input-Facilities'!O44=FALSE,'Input-Facilities'!$O$48=FALSE),0,T65/T$78)) -> 0 | U92: =IF(ISERROR(U65/U$78),0,IF(OR('Input-Facilities'!O44=FALSE,'Input-Facilities'!$O$49=FALSE),0,U65/$U$78)) -> 0 | V92: =IF(ISERROR(V65/V$78),0,IF(OR('Input-Facilities'!O44=FALSE,'Input-Facilities'!$O$50=FALSE),0,V65/$V$78)) -> 0 | W92: =IF(ISERROR(W65/W$78),0,IF(OR('Input-Facilities'!O44=FALSE,'Input-Facilities'!$O$51=FALSE),0,W65/W$78)) -> 0 | X92: =IF(ISERROR(X65/X$78),0,IF(OR('Input-Facilities'!O44=FALSE,'Input-Facilities'!$O$52=FALSE),0,X65/X$78)) -> 0 | Y92: =IF(ISERROR(Y65/Y$78),0,IF(OR('Input-Facilities'!O44=FALSE,'Input-Facilities'!$O$53=FALSE),0,Y65/Y$78)) -> 0 | Z92: =IF(ISERROR(Z65/Z$78),0,IF(OR('Input-Facilities'!O44=FALSE,'Input-Facilities'!$O$54=FALSE),0,Z65/Z$78)) -> 0 | AA92: =IF(ISERROR(AA65/AA$78),0,IF(OR('Input-Facilities'!O44=FALSE,'Input-Facilities'!$O$55=FALSE),0,AA65/AA$78)) -> 0 | AE92: 0 | AG92: =MMULT(F55:AA76,F82:AA103) -> 1.8 | AH92: 0
F93: =IF(ISERROR(F66/F$78),0,IF(OR('Input-Facilities'!$O$34=FALSE,'Input-Facilities'!$O45=FALSE),0,F66/F$78)) -> 0 | G93: =IF(ISERROR(G66/G$78),0,IF(OR('Input-Facilities'!O45=FALSE,'Input-Facilities'!$O$35=FALSE),0,G66/G$78)) -> 0 | H93: =IF(ISERROR(H66/H$78),0,IF(OR('Input-Facilities'!O45=FALSE,'Input-Facilities'!$O$36=FALSE),0,H66/H$78)) -> 0 | I93: =IF(ISERROR(I66/I$78),0,IF(OR('Input-Facilities'!O45=FALSE,'Input-Facilities'!$O$37=FALSE),0,I66/I$78)) -> 0 | J93: =IF(ISERROR(J66/J$78),0,IF(OR('Input-Facilities'!O45=FALSE,'Input-Facilities'!$O$38=FALSE),0,J66/J$78)) -> 0 | K93: =IF(ISERROR(K66/K$78),0,IF(OR('Input-Facilities'!O45=FALSE,'Input-Facilities'!$O$39=FALSE),0,K66/K$78)) -> 0 | L93: =IF(ISERROR(L66/L$78),0,IF(OR('Input-Facilities'!O45=FALSE,'Input-Facilities'!$O$40=FALSE),0,L66/L$78)) -> 0 | M93: =IF(ISERROR(M66/M$78),0,IF(OR('Input-Facilities'!O45=FALSE,'Input-Facilities'!$O$41=FALSE),0,M66/M$78)) -> 0 | N93: =IF(ISERROR(N66/N$78),0,IF(OR('Input-Facilities'!O45=FALSE,'Input-Facilities'!$O$42=FALSE),0,N66/N$78)) -> 0 | O93: =IF(ISERROR(O66/O$78),0,IF(OR('Input-Facilities'!O45=FALSE,'Input-Facilities'!$O$43=FALSE),0,O66/O$78)) -> 0 | P93: =IF(ISERROR(P66/P$78),0,IF(OR('Input-Facilities'!O45=FALSE,'Input-Facilities'!$O$44=FALSE),0,P66/P$78)) -> 0 | Q93: =IF(ISERROR(Q66/$Q$78),0,IF(OR('Input-Facilities'!O45=FALSE,'Input-Facilities'!$O$45=FALSE),0,Q66/$Q$78)) -> 0 | R93: =IF(ISERROR(R66/$R$78),0,IF(OR('Input-Facilities'!O45=FALSE,'Input-Facilities'!$O$46=FALSE),0,R66/$R$78)) -> 0 | S93: =IF(ISERROR(S66/S$78),0,IF(OR('Input-Facilities'!O45=FALSE,'Input-Facilities'!$O$47=FALSE),0,S66/S$78)) -> 0 | T93: =IF(ISERROR(T66/T$78),0,IF(OR('Input-Facilities'!O45=FALSE,'Input-Facilities'!$O$48=FALSE),0,T66/T$78)) -> 0 | U93: =IF(ISERROR(U66/U$78),0,IF(OR('Input-Facilities'!O45=FALSE,'Input-Facilities'!$O$49=FALSE),0,U66/$U$78)) -> 0 | V93: =IF(ISERROR(V66/V$78),0,IF(OR('Input-Facilities'!O45=FALSE,'Input-Facilities'!$O$50=FALSE),0,V66/$V$78)) -> 0 | W93: =IF(ISERROR(W66/W$78),0,IF(OR('Input-Facilities'!O45=FALSE,'Input-Facilities'!$O$51=FALSE),0,W66/W$78)) -> 0 | X93: =IF(ISERROR(X66/X$78),0,IF(OR('Input-Facilities'!O45=FALSE,'Input-Facilities'!$O$52=FALSE),0,X66/X$78)) -> 0 | Y93: =IF(ISERROR(Y66/Y$78),0,IF(OR('Input-Facilities'!O45=FALSE,'Input-Facilities'!$O$53=FALSE),0,Y66/Y$78)) -> 0 | Z93: =IF(ISERROR(Z66/Z$78),0,IF(OR('Input-Facilities'!O45=FALSE,'Input-Facilities'!$O$54=FALSE),0,Z66/Z$78)) -> 0 | AA93: =IF(ISERROR(AA66/AA$78),0,IF(OR('Input-Facilities'!O45=FALSE,'Input-Facilities'!$O$55=FALSE),0,AA66/AA$78)) -> 0 | AE93: 0 | AG93: =MMULT(F55:AA76,F82:AA103) -> 1.8 | AH93: 0
F94: =IF(ISERROR(F67/F$78),0,IF(OR('Input-Facilities'!$O$34=FALSE,'Input-Facilities'!$O46=FALSE),0,F67/F$78)) -> 0 | G94: =IF(ISERROR(G67/G$78),0,IF(OR('Input-Facilities'!O46=FALSE,'Input-Facilities'!$O$35=FALSE),0,G67/G$78)) -> 0 | H94: =IF(ISERROR(H67/H$78),0,IF(OR('Input-Facilities'!O46=FALSE,'Input-Facilities'!$O$36=FALSE),0,H67/H$78)) -> 0 | I94: =IF(ISERROR(I67/I$78),0,IF(OR('Input-Facilities'!O46=FALSE,'Input-Facilities'!$O$37=FALSE),0,I67/I$78)) -> 0 | J94: =IF(ISERROR(J67/J$78),0,IF(OR('Input-Facilities'!O46=FALSE,'Input-Facilities'!$O$38=FALSE),0,J67/J$78)) -> 0 | K94: =IF(ISERROR(K67/K$78),0,IF(OR('Input-Facilities'!O46=FALSE,'Input-Facilities'!$O$39=FALSE),0,K67/K$78)) -> 0 | L94: =IF(ISERROR(L67/L$78),0,IF(OR('Input-Facilities'!O46=FALSE,'Input-Facilities'!$O$40=FALSE),0,L67/L$78)) -> 0 | M94: =IF(ISERROR(M67/M$78),0,IF(OR('Input-Facilities'!O46=FALSE,'Input-Facilities'!$O$41=FALSE),0,M67/M$78)) -> 0 | N94: =IF(ISERROR(N67/N$78),0,IF(OR('Input-Facilities'!O46=FALSE,'Input-Facilities'!$O$42=FALSE),0,N67/N$78)) -> 0 | O94: =IF(ISERROR(O67/O$78),0,IF(OR('Input-Facilities'!O46=FALSE,'Input-Facilities'!$O$43=FALSE),0,O67/O$78)) -> 0 | P94: =IF(ISERROR(P67/P$78),0,IF(OR('Input-Facilities'!O46=FALSE,'Input-Facilities'!$O$44=FALSE),0,P67/P$78)) -> 0 | Q94: =IF(ISERROR(Q67/$Q$78),0,IF(OR('Input-Facilities'!O46=FALSE,'Input-Facilities'!$O$45=FALSE),0,Q67/$Q$78)) -> 0 | R94: =IF(ISERROR(R67/$R$78),0,IF(OR('Input-Facilities'!O46=FALSE,'Input-Facilities'!$O$46=FALSE),0,R67/$R$78)) -> 0 | S94: =IF(ISERROR(S67/S$78),0,IF(OR('Input-Facilities'!O46=FALSE,'Input-Facilities'!$O$47=FALSE),0,S67/S$78)) -> 0 | T94: =IF(ISERROR(T67/T$78),0,IF(OR('Input-Facilities'!O46=FALSE,'Input-Facilities'!$O$48=FALSE),0,T67/T$78)) -> 0 | U94: =IF(ISERROR(U67/U$78),0,IF(OR('Input-Facilities'!O46=FALSE,'Input-Facilities'!$O$49=FALSE),0,U67/$U$78)) -> 0 | V94: =IF(ISERROR(V67/V$78),0,IF(OR('Input-Facilities'!O46=FALSE,'Input-Facilities'!$O$50=FALSE),0,V67/$V$78)) -> 0 | W94: =IF(ISERROR(W67/W$78),0,IF(OR('Input-Facilities'!O46=FALSE,'Input-Facilities'!$O$51=FALSE),0,W67/W$78)) -> 0 | X94: =IF(ISERROR(X67/X$78),0,IF(OR('Input-Facilities'!O46=FALSE,'Input-Facilities'!$O$52=FALSE),0,X67/X$78)) -> 0 | Y94: =IF(ISERROR(Y67/Y$78),0,IF(OR('Input-Facilities'!O46=FALSE,'Input-Facilities'!$O$53=FALSE),0,Y67/Y$78)) -> 0 | Z94: =IF(ISERROR(Z67/Z$78),0,IF(OR('Input-Facilities'!O46=FALSE,'Input-Facilities'!$O$54=FALSE),0,Z67/Z$78)) -> 0 | AA94: =IF(ISERROR(AA67/AA$78),0,IF(OR('Input-Facilities'!O46=FALSE,'Input-Facilities'!$O$55=FALSE),0,AA67/AA$78)) -> 0 | AE94: 0 | AG94: =MMULT(F55:AA76,F82:AA103) -> 1.8 | AH94: 0
F95: =IF(ISERROR(F68/F$78),0,IF(OR('Input-Facilities'!$O$34=FALSE,'Input-Facilities'!$O47=FALSE),0,F68/F$78)) -> 0 | G95: =IF(ISERROR(G68/G$78),0,IF(OR('Input-Facilities'!O47=FALSE,'Input-Facilities'!$O$35=FALSE),0,G68/G$78)) -> 0 | H95: =IF(ISERROR(H68/H$78),0,IF(OR('Input-Facilities'!O47=FALSE,'Input-Facilities'!$O$36=FALSE),0,H68/H$78)) -> 0 | I95: =IF(ISERROR(I68/I$78),0,IF(OR('Input-Facilities'!O47=FALSE,'Input-Facilities'!$O$37=FALSE),0,I68/I$78)) -> 0 | J95: =IF(ISERROR(J68/J$78),0,IF(OR('Input-Facilities'!O47=FALSE,'Input-Facilities'!$O$38=FALSE),0,J68/J$78)) -> 0 | K95: =IF(ISERROR(K68/K$78),0,IF(OR('Input-Facilities'!O47=FALSE,'Input-Facilities'!$O$39=FALSE),0,K68/K$78)) -> 0 | L95: =IF(ISERROR(L68/L$78),0,IF(OR('Input-Facilities'!O47=FALSE,'Input-Facilities'!$O$40=FALSE),0,L68/L$78)) -> 0 | M95: =IF(ISERROR(M68/M$78),0,IF(OR('Input-Facilities'!O47=FALSE,'Input-Facilities'!$O$41=FALSE),0,M68/M$78)) -> 0 | N95: =IF(ISERROR(N68/N$78),0,IF(OR('Input-Facilities'!O47=FALSE,'Input-Facilities'!$O$42=FALSE),0,N68/N$78)) -> 0 | O95: =IF(ISERROR(O68/O$78),0,IF(OR('Input-Facilities'!O47=FALSE,'Input-Facilities'!$O$43=FALSE),0,O68/O$78)) -> 0 | P95: =IF(ISERROR(P68/P$78),0,IF(OR('Input-Facilities'!O47=FALSE,'Input-Facilities'!$O$44=FALSE),0,P68/P$78)) -> 0 | Q95: =IF(ISERROR(Q68/$Q$78),0,IF(OR('Input-Facilities'!O47=FALSE,'Input-Facilities'!$O$45=FALSE),0,Q68/$Q$78)) -> 0 | R95: =IF(ISERROR(R68/$R$78),0,IF(OR('Input-Facilities'!O47=FALSE,'Input-Facilities'!$O$46=FALSE),0,R68/$R$78)) -> 0 | S95: =IF(ISERROR(S68/S$78),0,IF(OR('Input-Facilities'!O47=FALSE,'Input-Facilities'!$O$47=FALSE),0,S68/S$78)) -> 0 | T95: =IF(ISERROR(T68/T$78),0,IF(OR('Input-Facilities'!O47=FALSE,'Input-Facilities'!$O$48=FALSE),0,T68/T$78)) -> 0 | U95: =IF(ISERROR(U68/U$78),0,IF(OR('Input-Facilities'!O47=FALSE,'Input-Facilities'!$O$49=FALSE),0,U68/$U$78)) -> 0 | V95: =IF(ISERROR(V68/V$78),0,IF(OR('Input-Facilities'!O47=FALSE,'Input-Facilities'!$O$50=FALSE),0,V68/$V$78)) -> 0 | W95: =IF(ISERROR(W68/W$78),0,IF(OR('Input-Facilities'!O47=FALSE,'Input-Facilities'!$O$51=FALSE),0,W68/W$78)) -> 0 | X95: =IF(ISERROR(X68/X$78),0,IF(OR('Input-Facilities'!O47=FALSE,'Input-Facilities'!$O$52=FALSE),0,X68/X$78)) -> 0 | Y95: =IF(ISERROR(Y68/Y$78),0,IF(OR('Input-Facilities'!O47=FALSE,'Input-Facilities'!$O$53=FALSE),0,Y68/Y$78)) -> 0 | Z95: =IF(ISERROR(Z68/Z$78),0,IF(OR('Input-Facilities'!O47=FALSE,'Input-Facilities'!$O$54=FALSE),0,Z68/Z$78)) -> 0 | AA95: =IF(ISERROR(AA68/AA$78),0,IF(OR('Input-Facilities'!O47=FALSE,'Input-Facilities'!$O$55=FALSE),0,AA68/AA$78)) -> 0 | AE95: 0 | AG95: =MMULT(F55:AA76,F82:AA103) -> 1.8 | AH95: 0
F96: =IF(ISERROR(F69/F$78),0,IF(OR('Input-Facilities'!$O$34=FALSE,'Input-Facilities'!$O48=FALSE),0,F69/F$78)) -> 0 | G96: =IF(ISERROR(G69/G$78),0,IF(OR('Input-Facilities'!O48=FALSE,'Input-Facilities'!$O$35=FALSE),0,G69/G$78)) -> 0 | H96: =IF(ISERROR(H69/H$78),0,IF(OR('Input-Facilities'!O48=FALSE,'Input-Facilities'!$O$36=FALSE),0,H69/H$78)) -> 0 | I96: =IF(ISERROR(I69/I$78),0,IF(OR('Input-Facilities'!O48=FALSE,'Input-Facilities'!$O$37=FALSE),0,I69/I$78)) -> 0 | J96: =IF(ISERROR(J69/J$78),0,IF(OR('Input-Facilities'!O48=FALSE,'Input-Facilities'!$O$38=FALSE),0,J69/J$78)) -> 0 | K96: =IF(ISERROR(K69/K$78),0,IF(OR('Input-Facilities'!O48=FALSE,'Input-Facilities'!$O$39=FALSE),0,K69/K$78)) -> 0 | L96: =IF(ISERROR(L69/L$78),0,IF(OR('Input-Facilities'!O48=FALSE,'Input-Facilities'!$O$40=FALSE),0,L69/L$78)) -> 0 | M96: =IF(ISERROR(M69/M$78),0,IF(OR('Input-Facilities'!O48=FALSE,'Input-Facilities'!$O$41=FALSE),0,M69/M$78)) -> 0 | N96: =IF(ISERROR(N69/N$78),0,IF(OR('Input-Facilities'!O48=FALSE,'Input-Facilities'!$O$42=FALSE),0,N69/N$78)) -> 0 | O96: =IF(ISERROR(O69/O$78),0,IF(OR('Input-Facilities'!O48=FALSE,'Input-Facilities'!$O$43=FALSE),0,O69/O$78)) -> 0 | P96: =IF(ISERROR(P69/P$78),0,IF(OR('Input-Facilities'!O48=FALSE,'Input-Facilities'!$O$44=FALSE),0,P69/P$78)) -> 0 | Q96: =IF(ISERROR(Q69/$Q$78),0,IF(OR('Input-Facilities'!O48=FALSE,'Input-Facilities'!$O$45=FALSE),0,Q69/$Q$78)) -> 0 | R96: =IF(ISERROR(R69/$R$78),0,IF(OR('Input-Facilities'!O48=FALSE,'Input-Facilities'!$O$46=FALSE),0,R69/$R$78)) -> 0 | S96: =IF(ISERROR(S69/S$78),0,IF(OR('Input-Facilities'!O48=FALSE,'Input-Facilities'!$O$47=FALSE),0,S69/S$78)) -> 0 | T96: =IF(ISERROR(T69/T$78),0,IF(OR('Input-Facilities'!O48=FALSE,'Input-Facilities'!$O$48=FALSE),0,T69/T$78)) -> 0 | U96: =IF(ISERROR(U69/U$78),0,IF(OR('Input-Facilities'!O48=FALSE,'Input-Facilities'!$O$49=FALSE),0,U69/$U$78)) -> 0 | V96: =IF(ISERROR(V69/V$78),0,IF(OR('Input-Facilities'!O48=FALSE,'Input-Facilities'!$O$50=FALSE),0,V69/$V$78)) -> 0 | W96: =IF(ISERROR(W69/W$78),0,IF(OR('Input-Facilities'!O48=FALSE,'Input-Facilities'!$O$51=FALSE),0,W69/W$78)) -> 0 | X96: =IF(ISERROR(X69/X$78),0,IF(OR('Input-Facilities'!O48=FALSE,'Input-Facilities'!$O$52=FALSE),0,X69/X$78)) -> 0 | Y96: =IF(ISERROR(Y69/Y$78),0,IF(OR('Input-Facilities'!O48=FALSE,'Input-Facilities'!$O$53=FALSE),0,Y69/Y$78)) -> 0 | Z96: =IF(ISERROR(Z69/Z$78),0,IF(OR('Input-Facilities'!O48=FALSE,'Input-Facilities'!$O$54=FALSE),0,Z69/Z$78)) -> 0 | AA96: =IF(ISERROR(AA69/AA$78),0,IF(OR('Input-Facilities'!O48=FALSE,'Input-Facilities'!$O$55=FALSE),0,AA69/AA$78)) -> 0 | AE96: 0 | AG96: =MMULT(F55:AA76,F82:AA103) -> 1.8 | AH96: 0
F97: =IF(ISERROR(F70/F$78),0,IF(OR('Input-Facilities'!$O$34=FALSE,'Input-Facilities'!$O49=FALSE),0,F70/F$78)) -> 0 | G97: =IF(ISERROR(G70/G$78),0,IF(OR('Input-Facilities'!O49=FALSE,'Input-Facilities'!$O$35=FALSE),0,G70/G$78)) -> 0 | H97: =IF(ISERROR(H70/H$78),0,IF(OR('Input-Facilities'!O49=FALSE,'Input-Facilities'!$O$36=FALSE),0,H70/H$78)) -> 0 | I97: =IF(ISERROR(I70/I$78),0,IF(OR('Input-Facilities'!O49=FALSE,'Input-Facilities'!$O$37=FALSE),0,I70/I$78)) -> 0 | J97: =IF(ISERROR(J70/J$78),0,IF(OR('Input-Facilities'!O49=FALSE,'Input-Facilities'!$O$38=FALSE),0,J70/J$78)) -> 0 | K97: =IF(ISERROR(K70/K$78),0,IF(OR('Input-Facilities'!O49=FALSE,'Input-Facilities'!$O$39=FALSE),0,K70/K$78)) -> 0 | L97: =IF(ISERROR(L70/L$78),0,IF(OR('Input-Facilities'!O49=FALSE,'Input-Facilities'!$O$40=FALSE),0,L70/L$78)) -> 0 | M97: =IF(ISERROR(M70/M$78),0,IF(OR('Input-Facilities'!O49=FALSE,'Input-Facilities'!$O$41=FALSE),0,M70/M$78)) -> 0 | N97: =IF(ISERROR(N70/N$78),0,IF(OR('Input-Facilities'!O49=FALSE,'Input-Facilities'!$O$42=FALSE),0,N70/N$78)) -> 0 | O97: =IF(ISERROR(O70/O$78),0,IF(OR('Input-Facilities'!O49=FALSE,'Input-Facilities'!$O$43=FALSE),0,O70/O$78)) -> 0 | P97: =IF(ISERROR(P70/P$78),0,IF(OR('Input-Facilities'!O49=FALSE,'Input-Facilities'!$O$44=FALSE),0,P70/P$78)) -> 0 | Q97: =IF(ISERROR(Q70/$Q$78),0,IF(OR('Input-Facilities'!O49=FALSE,'Input-Facilities'!$O$45=FALSE),0,Q70/$Q$78)) -> 0 | R97: =IF(ISERROR(R70/$R$78),0,IF(OR('Input-Facilities'!O49=FALSE,'Input-Facilities'!$O$46=FALSE),0,R70/$R$78)) -> 0 | S97: =IF(ISERROR(S70/S$78),0,IF(OR('Input-Facilities'!O49=FALSE,'Input-Facilities'!$O$47=FALSE),0,S70/S$78)) -> 0 | T97: =IF(ISERROR(T70/T$78),0,IF(OR('Input-Facilities'!O49=FALSE,'Input-Facilities'!$O$48=FALSE),0,T70/T$78)) -> 0 | U97: =IF(ISERROR(U70/U$78),0,IF(OR('Input-Facilities'!O49=FALSE,'Input-Facilities'!$O$49=FALSE),0,U70/$U$78)) -> 0 | V97: =IF(ISERROR(V70/V$78),0,IF(OR('Input-Facilities'!O49=FALSE,'Input-Facilities'!$O$50=FALSE),0,V70/$V$78)) -> 0 | W97: =IF(ISERROR(W70/W$78),0,IF(OR('Input-Facilities'!O49=FALSE,'Input-Facilities'!$O$51=FALSE),0,W70/W$78)) -> 0 | X97: =IF(ISERROR(X70/X$78),0,IF(OR('Input-Facilities'!O49=FALSE,'Input-Facilities'!$O$52=FALSE),0,X70/X$78)) -> 0 | Y97: =IF(ISERROR(Y70/Y$78),0,IF(OR('Input-Facilities'!O49=FALSE,'Input-Facilities'!$O$53=FALSE),0,Y70/Y$78)) -> 0 | Z97: =IF(ISERROR(Z70/Z$78),0,IF(OR('Input-Facilities'!O49=FALSE,'Input-Facilities'!$O$54=FALSE),0,Z70/Z$78)) -> 0 | AA97: =IF(ISERROR(AA70/AA$78),0,IF(OR('Input-Facilities'!O49=FALSE,'Input-Facilities'!$O$55=FALSE),0,AA70/AA$78)) -> 0 | AE97: 0 | AG97: =MMULT(F55:AA76,F82:AA103) -> 1.8 | AH97: 0
F98: =IF(ISERROR(F71/F$78),0,IF(OR('Input-Facilities'!$O$34=FALSE,'Input-Facilities'!$O50=FALSE),0,F71/F$78)) -> 0 | G98: =IF(ISERROR(G71/G$78),0,IF(OR('Input-Facilities'!O50=FALSE,'Input-Facilities'!$O$35=FALSE),0,G71/G$78)) -> 0 | H98: =IF(ISERROR(H71/H$78),0,IF(OR('Input-Facilities'!O50=FALSE,'Input-Facilities'!$O$36=FALSE),0,H71/H$78)) -> 0 | I98: =IF(ISERROR(I71/I$78),0,IF(OR('Input-Facilities'!O50=FALSE,'Input-Facilities'!$O$37=FALSE),0,I71/I$78)) -> 0 | J98: =IF(ISERROR(J71/J$78),0,IF(OR('Input-Facilities'!O50=FALSE,'Input-Facilities'!$O$38=FALSE),0,J71/J$78)) -> 0 | K98: =IF(ISERROR(K71/K$78),0,IF(OR('Input-Facilities'!O50=FALSE,'Input-Facilities'!$O$39=FALSE),0,K71/K$78)) -> 0 | L98: =IF(ISERROR(L71/L$78),0,IF(OR('Input-Facilities'!O50=FALSE,'Input-Facilities'!$O$40=FALSE),0,L71/L$78)) -> 0 | M98: =IF(ISERROR(M71/M$78),0,IF(OR('Input-Facilities'!O50=FALSE,'Input-Facilities'!$O$41=FALSE),0,M71/M$78)) -> 0 | N98: =IF(ISERROR(N71/N$78),0,IF(OR('Input-Facilities'!O50=FALSE,'Input-Facilities'!$O$42=FALSE),0,N71/N$78)) -> 0 | O98: =IF(ISERROR(O71/O$78),0,IF(OR('Input-Facilities'!O50=FALSE,'Input-Facilities'!$O$43=FALSE),0,O71/O$78)) -> 0 | P98: =IF(ISERROR(P71/P$78),0,IF(OR('Input-Facilities'!O50=FALSE,'Input-Facilities'!$O$44=FALSE),0,P71/P$78)) -> 0 | Q98: =IF(ISERROR(Q71/$Q$78),0,IF(OR('Input-Facilities'!O50=FALSE,'Input-Facilities'!$O$45=FALSE),0,Q71/$Q$78)) -> 0 | R98: =IF(ISERROR(R71/$R$78),0,IF(OR('Input-Facilities'!O50=FALSE,'Input-Facilities'!$O$46=FALSE),0,R71/$R$78)) -> 0 | S98: =IF(ISERROR(S71/S$78),0,IF(OR('Input-Facilities'!O50=FALSE,'Input-Facilities'!$O$47=FALSE),0,S71/S$78)) -> 0 | T98: =IF(ISERROR(T71/T$78),0,IF(OR('Input-Facilities'!O50=FALSE,'Input-Facilities'!$O$48=FALSE),0,T71/T$78)) -> 0 | U98: =IF(ISERROR(U71/U$78),0,IF(OR('Input-Facilities'!O50=FALSE,'Input-Facilities'!$O$49=FALSE),0,U71/$U$78)) -> 0 | V98: =IF(ISERROR(V71/V$78),0,IF(OR('Input-Facilities'!O50=FALSE,'Input-Facilities'!$O$50=FALSE),0,V71/$V$78)) -> 0 | W98: =IF(ISERROR(W71/W$78),0,IF(OR('Input-Facilities'!O50=FALSE,'Input-Facilities'!$O$51=FALSE),0,W71/W$78)) -> 0 | X98: =IF(ISERROR(X71/X$78),0,IF(OR('Input-Facilities'!O50=FALSE,'Input-Facilities'!$O$52=FALSE),0,X71/X$78)) -> 0 | Y98: =IF(ISERROR(Y71/Y$78),0,IF(OR('Input-Facilities'!O50=FALSE,'Input-Facilities'!$O$53=FALSE),0,Y71/Y$78)) -> 0 | Z98: =IF(ISERROR(Z71/Z$78),0,IF(OR('Input-Facilities'!O50=FALSE,'Input-Facilities'!$O$54=FALSE),0,Z71/Z$78)) -> 0 | AA98: =IF(ISERROR(AA71/AA$78),0,IF(OR('Input-Facilities'!O50=FALSE,'Input-Facilities'!$O$55=FALSE),0,AA71/AA$78)) -> 0 | AE98: 0 | AG98: =MMULT(F55:AA76,F82:AA103) -> 1.8 | AH98: 0
F99: =IF(ISERROR(F72/F$78),0,IF(OR('Input-Facilities'!$O$34=FALSE,'Input-Facilities'!$O51=FALSE),0,F72/F$78)) -> 0 | G99: =IF(ISERROR(G72/G$78),0,IF(OR('Input-Facilities'!O51=FALSE,'Input-Facilities'!$O$35=FALSE),0,G72/G$78)) -> 0 | H99: =IF(ISERROR(H72/H$78),0,IF(OR('Input-Facilities'!O51=FALSE,'Input-Facilities'!$O$36=FALSE),0,H72/H$78)) -> 0 | I99: =IF(ISERROR(I72/I$78),0,IF(OR('Input-Facilities'!O51=FALSE,'Input-Facilities'!$O$37=FALSE),0,I72/I$78)) -> 0 | J99: =IF(ISERROR(J72/J$78),0,IF(OR('Input-Facilities'!O51=FALSE,'Input-Facilities'!$O$38=FALSE),0,J72/J$78)) -> 0 | K99: =IF(ISERROR(K72/K$78),0,IF(OR('Input-Facilities'!O51=FALSE,'Input-Facilities'!$O$39=FALSE),0,K72/K$78)) -> 0 | L99: =IF(ISERROR(L72/L$78),0,IF(OR('Input-Facilities'!O51=FALSE,'Input-Facilities'!$O$40=FALSE),0,L72/L$78)) -> 0 | M99: =IF(ISERROR(M72/M$78),0,IF(OR('Input-Facilities'!O51=FALSE,'Input-Facilities'!$O$41=FALSE),0,M72/M$78)) -> 0 | N99: =IF(ISERROR(N72/N$78),0,IF(OR('Input-Facilities'!O51=FALSE,'Input-Facilities'!$O$42=FALSE),0,N72/N$78)) -> 0 | O99: =IF(ISERROR(O72/O$78),0,IF(OR('Input-Facilities'!O51=FALSE,'Input-Facilities'!$O$43=FALSE),0,O72/O$78)) -> 0 | P99: =IF(ISERROR(P72/P$78),0,IF(OR('Input-Facilities'!O51=FALSE,'Input-Facilities'!$O$44=FALSE),0,P72/P$78)) -> 0 | Q99: =IF(ISERROR(Q72/$Q$78),0,IF(OR('Input-Facilities'!O51=FALSE,'Input-Facilities'!$O$45=FALSE),0,Q72/$Q$78)) -> 0 | R99: =IF(ISERROR(R72/$R$78),0,IF(OR('Input-Facilities'!O51=FALSE,'Input-Facilities'!$O$46=FALSE),0,R72/$R$78)) -> 0 | S99: =IF(ISERROR(S72/S$78),0,IF(OR('Input-Facilities'!O51=FALSE,'Input-Facilities'!$O$47=FALSE),0,S72/S$78)) -> 0 | T99: =IF(ISERROR(T72/T$78),0,IF(OR('Input-Facilities'!O51=FALSE,'Input-Facilities'!$O$48=FALSE),0,T72/T$78)) -> 0 | U99: =IF(ISERROR(U72/U$78),0,IF(OR('Input-Facilities'!O51=FALSE,'Input-Facilities'!$O$49=FALSE),0,U72/$U$78)) -> 0 | V99: =IF(ISERROR(V72/V$78),0,IF(OR('Input-Facilities'!O51=FALSE,'Input-Facilities'!$O$50=FALSE),0,V72/$V$78)) -> 0 | W99: =IF(ISERROR(W72/W$78),0,IF(OR('Input-Facilities'!O51=FALSE,'Input-Facilities'!$O$51=FALSE),0,W72/W$78)) -> 0 | X99: =IF(ISERROR(X72/X$78),0,IF(OR('Input-Facilities'!O51=FALSE,'Input-Facilities'!$O$52=FALSE),0,X72/X$78)) -> 0 | Y99: =IF(ISERROR(Y72/Y$78),0,IF(OR('Input-Facilities'!O51=FALSE,'Input-Facilities'!$O$53=FALSE),0,Y72/Y$78)) -> 0 | Z99: =IF(ISERROR(Z72/Z$78),0,IF(OR('Input-Facilities'!O51=FALSE,'Input-Facilities'!$O$54=FALSE),0,Z72/Z$78)) -> 0 | AA99: =IF(ISERROR(AA72/AA$78),0,IF(OR('Input-Facilities'!O51=FALSE,'Input-Facilities'!$O$55=FALSE),0,AA72/AA$78)) -> 0 | AE99: 0 | AG99: =MMULT(F55:AA76,F82:AA103) -> 1.8 | AH99: 0
F100: =IF(ISERROR(F73/F$78),0,IF(OR('Input-Facilities'!$O$34=FALSE,'Input-Facilities'!$O52=FALSE),0,F73/F$78)) -> 0 | G100: =IF(ISERROR(G73/G$78),0,IF(OR('Input-Facilities'!O52=FALSE,'Input-Facilities'!$O$35=FALSE),0,G73/G$78)) -> 0 | H100: =IF(ISERROR(H73/H$78),0,IF(OR('Input-Facilities'!O52=FALSE,'Input-Facilities'!$O$36=FALSE),0,H73/H$78)) -> 0 | I100: =IF(ISERROR(I73/I$78),0,IF(OR('Input-Facilities'!O52=FALSE,'Input-Facilities'!$O$37=FALSE),0,I73/I$78)) -> 0 | J100: =IF(ISERROR(J73/J$78),0,IF(OR('Input-Facilities'!O52=FALSE,'Input-Facilities'!$O$38=FALSE),0,J73/J$78)) -> 0 | K100: =IF(ISERROR(K73/K$78),0,IF(OR('Input-Facilities'!O52=FALSE,'Input-Facilities'!$O$39=FALSE),0,K73/K$78)) -> 0 | L100: =IF(ISERROR(L73/L$78),0,IF(OR('Input-Facilities'!O52=FALSE,'Input-Facilities'!$O$40=FALSE),0,L73/L$78)) -> 0 | M100: =IF(ISERROR(M73/M$78),0,IF(OR('Input-Facilities'!O52=FALSE,'Input-Facilities'!$O$41=FALSE),0,M73/M$78)) -> 0 | N100: =IF(ISERROR(N73/N$78),0,IF(OR('Input-Facilities'!O52=FALSE,'Input-Facilities'!$O$42=FALSE),0,N73/N$78)) -> 0 | O100: =IF(ISERROR(O73/O$78),0,IF(OR('Input-Facilities'!O52=FALSE,'Input-Facilities'!$O$43=FALSE),0,O73/O$78)) -> 0 | P100: =IF(ISERROR(P73/P$78),0,IF(OR('Input-Facilities'!O52=FALSE,'Input-Facilities'!$O$44=FALSE),0,P73/P$78)) -> 0 | Q100: =IF(ISERROR(Q73/$Q$78),0,IF(OR('Input-Facilities'!O52=FALSE,'Input-Facilities'!$O$45=FALSE),0,Q73/$Q$78)) -> 0 | R100: =IF(ISERROR(R73/$R$78),0,IF(OR('Input-Facilities'!O52=FALSE,'Input-Facilities'!$O$46=FALSE),0,R73/$R$78)) -> 0 | S100: =IF(ISERROR(S73/S$78),0,IF(OR('Input-Facilities'!O52=FALSE,'Input-Facilities'!$O$47=FALSE),0,S73/S$78)) -> 0 | T100: =IF(ISERROR(T73/T$78),0,IF(OR('Input-Facilities'!O52=FALSE,'Input-Facilities'!$O$48=FALSE),0,T73/T$78)) -> 0 | U100: =IF(ISERROR(U73/U$78),0,IF(OR('Input-Facilities'!O52=FALSE,'Input-Facilities'!$O$49=FALSE),0,U73/$U$78)) -> 0 | V100: =IF(ISERROR(V73/V$78),0,IF(OR('Input-Facilities'!O52=FALSE,'Input-Facilities'!$O$50=FALSE),0,V73/$V$78)) -> 0 | W100: =IF(ISERROR(W73/W$78),0,IF(OR('Input-Facilities'!O52=FALSE,'Input-Facilities'!$O$51=FALSE),0,W73/W$78)) -> 0 | X100: =IF(ISERROR(X73/X$78),0,IF(OR('Input-Facilities'!O52=FALSE,'Input-Facilities'!$O$52=FALSE),0,X73/X$78)) -> 0 | Y100: =IF(ISERROR(Y73/Y$78),0,IF(OR('Input-Facilities'!O52=FALSE,'Input-Facilities'!$O$53=FALSE),0,Y73/Y$78)) -> 0 | Z100: =IF(ISERROR(Z73/Z$78),0,IF(OR('Input-Facilities'!O52=FALSE,'Input-Facilities'!$O$54=FALSE),0,Z73/Z$78)) -> 0 | AA100: =IF(ISERROR(AA73/AA$78),0,IF(OR('Input-Facilities'!O52=FALSE,'Input-Facilities'!$O$55=FALSE),0,AA73/AA$78)) -> 0 | AE100: 0 | AG100: =MMULT(F55:AA76,F82:AA103) -> 1.8 | AH100: 0
F101: =IF(ISERROR(F74/F$78),0,IF(OR('Input-Facilities'!$O$34=FALSE,'Input-Facilities'!$O53=FALSE),0,F74/F$78)) -> 0 | G101: =IF(ISERROR(G74/G$78),0,IF(OR('Input-Facilities'!O53=FALSE,'Input-Facilities'!$O$35=FALSE),0,G74/G$78)) -> 0 | H101: =IF(ISERROR(H74/H$78),0,IF(OR('Input-Facilities'!O53=FALSE,'Input-Facilities'!$O$36=FALSE),0,H74/H$78)) -> 0 | I101: =IF(ISERROR(I74/I$78),0,IF(OR('Input-Facilities'!O53=FALSE,'Input-Facilities'!$O$37=FALSE),0,I74/I$78)) -> 0 | J101: =IF(ISERROR(J74/J$78),0,IF(OR('Input-Facilities'!O53=FALSE,'Input-Facilities'!$O$38=FALSE),0,J74/J$78)) -> 0 | K101: =IF(ISERROR(K74/K$78),0,IF(OR('Input-Facilities'!O53=FALSE,'Input-Facilities'!$O$39=FALSE),0,K74/K$78)) -> 0 | L101: =IF(ISERROR(L74/L$78),0,IF(OR('Input-Facilities'!O53=FALSE,'Input-Facilities'!$O$40=FALSE),0,L74/L$78)) -> 0 | M101: =IF(ISERROR(M74/M$78),0,IF(OR('Input-Facilities'!O53=FALSE,'Input-Facilities'!$O$41=FALSE),0,M74/M$78)) -> 0 | N101: =IF(ISERROR(N74/N$78),0,IF(OR('Input-Facilities'!O53=FALSE,'Input-Facilities'!$O$42=FALSE),0,N74/N$78)) -> 0 | O101: =IF(ISERROR(O74/O$78),0,IF(OR('Input-Facilities'!O53=FALSE,'Input-Facilities'!$O$43=FALSE),0,O74/O$78)) -> 0 | P101: =IF(ISERROR(P74/P$78),0,IF(OR('Input-Facilities'!O53=FALSE,'Input-Facilities'!$O$44=FALSE),0,P74/P$78)) -> 0 | Q101: =IF(ISERROR(Q74/$Q$78),0,IF(OR('Input-Facilities'!O53=FALSE,'Input-Facilities'!$O$45=FALSE),0,Q74/$Q$78)) -> 0 | R101: =IF(ISERROR(R74/$R$78),0,IF(OR('Input-Facilities'!O53=FALSE,'Input-Facilities'!$O$46=FALSE),0,R74/$R$78)) -> 0 | S101: =IF(ISERROR(S74/S$78),0,IF(OR('Input-Facilities'!O53=FALSE,'Input-Facilities'!$O$47=FALSE),0,S74/S$78)) -> 0 | T101: =IF(ISERROR(T74/T$78),0,IF(OR('Input-Facilities'!O53=FALSE,'Input-Facilities'!$O$48=FALSE),0,T74/T$78)) -> 0 | U101: =IF(ISERROR(U74/U$78),0,IF(OR('Input-Facilities'!O53=FALSE,'Input-Facilities'!$O$49=FALSE),0,U74/$U$78)) -> 0 | V101: =IF(ISERROR(V74/V$78),0,IF(OR('Input-Facilities'!O53=FALSE,'Input-Facilities'!$O$50=FALSE),0,V74/$V$78)) -> 0 | W101: =IF(ISERROR(W74/W$78),0,IF(OR('Input-Facilities'!O53=FALSE,'Input-Facilities'!$O$51=FALSE),0,W74/W$78)) -> 0 | X101: =IF(ISERROR(X74/X$78),0,IF(OR('Input-Facilities'!O53=FALSE,'Input-Facilities'!$O$52=FALSE),0,X74/X$78)) -> 0 | Y101: =IF(ISERROR(Y74/Y$78),0,IF(OR('Input-Facilities'!O53=FALSE,'Input-Facilities'!$O$53=FALSE),0,Y74/Y$78)) -> 0 | Z101: =IF(ISERROR(Z74/Z$78),0,IF(OR('Input-Facilities'!O53=FALSE,'Input-Facilities'!$O$54=FALSE),0,Z74/Z$78)) -> 0 | AA101: =IF(ISERROR(AA74/AA$78),0,IF(OR('Input-Facilities'!O53=FALSE,'Input-Facilities'!$O$55=FALSE),0,AA74/AA$78)) -> 0 | AE101: =IF(ISERROR(AD101/$AD$105),"",AD101/$AD$105) ->  | AG101: =MMULT(F55:AA76,F82:AA103) -> 1.8 | AH101: 0
F102: =IF(ISERROR(F75/F$78),0,IF(OR('Input-Facilities'!$O$34=FALSE,'Input-Facilities'!$O54=FALSE),0,F75/F$78)) -> 0 | G102: =IF(ISERROR(G75/G$78),0,IF(OR('Input-Facilities'!O54=FALSE,'Input-Facilities'!$O$35=FALSE),0,G75/G$78)) -> 0 | H102: =IF(ISERROR(H75/H$78),0,IF(OR('Input-Facilities'!O54=FALSE,'Input-Facilities'!$O$36=FALSE),0,H75/H$78)) -> 0 | I102: =IF(ISERROR(I75/I$78),0,IF(OR('Input-Facilities'!O54=FALSE,'Input-Facilities'!$O$37=FALSE),0,I75/I$78)) -> 0 | J102: =IF(ISERROR(J75/J$78),0,IF(OR('Input-Facilities'!O54=FALSE,'Input-Facilities'!$O$38=FALSE),0,J75/J$78)) -> 0 | K102: =IF(ISERROR(K75/K$78),0,IF(OR('Input-Facilities'!O54=FALSE,'Input-Facilities'!$O$39=FALSE),0,K75/K$78)) -> 0 | L102: =IF(ISERROR(L75/L$78),0,IF(OR('Input-Facilities'!O54=FALSE,'Input-Facilities'!$O$40=FALSE),0,L75/L$78)) -> 0 | M102: =IF(ISERROR(M75/M$78),0,IF(OR('Input-Facilities'!O54=FALSE,'Input-Facilities'!$O$41=FALSE),0,M75/M$78)) -> 0 | N102: =IF(ISERROR(N75/N$78),0,IF(OR('Input-Facilities'!O54=FALSE,'Input-Facilities'!$O$42=FALSE),0,N75/N$78)) -> 0 | O102: =IF(ISERROR(O75/O$78),0,IF(OR('Input-Facilities'!O54=FALSE,'Input-Facilities'!$O$43=FALSE),0,O75/O$78)) -> 0 | P102: =IF(ISERROR(P75/P$78),0,IF(OR('Input-Facilities'!O54=FALSE,'Input-Facilities'!$O$44=FALSE),0,P75/P$78)) -> 0 | Q102: =IF(ISERROR(Q75/$Q$78),0,IF(OR('Input-Facilities'!O54=FALSE,'Input-Facilities'!$O$45=FALSE),0,Q75/$Q$78)) -> 0 | R102: =IF(ISERROR(R75/$R$78),0,IF(OR('Input-Facilities'!O54=FALSE,'Input-Facilities'!$O$46=FALSE),0,R75/$R$78)) -> 0 | S102: =IF(ISERROR(S75/S$78),0,IF(OR('Input-Facilities'!O54=FALSE,'Input-Facilities'!$O$47=FALSE),0,S75/S$78)) -> 0 | T102: =IF(ISERROR(T75/T$78),0,IF(OR('Input-Facilities'!O54=FALSE,'Input-Facilities'!$O$48=FALSE),0,T75/T$78)) -> 0 | U102: =IF(ISERROR(U75/U$78),0,IF(OR('Input-Facilities'!O54=FALSE,'Input-Facilities'!$O$49=FALSE),0,U75/$U$78)) -> 0 | V102: =IF(ISERROR(V75/V$78),0,IF(OR('Input-Facilities'!O54=FALSE,'Input-Facilities'!$O$50=FALSE),0,V75/$V$78)) -> 0 | W102: =IF(ISERROR(W75/W$78),0,IF(OR('Input-Facilities'!O54=FALSE,'Input-Facilities'!$O$51=FALSE),0,W75/W$78)) -> 0 | X102: =IF(ISERROR(X75/X$78),0,IF(OR('Input-Facilities'!O54=FALSE,'Input-Facilities'!$O$52=FALSE),0,X75/X$78)) -> 0 | Y102: =IF(ISERROR(Y75/Y$78),0,IF(OR('Input-Facilities'!O54=FALSE,'Input-Facilities'!$O$53=FALSE),0,Y75/Y$78)) -> 0 | Z102: =IF(ISERROR(Z75/Z$78),0,IF(OR('Input-Facilities'!O54=FALSE,'Input-Facilities'!$O$54=FALSE),0,Z75/Z$78)) -> 0 | AA102: =IF(ISERROR(AA75/AA$78),0,IF(OR('Input-Facilities'!O54=FALSE,'Input-Facilities'!$O$55=FALSE),0,AA75/AA$78)) -> 0 | AE102: =IF(ISERROR(AD102/$AD$105),0,AD102/$AD$105) -> 0 | AG102: =MMULT(F55:AA76,F82:AA103) -> 1.8 | AH102: 0
F103: =IF(ISERROR(F76/F$78),0,IF(OR('Input-Facilities'!$O$34=FALSE,'Input-Facilities'!$O55=FALSE),0,F76/F$78)) -> 0 | G103: =IF(ISERROR(G76/G$78),0,IF(OR('Input-Facilities'!O55=FALSE,'Input-Facilities'!$O$35=FALSE),0,G76/G$78)) -> 0 | H103: =IF(ISERROR(H76/H$78),0,IF(OR('Input-Facilities'!O55=FALSE,'Input-Facilities'!$O$36=FALSE),0,H76/H$78)) -> 0 | I103: =IF(ISERROR(I76/I$78),0,IF(OR('Input-Facilities'!O55=FALSE,'Input-Facilities'!$O$37=FALSE),0,I76/I$78)) -> 0 | J103: =IF(ISERROR(J76/J$78),0,IF(OR('Input-Facilities'!O55=FALSE,'Input-Facilities'!$O$38=FALSE),0,J76/J$78)) -> 0 | K103: =IF(ISERROR(K76/K$78),0,IF(OR('Input-Facilities'!O55=FALSE,'Input-Facilities'!$O$39=FALSE),0,K76/K$78)) -> 0 | L103: =IF(ISERROR(L76/L$78),0,IF(OR('Input-Facilities'!O55=FALSE,'Input-Facilities'!$O$40=FALSE),0,L76/L$78)) -> 0 | M103: =IF(ISERROR(M76/M$78),0,IF(OR('Input-Facilities'!O55=FALSE,'Input-Facilities'!$O$41=FALSE),0,M76/M$78)) -> 0 | N103: =IF(ISERROR(N76/N$78),0,IF(OR('Input-Facilities'!O55=FALSE,'Input-Facilities'!$O$42=FALSE),0,N76/N$78)) -> 0 | O103: =IF(ISERROR(O76/O$78),0,IF(OR('Input-Facilities'!O55=FALSE,'Input-Facilities'!$O$43=FALSE),0,O76/O$78)) -> 0 | P103: =IF(ISERROR(P76/P$78),0,IF(OR('Input-Facilities'!O55=FALSE,'Input-Facilities'!$O$44=FALSE),0,P76/P$78)) -> 0 | Q103: =IF(ISERROR(Q76/$Q$78),0,IF(OR('Input-Facilities'!O55=FALSE,'Input-Facilities'!$O$45=FALSE),0,Q76/$Q$78)) -> 0 | R103: =IF(ISERROR(R76/$R$78),0,IF(OR('Input-Facilities'!O55=FALSE,'Input-Facilities'!$O$46=FALSE),0,R76/$R$78)) -> 0 | S103: =IF(ISERROR(S76/S$78),0,IF(OR('Input-Facilities'!O55=FALSE,'Input-Facilities'!$O$47=FALSE),0,S76/S$78)) -> 0 | T103: =IF(ISERROR(T76/T$78),0,IF(OR('Input-Facilities'!O55=FALSE,'Input-Facilities'!$O$48=FALSE),0,T76/T$78)) -> 0 | U103: =IF(ISERROR(U76/U$78),0,IF(OR('Input-Facilities'!O55=FALSE,'Input-Facilities'!$O$49=FALSE),0,U76/$U$78)) -> 0 | V103: =IF(ISERROR(V76/V$78),0,IF(OR('Input-Facilities'!O55=FALSE,'Input-Facilities'!$O$50=FALSE),0,V76/$V$78)) -> 0 | W103: =IF(ISERROR(W76/W$78),0,IF(OR('Input-Facilities'!O55=FALSE,'Input-Facilities'!$O$51=FALSE),0,W76/W$78)) -> 0 | X103: =IF(ISERROR(X76/X$78),0,IF(OR('Input-Facilities'!O55=FALSE,'Input-Facilities'!$O$52=FALSE),0,X76/X$78)) -> 0 | Y103: =IF(ISERROR(Y76/Y$78),0,IF(OR('Input-Facilities'!O55=FALSE,'Input-Facilities'!$O$53=FALSE),0,Y76/Y$78)) -> 0 | Z103: =IF(ISERROR(AE74/Z$78),0,IF(OR('Input-Facilities'!O55=FALSE,'Input-Facilities'!$O$54=FALSE),0,AE74/Z$78)) -> 0 | AA103: =IF(ISERROR(AA76/AA$78),0,IF(OR('Input-Facilities'!O55=FALSE,'Input-Facilities'!$O$55=FALSE),0,AA76/AA$78)) -> 0 | AE103: =IF(ISERROR(AD103/$AD$105),0,AD103/$AD$105) -> 0 | AH103: 0
F104: =F77/F$78 -> 0 | G104: =G77/G$78 -> 0 | H104: 0 | AE104: =IF(ISERROR(AD104/$AD$105),0,AD104/$AD$105) -> 0
AD105: =SUM(AD82:AD104) ->  | AG105: =#REF! -> 
AG107: n | AH107: Random index
AG109: 2 | AH109: 0
AG110: 3 | AH110: 0.58
AG111: 4 | AH111: 0.9
AG112: 5 | AH112: 1.12
AG113: 6 | AH113: 1.24
AG114: 7 | AH114: 1.32
AG115: 8 | AH115: 1.41
AG116: 9 | AH116: 1.45
AG117: 10 | AH117: 1.49
AG118: 11 | AH118: 1.54
AG119: 12 | AH119: 1.48
AG120: 13 | AH120: 1.56
AG121: 14 | AH121: 1.57
AG122: 15 | AH122: 1.59
AG123: 16 | AH123: =1.98*(1-2/AG123) -> 1.7325
AG124: 17 | AH124: 1.747058824
AG125: 18 | AH125: 1.76
AG126: 19 | AH126: 1.771578947
AG127: 20 | AH127: 1.782
AG128: 21 | AH128: 1.791428571
AG129: 22 | AH129: 1.8
AG130: 23 | AH130: 1.807826087

Sheet Monte Carlo
B8: In this section a lever input is required. This input can either represent the whole system/subsystem of it can be a figure for each of the selected lever.
AI10: Reduction target | AN10: TRUE | BL10: Reduction target | BY10: Reduction target
AI11: =Constrained!E13 -> 240 | BL11: =Constrained!E27 -> 100 | BY11: =Constrained!E43 -> 40
B12: The user is requested to input the system/subsystem level cost estimate | H12: 50000
B14: The user is requested to input the system/subsystem level EADS % estimate
C16: COST | G16: EADS % | AG16: EADS % / COST
C17: Apportioned cost significance | D17: Maximum figure | E17: Most likely figure | F17: Minimum figure | G17: Best risk | H17: Most likely risk | I17: Worst risk | J17: Breakdown rate*time to fix | K17: Weighting | Q17: Aggregated Most likely value | R17: Aggregated Min value | S17: Aggregated Max value | AB17: Max | AC17: Min | AD17: Guidance to reduce cost (1 refers to least value for money - 5 refers to most value for money) | AE17: ML Cost | AF17: EADS% | AG17: EADS % per unit of Cost (lower means less value) | AH17: people / other lever breakdown ratio | AI17: Rank | AJ17: Name of lever | AK17: Ranked cost | AL17: Ranked EADS% | AM17: Ranked ratio | AN17: Point that reducing cost further becomes less beneficial | AO17: Upper limit on how much cost can be reduced | AP17: Amount that can be reduced | AQ17: Finalised opportunity for budget reduction | AR17: Budget reduction allocation | AS17: Guaranteed minimum level for cost | AT17: Max | AU17: Min | BC17: =AI17 -> Rank | BD17: Name of lever | BE17: =AK17 -> Ranked cost | BF17: Ranked EADS% | BG17: Ranked ratio | BH17: Point that reducing cost further becomes less beneficial | BI17: Upper limit on how much cost can be reduced | BJ17: Amount that can be reduced | BK17: Finalised opportunity for budget reduction | BL17: =AR17 -> Budget reduction allocation | BM17: =AS17 -> Guaranteed minimum level for cost | BP17: =BC17 -> Rank | BQ17: Name of lever | BR17: =BE17 -> Ranked cost | BS17: Ranked EADS% | BT17: Ranked ratio | BU17: Point that reducing cost further becomes less beneficial | BV17: Upper limit on how much cost can be reduced | BW17: Amount that can be reduced | BX17: Finalised opportunity for budget reduction | BY17: =BL17 -> Budget reduction allocation | BZ17: Guaranteed minimum level for cost
A18: 1 | B18: =CostEADS!B7 -> People | C18: =E18/$E$23 -> 0.3439964943 | D18: =CostEADS!C26 -> 80 | E18: =CostEADS!D26 -> 78.5 | F18: =CostEADS!E26 -> 75 | G18: =CostEADS!C27 -> 1 | H18: =CostEADS!D27 -> 1.75 | I18: =CostEADS!E27 -> 3.5 | J18: =SUM(CostEADS!C85:C87) -> 205 | K18: =J18/SUM($J$18,$J$19,$J$20,$J$21,$J$22) -> 0.4446854664 | Z18: =AD18 -> 2 | AA18: =B18 -> People | AB18: =D18 -> 80 | AC18: =F18 -> 75 | AD18: =RANK(AG18,($AG$18,$AG$19,$AG$20,$AG$21,$AG$22),1) -> 2 | AE18: =E18 -> 78.5 | AF18: =H18 -> 1.75 | AG18: =H18/E18 -> 0.02229299363 | AI18: 1 | AJ18: =VLOOKUP(1,$Z$18:$AA$25,2,0) -> Spares | AK18: =VLOOKUP(1,AD18:AF25,2,0) -> 33 | AL18: =VLOOKUP(1,AD18:AF25,3,0) -> 0.55 | AM18: =VLOOKUP(1,AD18:AG25,4,0) -> 0.01666666667 | AN18: =AM18*AK18/AM19 -> 24.67142857 | AO18: =E18-AS18 -> -16.65151515 | AP18: =AK18-AN18 -> 8.328571429 | AQ18: =IF(AP18<AO18,AP18,(IF(AP18>AO18,AO18,))) -> -16.65151515 | AR18: =IF(AQ18<$AI$11,AP18,AI11) -> 8.328571429 | AS18: =Constrained!D16 -> 95.15151515 | AT18: =VLOOKUP(1,$Z$18:$AC$25,3,0) -> 34 | AU18: =VLOOKUP(1,$Z$18:$AC$25,4,0) -> 27 | BC18: =AI18 -> 1 | BD18: =AJ18 -> Spares | BE18: =AK18 -> 33 | BF18: =AL18 -> 0.55 | BG18: =AM18 -> 0.01666666667 | BH18: =AN18 -> 24.67142857 | BI18: =AO18 -> -16.65151515 | BJ18: =AP18 -> 8.328571429 | BK18: =IF(BJ18<BI18,BJ18,(IF(BJ18>BI18,BI18,))) -> -16.65151515 | BL18: =IF(BJ18<BL11,BK18,BL11) -> -16.65151515 | BM18: =AS18 -> 95.15151515 | BP18: =BC18 -> 1 | BR18: =BE18 -> 33 | BS18: =BF18 -> 0.55 | BT18: =BG18 -> 0.01666666667 | BU18: =BH18 -> 24.67142857 | BV18: =BI18 -> -16.65151515 | BW18: =BJ18 -> 8.328571429 | BX18: =IF(BW18<BV18,BW18,(IF(BW18>BV18,BV18,))) -> -16.65151515 | BY18: =IF(BW18<BY11,BX18,BY11) -> -16.65151515 | BZ18: =BM18 -> 95.15151515
A19: 2 | B19: =CostEADS!B89 -> Spares | C19: =E19/$E$23 -> 0.1446099912 | D19: =CostEADS!C108 -> 34 | E19: =CostEADS!D108 -> 33 | F19: =CostEADS!E108 -> 27 | G19: =CostEADS!C109 -> 0.5 | H19: =CostEADS!D109 -> 0.55 | I19: =CostEADS!E109 -> 0.9 | J19: =SUM(CostEADS!C168:C170) -> 190 | K19: =J19/SUM($J$18,$J$19,$J$20,$J$21,$J$22) -> 0.4121475054 | Z19: =AD19 -> 1 | AA19: =B19 -> Spares | AB19: =D19 -> 34 | AC19: =F19 -> 27 | AD19: =RANK(AG19,($AG$18,$AG$19,$AG$20,$AG$21,$AG$22),1) -> 1 | AE19: =E19 -> 33 | AF19: =H19 -> 0.55 | AG19: =H19/E19 -> 0.01666666667 | AI19: 2 | AJ19: =VLOOKUP(2,$Z$18:$AA$25,2,0) -> People | AK19: =VLOOKUP(2,AD18:AF25,2,0) -> 78.5 | AL19: =VLOOKUP(2,AD18:AF25,3,0) -> 1.75 | AM19: =VLOOKUP(2,AD18:AG25,4,0) -> 0.02229299363 | AN19: =AM19*AK19/AM20 -> 18.89156627 | AO19: =AK19-AS19 -> 38.5 | AP19: =AK19-AN19 -> 59.60843373 | AQ19: =IF(AP19<AO19,AP19,(IF(AP19>AO19,AO19,))) -> 38.5 | AR19: =IF(AI11-AR18>AQ19,AQ19,AI11-AR18) -> 38.5 | AS19: =Constrained!D17 -> 40 | AT19: =VLOOKUP(2,$Z$18:$AC$25,3,0) -> 80 | AU19: =VLOOKUP(2,$Z$18:$AC$25,4,0) -> 75 | BC19: =AI19 -> 2 | BD19: =AJ19 -> People | BE19: =AK19 -> 78.5 | BF19: 1.75 | BG19: 0.02229299363 | BH19: 18.89156627 | BI19: 38.5 | BJ19: 59.60843373 | BK19: =IF(BJ19<BI19,BJ19,(IF(BJ19>BI19,BI19,))) -> 38.5 | BL19: =IF(BL11-BL18>BK19,BK19,BL11-BL18) -> 38.5 | BM19: =AS19 -> 40 | BP19: =BC19 -> 2 | BR19: =BE19 -> 78.5 | BS19: 1.75 | BT19: 0.02229299363 | BU19: 18.89156627 | BV19: 38.5 | BW19: 59.60843373 | BX19: =IF(BW19<BV19,BW19,(IF(BW19>BV19,BV19,))) -> 38.5 | BY19: =IF(BY11-BY18>BX19,BX19,BY11-BY18) -> 38.5 | BZ19: =BM19 -> 40
A20: 3 | B20: =CostEADS!B172 -> Information | C20: =E20/$E$23 -> 0.1551270815 | D20: =CostEADS!C192+CostEADS!C219+CostEADS!C246 -> 44 | E20: =CostEADS!D192+CostEADS!D219+CostEADS!D246 -> 35.4 | F20: =CostEADS!E192+CostEADS!E219+CostEADS!E246 -> 35.4 | G20: =CostEADS!G251 -> 3 | H20: =CostEADS!F251 -> 5.153846154 | I20: =CostEADS!E251 -> 12 | J20: =SUM(CostEADS!C250:C252) -> 26 | K20: =J20/SUM($J$18,$J$19,$J$20,$J$21,$J$22) -> 0.05639913232 | Z20: =AD20 -> 5 | AA20: =B20 -> Information | AB20: =D20 -> 44 | AC20: =F20 -> 35.4 | AD20: =RANK(AG20,($AG$18,$AG$19,$AG$20,$AG$21,$AG$22),1) -> 5 | AE20: =E20 -> 35.4 | AF20: =H20 -> 5.153846154 | AG20: =H20/E20 -> 0.1455888744 | AI20: 3 | AJ20: =VLOOKUP(3,$Z$18:$AA$25,2,0) -> Facilities | AK20: =VLOOKUP(3,AD18:AF25,2,0) -> 42 | AL20: =VLOOKUP(3,AD18:AF25,3,0) -> 3.890625 | AM20: =VLOOKUP(3,AD18:AG25,4,0) -> 0.09263392857 | AN20: =AM20*AK20/AM21 -> 28.89478346 | AO20: =AK20-AS20 -> -0.9090909091 | AP20: =AK20-AN20 -> 13.10521654 | AQ20: =IF(AP20<AO20,AP20,(IF(AP20>AO20,AO20,))) -> -0.9090909091 | AR20: =IF(AI11-SUM(AR18:AR19)>AQ20,AQ20,AI11-SUM(AR18:AR19)) -> -0.9090909091 | AS20: =Constrained!D18 -> 42.90909091 | AT20: =VLOOKUP(3,$Z$18:$AC$25,3,0) -> 48 | AU20: =VLOOKUP(3,$Z$18:$AC$25,4,0) -> 32 | BC20: =AI20 -> 3 | BD20: =AJ20 -> Facilities | BE20: 42 | BF20: 3.890625 | BG20: 0.09263392857 | BH20: 28.89478346 | BI20: -0.9090909091 | BJ20: 13.10521654 | BK20: =IF(BJ20<BI20,BJ20,(IF(BJ20>BI20,BI20,))) -> -0.9090909091 | BL20: =IF(BL11-SUM(BL18:BL19)>BK20,BK20,BL11-SUM(BL18:BL19)) -> -0.9090909091 | BM20: =AS20 -> 42.90909091 | BP20: =BC20 -> 3 | BR20: 42 | BS20: 3.890625 | BT20: 0.09263392857 | BU20: 28.89478346 | BV20: -0.9090909091 | BW20: 13.10521654 | BX20: =IF(BW20<BV20,BW20,(IF(BW20>BV20,BV20,))) -> -0.9090909091 | BY20: =IF(BY11-SUM(BY18:BY19)>BX20,BX20,BY11-SUM(BY18:BY19)) -> -0.9090909091 | BZ20: =BM20 -> 42.90909091
A21: 4 | B21: =CostEADS!B255 -> Test Equipment | C21: =E21/$E$23 -> 0.1722173532 | D21: =CostEADS!C275+CostEADS!C302+CostEADS!C329 -> 47 | E21: =CostEADS!D275+CostEADS!D302+CostEADS!D329 -> 39.3 | F21: =CostEADS!E275+CostEADS!E302+CostEADS!E329 -> 38.2 | G21: =CostEADS!G334 -> 3 | H21: =CostEADS!F334 -> 5.291666667 | I21: =CostEADS!E334 -> 12 | J21: =SUM(CostEADS!C334:C336) -> 24 | K21: =J21/SUM($J$18,$J$19,$J$20,$J$21,$J$22) -> 0.05206073753 | Z21: =AD21 -> 4 | AA21: =B21 -> Test Equipment | AB21: =D21 -> 47 | AC21: =F21 -> 38.2 | AD21: =RANK(AG21,($AG$18,$AG$19,$AG$20,$AG$21,$AG$22),1) -> 4 | AE21: =E21 -> 39.3 | AF21: =H21 -> 5.291666667 | AG21: =H21/E21 -> 0.1346480068 | AI21: 4 | AJ21: =VLOOKUP(4,$Z$18:$AA$25,2,0) -> Test Equipment | AK21: =VLOOKUP(4,AD18:AF25,2,0) -> 39.3 | AL21: =VLOOKUP(4,AD18:AF25,3,0) -> 5.291666667 | AM21: =VLOOKUP(4,AD18:AG25,4,0) -> 0.1346480068 | AN21: =AM21*AK21/AM22 -> 36.34664179 | AO21: =AK21-AS21 -> -8.336363636 | AP21: =AK21-AN21 -> 2.953358209 | AQ21: =IF(AP21<AO21,AP21,(IF(AP21>AO21,AO21,))) -> -8.336363636 | AR21: =IF(AI11-SUM(AR18:AR21)<AQ21,AI11-SUM(AR18:AR21),AQ21) -> -8.336363636 | AS21: =Constrained!D19 -> 47.63636364 | AT21: =VLOOKUP(4,$Z$18:$AC$25,3,0) -> 47 | AU21: =VLOOKUP(4,$Z$18:$AC$25,4,0) -> 38.2 | BC21: =AI21 -> 4 | BD21: =AJ21 -> Test Equipment | BE21: 39.3 | BF21: 5.291666667 | BG21: 0.1346480068 | BH21: 36.34664179 | BI21: -8.336363636 | BJ21: 2.953358209 | BK21: =IF(BJ21<BI21,BJ21,(IF(BJ21>BI21,BI21,))) -> -8.336363636 | BL21: =IF(BL11-SUM(BL18:BL21)<BK21,BL11-SUM(BL18:BL21),BK21) -> -8.336363636 | BM21: =AS21 -> 47.63636364 | BP21: =BC21 -> 4 | BR21: 39.3 | BS21: 5.291666667 | BT21: 0.1346480068 | BU21: 36.34664179 | BV21: -8.336363636 | BW21: 2.953358209 | BX21: =IF(BW21<BV21,BW21,(IF(BW21>BV21,BV21,))) -> -8.336363636 | BY21: =IF(BY11-SUM(BY18:BY21)<BX21,BY11-SUM(BY18:BY21),BX21) -> -8.336363636 | BZ21: =BM21 -> 47.63636364
A22: 5 | B22: =CostEADS!B339 -> Facilities | C22: =E22/$E$23 -> 0.1840490798 | D22: =CostEADS!C359+CostEADS!C386+CostEADS!C413 -> 48 | E22: =CostEADS!D359+CostEADS!D386+CostEADS!D413 -> 42 | F22: =CostEADS!E359+CostEADS!E386+CostEADS!E413 -> 32 | G22: =CostEADS!G418 -> 1 | H22: =CostEADS!F418 -> 3.890625 | I22: =CostEADS!E418 -> 7 | J22: =SUM(CostEADS!C418:C420) -> 16 | K22: =J22/SUM($J$18,$J$19,$J$20,$J$21,$J$22) -> 0.03470715835 | Z22: =AD22 -> 3 | AA22: =B22 -> Facilities | AB22: =D22 -> 48 | AC22: =F22 -> 32 | AD22: =RANK(AG22,($AG$18,$AG$19,$AG$20,$AG$21,$AG$22),1) -> 3 | AE22: =E22 -> 42 | AF22: =H22 -> 3.890625 | AG22: =H22/E22 -> 0.09263392857 | AI22: 5 | AJ22: =VLOOKUP(5,$Z$18:$AA$25,2,0) -> Information | AK22: =VLOOKUP(5,AD18:AF25,2,0) -> 35.4 | AL22: =VLOOKUP(5,AD18:AF25,3,0) -> 5.153846154 | AM22: =VLOOKUP(5,AD18:AG25,4,0) -> 0.1455888744 | AN22: 0 | AO22: =AK22-AS22 -> -15.50909091 | AP22: =AK22 -> 35.4 | AQ22: =IF(AP22<AO22,AP22,(IF(AP22>AO22,AO22,))) -> -15.50909091 | AR22: =IF(AI11-SUM(AR18:AR23)<AQ22,AI11-SUM(AR18:AR23),AQ22) -> -15.50909091 | AS22: =Constrained!D20 -> 50.90909091 | AT22: =VLOOKUP(5,$Z$18:$AC$25,3,0) -> 44 | AU22: =VLOOKUP(5,$Z$18:$AC$25,4,0) -> 35.4 | BC22: =AI22 -> 5 | BD22: =AJ22 -> Information | BE22: 35.4 | BF22: 5.153846154 | BG22: 0.1455888744 | BH22: 0 | BI22: -15.50909091 | BJ22: 35.4 | BK22: =IF(BJ22<BI22,BJ22,(IF(BJ22>BI22,BI22,))) -> -15.50909091 | BL22: =IF(BL11-SUM(BL18:BL23)<BK22,BL11-SUM(BL18:BL23),BK22) -> -15.50909091 | BM22: =AS22 -> 50.90909091 | BP22: =BC22 -> 5 | BR22: 35.4 | BS22: 5.153846154 | BT22: 0.1455888744 | BU22: 0 | BV22: -15.50909091 | BW22: 35.4 | BX22: =IF(BW22<BV22,BW22,(IF(BW22>BV22,BV22,))) -> -15.50909091 | BY22: =IF(BY11-SUM(BY18:BY23)<BX22,BY11-SUM(BY18:BY23),BX22) -> -15.50909091 | BZ22: =BM22 -> 50.90909091
B23: Aggregated | C23: =SUM(C18,C19,C20,C21,C22) -> 1 | D23: =SUM(D18,D19,D20,D21,D22) -> 253 | E23: =SUM(E18,E19,E20,E21,E22) -> 228.2 | F23: =SUM(F18,F19,F20,F21,F22) -> 207.6 | G23: =($K$18*G18)+(G19*$K$19)+(G20*$K$20)+(G21*$K$21)+($K$22*G22) -> 1.010845987 | H23: =(H18*K18)+(H19*K19)+(H20*K20)+(H21*K21)+(H22*K22) -> 1.706073753 | I23: =(I18*K18)+(I19*K19)+(I20*K20)+(I21*K21)+(I22*K22) -> 3.471800434 | AG23: =SUM(AG22,AG21,AG20,AG19,AG18) -> 0.4118304701
B26: The following cells provide Triangular distribution results for Cost and EADS %
B28: There are no input requirements below and serve as results.
AV29: =Levers!C23 -> 0
B30: Triangular distribution
B32: Provide Percentile value of interest: | D32: 0.8
B34: COST | G34: EADS %
B36: Percentile Cost | D36: =D32 -> 0.8 | G36: Percentile EADS % | L36: =D32 -> 0.8
B38: Percentile cost value | D38: =PERCENTILE('Monte Carlo-Triangular'!H31:H2030,'Monte Carlo'!D36) -> 233.6497308 | G38: Percentile EADS % value | L38: =PERCENTILE('Monte Carlo-Triangular'!N31:N2030,'Monte Carlo'!L36) -> 2.47740608
B41: Combi lever: Cost | G41: Combi lever EADS %
B61: =B18&": COST " -> People: COST | G61: =B18 &": EADS %" -> People: EADS %
B85: =B19 & ": COST" -> Spares: COST | G85: =B19 & ": EADS %" -> Spares: EADS %
B108: =B20 & ": COST" -> Information: COST | G108: =B20 & ": EADS %" -> Information: EADS %
B131: =B21 & ": COST" -> Test Equipment: COST | G131: =B21 & ": EADS %" -> Test Equipment: EADS %
B150: =B22 & ": COST" -> Facilities: COST | G150: =B22 & ": EADS%" -> Facilities: EADS%

Sheet Broad-Info (hidden)
C8: User Name | D8: Project Phase | E8: Date of tool use
B9: 1
B10: 2
B11: 3
C13: Project Name | D13: XYZ
C15: System or Work breakdown class
C17: Type of platform
C19: Project life cycle (Year)
B24: Categories of Uncertainties | D24: Relevance | E24: GO TO SHEET
B25: 1 | C25: Uncertainty level in PEOPLE for a project | O25: TRUE
B26: 2 | C26: Uncertainty level in SPARES for a project | O26: TRUE
B27: 3 | C27: Uncertainty level in INFORMATION for a project | O27: TRUE
B28: 4 | C28: Uncertainty level in TEST EQUIPMENT for a project | O28: TRUE
B29: 5 | C29: Uncertainty level in FACILITIES for a project at bidding stage | O29: TRUE
B30: 6 | C30: Uncertainty level in PREVENTATIVE MAINTENANCE for a project at bidding stage | O30: TRUE
C194: Air-Manned (Manned airborne systems, including civil and commercial aviation),
C195: Air-Unmanned (Unmanned airborne systems, including UAVs, aerostats),
C196: Consumer (Intended for commercial applications, typically home or business use),
C197: Ground-Fixed (Any immobile terrestrial non-commercial product, including antenna dishes, buildings, bridges. Fixed land-based systems),
C198: Ground-Mobile (Mobile land-based systems, including trucks and trains)
C199: Industrial (Intended for use in an industrial environment),
C200: None (No selection of a Platform knowledge base),
C201: Sea (Surface sea-based systems, including naval and commercial ships),
C202: Space-Manned (Manned space systems, including the Space Shuttle, manned additions to it, or manned equipment certified for linkage with it),
C203: Space-Unmanned (Unmanned space systems, including telecommunications and remote sensing satellites, and exploratory interplanetary vehicles),
C204: Submersible (Submersible sea-based systems, including military submarines and commercial submersibles)

Sheet Input-people (hidden)
B8: The focus for this sheet is uncertainties that relate to PEOPLE aspects. This section requires input/scoring in "Basis of estimate", "Rigour in assessment",
B9: "Level of validation" and to assign a weight for the significance of the uncertainty on the project. Explanation of the scoring for each of the uncertainty metrics is
B10: provided below. The user needs to define whether it is possible to assess the uncertainty by using the tick box for relevance and ability to fill. Furthermore, if it is
B11: possible to assess the uncertainty all three criteria need to be filled.
B32: People (maintainers) | D32: Source | E32: Relevance | F32: Ability to fill | G32: Basis of estimate | H32: Rigour in assessment | I32: Level of validation | J32: Accuracy of input | K32: Score Justification
B33: 1 | C33: Actual Fix Time (hours) | D33: 1.2; 1.3 | G33: 3 | H33: 5 | I33: 5 | J33: =IF(Q33=TRUE, IF(U33,"Data filled correctly", "False"), "") -> Data filled correctly | O33: =IF('Broad-Info'!$O$25=TRUE,Q33,"") -> TRUE | Q33: TRUE | R33: TRUE | S33: =COUNT(G33:I33) -> 3 | T33: =IF(O33=TRUE, IF(R33=TRUE,U33,7),"") -> 4.333333333 | U33: =IF(R33, IF(S33=3, AVERAGE(G33:I33)), "Inability to fill") -> 4.333333333
B34: 2 | C34: Equipment Type Breakdown Rate (per hour) | D34: 1.2; 1.3 | G34: 3 | H34: 3 | I34: 3 | J34: =IF(Q34=TRUE, IF(U34,"Data filled correctly", "False"), "") -> Data filled correctly | O34: =IF('Broad-Info'!$O$25=TRUE,Q34,"") -> TRUE | Q34: TRUE | R34: TRUE | S34: 3 | T34: 3 | U34: 3
B35: 3 | C35: Hours a Person works in a month | D35: 1.2; 1.3 | G35: 5 | H35: 5 | I35: 5 | J35: Data filled correctly | O35: =IF('Broad-Info'!$O$25=TRUE,Q35,"") -> TRUE | Q35: TRUE | R35: TRUE | S35: 3 | T35: 5 | U35: 5
B36: 4 | C36: Maintainer Capitation rate (£ thousands) | D36: 1.2;1.3 | G36: 5 | H36: 5 | I36: 5 | J36: Data filled correctly | O36: =IF('Broad-Info'!$O$25=TRUE,Q36,"") -> TRUE | Q36: TRUE | R36: TRUE | S36: 3 | T36: 5 | U36: 5
B37: 5 | C37: Number of Equipment Type instances operating | D37: 1.2 | G37: 3 | H37: 3 | I37: 3 | J37: Data filled correctly | O37: =IF('Broad-Info'!$O$25=TRUE,Q37,"") -> TRUE | Q37: TRUE | R37: TRUE | S37: 3 | T37: 3 | U37: 3
B38: 6 | C38: Number of Maintainers in a crew | D38: 1.2; 1.3 | G38: 5 | H38: 3 | I38: 5 | J38: Data filled correctly | O38: =IF('Broad-Info'!$O$25=TRUE,Q38,"") -> TRUE | Q38: TRUE | R38: TRUE | S38: 3 | T38: 4.333333333 | U38: 4.333333333
B39: 7 | C39: Required EADs | D39: 1.2 | G39: 5 | H39: 5 | I39: 5 | J39: Data filled correctly | O39: =IF('Broad-Info'!$O$25=TRUE,Q39,"") -> TRUE | Q39: TRUE | R39: TRUE | S39: 3 | T39: 5 | U39: 5
B40: 8 | C40: Time Period of Lever | D40: 1.2; 1.3 | G40: 3 | H40: 3 | I40: 5 | J40: Data filled correctly | O40: =IF('Broad-Info'!$O$25=TRUE,Q40,"") -> TRUE | Q40: TRUE | R40: TRUE | S40: 3 | T40: 3.666666667 | U40: 3.666666667
B41: 9 | C41: Total Number of Equipment Types Operating (at this location) [per location] | D41: 1.2 | G41: 3 | H41: 3 | I41: 3 | J41: Data filled correctly | O41: =IF('Broad-Info'!$O$25=TRUE,Q41,"") -> TRUE | Q41: TRUE | R41: TRUE | S41: 3 | T41: 3 | U41: 3
B42: 10 | C42: Additional People required at this location [to cover pre-ops training, leave, etc] | D42: 1.3 | G42: 3 | H42: 3 | I42: 3 | J42: Data filled correctly | O42: =IF('Broad-Info'!$O$25=TRUE,Q42,"") -> TRUE | Q42: TRUE | R42: TRUE | S42: 3 | T42: 3 | U42: 3
B43: 11 | C43: Average Travelling Time to this Location (in hours) [per location] | D43: 1.3 | G43: 3 | H43: 3 | I43: 3 | J43: Data filled correctly | O43: =IF('Broad-Info'!$O$25=TRUE,Q43,"") -> TRUE | Q43: TRUE | R43: TRUE | S43: 3 | T43: 3 | U43: 3
B44: 12 | C44: Number of Equipment Type instances at this location | D44: 1.3 | G44: 3 | H44: 3 | I44: 3 | J44: Data filled correctly | O44: =IF('Broad-Info'!$O$25=TRUE,Q44,"") -> TRUE | Q44: TRUE | R44: TRUE | S44: 3 | T44: 3 | U44: 3
B45: 13 | C45: Total Number of Equipment Types Operating [at all locations] | D45: 1.3 | G45: 3 | H45: 3 | I45: 3 | J45: Data filled correctly | O45: =IF('Broad-Info'!$O$25=TRUE,Q45,"") -> TRUE | Q45: TRUE | R45: TRUE | S45: 3 | T45: 3 | U45: 3
B46: 14 | C46: Total Number of Equipment Types Operating (at this location) [per location] | D46: 1.3 | G46: 6 | H46: 7 | I46: 7 | J46: Data filled correctly | O46: =IF('Broad-Info'!$O$25=TRUE,Q46,"") -> TRUE | Q46: TRUE | R46: TRUE | S46: 3 | T46: 6.666666667 | U46: 6.666666667
B47: 15 | G47: 6 | H47: 7 | I47: 7 | J47: Data filled correctly | O47: =IF('Broad-Info'!$O$25=TRUE,Q47,"") -> TRUE | Q47: TRUE | R47: TRUE | S47: 3 | T47: 6.666666667 | U47: 6.666666667
B48: 16 | G48: 6 | H48: 7 | I48: 7 | J48: Data filled correctly | O48: =IF('Broad-Info'!$O$25=TRUE,Q48,"") -> TRUE | Q48: TRUE | R48: TRUE | S48: 3 | T48: 6.666666667 | U48: 6.666666667
B49: 17 | G49: 2 | H49: 3 | I49: 3 | J49: Data filled correctly | O49: =IF('Broad-Info'!$O$25=TRUE,Q49,"") -> TRUE | Q49: TRUE | R49: TRUE | S49: 3 | T49: 2.666666667 | U49: 2.666666667
C52: Additional uncertainties that relate to the projects' specific domain
B54: Commercial | D54: Source | E54: Relevance | F54: Ability to fill | G54: Basis of estimate | H54: Rigour in assessment | I54: Level of validation | J54: Accuracy of input | K54: Score Justification
B55: 1 | J55: =IF(Q55=TRUE, IF(U55,"Data filled correctly", "False"), "") ->  | O55: =IF('Broad-Info'!$O$25=TRUE,Q55,"") -> FALSE | Q55: FALSE | R55: FALSE | S55: 0 | T55: =IF(O55=TRUE, IF(R55=TRUE,U55,7),"") ->  | U55: =IF(R55, IF(S55=3, AVERAGE(G55:I55)), "Inability to fill") -> Inability to fill
B56: 2 | O56: =IF('Broad-Info'!$O$25=TRUE,Q56,"") -> FALSE | Q56: FALSE | R56: FALSE | S56: 0 | T56: =IF(O56=TRUE, IF(R56=TRUE,U56,7),"") ->  | U56: Inability to fill
B57: 3 | O57: =IF('Broad-Info'!$O$25=TRUE,Q57,"") -> FALSE | Q57: FALSE | R57: FALSE | S57: 0 | U57: Inability to fill
B58: 4 | O58: =IF('Broad-Info'!$O$25=TRUE,Q58,"") -> FALSE | Q58: FALSE | R58: FALSE | S58: 0 | U58: Inability to fill
B59: 5 | O59: =IF('Broad-Info'!$O$25=TRUE,Q59,"") -> FALSE | Q59: FALSE | R59: FALSE | S59: 0 | U59: Inability to fill
B60: 6 | O60: =IF('Broad-Info'!$O$25=TRUE,Q60,"") -> FALSE | Q60: FALSE | R60: FALSE | S60: 0 | U60: Inability to fill
B61: 7 | O61: =IF('Broad-Info'!$O$25=TRUE,Q61,"") -> FALSE | Q61: FALSE | R61: FALSE | S61: 0 | U61: Inability to fill

Sheet Imp-People (hidden)
B9: The goal of this sheet is to assess or assign weights to the uncertainties in terms of their influence on costs. The only input to the sheet is the green tab which requires input following
B10: the guidelines provided in the box. The assessment follows a pairwise comparison, which requires the user to compare the influence of the variables with one another by scoring the
B11: siginificance of each uncertainty based on the blue box provided below. The analytic hierarchy process is applied to make the assessment.
B24: If the uncertainty is not relevant please do no input a significance level.
B27: Pairwise Comparison | C27: Source | D27: Input significance | E27: Percentage significance | F27: Normalised weight | H27: Total number of | I27: Total score | J27: Average Score
H28: uncertainties
A29: 1 | B29: =IF('Input-people'!Q33=TRUE,'Input-people'!C33,"") -> Actual Fix Time (hours) | C29: ='Input-people'!D33 -> 1.2; 1.3 | D29: 9 | E29: =V72 -> 0.3626798477 | F29: =IF(E29>=J29,1,E29/J29) -> 1 | H29: =X89 -> 17 | I29: 1 | J29: =I29/H29 -> 0.05882352941
A30: 2 | B30: =IF('Input-people'!Q34=TRUE,'Input-people'!C34,"") -> Equipment Type Breakdown Rate (per hour) | C30: ='Input-people'!D34 -> 1.2; 1.3 | D30: 8 | E30: =V73 -> 0.3071294734 | F30: =IF(E30>=$J$29,1,E30/$J$29) -> 1
A31: 3 | B31: =IF('Input-people'!Q35=TRUE,'Input-people'!C35,"") -> Hours a Person works in a month | C31: ='Input-people'!D35 -> 1.2; 1.3 | D31: 6 | E31: 0.2033879624 | F31: 1 | H31: Scoring recommendation
A32: 4 | B32: =IF('Input-people'!Q36=TRUE,'Input-people'!C36,) -> Maintainer Capitation rate (£ thousands) | C32: ='Input-people'!D36 -> 1.2;1.3 | E32: 0.03170067912 | F32: 0.538911545
A33: 5 | B33: =IF('Input-people'!Q37=TRUE,'Input-people'!C37,"") -> Number of Equipment Type instances operating | C33: ='Input-people'!D37 -> 1.2 | E33: 0.03170067912 | F33: 0.538911545 | H33: =IF(AD72<=10,"Good scoring",IF(AD72<=20,"Acceptable scoring","Revise scoring")) -> Good scoring
A34: 6 | B34: =IF('Input-people'!Q38=TRUE,'Input-people'!C38,"") -> Number of Maintainers in a crew | C34: ='Input-people'!D38 -> 1.2; 1.3 | E34: 0.03170067912 | F34: 0.538911545
A35: 7 | B35: =IF('Input-people'!Q39=TRUE,'Input-people'!C39,"") -> Required EADs | C35: ='Input-people'!D39 -> 1.2 | E35: 0.03170067912 | F35: 0.538911545 | H35: =IF(ISERROR(1/AB33),"",IF(OR(Levers!$J$14=FALSE,Levers!$J$15=FALSE),"",1/AB33)) -> 
A36: 8 | B36: =IF('Input-people'!Q40=TRUE,'Input-people'!C40,"") -> Time Period of Lever | C36: ='Input-people'!D40 -> 1.2; 1.3 | E36: 0.03170067912 | F36: 0.538911545
A37: 9 | B37: =IF('Input-people'!Q41=TRUE,'Input-people'!C41,"") -> Total Number of Equipment Types Operating (at this location) [per location] | C37: ='Input-people'!D41 -> 1.2 | E37: 0.03170067912 | F37: 0.538911545
A38: 10 | B38: =IF('Input-people'!Q42=TRUE,'Input-people'!C42,"") -> Additional People required at this location [to cover pre-ops training, leave, etc] | C38: ='Input-people'!D42 -> 1.3 | E38: 0.03170067912 | F38: 0.538911545
A39: 11 | B39: =IF('Input-people'!Q43=TRUE,'Input-people'!C43,"") -> Average Travelling Time to this Location (in hours) [per location] | C39: ='Input-people'!D43 -> 1.3 | E39: 0.03170067912 | F39: 0.538911545
A40: 12 | B40: =IF('Input-people'!Q44=TRUE,'Input-people'!C44,"") -> Number of Equipment Type instances at this location | C40: ='Input-people'!D44 -> 1.3 | E40: 0.03170067912 | F40: 0.538911545
A41: 13 | B41: =IF('Input-people'!Q45=TRUE,'Input-people'!C45,"") -> Total Number of Equipment Types Operating [at all locations] | C41: ='Input-people'!D45 -> 1.3 | E41: 0.03170067912 | F41: 0.538911545
A42: 14 | B42: =IF('Input-people'!Q46=TRUE,'Input-people'!C46,"") -> Total Number of Equipment Types Operating (at this location) [per location] | C42: ='Input-people'!D46 -> 1.3 | E42: 0.03170067912 | F42: 0.538911545
A43: 15 | B43: =IF('Input-people'!Q47=TRUE,'Input-people'!C47,"") -> 0 | E43: 0.03170067912 | F43: 0.538911545
A44: 16 | B44: =IF('Input-people'!Q48=TRUE,'Input-people'!C48,"") -> 0 | E44: 0.03170067912 | F44: 0.538911545
A45: 17 | B45: =IF('Input-people'!Q49=TRUE,'Input-people'!C49,"") -> 0 | E45: 0.03170067912 | F45: 0.538911545
B48: Analytic Hierarchy Process
D50: =B29 -> Actual Fix Time (hours) | E50: =B30 -> Equipment Type Breakdown Rate (per hour) | F50: =B31 -> Hours a Person works in a month | G50: =B32 -> Maintainer Capitation rate (£ thousands) | H50: =B33 -> Number of Equipment Type instances operating | I50: =B34 -> Number of Maintainers in a crew | J50: =B35 -> Required EADs | K50: =B36 -> Time Period of Lever | L50: =B37 -> Total Number of Equipment Types Operating (at this location) [per location] | M50: =B38 -> Additional People required at this location [to cover pre-ops training, leave, etc] | N50: =B39 -> Average Travelling Time to this Location (in hours) [per location] | O50: =B40 -> Number of Equipment Type instances at this location | P50: =B41 -> Total Number of Equipment Types Operating [at all locations] | Q50: =B42 -> Total Number of Equipment Types Operating (at this location) [per location] | R50: =B43 -> 0 | S50: =B44 -> 0 | T50: =B45 -> 0
B52: =B29 -> Actual Fix Time (hours) | D52: =IF('Input-people'!Q33=FALSE,0,1) -> 1 | E52: =IF(OR('Input-people'!$Q$33=FALSE,'Input-people'!Q34=FALSE),0,IF($D$29-D30<0,IF($D$29-D30>=-3,1/3,IF($D$29-D30>=-5,1/5,IF($D$29-D30>=-7,1/7,1/9))),IF($D$29=D30,1,IF($D$29-D30<=3,3,IF($D$29-D30<=5,5,IF($D$29-D30<=7,7,9)))))) -> 3 | F52: =IF(OR('Input-people'!$Q$33=FALSE,'Input-people'!Q35=FALSE),0,IF($D$29-D31<0,IF($D$29-D31>=-3,1/3,IF($D$29-D31>=-5,1/5,IF($D$29-D31>=-7,1/7,1/9))),IF($D$29=D31,1,IF($D$29-D31<=3,3,IF($D$29-D31<=5,5,IF($D$29-D31<=7,7,9)))))) -> 3 | G52: =IF(OR('Input-people'!$Q$33=FALSE,'Input-people'!Q36=FALSE),0,IF($D$29-D32<0,IF($D$29-D32>=-3,1/3,IF($D$29-D32>=-5,1/5,IF($D$29-D32>=-7,1/7,1/9))),IF($D$29=D32,1,IF($D$29-D32<=3,3,IF($D$29-D32<=5,5,IF($D$29-D32<=7,7,9)))))) -> 9 | H52: =IF(OR('Input-people'!$Q$33=FALSE,'Input-people'!Q37=FALSE),0,IF($D$29-D33<0,IF($D$29-D33>=-3,1/3,IF($D$29-D33>=-5,1/5,IF($D$29-D33>=-7,1/7,1/9))),IF($D$29=D33,1,IF($D$29-D33<=3,3,IF($D$29-D33<=5,5,IF($D$29-D33<=7,7,9)))))) -> 9 | I52: =IF(OR('Input-people'!$Q$33=FALSE,'Input-people'!Q38=FALSE),0,IF($D$29-D34<0,IF($D$29-D34>=-3,1/3,IF($D$29-D34>=-5,1/5,IF($D$29-D34>=-7,1/7,1/9))),IF($D$29=D34,1,IF($D$29-D34<=3,3,IF($D$29-D34<=5,5,IF($D$29-D34<=7,7,9)))))) -> 9 | J52: =IF(OR('Input-people'!$Q$33=FALSE,'Input-people'!Q39=FALSE),0,IF($D$29-D35<0,IF($D$29-D35>=-3,1/3,IF($D$29-D35>=-5,1/5,IF($D$29-D35>=-7,1/7,1/9))),IF($D$29=D35,1,IF($D$29-D35<=3,3,IF($D$29-D35<=5,5,IF($D$29-D35<=7,7,9)))))) -> 9 | K52: =IF(OR('Input-people'!$Q$33=FALSE,'Input-people'!Q40=FALSE),0,IF($D$29-D36<0,IF($D$29-D36>=-3,1/3,IF($D$29-D36>=-5,1/5,IF($D$29-D36>=-7,1/7,1/9))),IF($D$29=D36,1,IF($D$29-D36<=3,3,IF($D$29-D36<=5,5,IF($D$29-D36<=7,7,9)))))) -> 9 | L52: =IF(OR('Input-people'!$Q$33=FALSE,'Input-people'!Q41=FALSE),0,IF($D$29-D37<0,IF($D$29-D37>=-3,1/3,IF($D$29-D37>=-5,1/5,IF($D$29-D37>=-7,1/7,1/9))),IF($D$29=D37,1,IF($D$29-D37<=3,3,IF($D$29-D37<=5,5,IF($D$29-D37<=7,7,9)))))) -> 9 | M52: =IF(OR('Input-people'!$Q$33=FALSE,'Input-people'!Q42=FALSE),0,IF($D$29-D38<0,IF($D$29-D38>=-3,1/3,IF($D$29-D38>=-5,1/5,IF($D$29-D38>=-7,1/7,1/9))),IF($D$29=D38,1,IF($D$29-D38<=3,3,IF($D$29-D38<=5,5,IF($D$29-D38<=7,7,9)))))) -> 9 | N52: =IF(OR('Input-people'!$Q$33=FALSE,'Input-people'!Q43=FALSE),0,IF($D$29-D39<0,IF($D$29-D39>=-3,1/3,IF($D$29-D39>=-5,1/5,IF($D$29-D39>=-7,1/7,1/9))),IF($D$29=D39,1,IF($D$29-D39<=3,3,IF($D$29-D39<=5,5,IF($D$29-D39<=7,7,9)))))) -> 9 | O52: =IF(OR('Input-people'!$Q$33=FALSE,'Input-people'!Q44=FALSE),0,IF($D$29-D40<0,IF($D$29-D40>=-3,1/3,IF($D$29-D40>=-5,1/5,IF($D$29-D40>=-7,1/7,1/9))),IF($D$29=D40,1,IF($D$29-D40<=3,3,IF($D$29-D40<=5,5,IF($D$29-D40<=7,7,9)))))) -> 9 | P52: =IF(OR('Input-people'!$Q$33=FALSE,'Input-people'!Q45=FALSE),0,IF($D$29-D41<0,IF($D$29-D41>=-3,1/3,IF($D$29-D41>=-5,1/5,IF($D$29-D41>=-7,1/7,1/9))),IF($D$29=D41,1,IF($D$29-D41<=3,3,IF($D$29-D41<=5,5,IF($D$29-D41<=7,7,9)))))) -> 9 | Q52: =IF(OR('Input-people'!$Q$33=FALSE,'Input-people'!Q46=FALSE),0,IF($D$29-D42<0,IF($D$29-D42>=-3,1/3,IF($D$29-D42>=-5,1/5,IF($D$29-D42>=-7,1/7,1/9))),IF($D$29=D42,1,IF($D$29-D42<=3,3,IF($D$29-D42<=5,5,IF($D$29-D42<=7,7,9)))))) -> 9 | R52: =IF(OR('Input-people'!$Q$33=FALSE,'Input-people'!Q47=FALSE),0,IF($D$29-D43<0,IF($D$29-D43>=-3,1/3,IF($D$29-D43>=-5,1/5,IF($D$29-D43>=-7,1/7,1/9))),IF($D$29=D43,1,IF($D$29-D43<=3,3,IF($D$29-D43<=5,5,IF($D$29-D43<=7,7,9)))))) -> 9 | S52: =IF(OR('Input-people'!$Q$33=FALSE,'Input-people'!Q48=FALSE),0,IF($D$29-D44<0,IF($D$29-D44>=-3,1/3,IF($D$29-D44>=-5,1/5,IF($D$29-D44>=-7,1/7,1/9))),IF($D$29=D44,1,IF($D$29-D44<=3,3,IF($D$29-D44<=5,5,IF($D$29-D44<=7,7,9)))))) -> 9 | T52: =IF(OR('Input-people'!$Q$33=FALSE,'Input-people'!Q49=FALSE),0,IF($D$29-D45<0,IF($D$29-D45>=-3,1/3,IF($D$29-D45>=-5,1/5,IF($D$29-D45>=-7,1/7,1/9))),IF($D$29=D45,1,IF($D$29-D45<=3,3,IF($D$29-D45<=5,5,IF($D$29-D45<=7,7,9)))))) -> 9
B53: Equipment Type Breakdown Rate (per hour) | D53: =IF(ISERROR(1/$E52),0,IF(OR('Input-people'!$Q34=FALSE,'Input-people'!$Q$33=FALSE),"",1/$E52)) -> 0.3333333333 | E53: =IF('Input-people'!Q34=FALSE,0,1) -> 1 | F53: =IF(OR('Input-people'!$Q$34=FALSE,'Input-people'!Q35=FALSE),0,IF($D$30-D31<0,IF($D$30-D31>=-3,1/3,IF($D$30-D31>=-5,1/5,IF($D$30-D31>=-7,1/7,1/9))),IF($D$30=D31,1,IF($D$30-D31<=3,3,IF($D$30-D31<=5,5,IF($D$30-D31<=7,7,9)))))) -> 3 | G53: =IF(OR('Input-people'!$Q$34=FALSE,'Input-people'!Q36=FALSE),0,IF($D$30-D32<0,IF($D$30-D32>=-3,1/3,IF($D$30-D32>=-5,1/5,IF($D$30-D32>=-7,1/7,1/9))),IF($D$30=D32,1,IF($D$30-D32<=3,3,IF($D$30-D32<=5,5,IF($D$30-D32<=7,7,9)))))) -> 9 | H53: =IF(OR('Input-people'!$Q$34=FALSE,'Input-people'!Q37=FALSE),0,IF($D$30-D33<0,IF($D$30-D33>=-3,1/3,IF($D$30-D33>=-5,1/5,IF($D$30-D33>=-7,1/7,1/9))),IF($D$30=D33,1,IF($D$30-D33<=3,3,IF($D$30-D33<=5,5,IF($D$30-D33<=7,7,9)))))) -> 9 | I53: =IF(OR('Input-people'!$Q$34=FALSE,'Input-people'!Q38=FALSE),0,IF($D$30-D34<0,IF($D$30-D34>=-3,1/3,IF($D$30-D34>=-5,1/5,IF($D$30-D34>=-7,1/7,1/9))),IF($D$30=D34,1,IF($D$30-D34<=3,3,IF($D$30-D34<=5,5,IF($D$30-D34<=7,7,9)))))) -> 9 | J53: =IF(OR('Input-people'!$Q$34=FALSE,'Input-people'!Q39=FALSE),0,IF($D$30-D35<0,IF($D$30-D35>=-3,1/3,IF($D$30-D35>=-5,1/5,IF($D$30-D35>=-7,1/7,1/9))),IF($D$30=D35,1,IF($D$30-D35<=3,3,IF($D$30-D35<=5,5,IF($D$30-D35<=7,7,9)))))) -> 9 | K53: =IF(OR('Input-people'!$Q$34=FALSE,'Input-people'!Q40=FALSE),0,IF($D$30-D36<0,IF($D$30-D36>=-3,1/3,IF($D$30-D36>=-5,1/5,IF($D$30-D36>=-7,1/7,1/9))),IF($D$30=D36,1,IF($D$30-D36<=3,3,IF($D$30-D36<=5,5,IF($D$30-D36<=7,7,9)))))) -> 9 | L53: =IF(OR('Input-people'!$Q$34=FALSE,'Input-people'!Q41=FALSE),0,IF($D$30-D37<0,IF($D$30-D37>=-3,1/3,IF($D$30-D37>=-5,1/5,IF($D$30-D37>=-7,1/7,1/9))),IF($D$30=D37,1,IF($D$30-D37<=3,3,IF($D$30-D37<=5,5,IF($D$30-D37<=7,7,9)))))) -> 9 | M53: =IF(OR('Input-people'!$Q$34=FALSE,'Input-people'!Q42=FALSE),0,IF($D$30-D38<0,IF($D$30-D38>=-3,1/3,IF($D$30-D38>=-5,1/5,IF($D$30-D38>=-7,1/7,1/9))),IF($D$30=D38,1,IF($D$30-D38<=3,3,IF($D$30-D38<=5,5,IF($D$30-D38<=7,7,9)))))) -> 9 | N53: =IF(OR('Input-people'!$Q$34=FALSE,'Input-people'!Q43=FALSE),0,IF($D$30-D39<0,IF($D$30-D39>=-3,1/3,IF($D$30-D39>=-5,1/5,IF($D$30-D39>=-7,1/7,1/9))),IF($D$30=D39,1,IF($D$30-D39<=3,3,IF($D$30-D39<=5,5,IF($D$30-D39<=7,7,9)))))) -> 9 | O53: =IF(OR('Input-people'!$Q$34=FALSE,'Input-people'!Q44=FALSE),0,IF($D$30-D40<0,IF($D$30-D40>=-3,1/3,IF($D$30-D40>=-5,1/5,IF($D$30-D40>=-7,1/7,1/9))),IF($D$30=D40,1,IF($D$30-D40<=3,3,IF($D$30-D40<=5,5,IF($D$30-D40<=7,7,9)))))) -> 9 | P53: =IF(OR('Input-people'!$Q$34=FALSE,'Input-people'!Q45=FALSE),0,IF($D$30-D41<0,IF($D$30-D41>=-3,1/3,IF($D$30-D41>=-5,1/5,IF($D$30-D41>=-7,1/7,1/9))),IF($D$30=D41,1,IF($D$30-D41<=3,3,IF($D$30-D41<=5,5,IF($D$30-D41<=7,7,9)))))) -> 9 | Q53: =IF(OR('Input-people'!$Q$34=FALSE,'Input-people'!Q46=FALSE),0,IF($D$30-D42<0,IF($D$30-D42>=-3,1/3,IF($D$30-D42>=-5,1/5,IF($D$30-D42>=-7,1/7,1/9))),IF($D$30=D42,1,IF($D$30-D42<=3,3,IF($D$30-D42<=5,5,IF($D$30-D42<=7,7,9)))))) -> 9 | R53: =IF(OR('Input-people'!$Q$34=FALSE,'Input-people'!Q47=FALSE),0,IF($D$30-D43<0,IF($D$30-D43>=-3,1/3,IF($D$30-D43>=-5,1/5,IF($D$30-D43>=-7,1/7,1/9))),IF($D$30=D43,1,IF($D$30-D43<=3,3,IF($D$30-D43<=5,5,IF($D$30-D43<=7,7,9)))))) -> 9 | S53: =IF(OR('Input-people'!$Q$34=FALSE,'Input-people'!Q48=FALSE),0,IF($D$30-D44<0,IF($D$30-D44>=-3,1/3,IF($D$30-D44>=-5,1/5,IF($D$30-D44>=-7,1/7,1/9))),IF($D$30=D44,1,IF($D$30-D44<=3,3,IF($D$30-D44<=5,5,IF($D$30-D44<=7,7,9)))))) -> 9 | T53: =IF(OR('Input-people'!$Q$34=FALSE,'Input-people'!Q49=FALSE),0,IF($D$30-D45<0,IF($D$30-D45>=-3,1/3,IF($D$30-D45>=-5,1/5,IF($D$30-D45>=-7,1/7,1/9))),IF($D$30=D45,1,IF($D$30-D45<=3,3,IF($D$30-D45<=5,5,IF($D$30-D45<=7,7,9)))))) -> 9
B54: Hours a Person works in a month | D54: =IF(ISERROR(1/$F52),0,IF(OR('Input-people'!$Q35=FALSE,'Input-people'!$Q$33=FALSE),"",1/$F52)) -> 0.3333333333 | E54: =IF(ISERROR(1/$F53),0,IF(OR('Input-people'!$Q35=FALSE,'Input-people'!$Q$34=FALSE),"",1/$F53)) -> 0.3333333333 | F54: =IF('Input-people'!Q35=FALSE,0,1) -> 1 | G54: =IF(OR('Input-people'!$Q$35=FALSE,'Input-people'!Q36=FALSE),0,IF($D$31-D32<0,IF($D$31-D32>=-3,1/3,IF($D$31-D32>=-5,1/5,IF($D$31-D32>=-7,1/7,1/9))),IF($D$31=D32,1,IF($D$31-D32<=3,3,IF($D$31-D32<=5,5,IF($D$31-D32<=7,7,9)))))) -> 7 | H54: =IF(OR('Input-people'!$Q$35=FALSE,'Input-people'!Q37=FALSE),0,IF($D$31-D33<0,IF($D$31-D33>=-3,1/3,IF($D$31-D33>=-5,1/5,IF($D$31-D33>=-7,1/7,1/9))),IF($D$31=D33,1,IF($D$31-D33<=3,3,IF($D$31-D33<=5,5,IF($D$31-D33<=7,7,9)))))) -> 7 | I54: =IF(OR('Input-people'!$Q$35=FALSE,'Input-people'!Q38=FALSE),0,IF($D$31-D34<0,IF($D$31-D34>=-3,1/3,IF($D$31-D34>=-5,1/5,IF($D$31-D34>=-7,1/7,1/9))),IF($D$31=D34,1,IF($D$31-D34<=3,3,IF($D$31-D34<=5,5,IF($D$31-D34<=7,7,9)))))) -> 7 | J54: =IF(OR('Input-people'!$Q$35=FALSE,'Input-people'!Q39=FALSE),0,IF($D$31-D35<0,IF($D$31-D35>=-3,1/3,IF($D$31-D35>=-5,1/5,IF($D$31-D35>=-7,1/7,1/9))),IF($D$31=D35,1,IF($D$31-D35<=3,3,IF($D$31-D35<=5,5,IF($D$31-D35<=7,7,9)))))) -> 7 | K54: =IF(OR('Input-people'!$Q$35=FALSE,'Input-people'!Q40=FALSE),0,IF($D$31-D36<0,IF($D$31-D36>=-3,1/3,IF($D$31-D36>=-5,1/5,IF($D$31-D36>=-7,1/7,1/9))),IF($D$31=D36,1,IF($D$31-D36<=3,3,IF($D$31-D36<=5,5,IF($D$31-D36<=7,7,9)))))) -> 7 | L54: =IF(OR('Input-people'!$Q$35=FALSE,'Input-people'!Q41=FALSE),0,IF($D$31-D37<0,IF($D$31-D37>=-3,1/3,IF($D$31-D37>=-5,1/5,IF($D$31-D37>=-7,1/7,1/9))),IF($D$31=D37,1,IF($D$31-D37<=3,3,IF($D$31-D37<=5,5,IF($D$31-D37<=7,7,9)))))) -> 7 | M54: =IF(OR('Input-people'!$Q$35=FALSE,'Input-people'!Q42=FALSE),0,IF($D$31-D38<0,IF($D$31-D38>=-3,1/3,IF($D$31-D38>=-5,1/5,IF($D$31-D38>=-7,1/7,1/9))),IF($D$31=D38,1,IF($D$31-D38<=3,3,IF($D$31-D38<=5,5,IF($D$31-D38<=7,7,9)))))) -> 7 | N54: =IF(OR('Input-people'!$Q$35=FALSE,'Input-people'!Q43=FALSE),0,IF($D$31-D39<0,IF($D$31-D39>=-3,1/3,IF($D$31-D39>=-5,1/5,IF($D$31-D39>=-7,1/7,1/9))),IF($D$31=D39,1,IF($D$31-D39<=3,3,IF($D$31-D39<=5,5,IF($D$31-D39<=7,7,9)))))) -> 7 | O54: =IF(OR('Input-people'!$Q$35=FALSE,'Input-people'!Q44=FALSE),0,IF($D$31-D40<0,IF($D$31-D40>=-3,1/3,IF($D$31-D40>=-5,1/5,IF($D$31-D40>=-7,1/7,1/9))),IF($D$31=D40,1,IF($D$31-D40<=3,3,IF($D$31-D40<=5,5,IF($D$31-D40<=7,7,9)))))) -> 7 | P54: =IF(OR('Input-people'!$Q$35=FALSE,'Input-people'!Q45=FALSE),0,IF($D$31-D41<0,IF($D$31-D41>=-3,1/3,IF($D$31-D41>=-5,1/5,IF($D$31-D41>=-7,1/7,1/9))),IF($D$31=D41,1,IF($D$31-D41<=3,3,IF($D$31-D41<=5,5,IF($D$31-D41<=7,7,9)))))) -> 7 | Q54: =IF(OR('Input-people'!$Q$35=FALSE,'Input-people'!Q46=FALSE),0,IF($D$31-D42<0,IF($D$31-D42>=-3,1/3,IF($D$31-D42>=-5,1/5,IF($D$31-D42>=-7,1/7,1/9))),IF($D$31=D42,1,IF($D$31-D42<=3,3,IF($D$31-D42<=5,5,IF($D$31-D42<=7,7,9)))))) -> 7 | R54: =IF(OR('Input-people'!$Q$35=FALSE,'Input-people'!Q47=FALSE),0,IF($D$31-D43<0,IF($D$31-D43>=-3,1/3,IF($D$31-D43>=-5,1/5,IF($D$31-D43>=-7,1/7,1/9))),IF($D$31=D43,1,IF($D$31-D43<=3,3,IF($D$31-D43<=5,5,IF($D$31-D43<=7,7,9)))))) -> 7 | S54: =IF(OR('Input-people'!$Q$35=FALSE,'Input-people'!Q48=FALSE),0,IF($D$31-D44<0,IF($D$31-D44>=-3,1/3,IF($D$31-D44>=-5,1/5,IF($D$31-D44>=-7,1/7,1/9))),IF($D$31=D44,1,IF($D$31-D44<=3,3,IF($D$31-D44<=5,5,IF($D$31-D44<=7,7,9)))))) -> 7 | T54: =IF(OR('Input-people'!$Q$35=FALSE,'Input-people'!Q49=FALSE),0,IF($D$31-D45<0,IF($D$31-D45>=-3,1/3,IF($D$31-D45>=-5,1/5,IF($D$31-D45>=-7,1/7,1/9))),IF($D$31=D45,1,IF($D$31-D45<=3,3,IF($D$31-D45<=5,5,IF($D$31-D45<=7,7,9)))))) -> 7
B55: Maintainer Capitation rate (£ thousands) | D55: =IF(ISERROR(1/$G52),0,IF(OR('Input-people'!$Q36=FALSE,'Input-people'!$Q$33=FALSE),"",1/$G52)) -> 0.1111111111 | E55: =IF(ISERROR(1/$G53),0,IF(OR('Input-people'!$Q36=FALSE,'Input-people'!$Q$34=FALSE),"",1/$G53)) -> 0.1111111111 | F55: =IF(ISERROR(1/G$54),0,IF(OR('Input-people'!$Q36=FALSE,'Input-people'!$Q$35=FALSE),0,1/G$54)) -> 0.1428571429 | G55: =IF('Input-people'!Q36=FALSE,0,1) -> 1 | H55: =IF(OR('Input-people'!$Q$36=FALSE,'Input-people'!Q37=FALSE),0,IF($D$32-$D33<0,IF($D$32-D33>=-3,1/3,IF($D$32-D33>=-5,1/5,IF($D$32-D33>=-7,1/7,1/9))),IF($D$32=D33,1,IF($D$32-D33<=3,3,IF($D$32-D33<=5,5,IF($D$32-D33<=7,7,9)))))) -> 1 | I55: =IF(OR('Input-people'!$Q$36=FALSE,'Input-people'!Q38=FALSE),0,IF($D$32-$D34<0,IF($D$32-D34>=-3,1/3,IF($D$32-D34>=-5,1/5,IF($D$32-D34>=-7,1/7,1/9))),IF($D$32=D34,1,IF($D$32-D34<=3,3,IF($D$32-D34<=5,5,IF($D$32-D34<=7,7,9)))))) -> 1 | J55: =IF(OR('Input-people'!$Q$36=FALSE,'Input-people'!Q39=FALSE),0,IF($D$32-$D35<0,IF($D$32-D35>=-3,1/3,IF($D$32-D35>=-5,1/5,IF($D$32-D35>=-7,1/7,1/9))),IF($D$32=D35,1,IF($D$32-D35<=3,3,IF($D$32-D35<=5,5,IF($D$32-D35<=7,7,9)))))) -> 1 | K55: =IF(OR('Input-people'!$Q$36=FALSE,'Input-people'!Q40=FALSE),0,IF($D$32-$D36<0,IF($D$32-D36>=-3,1/3,IF($D$32-D36>=-5,1/5,IF($D$32-D36>=-7,1/7,1/9))),IF($D$32=D36,1,IF($D$32-D36<=3,3,IF($D$32-D36<=5,5,IF($D$32-D36<=7,7,9)))))) -> 1 | L55: =IF(OR('Input-people'!$Q$36=FALSE,'Input-people'!Q41=FALSE),0,IF($D$32-$D37<0,IF($D$32-D37>=-3,1/3,IF($D$32-D37>=-5,1/5,IF($D$32-D37>=-7,1/7,1/9))),IF($D$32=D37,1,IF($D$32-D37<=3,3,IF($D$32-D37<=5,5,IF($D$32-D37<=7,7,9)))))) -> 1 | M55: =IF(OR('Input-people'!$Q$36=FALSE,'Input-people'!Q42=FALSE),0,IF($D$32-$D38<0,IF($D$32-D38>=-3,1/3,IF($D$32-D38>=-5,1/5,IF($D$32-D38>=-7,1/7,1/9))),IF($D$32=D38,1,IF($D$32-D38<=3,3,IF($D$32-D38<=5,5,IF($D$32-D38<=7,7,9)))))) -> 1 | N55: =IF(OR('Input-people'!$Q$36=FALSE,'Input-people'!Q43=FALSE),0,IF($D$32-$D39<0,IF($D$32-D39>=-3,1/3,IF($D$32-D39>=-5,1/5,IF($D$32-D39>=-7,1/7,1/9))),IF($D$32=D39,1,IF($D$32-D39<=3,3,IF($D$32-D39<=5,5,IF($D$32-D39<=7,7,9)))))) -> 1 | O55: =IF(OR('Input-people'!$Q$36=FALSE,'Input-people'!Q44=FALSE),0,IF($D$32-$D40<0,IF($D$32-D40>=-3,1/3,IF($D$32-D40>=-5,1/5,IF($D$32-D40>=-7,1/7,1/9))),IF($D$32=D40,1,IF($D$32-D40<=3,3,IF($D$32-D40<=5,5,IF($D$32-D40<=7,7,9)))))) -> 1 | P55: =IF(OR('Input-people'!$Q$36=FALSE,'Input-people'!Q45=FALSE),0,IF($D$32-$D41<0,IF($D$32-D41>=-3,1/3,IF($D$32-D41>=-5,1/5,IF($D$32-D41>=-7,1/7,1/9))),IF($D$32=D41,1,IF($D$32-D41<3,3,IF($D$32-D41<=5,5,IF($D$32-D41<=7,7,9)))))) -> 1 | Q55: =IF(OR('Input-people'!$Q$36=FALSE,'Input-people'!Q46=FALSE),0,IF($D$32-$D42<0,IF($D$32-D42>=-3,1/3,IF($D$32-D42>=-5,1/5,IF($D$32-D42>=-7,1/7,1/9))),IF($D$32=D42,1,IF($D$32-D42<=3,3,IF($D$32-D42<=5,5,IF($D$32-D42<=7,7,9)))))) -> 1 | R55: =IF(OR('Input-people'!$Q$36=FALSE,'Input-people'!Q47=FALSE),0,IF($D$32-$D43<0,IF($D$32-D43>=-3,1/3,IF($D$32-D43>=-5,1/5,IF($D$32-D43>=-7,1/7,1/9))),IF($D$32=D43,1,IF($D$32-D43<=3,3,IF($D$32-D43<=5,5,IF($D$32-D43<=7,7,9)))))) -> 1 | S55: =IF(OR('Input-people'!$Q$36=FALSE,'Input-people'!Q48=FALSE),0,IF($D$32-$D44<0,IF($D$32-D44>=-3,1/3,IF($D$32-D44>=-5,1/5,IF($D$32-D44>=-7,1/7,1/9))),IF($D$32=D44,1,IF($D$32-D44<=3,3,IF($D$32-D44<=5,5,IF($D$32-D44<=7,7,9)))))) -> 1 | T55: =IF(OR('Input-people'!$Q$36=FALSE,'Input-people'!Q49=FALSE),0,IF($D$32-$D45<0,IF($D$32-D45>=-3,1/3,IF($D$32-D45>=-5,1/5,IF($D$32-D45>=-7,1/7,1/9))),IF($D$32=D45,1,IF($D$32-D45<=3,3,IF($D$32-D45<=5,5,IF($D$32-D45<=7,7,9)))))) -> 1
B56: Number of Equipment Type instances operating | D56: =IF(ISERROR(1/$H52),0,IF(OR('Input-people'!$Q37=FALSE,'Input-people'!$Q$33=FALSE),"",1/$H52)) -> 0.1111111111 | E56: =IF(ISERROR(1/$H53),0,IF(OR('Input-people'!$Q37=FALSE,'Input-people'!$Q$34=FALSE),"",1/$H53)) -> 0.1111111111 | F56: =IF(ISERROR(1/H$54),0,IF(OR('Input-people'!$Q37=FALSE,'Input-people'!$Q$35=FALSE),0,1/H$54)) -> 0.1428571429 | G56: =IF(ISERROR(1/H$55),0,IF(OR('Input-people'!$Q37=FALSE,'Input-people'!$Q$36=FALSE),"",1/H$55)) -> 1 | H56: =IF('Input-people'!Q37=FALSE,0,1) -> 1 | I56: =IF(OR('Input-people'!$Q$37=FALSE,'Input-people'!Q38=FALSE),0,IF($D$33-$D34<0,IF($D$33-D34>=-3,1/3,IF($D$33-D34>=-5,1/5,IF($D$33-D34>=-7,1/7,1/9))),IF($D$33=D34,1,IF($D$33-D34<=3,3,IF($D$33-D34<=5,5,IF($D$33-D34<=7,7,9)))))) -> 1 | J56: =IF(OR('Input-people'!$Q$37=FALSE,'Input-people'!Q39=FALSE),0,IF($D$33-$D35<0,IF($D$33-D35>=-3,1/3,IF($D$33-D35>=-5,1/5,IF($D$33-D35>=-7,1/7,1/9))),IF($D$33=D35,1,IF($D$33-D35<=3,3,IF($D$33-D35<=5,5,IF($D$33-D35<=7,7,9)))))) -> 1 | K56: =IF(OR('Input-people'!$Q$37=FALSE,'Input-people'!Q40=FALSE),0,IF($D$33-$D36<0,IF($D$33-D36>=-3,1/3,IF($D$33-D36>=-5,1/5,IF($D$33-D36>=-7,1/7,1/9))),IF($D$33=D36,1,IF($D$33-D36<=3,3,IF($D$33-D36<=5,5,IF($D$33-D36<=7,7,9)))))) -> 1 | L56: =IF(OR('Input-people'!$Q$37=FALSE,'Input-people'!Q41=FALSE),0,IF($D$33-$D37<0,IF($D$33-D37>=-3,1/3,IF($D$33-D37>=-5,1/5,IF($D$33-D37>=-7,1/7,1/9))),IF($D$33=D37,1,IF($D$33-D37<=3,3,IF($D$33-D37<=5,5,IF($D$33-D37<=7,7,9)))))) -> 1 | M56: =IF(OR('Input-people'!$Q$37=FALSE,'Input-people'!Q42=FALSE),0,IF($D$33-$D38<0,IF($D$33-D38>=-3,1/3,IF($D$33-D38>=-5,1/5,IF($D$33-D38>=-7,1/7,1/9))),IF($D$33=D38,1,IF($D$33-D38<=3,3,IF($D$33-D38<=5,5,IF($D$33-D38<=7,7,9)))))) -> 1 | N56: =IF(OR('Input-people'!$Q$37=FALSE,'Input-people'!Q43=FALSE),0,IF($D$33-$D39<0,IF($D$33-D39>=-3,1/3,IF($D$33-D39>=-5,1/5,IF($D$33-D39>=-7,1/7,1/9))),IF($D$33=D39,1,IF($D$33-D39<=3,3,IF($D$33-D39<=5,5,IF($D$33-D39<=7,7,9)))))) -> 1 | O56: =IF(OR('Input-people'!$Q$37=FALSE,'Input-people'!Q44=FALSE),0,IF($D$33-$D40<0,IF($D$33-D40>=-3,1/3,IF($D$33-D40>=-5,1/5,IF($D$33-D40>=-7,1/7,1/9))),IF($D$33=D40,1,IF($D$33-D40<=3,3,IF($D$33-D40<=5,5,IF($D$33-D40<=7,7,9)))))) -> 1 | P56: =IF(OR('Input-people'!$Q$37=FALSE,'Input-people'!Q45=FALSE),0,IF($D$33-$D41<0,IF($D$33-D41>=-3,1/3,IF($D$33-D41>=-5,1/5,IF($D$33-D41>=-7,1/7,1/9))),IF($D$33=D41,1,IF($D$33-D41<=3,3,IF($D$33-D41<=5,5,IF($D$33-D41<=7,7,9)))))) -> 1 | Q56: =IF(OR('Input-people'!$Q$37=FALSE,'Input-people'!Q46=FALSE),0,IF($D$33-$D42<0,IF($D$33-D42>=-3,1/3,IF($D$33-D42>=-5,1/5,IF($D$33-D42>=-7,1/7,1/9))),IF($D$33=D42,1,IF($D$33-D42<=3,3,IF($D$33-D42<=5,5,IF($D$33-D42<=7,7,9)))))) -> 1 | R56: =IF(OR('Input-people'!$Q$37=FALSE,'Input-people'!Q47=FALSE),0,IF($D$33-$D43<0,IF($D$33-D43>=-3,1/3,IF($D$33-D43>=-5,1/5,IF($D$33-D43>=-7,1/7,1/9))),IF($D$33=D43,1,IF($D$33-D43<=3,3,IF($D$33-D43<=5,5,IF($D$33-D43<=7,7,9)))))) -> 1 | S56: =IF(OR('Input-people'!$Q$37=FALSE,'Input-people'!Q48=FALSE),0,IF($D$33-$D44<0,IF($D$33-D44>=-3,1/3,IF($D$33-D44>=-5,1/5,IF($D$33-D44>=-7,1/7,1/9))),IF($D$33=D44,1,IF($D$33-D44<=3,3,IF($D$33-D44<=5,5,IF($D$33-D44<=7,7,9)))))) -> 1 | T56: =IF(OR('Input-people'!$Q$37=FALSE,'Input-people'!Q49=FALSE),0,IF($D$33-$D45<0,IF($D$33-D45>=-3,1/3,IF($D$33-D45>=-5,1/5,IF($D$33-D45>=-7,1/7,1/9))),IF($D$33=D45,1,IF($D$33-D45<=3,3,IF($D$33-D45<=5,5,IF($D$33-D45<=7,7,9)))))) -> 1
B57: Number of Maintainers in a crew | D57: =IF(ISERROR(1/$I52),0,IF(OR('Input-people'!$Q38=FALSE,'Input-people'!$Q$33=FALSE),"",1/$I52)) -> 0.1111111111 | E57: =IF(ISERROR(1/$I53),0,IF(OR('Input-people'!$Q38=FALSE,'Input-people'!$Q$34=FALSE),"",1/$I53)) -> 0.1111111111 | F57: =IF(ISERROR(1/I$54),0,IF(OR('Input-people'!$Q38=FALSE,'Input-people'!$Q$35=FALSE),0,1/I$54)) -> 0.1428571429 | G57: =IF(ISERROR(1/I$55),0,IF(OR('Input-people'!$Q38=FALSE,'Input-people'!$Q$36=FALSE),"",1/I$55)) -> 1 | H57: =IF(ISERROR(1/I$56),0,IF(OR('Input-people'!$Q38=FALSE,'Input-people'!$Q$37=FALSE),"",1/I$56)) -> 1 | I57: =IF('Input-people'!Q38=FALSE,0,1) -> 1 | J57: =IF(OR('Input-people'!$Q$38=FALSE,'Input-people'!Q39=FALSE),0,IF($D$34-$D35<0,IF($D$34-D35>=-3,1/3,IF($D$34-D35>=-5,1/5,IF($D$34-D35>=-7,1/7,1/9))),IF($D$34=D35,1,IF($D$34-D35<=3,3,IF($D$34-D35<=5,5,IF($D$34-D35<=7,7,9)))))) -> 1 | K57: =IF(OR('Input-people'!$Q$38=FALSE,'Input-people'!Q40=FALSE),0,IF($D$34-$D36<0,IF($D$34-D36>=-3,1/3,IF($D$34-D36>=-5,1/5,IF($D$34-D36>=-7,1/7,1/9))),IF($D$34=D36,1,IF($D$34-D36<=3,3,IF($D$34-D36<=5,5,IF($D$34-D36<=7,7,9)))))) -> 1 | L57: =IF(OR('Input-people'!$Q$38=FALSE,'Input-people'!Q41=FALSE),0,IF($D$34-$D37<0,IF($D$34-D37>=-3,1/3,IF($D$34-D37>=-5,1/5,IF($D$34-D37>=-7,1/7,1/9))),IF($D$34=D37,1,IF($D$34-D37<=3,3,IF($D$34-D37<=5,5,IF($D$34-D37<=7,7,9)))))) -> 1 | M57: =IF(OR('Input-people'!$Q$38=FALSE,'Input-people'!Q42=FALSE),0,IF($D$34-$D38<0,IF($D$34-D38>=-3,1/3,IF($D$34-D38>=-5,1/5,IF($D$34-D38>=-7,1/7,1/9))),IF($D$34=D38,1,IF($D$34-D38<=3,3,IF($D$34-D38<=5,5,IF($D$34-D38<=7,7,9)))))) -> 1 | N57: =IF(OR('Input-people'!$Q$38=FALSE,'Input-people'!Q43=FALSE),0,IF($D$34-$D39<0,IF($D$34-D39>=-3,1/3,IF($D$34-D39>=-5,1/5,IF($D$34-D39>=-7,1/7,1/9))),IF($D$34=D39,1,IF($D$34-D39<=3,3,IF($D$34-D39<=5,5,IF($D$34-D39<=7,7,9)))))) -> 1 | O57: =IF(OR('Input-people'!$Q$38=FALSE,'Input-people'!Q44=FALSE),0,IF($D$34-$D40<0,IF($D$34-D40>=-3,1/3,IF($D$34-D40>=-5,1/5,IF($D$34-D40>=-7,1/7,1/9))),IF($D$34=D40,1,IF($D$34-D40<=3,3,IF($D$34-D40<=5,5,IF($D$34-D40<=7,7,9)))))) -> 1 | P57: =IF(OR('Input-people'!$Q$38=FALSE,'Input-people'!Q45=FALSE),0,IF($D$34-$D41<0,IF($D$34-D41>=-3,1/3,IF($D$34-D41>=-5,1/5,IF($D$34-D41>=-7,1/7,1/9))),IF($D$34=D41,1,IF($D$34-D41<=3,3,IF($D$34-D41<=5,5,IF($D$34-D41<=7,7,9)))))) -> 1 | Q57: =IF(OR('Input-people'!$Q$38=FALSE,'Input-people'!Q46=FALSE),0,IF($D$34-$D42<0,IF($D$34-D42>=-3,1/3,IF($D$34-D42>=-5,1/5,IF($D$34-D42>=-7,1/7,1/9))),IF($D$34=D42,1,IF($D$34-D42<=3,3,IF($D$34-D42<=5,5,IF($D$34-D42<=7,7,9)))))) -> 1 | R57: =IF(OR('Input-people'!$Q$38=FALSE,'Input-people'!Q47=FALSE),0,IF($D$34-$D43<0,IF($D$34-D43>=-3,1/3,IF($D$34-D43>=-5,1/5,IF($D$34-D43>=-7,1/7,1/9))),IF($D$34=D43,1,IF($D$34-D43<=3,3,IF($D$34-D43<=5,5,IF($D$34-D43<=7,7,9)))))) -> 1 | S57: =IF(OR('Input-people'!$Q$38=FALSE,'Input-people'!Q48=FALSE),0,IF($D$34-$D44<0,IF($D$34-D44>=-3,1/3,IF($D$34-D44>=-5,1/5,IF($D$34-D44>=-7,1/7,1/9))),IF($D$34=D44,1,IF($D$34-D44<=3,3,IF($D$34-D44<=5,5,IF($D$34-D44<=7,7,9)))))) -> 1 | T57: =IF(OR('Input-people'!$Q$38=FALSE,'Input-people'!Q49=FALSE),0,IF($D$34-$D45<0,IF($D$34-D45>=-3,1/3,IF($D$34-D45>=-5,1/5,IF($D$34-D45>=-7,1/7,1/9))),IF($D$34=D45,1,IF($D$34-D45<=3,3,IF($D$34-D45<=5,5,IF($D$34-D45<=7,7,9)))))) -> 1
B58: Required EADs | D58: =IF(ISERROR(1/$J52),0,IF(OR('Input-people'!$Q39=FALSE,'Input-people'!$Q$33=FALSE),"",1/$J52)) -> 0.1111111111 | E58: =IF(ISERROR(1/$J53),0,IF(OR('Input-people'!$Q39=FALSE,'Input-people'!$Q$34=FALSE),"",1/$J53)) -> 0.1111111111 | F58: =IF(ISERROR(1/J$54),0,IF(OR('Input-people'!$Q39=FALSE,'Input-people'!$Q$35=FALSE),0,1/J$54)) -> 0.1428571429 | G58: =IF(ISERROR(1/J$55),0,IF(OR('Input-people'!$Q39=FALSE,'Input-people'!$Q$36=FALSE),"",1/J$55)) -> 1 | H58: =IF(ISERROR(1/J$56),0,IF(OR('Input-people'!$Q39=FALSE,'Input-people'!$Q$37=FALSE),"",1/J$56)) -> 1 | I58: =IF(ISERROR(1/J$57),0,IF(OR('Input-people'!$Q39=FALSE,'Input-people'!$Q$38=FALSE),"",1/J$57)) -> 1 | J58: =IF('Input-people'!Q39=FALSE,0,1) -> 1 | K58: =IF(OR('Input-people'!$Q$39=FALSE,'Input-people'!Q40=FALSE),0,IF($D$35-$D36<0,IF($D$35-D36>=-3,1/3,IF($D$35-D36>=-5,1/5,IF($D$35-D36>=-7,1/7,1/9))),IF($D$35=D36,1,IF($D$35-D36<=3,3,IF($D$35-D36<=5,5,IF($D$35-D36<=7,7,9)))))) -> 1 | L58: =IF(OR('Input-people'!$Q$39=FALSE,'Input-people'!Q41=FALSE),0,IF($D$35-$D37<0,IF($D$35-D37>=-3,1/3,IF($D$35-D37>=-5,1/5,IF($D$35-D37>=-7,1/7,1/9))),IF($D$35=D37,1,IF($D$35-D37<=3,3,IF($D$35-D37<=5,5,IF($D$35-D37<=7,7,9)))))) -> 1 | M58: =IF(OR('Input-people'!$Q$39=FALSE,'Input-people'!Q42=FALSE),0,IF($D$35-$D38<0,IF($D$35-D38>=-3,1/3,IF($D$35-D38>=-5,1/5,IF($D$35-D38>=-7,1/7,1/9))),IF($D$35=D38,1,IF($D$35-D38<=3,3,IF($D$35-D38<=5,5,IF($D$35-D38<=7,7,9)))))) -> 1 | N58: =IF(OR('Input-people'!$Q$39=FALSE,'Input-people'!Q43=FALSE),0,IF($D$35-$D39<0,IF($D$35-D39>=-3,1/3,IF($D$35-D39>=-5,1/5,IF($D$35-D39>=-7,1/7,1/9))),IF($D$35=D39,1,IF($D$35-D39<=3,3,IF($D$35-D39<=5,5,IF($D$35-D39<=7,7,9)))))) -> 1 | O58: =IF(OR('Input-people'!$Q$39=FALSE,'Input-people'!Q44=FALSE),0,IF($D$35-$D40<0,IF($D$35-D40>=-3,1/3,IF($D$35-D40>=-5,1/5,IF($D$35-D40>=-7,1/7,1/9))),IF($D$35=D40,1,IF($D$35-D40<=3,3,IF($D$35-D40<=5,5,IF($D$35-D40<=7,7,9)))))) -> 1 | P58: =IF(OR('Input-people'!$Q$39=FALSE,'Input-people'!Q45=FALSE),0,IF($D$35-$D41<0,IF($D$35-D41>=-3,1/3,IF($D$35-D41>=-5,1/5,IF($D$35-D41>=-7,1/7,1/9))),IF($D$35=D41,1,IF($D$35-D41<=3,3,IF($D$35-D41<=5,5,IF($D$35-D41<=7,7,9)))))) -> 1 | Q58: =IF(OR('Input-people'!$Q$39=FALSE,'Input-people'!Q46=FALSE),0,IF($D$35-$D42<0,IF($D$35-D42>=-3,1/3,IF($D$35-D42>=-5,1/5,IF($D$35-D42>=-7,1/7,1/9))),IF($D$35=D42,1,IF($D$35-D42<=3,3,IF($D$35-D42<=5,5,IF($D$35-D42<=7,7,9)))))) -> 1 | R58: =IF(OR('Input-people'!$Q$39=FALSE,'Input-people'!Q47=FALSE),0,IF($D$35-$D43<0,IF($D$35-D43>=-3,1/3,IF($D$35-D43>=-5,1/5,IF($D$35-D43>=-7,1/7,1/9))),IF($D$35=D43,1,IF($D$35-D43<=3,3,IF($D$35-D43<=5,5,IF($D$35-D45<=7,7,9)))))) -> 1 | S58: =IF(OR('Input-people'!$Q$39=FALSE,'Input-people'!Q48=FALSE),0,IF($D$35-$D44<0,IF($D$35-D44>=-3,1/3,IF($D$35-D44>=-5,1/5,IF($D$35-D44>=-7,1/7,1/9))),IF($D$35=D44,1,IF($D$35-D44<=3,3,IF($D$35-D44<=5,5,IF($D$35-D44<=7,7,9)))))) -> 1 | T58: =IF(OR('Input-people'!$Q$39=FALSE,'Input-people'!Q49=FALSE),0,IF($D$35-$D45<0,IF($D$35-D45>=-3,1/3,IF($D$35-D45>=-5,1/5,IF($D$35-D45>=-7,1/7,1/9))),IF($D$35=D45,1,IF($D$35-D45<=3,3,IF($D$35-D45<=5,5,IF($D$35-D45<=7,7,9)))))) -> 1
B59: Time Period of Lever | D59: =IF(ISERROR(1/$K52),0,IF(OR('Input-people'!$Q40=FALSE,'Input-people'!$Q$33=FALSE),"",1/$K52)) -> 0.1111111111 | E59: =IF(ISERROR(1/$K53),0,IF(OR('Input-people'!$Q40=FALSE,'Input-people'!$Q$34=FALSE),"",1/$K53)) -> 0.1111111111 | F59: =IF(ISERROR(1/K$54),0,IF(OR('Input-people'!$Q40=FALSE,'Input-people'!$Q$35=FALSE),0,1/K$54)) -> 0.1428571429 | G59: =IF(ISERROR(1/K$55),0,IF(OR('Input-people'!$Q40=FALSE,'Input-people'!$Q$36=FALSE),"",1/K$55)) -> 1 | H59: =IF(ISERROR(1/K$56),0,IF(OR('Input-people'!$Q40=FALSE,'Input-people'!$Q$37=FALSE),"",1/K$56)) -> 1 | I59: =IF(ISERROR(1/K$57),0,IF(OR('Input-people'!$Q40=FALSE,'Input-people'!$Q$38=FALSE),"",1/K$57)) -> 1 | J59: =IF(ISERROR(1/K$58),0,IF(OR('Input-people'!$Q40=FALSE,'Input-people'!$Q$39=FALSE),"",1/K$58)) -> 1 | K59: =IF('Input-people'!Q40=FALSE,0,1) -> 1 | L59: =IF(OR('Input-people'!$Q$40=FALSE,'Input-people'!Q41=FALSE),0,IF($D$36-$D37<0,IF($D$36-D37>=-3,1/3,IF($D$36-D37>=-5,1/5,IF($D$36-D37>=-7,1/7,1/9))),IF($D$36=D37,1,IF($D$36-D37<=3,3,IF($D$36-D37<=5,5,IF($D$36-D37<=7,7,9)))))) -> 1 | M59: =IF(OR('Input-people'!$Q$40=FALSE,'Input-people'!Q42=FALSE),0,IF($D$36-$D38<0,IF($D$36-D38>=-3,1/3,IF($D$36-D38>=-5,1/5,IF($D$36-D38>=-7,1/7,1/9))),IF($D$36=D38,1,IF($D$36-D38<=3,3,IF($D$36-D38<=5,5,IF($D$36-D38<=7,7,9)))))) -> 1 | N59: =IF(OR('Input-people'!$Q$40=FALSE,'Input-people'!Q43=FALSE),0,IF($D$36-$D39<0,IF($D$36-D39>=-3,1/3,IF($D$36-D39>=-5,1/5,IF($D$36-D39>=-7,1/7,1/9))),IF($D$36=D39,1,IF($D$36-D39<=3,3,IF($D$36-D39<=5,5,IF($D$36-D39<=7,7,9)))))) -> 1 | O59: =IF(OR('Input-people'!$Q$40=FALSE,'Input-people'!Q44=FALSE),0,IF($D$36-$D40<0,IF($D$36-D40>=-3,1/3,IF($D$36-D40>=-5,1/5,IF($D$36-D40>=-7,1/7,1/9))),IF($D$36=D40,1,IF($D$36-D40<=3,3,IF($D$36-D40<=5,5,IF($D$36-D40<=7,7,9)))))) -> 1 | P59: =IF(OR('Input-people'!$Q$40=FALSE,'Input-people'!Q45=FALSE),0,IF($D$36-$D41<0,IF($D$36-D41>=-3,1/3,IF($D$36-D41>=-5,1/5,IF($D$36-D41>=-7,1/7,1/9))),IF($D$36=D41,1,IF($D$36-D41<=3,3,IF($D$36-D41<=5,5,IF($D$36-D41<=7,7,9)))))) -> 1 | Q59: =IF(OR('Input-people'!$Q$40=FALSE,'Input-people'!Q46=FALSE),0,IF($D$36-$D42<0,IF($D$36-D42>=-3,1/3,IF($D$36-D42>=-5,1/5,IF($D$36-D42>=-7,1/7,1/9))),IF($D$36=D42,1,IF($D$36-D42<=3,3,IF($D$36-D42<=5,5,IF($D$36-D42<=7,7,9)))))) -> 1 | R59: =IF(OR('Input-people'!$Q$40=FALSE,'Input-people'!Q47=FALSE),0,IF($D$36-$D43<0,IF($D$36-D43>=-3,1/3,IF($D$36-D43>=-5,1/5,IF($D$36-D43>=-7,1/7,1/9))),IF($D$36=D43,1,IF($D$36-D43<=3,3,IF($D$36-D43<=5,5,IF($D$36-D43<=7,7,9)))))) -> 1 | S59: =IF(OR('Input-people'!$Q$40=FALSE,'Input-people'!Q48=FALSE),0,IF($D$36-$D44<0,IF($D$36-D44>=-3,1/3,IF($D$36-D44>=-5,1/5,IF($D$36-D44>=-7,1/7,1/9))),IF($D$36=D44,1,IF($D$36-D44<=3,3,IF($D$36-D44<=5,5,IF($D$36-D44<=7,7,9)))))) -> 1 | T59: =IF(OR('Input-people'!$Q$40=FALSE,'Input-people'!Q49=FALSE),0,IF($D$36-$D45<0,IF($D$36-D45>=-3,1/3,IF($D$36-D45>=-5,1/5,IF($D$36-D45>=-7,1/7,1/9))),IF($D$36=D45,1,IF($D$36-D45<=3,3,IF($D$36-D45<=5,5,IF($D$36-D45<=7,7,9)))))) -> 1
B60: Total Number of Equipment Types Operating (at this location) [per location] | D60: =IF(ISERROR(1/$L52),0,IF(OR('Input-people'!$Q41=FALSE,'Input-people'!$Q$33=FALSE),"",1/$L52)) -> 0.1111111111 | E60: =IF(ISERROR(1/$L53),0,IF(OR('Input-people'!$Q41=FALSE,'Input-people'!$Q$34=FALSE),"",1/$L53)) -> 0.1111111111 | F60: =IF(ISERROR(1/L$54),0,IF(OR('Input-people'!$Q41=FALSE,'Input-people'!$Q$35=FALSE),0,1/L$54)) -> 0.1428571429 | G60: =IF(ISERROR(1/L$55),0,IF(OR('Input-people'!$Q41=FALSE,'Input-people'!$Q$36=FALSE),"",1/L$55)) -> 1 | H60: =IF(ISERROR(1/L$56),0,IF(OR('Input-people'!$Q41=FALSE,'Input-people'!$Q$37=FALSE),"",1/L$56)) -> 1 | I60: =IF(ISERROR(1/L$57),0,IF(OR('Input-people'!$Q41=FALSE,'Input-people'!$Q$38=FALSE),"",1/L57)) -> 1 | J60: =IF(ISERROR(1/L$58),0,IF(OR('Input-people'!$Q41=FALSE,'Input-people'!$Q$39=FALSE),"",1/L$58)) -> 1 | K60: =IF(ISERROR(1/L$59),0,IF(OR('Input-people'!$Q41=FALSE,'Input-people'!$Q$40=FALSE),"",1/L$59)) -> 1 | L60: =IF('Input-people'!Q41=FALSE,0,1) -> 1 | M60: =IF(OR('Input-people'!$Q$41=FALSE,'Input-people'!Q42=FALSE),0,IF($D$37-$D38<0,IF($D$37-D38>=-3,1/3,IF($D$37-D38>=-5,1/5,IF($D$37-D38>=-7,1/7,1/9))),IF($D$37=D38,1,IF($D$37-D38<=3,3,IF($D$37-D38<=5,5,IF($D$37-D38<=7,7,9)))))) -> 1 | N60: =IF(OR('Input-people'!$Q$41=FALSE,'Input-people'!Q43=FALSE),0,IF($D$37-$D39<0,IF($D$37-D39>=-3,1/3,IF($D$37-D39>=-5,1/5,IF($D$37-D39>=-7,1/7,1/9))),IF($D$37=D39,1,IF($D$37-D39<=3,3,IF($D$37-D39<=5,5,IF($D$37-D39<=7,7,9)))))) -> 1 | O60: =IF(OR('Input-people'!$Q$41=FALSE,'Input-people'!Q44=FALSE),0,IF($D$37-$D40<0,IF($D$37-D40>=-3,1/3,IF($D$37-D40>=-5,1/5,IF($D$37-D40>=-7,1/7,1/9))),IF($D$37=D40,1,IF($D$37-D40<=3,3,IF($D$37-D40<=5,5,IF($D$37-D40<=7,7,9)))))) -> 1 | P60: =IF(OR('Input-people'!$Q$41=FALSE,'Input-people'!Q45=FALSE),0,IF($D$37-$D41<0,IF($D$37-D41>=-3,1/3,IF($D$37-D41>=-5,1/5,IF($D$37-D41>=-7,1/7,1/9))),IF($D$37=D41,1,IF($D$37-D41<=3,3,IF($D$37-D41<=5,5,IF($D$37-D41<=7,7,9)))))) -> 1 | Q60: =IF(OR('Input-people'!$Q$41=FALSE,'Input-people'!Q46=FALSE),0,IF($D$37-$D42<0,IF($D$37-D42>=-3,1/3,IF($D$37-D42>=-5,1/5,IF($D$37-D42>=-7,1/7,1/9))),IF($D$37=D42,1,IF($D$37-D42<=3,3,IF($D$37-D42<=5,5,IF($D$37-D42<=7,7,9)))))) -> 1 | R60: =IF(OR('Input-people'!$Q$41=FALSE,'Input-people'!Q47=FALSE),0,IF($D$37-$D43<0,IF($D$37-D43>=-3,1/3,IF($D$37-D43>=-5,1/5,IF($D$37-D43>=-7,1/7,1/9))),IF($D$37=D43,1,IF($D$37-D43<=3,3,IF($D$37-D43<=5,5,IF($D$37-D43<=7,7,9)))))) -> 1 | S60: =IF(OR('Input-people'!$Q$41=FALSE,'Input-people'!Q48=FALSE),0,IF($D$37-$D44<0,IF($D$37-D44>=-3,1/3,IF($D$37-D44>=-5,1/5,IF($D$37-D44>=-7,1/7,1/9))),IF($D$37=D44,1,IF($D$37-D44<=3,3,IF($D$37-D44<=5,5,IF($D$37-D44<=7,7,9)))))) -> 1 | T60: =IF(OR('Input-people'!$Q$41=FALSE,'Input-people'!Q49=FALSE),0,IF($D$37-$D45<0,IF($D$37-D45>=-3,1/3,IF($D$37-D45>=-5,1/5,IF($D$37-D45>=-7,1/7,1/9))),IF($D$37=D45,1,IF($D$37-D45<=3,3,IF($D$37-D45<=5,5,IF($D$37-D45<=7,7,9)))))) -> 1
B61: Additional People required at this location [to cover pre-ops training, leave, etc] | D61: =IF(ISERROR(1/$M52),0,IF(OR('Input-people'!$Q42=FALSE,'Input-people'!$Q$33=FALSE),"",1/$M52)) -> 0.1111111111 | E61: =IF(ISERROR(1/$M53),0,IF(OR('Input-people'!$Q42=FALSE,'Input-people'!$Q$34=FALSE),"",1/$M53)) -> 0.1111111111 | F61: =IF(ISERROR(1/M$54),0,IF(OR('Input-people'!$Q42=FALSE,'Input-people'!$Q$35=FALSE),0,1/M$54)) -> 0.1428571429 | G61: =IF(ISERROR(1/M$55),0,IF(OR('Input-people'!$Q42=FALSE,'Input-people'!$Q$36=FALSE),"",1/M$55)) -> 1 | H61: =IF(ISERROR(1/M$56),0,IF(OR('Input-people'!$Q42=FALSE,'Input-people'!$Q$37=FALSE),"",1/M$56)) -> 1 | I61: =IF(ISERROR(1/M$57),0,IF(OR('Input-people'!$Q42=FALSE,'Input-people'!$Q$38=FALSE),"",1/M$57)) -> 1 | J61: =IF(ISERROR(1/M$58),0,IF(OR('Input-people'!$Q42=FALSE,'Input-people'!$Q$39=FALSE),"",1/M$58)) -> 1 | K61: =IF(ISERROR(1/M$59),0,IF(OR('Input-people'!$Q42=FALSE,'Input-people'!$Q$40=FALSE),"",1/M$59)) -> 1 | L61: =IF(ISERROR(1/M$60),0,IF(OR('Input-people'!$Q42=FALSE,'Input-people'!$Q$41=FALSE),"",1/M$60)) -> 1 | M61: =IF('Input-people'!Q42=FALSE,0,1) -> 1 | N61: =IF(OR('Input-people'!$Q$42=FALSE,'Input-people'!Q43=FALSE),0,IF($D$38-$D39<0,IF($D$38-D39>=-3,1/3,IF($D$38-D39>=-5,1/5,IF($D$38-D39>=-7,1/7,1/9))),IF($D$38=D39,1,IF($D$38-D39<=3,3,IF($D$38-D39<=5,5,IF($D$38-D39<=7,7,9)))))) -> 1 | O61: =IF(OR('Input-people'!$Q$42=FALSE,'Input-people'!Q44=FALSE),0,IF($D$38-$D40<0,IF($D$38-D40>=-3,1/3,IF($D$38-D40>=-5,1/5,IF($D$38-D40>=-7,1/7,1/9))),IF($D$38=D40,1,IF($D$38-D40<=3,3,IF($D$38-D40<=5,5,IF($D$38-D40<=7,7,9)))))) -> 1 | P61: =IF(OR('Input-people'!$Q$42=FALSE,'Input-people'!Q45=FALSE),0,IF($D$38-$D41<0,IF($D$38-D41>=-3,1/3,IF($D$38-D41>=-5,1/5,IF($D$38-D41>=-7,1/7,1/9))),IF($D$38=D41,1,IF($D$38-D41<=3,3,IF($D$38-D41<=5,5,IF($D$38-D41<=7,7,9)))))) -> 1 | Q61: =IF(OR('Input-people'!$Q$42=FALSE,'Input-people'!Q46=FALSE),0,IF($D$38-$D42<0,IF($D$38-D42>=-3,1/3,IF($D$38-D42>=-5,1/5,IF($D$38-D42>=-7,1/7,1/9))),IF($D$38=D42,1,IF($D$38-D42<=3,3,IF($D$38-D42<=5,5,IF($D$38-D42<=7,7,9)))))) -> 1 | R61: =IF(OR('Input-people'!$Q$42=FALSE,'Input-people'!Q47=FALSE),0,IF($D$38-$D43<0,IF($D$38-D43>=-3,1/3,IF($D$38-D43>=-5,1/5,IF($D$38-D43>=-7,1/7,1/9))),IF($D$38=D43,1,IF($D$38-D43<=3,3,IF($D$38-D43<=5,5,IF($D$38-D43<=7,7,9)))))) -> 1 | S61: =IF(OR('Input-people'!$Q$42=FALSE,'Input-people'!Q48=FALSE),0,IF($D$38-$D44<0,IF($D$38-D44>=-3,1/3,IF($D$38-D44>=-5,1/5,IF($D$38-D44>=-7,1/7,1/9))),IF($D$38=D44,1,IF($D$38-D44<=3,3,IF($D$38-D44<=5,5,IF($D$38-D44<=7,7,9)))))) -> 1 | T61: =IF(OR('Input-people'!$Q$42=FALSE,'Input-people'!Q49=FALSE),0,IF($D$38-$D45<0,IF($D$38-D45>=-3,1/3,IF($D$38-D45>=-5,1/5,IF($D$38-D45>=-7,1/7,1/9))),IF($D$38=D45,1,IF($D$38-D45<=3,3,IF($D$38-D45<=5,5,IF($D$38-D45<=7,7,9)))))) -> 1
B62: Average Travelling Time to this Location (in hours) [per location] | D62: =IF(ISERROR(1/$N52),0,IF(OR('Input-people'!$Q43=FALSE,'Input-people'!$Q$33=FALSE),"",1/$N52)) -> 0.1111111111 | E62: =IF(ISERROR(1/$N53),0,IF(OR('Input-people'!$Q43=FALSE,'Input-people'!$Q$34=FALSE),"",1/$N53)) -> 0.1111111111 | F62: =IF(ISERROR(1/N$54),0,IF(OR('Input-people'!$Q43=FALSE,'Input-people'!$Q$35=FALSE),0,1/N$54)) -> 0.1428571429 | G62: =IF(ISERROR(1/N$55),0,IF(OR('Input-people'!$Q43=FALSE,'Input-people'!$Q$36=FALSE),"",1/N$55)) -> 1 | H62: =IF(ISERROR(1/N$56),0,IF(OR('Input-people'!$Q43=FALSE,'Input-people'!$Q$37=FALSE),"",1/N$56)) -> 1 | I62: =IF(ISERROR(1/N$57),0,IF(OR('Input-people'!$Q43=FALSE,'Input-people'!$Q$38=FALSE),"",1/N$57)) -> 1 | J62: =IF(ISERROR(1/N$58),0,IF(OR('Input-people'!$Q43=FALSE,'Input-people'!$Q$39=FALSE),"",1/N$58)) -> 1 | K62: =IF(ISERROR(1/N$59),0,IF(OR('Input-people'!$Q43=FALSE,'Input-people'!$Q$40=FALSE),"",1/N$59)) -> 1 | L62: =IF(ISERROR(1/N$60),0,IF(OR('Input-people'!$Q43=FALSE,'Input-people'!$Q$41=FALSE),"",1/N$60)) -> 1 | M62: =IF(ISERROR(1/N$61),0,IF(OR('Input-people'!$Q43=FALSE,'Input-people'!$Q$42=FALSE),"",1/N$61)) -> 1 | N62: =IF('Input-people'!Q43=FALSE,0,1) -> 1 | O62: =IF(OR('Input-people'!$Q$43=FALSE,'Input-people'!Q44=FALSE),0,IF($D$39-$D40<0,IF($D$39-D40>=-3,1/3,IF($D$39-D40>=-5,1/5,IF($D$39-D40>=-7,1/7,1/9))),IF($D$39=D40,1,IF($D$39-D40<=3,3,IF($D$39-D40<=5,5,IF($D$39-D40<=7,7,9)))))) -> 1 | P62: =IF(OR('Input-people'!$Q$43=FALSE,'Input-people'!Q45=FALSE),0,IF($D$39-$D41<0,IF($D$39-D41>=-3,1/3,IF($D$39-D41>=-5,1/5,IF($D$39-D41>=-7,1/7,1/9))),IF($D$39=D41,1,IF($D$39-D41<=3,3,IF($D$39-D41<=5,5,IF($D$39-D41<=7,7,9)))))) -> 1 | Q62: =IF(OR('Input-people'!$Q$43=FALSE,'Input-people'!Q46=FALSE),0,IF($D$39-$D42<0,IF($D$39-D42>=-3,1/3,IF($D$39-D42>=-5,1/5,IF($D$39-D42>=-7,1/7,1/9))),IF($D$39=D42,1,IF($D$39-D42<=3,3,IF($D$39-D42<=5,5,IF($D$39-D42<=7,7,9)))))) -> 1 | R62: =IF(OR('Input-people'!$Q$43=FALSE,'Input-people'!Q47=FALSE),0,IF($D$39-$D43<0,IF($D$39-D43>=-3,1/3,IF($D$39-D43>=-5,1/5,IF($D$39-D43>=-7,1/7,1/9))),IF($D$39=D43,1,IF($D$39-D43<=3,3,IF($D$39-D43<=5,5,IF($D$39-D43<=7,7,9)))))) -> 1 | S62: =IF(OR('Input-people'!$Q$43=FALSE,'Input-people'!Q48=FALSE),0,IF($D$39-$D44<0,IF($D$39-D44>=-3,1/3,IF($D$39-D44>=-5,1/5,IF($D$39-D44>=-7,1/7,1/9))),IF($D$39=D44,1,IF($D$39-D44<=3,3,IF($D$39-D44<=5,5,IF($D$39-D44<=7,7,9)))))) -> 1 | T62: =IF(OR('Input-people'!$Q$43=FALSE,'Input-people'!Q49=FALSE),0,IF($D$39-$D45<0,IF($D$39-D45>=-3,1/3,IF($D$39-D45>=-5,1/5,IF($D$39-D45>=-7,1/7,1/9))),IF($D$39=D45,1,IF($D$39-D45<=3,3,IF($D$39-D45<=5,5,IF($D$39-D45<=7,7,9)))))) -> 1
B63: Number of Equipment Type instances at this location | D63: =IF(ISERROR(1/$O52),0,IF(OR('Input-people'!$Q44=FALSE,'Input-people'!$Q$33=FALSE),"",1/$O52)) -> 0.1111111111 | E63: =IF(ISERROR(1/$O53),0,IF(OR('Input-people'!$Q44=FALSE,'Input-people'!$Q$34=FALSE),"",1/$O53)) -> 0.1111111111 | F63: =IF(ISERROR(1/O$54),0,IF(OR('Input-people'!$Q44=FALSE,'Input-people'!$Q$35=FALSE),0,1/O$54)) -> 0.1428571429 | G63: =IF(ISERROR(1/O$55),0,IF(OR('Input-people'!$Q44=FALSE,'Input-people'!$Q$36=FALSE),"",1/O$55)) -> 1 | H63: =IF(ISERROR(1/O$56),0,IF(OR('Input-people'!$Q44=FALSE,'Input-people'!$Q$37=FALSE),"",1/O$56)) -> 1 | I63: =IF(ISERROR(1/O$57),0,IF(OR('Input-people'!$Q44=FALSE,'Input-people'!$Q$38=FALSE),"",1/O$57)) -> 1 | J63: =IF(ISERROR(1/O$58),0,IF(OR('Input-people'!$Q44=FALSE,'Input-people'!$Q$39=FALSE),"",1/O$58)) -> 1 | K63: =IF(ISERROR(1/O$59),0,IF(OR('Input-people'!$Q44=FALSE,'Input-people'!$Q$40=FALSE),"",1/O$59)) -> 1 | L63: =IF(ISERROR(1/O$60),0,IF(OR('Input-people'!$Q44=FALSE,'Input-people'!$Q$41=FALSE),"",1/O$60)) -> 1 | M63: =IF(ISERROR(1/O$61),0,IF(OR('Input-people'!$Q44=FALSE,'Input-people'!$Q$42=FALSE),"",1/O$61)) -> 1 | N63: =IF(ISERROR(1/O$62),0,IF(OR('Input-people'!$Q44=FALSE,'Input-people'!$Q$43=FALSE),"",1/O$62)) -> 1 | O63: =IF('Input-people'!Q44=FALSE,0,1) -> 1 | P63: =IF(OR('Input-people'!$Q$44=FALSE,'Input-people'!Q45=FALSE),0,IF($D$40-$D41<0,IF($D$40-D41>=-3,1/3,IF($D$40-D41>=-5,1/5,IF($D$40-D41>=-7,1/7,1/9))),IF($D$40=D41,1,IF($D$40-D41<=3,3,IF($D$40-D41<=5,5,IF($D$40-D41<=7,7,9)))))) -> 1 | Q63: =IF(OR('Input-people'!$Q$44=FALSE,'Input-people'!Q46=FALSE),0,IF($D$40-$D42<0,IF($D$40-D42>=-3,1/3,IF($D$40-D42>=-5,1/5,IF($D$40-D42>=-7,1/7,1/9))),IF($D$40=D42,1,IF($D$40-D42<=3,3,IF($D$40-D42<=5,5,IF($D$40-D42<=7,7,9)))))) -> 1 | R63: =IF(OR('Input-people'!$Q$44=FALSE,'Input-people'!Q47=FALSE),0,IF($D$40-$D43<0,IF($D$40-D43>=-3,1/3,IF($D$40-D43>=-5,1/5,IF($D$40-D43>=-7,1/7,1/9))),IF($D$40=D43,1,IF($D$40-D43<=3,3,IF($D$40-D43<=5,5,IF($D$40-D43<=7,7,9)))))) -> 1 | S63: =IF(OR('Input-people'!$Q$44=FALSE,'Input-people'!Q48=FALSE),0,IF($D$40-$D44<0,IF($D$40-D44>=-3,1/3,IF($D$40-D44>=-5,1/5,IF($D$40-D44>=-7,1/7,1/9))),IF($D$40=D44,1,IF($D$40-D44<=3,3,IF($D$40-D44<=5,5,IF($D$40-D44<=7,7,9)))))) -> 1 | T63: =IF(OR('Input-people'!$Q$44=FALSE,'Input-people'!Q49=FALSE),0,IF($D$40-$D45<0,IF($D$40-D45>=-3,1/3,IF($D$40-D45>=-5,1/5,IF($D$40-D45>=-7,1/7,1/9))),IF($D$40=D45,1,IF($D$40-D45<=3,3,IF($D$40-D45<=5,5,IF($D$40-D45<=7,7,9)))))) -> 1
B64: Total Number of Equipment Types Operating [at all locations] | D64: =IF(ISERROR(1/$P52),0,IF(OR('Input-people'!$Q45=FALSE,'Input-people'!$Q$33=FALSE),"",1/$P52)) -> 0.1111111111 | E64: =IF(ISERROR(1/$P53),0,IF(OR('Input-people'!$Q45=FALSE,'Input-people'!$Q$34=FALSE),"",1/$P53)) -> 0.1111111111 | F64: =IF(ISERROR(1/P$54),0,IF(OR('Input-people'!$Q45=FALSE,'Input-people'!$Q$35=FALSE),0,1/P$54)) -> 0.1428571429 | G64: =IF(ISERROR(1/P$55),0,IF(OR('Input-people'!$Q45=FALSE,'Input-people'!$Q$36=FALSE),"",1/P$55)) -> 1 | H64: =IF(ISERROR(1/P$56),0,IF(OR('Input-people'!$Q45=FALSE,'Input-people'!$Q$37=FALSE),"",1/P$56)) -> 1 | I64: =IF(ISERROR(1/P$57),0,IF(OR('Input-people'!$Q45=FALSE,'Input-people'!$Q$38=FALSE),"",1/P$57)) -> 1 | J64: =IF(ISERROR(1/P$58),0,IF(OR('Input-people'!$Q45=FALSE,'Input-people'!$Q$39=FALSE),"",1/P$58)) -> 1 | K64: =IF(ISERROR(1/P$59),0,IF(OR('Input-people'!$Q45=FALSE,'Input-people'!$Q$40=FALSE),"",1/P$59)) -> 1 | L64: =IF(ISERROR(1/P$60),0,IF(OR('Input-people'!$Q45=FALSE,'Input-people'!$Q$41=FALSE),"",1/P$60)) -> 1 | M64: =IF(ISERROR(1/P$61),0,IF(OR('Input-people'!$Q45=FALSE,'Input-people'!$Q$42=FALSE),"",1/P$61)) -> 1 | N64: =IF(ISERROR(1/P$62),0,IF(OR('Input-people'!$Q45=FALSE,'Input-people'!$Q$43=FALSE),"",1/P$62)) -> 1 | O64: =IF(ISERROR(1/P$63),0,IF(OR('Input-people'!$Q45=FALSE,'Input-people'!$Q$44=FALSE),"",1/P$63)) -> 1 | P64: =IF('Input-people'!Q45=FALSE,0,1) -> 1 | Q64: =IF(OR('Input-people'!$Q$45=FALSE,'Input-people'!Q46=FALSE),0,IF($D$41-$D42<0,IF($D$41-D42>=-3,1/3,IF($D$41-D42>=-5,1/5,IF($D$41-D42>=-7,1/7,1/9))),IF($D$41=D42,1,IF($D$41-D42<=3,3,IF($D$41-D42<=5,5,IF($D$41-D42<=7,7,9)))))) -> 1 | R64: =IF(OR('Input-people'!$Q$45=FALSE,'Input-people'!Q47=FALSE),0,IF($D$41-$D43<0,IF($D$41-D43>=-3,1/3,IF($D$41-D43>=-5,1/5,IF($D$41-D43>=-7,1/7,1/9))),IF($D$41=D43,1,IF($D$41-D43<=3,3,IF($D$41-D43<=5,5,IF($D$41-D43<=7,7,9)))))) -> 1 | S64: =IF(OR('Input-people'!$Q$45=FALSE,'Input-people'!Q48=FALSE),0,IF($D$41-$D44<0,IF($D$41-D44>=-3,1/3,IF($D$41-D44>=-5,1/5,IF($D$41-D44>=-7,1/7,1/9))),IF($D$41=D44,1,IF($D$41-D44<=3,3,IF($D$41-D44<=5,5,IF($D$41-D44<=7,7,9)))))) -> 1 | T64: =IF(OR('Input-people'!$Q$45=FALSE,'Input-people'!Q49=FALSE),0,IF($D$41-$D45<0,IF($D$41-D45>=-3,1/3,IF($D$41-D45>=-5,1/5,IF($D$41-D45>=-7,1/7,1/9))),IF($D$41=D45,1,IF($D$41-D45<=3,3,IF($D$41-D45<=5,5,IF($D$41-D45<=7,7,9)))))) -> 1
